Workbook

Sheet Tracking
A1: Layout Macro Fields | B1: Value | D1: Formatting Codes
A2: Site Name | B2: Nevada Environmental Response Trust Site | C2: Henderson, Nevada
A3: Left Header | C3: Usually blank for publication
A4: Center Header | C4: Usually blank
A5: Right Header | C5: Doc Status: Draft; Interim Final | D5: &b = bold ; &i = italics; &u=underline
A6: Left Footer | C6: Report Date and location | D6: &6 = 6 pt font; &Z=filepath; &F=filename
A7: Center Footer | B7: Page &p of &n | C7: Page Numbering | D7: &p = page number; &n = total number of pages
A8: Right Footer | B8: Ramboll Environ | C8: Ramboll Environ
A10: Creation Date | B10: Database Date | C10: Version | D10: Description | E10: Owner
A11: 2017-03-20 | C11: 1 | D11: Preliminary RBTC calculations | E11: KZ

Sheet TOC
A1: Table Number | B1: Table Title | C1: Notes | D1: Updated | E1: Formated
A2: TABLE 5-6 | B2: Soil Gas and Shallow Groundwater COPCs Identified for Parcel H
A3: TABLE 5-9 | B3: Johnson and Ettinger/Jury Modeling Parameters
A4: TABLE 5-10 | B4: Physical/Chemical Properties
A5: TABLE 5-11 | B5: Soil Properties Data
A6: TABLE 5-12A | B6: Transfer Factors for Vapors from Soil Gas to Indoor Air, Outdoor Air, and Trench Air – Parcel H
A7: TABLE 5-12B | B7: Transfer Factors for Vapors from Shallow Groundwater to Indoor Air, Outdoor Air, and Trench Air – Parcel H
A8: TABLE 5-15A | B8: Air EPCs Due to Volatiles Migrating from 10 ft bgs Soil Gas to Indoor Air, Outdoor Air, and Trench Air for Parcel H | C8: not used
A9: TABLE 5-13 | B9: Air EPCs Due to Volatile Compounds Migrating from 5 ft bgs Soil Gas to Indoor Air, Outdoor Air, and Trench Air – Parcel H
A10: TABLE 5-14 | B10: Air EPCs Due to Volatile Compounds Migrating from Shallow Groundwater to Indoor Air, Outdoor Air, and Trench Air – Parcel H
A11: TABLE 5-15 | B11: Exposure Assumptions | C11: Use exposure table in the soil risk workbook
A12: TABLE 5-17A | B12: Chronic Inhalation Toxicity Criteria for Soil Gas and Shallow Groundwater COPCs
A13: TABLE 5-17B | B13: Subchronic Inhalation Toxicity Criteria for Soil Gas and Shallow Groundwater COPCs
A14: TABLE Q-X-X | B14: 2007 Soil Gas Cancer Risks and Non-Cancer Hazard Indices For Indoor Workers – Parcel H (10 ft bgs) | C14: not used
A15: TABLE Q-X-X | B15: 2007 Soil Gas Cancer Risks and Non-Cancer Hazard Indices For Outdoor Workers – Parcel H (10 ft bgs) | C15: not used
A16: TABLE Q-X-X | B16: 2007 Soil Gas Cancer Risks and Non-Cancer Hazard Indices For Construction Workers Exposed to Soil Gas Migrating to Trench Air – Parcel H (10 ft bgs) | C16: not used
A17: TABLE Q-2-1 | B17: Soil Gas Cancer Risks and Non-Cancer Hazard Indices For Construction Workers Exposed to Soil Gas Migrating to Trench Air – Parcel H (5 ft bgs)
A18: TABLE Q-2-2 | B18: Soil Gas Cancer Risks and Non-Cancer Hazard Indices For Outdoor Workers – Parcel H (5 ft bgs)
A19: TABLE Q-2-3 | B19: Soil Gas Cancer Risks and Non-Cancer Hazard Indices For Construction Workers Exposed to Soil Gas Migrating to Trench Air – Parcel H (5 ft bgs)
A20: TABLE Q-3-1 | B20: Shallow Groundwater Cancer Risks and Non-Cancer Hazard Indices for Indoor Workers – Parcel H
A21: TABLE Q-3-2 | B21: Shallow Groundwater Cancer Risks and Non-Cancer Hazard Indices for Outdoor Workers – Parcel H
A22: TABLE Q-3-3 | B22: Shallow Groundwater Cancer Risks and Non-Cancer Hazard Indices for Construction Workers (Trench Scenario) – Parcel H
A23: TABLE 5-XX | B23: 2007 Soil Gas Cancer Risks and Non-Cancer Hazard Indices – Parcel H (10 ft bgs) | C23: not used
A24: TABLE 5-20 | B24: Soil Gas Cancer Risks and Non-Cancer Hazard Indices – Parcel H
A25: TABLE 5-21 | B25: Shallow Groundwater Cancer Risks and Non-Cancer Hazard Indices – Parcel H
A26: TABLE Q-3-4 | B26: Risk-Based Concentrations for VOCs and Volatile SVOCs in Soil Gas and Shallow Groundwater

Sheet Scen
A1: Scenario Manager | B1: Scenarios to Evaluate | C1: Exposure Scenario
A2: Text for titles on Risk and RBC Sheets referenced at B1. | B2: Commercial/Industrial Workers | C2: Commercial/Industrial Workers | D2: On-Site Utility/Maintenance Workers | E2: Residents (not used)
A3: Column offset from A1 on XFact sheet in column for current exposure scenario in use in column D and E | B3: 7 | C3: 7 | D3: 5 | E3: 21
A4: Column offset from column on EPC_Soil sheet | B4: 1 | C4: 1 | D4: n/a | E4: 1
A5: Column offset from column J on EPC_Air and TF_Soil & GW to Air sheets for Groundwater Vapor Concentration in Outdoor Air in column F | B5: 3 | C5: 3 | D5: n/a | E5: n/a
A6: Column offset from column J on EPC_Air sheet for Groundwater Vapor Concentration in Indoor Air in column G | C6: n/a | D6: 5 | E6: 7
A7: Column offset from column J on EPC_Air sheet for Soil Vapor Concentration in Outdoor Air in column H | B7: 4 | C7: 4 | D7: n/a | E7: n/a
A8: Column offset from column J on EPC_Air sheet for Soil Vapor Concentration in Indoor Air in column I | C8: n/a | D8: 6 | E8: 8
A9: Table # and table title offset for Soil_DC_Intake, Soil_DC_Risk&HI, Soil_DC_RBC sheets on B1 and B2 | B9: 2 | C9: 2 | D9: n/a | E9: 7
A10: Table # and table title offset for GW_VI_Intake, GW_VI_Risk&HI, GW_VI_RBC sheets on B1 and B2 | B10: 0 | C10: 0 | D10: 3 | E10: 5
A11: Subtitle offset for GW_VI_Intake, GW_VI_Risk&HI, GW_VI_RBC sheets on G6 or L7 | B11: Groundwater Vapor Migrated to Outdoor Air | C11: Groundwater Vapor Migrated to Outdoor Air | D11: Groundwater Vapor Migrated to Indoor Air | E11: Groundwater Vapor Migrated to Indoor Air

Sheet NOTES
A3: NOTES:
A4: 1. Before reviewing the risk results for each receptor, first please go to the [Scen] Tab , and then go to DATA --> What If Analysis --> Scenario Manager to set the exposure scenario you are interested in.
A5: Remember to hit CTRL+ALT+F9 to make sure the workbook refreshes the calculations
A7: 2. Always keep the chemical list starting from Row 11
A8: 3. Some formula are set up using array. After enter the formula, press CTRL+SHIFT+ENTER.

Sheet T5-6 COPC
B1: =TOC!A2&". "&TOC!B2 -> TABLE 5-6. Soil Gas and Shallow Groundwater COPCs Identified for Parcel H
B2: =TOC!B2 -> Soil Gas and Shallow Groundwater COPCs Identified for Parcel H
B3: =Tracking!B2 -> Nevada Environmental Response Trust Site
B4: =Tracking!C2 -> Henderson, Nevada
E7: 1 | F7: 2 | G7: 3 | H7: 4 | I7: 5 | J7: 6 | K7: 7 | L7: 8 | M7: 9 | N7: 10 | O7: 11 | P7: 12 | Q7: 13 | R7: 14
B8: Chemical Group | C8: Sort Name | D8: Chemical Name a | E8: CAS # | F8: Soil Gas b | K8: Shallow Groundwater | N8: Volatile Compounds? c | O8: All Volatiles in SG | P8: All Volatiles in 5ft SG | Q8: All Volatiles in 10ft SG | R8: All Volatiles in GW
AC9: Analyte | AD9: Risk Based Concentration | AE9: Unit | AF9: No. of Samples | AG9: No. of Detects | AI9: Analyte | AJ9: Risk Based Concentration | AK9: Unit | AL9: No. of Samples | AM9: No. of Detects
A10: Include | U10: report_method_group | V10: analyte | W10: report name | X10: cas | Y10: SG | Z10: GW
A11: x | B11: =U11 -> VOCs | C11: =VLOOKUP(D11,'[11]Analyte List'!$B$1:$G$187,2,FALSE) -> Acetone | D11: =V11 -> Acetone | E11: =X11 -> 67-64-1 | F11: =IF(Y11="X", "X", "") -> X | H11: =IF(AA11="X", "X", "") ->  | I11: =IF(AB11="X", "X", "") ->  | J11: =IF(AC11="X", "X", "") ->  | K11: =IF(Z11="X", "X", "") -> X | N11: =VLOOKUP(E11,'RSL(2017)'!$B$2:$O$813,10,FALSE) -> V | O11: =IF(OR(F11="X",G11="X",H11="X",I11="X",J11="X"),IF(N11="V","X",""),"") -> X | P11: =IF(OR(F11="X",H11="X",J11="X"),IF(N11="V","X",""),"") -> X | R11: =IF(OR(K11="X",L11="X",M11="X"),IF(N11="V","X",""),"") -> X | U11: VOCs | V11: Acetone | W11: Acetone | X11: 67-64-1 | Y11: =IF(ISNA(VLOOKUP(V11,$AC$11:$AC$75,1,FALSE)),"","X") -> X | Z11: =IF(ISNA(VLOOKUP(V11,$AI$11:$AI$75,1,FALSE)),"","X") -> X | AA11: =VLOOKUP(D11,'[12]T5-8 COPC'!$D$11:$N$113,11,FALSE) -> V | AC11: Naphthalene | AD11: 1.9e+03 | AE11: μg/m3 | AF11: 2 | AG11: 2 | AI11: Acenaphthene | AJ11: -- | AK11: µg/L | AL11: 5 | AM11: 1
A12: x | B12: VOCs | C12: =VLOOKUP(D12,'[11]Analyte List'!$B$1:$G$187,2,FALSE) -> Acrylonitrile | D12: =V12 -> Acrylonitrile | E12: =X12 -> 107-13-1 | F12: =IF(Y12="X", "X", "") -> X | K12: =IF(Z12="X", "X", "") ->  | N12: V | O12: =IF(OR(F12="X",G12="X",H12="X",I12="X",J12="X"),IF(N12="V","X",""),"") -> X | P12: =IF(OR(F12="X",H12="X",J12="X"),IF(N12="V","X",""),"") -> X | R12: =IF(OR(K12="X",L12="X",M12="X"),IF(N12="V","X",""),"") ->  | U12: VOCs | V12: Acrylonitrile | W12: Acrylonitrile | X12: 107-13-1 | Y12: =IF(ISNA(VLOOKUP(V12,$AC$11:$AC$75,1,FALSE)),"","X") -> X | Z12: =IF(ISNA(VLOOKUP(V12,$AI$11:$AI$75,1,FALSE)),"","X") ->  | AA12: =VLOOKUP(D12,'[12]T5-8 COPC'!$D$11:$N$113,11,FALSE) -> V | AC12: Acetone | AD12: 4.1e+08 | AE12: μg/m3 | AF12: 2 | AG12: 2 | AI12: Anthracene | AJ12: -- | AK12: µg/L | AL12: 5 | AM12: 1
A13: x | B13: VOCs | C13: =VLOOKUP(D13,'[11]Analyte List'!$B$1:$G$187,2,FALSE) -> Benzene | D13: Benzene | E13: 71-43-2 | F13: X | N13: =VLOOKUP(E13,'RSL(2017)'!$B$2:$O$813,10,FALSE) -> V | O13: X | P13: X | U13: VOCs | V13: Benzene | W13: Benzene | X13: 71-43-2 | Y13: X | AA13: =VLOOKUP(D13,'[12]T5-8 COPC'!$D$11:$N$113,11,FALSE) -> V | AC13: Acrylonitrile | AD13: 6.0e+02 | AE13: μg/m3 | AF13: 2 | AG13: 1 | AI13: Benzo(a)anthracene | AJ13: -- | AK13: µg/L | AL13: 5 | AM13: 1
A14: x | B14: VOCs | C14: =VLOOKUP(D14,'[11]Analyte List'!$B$1:$G$187,2,FALSE) -> Bromodichloromethane | D14: Bromodichloromethane | E14: 75-27-4 | K14: X | N14: =VLOOKUP(E14,'RSL(2017)'!$B$2:$O$813,10,FALSE) -> V | R14: X | U14: VOCs | V14: Bromodichloromethane | W14: Bromodichloromethane | X14: 75-27-4 | Z14: X | AA14: =VLOOKUP(D14,'[12]T5-8 COPC'!$D$11:$N$113,11,FALSE) -> V | AC14: Benzene | AD14: 2.9e+14 | AE14: μg/m3 | AF14: 2 | AG14: 2 | AI14: Benzo(a)pyrene | AJ14: -- | AK14: µg/L | AL14: 5 | AM14: 1
A15: x | B15: VOCs | C15: =VLOOKUP(D15,'[11]Analyte List'!$B$1:$G$187,2,FALSE) -> Butanone 2 | D15: 2-Butanone | E15: 78-93-3 | F15: X | N15: =VLOOKUP(E15,'RSL(2017)'!$B$2:$O$813,10,FALSE) -> V | O15: X | P15: X | U15: VOCs | V15: 2-Butanone | W15: Butanone 2 | X15: 78-93-3 | Y15: X | AA15: =VLOOKUP(D15,'[12]T5-8 COPC'!$D$11:$N$113,11,FALSE) -> V | AC15: 2-Butanone | AD15: 8.2e+07 | AE15: μg/m3 | AF15: 2 | AG15: 2 | AI15: Benzo(b)fluoranthene | AJ15: -- | AK15: µg/L | AL15: 5 | AM15: 1
A16: x | B16: VOCs | C16: =VLOOKUP(D16,'[11]Analyte List'!$B$1:$G$187,2,FALSE) -> Butylbenzene n | D16: n-Butylbenzene | E16: 104-51-8 | F16: X | N16: =VLOOKUP(E16,'RSL(2017)'!$B$2:$O$813,10,FALSE) -> V | O16: X | P16: X | U16: VOCs | V16: n-Butylbenzene | W16: Butylbenzene n | X16: 104-51-8 | Y16: X | AA16: =VLOOKUP(D16,'[12]T5-8 COPC'!$D$11:$N$113,11,FALSE) -> V | AC16: n-Butylbenzene | AD16: 7.7e+06 | AE16: μg/m3 | AF16: 2 | AG16: 2 | AI16: Benzo(g,h,i)perylene | AJ16: -- | AK16: µg/L | AL16: 5 | AM16: 1
A17: x | B17: VOCs | C17: =VLOOKUP(D17,'[11]Analyte List'!$B$1:$G$187,2,FALSE) -> Butylbenzene sec | D17: sec-Butylbenzene | E17: 135-98-8 | F17: X | N17: =VLOOKUP(E17,'RSL(2017)'!$B$2:$O$813,10,FALSE) -> V | O17: X | P17: X | U17: VOCs | V17: sec-Butylbenzene | W17: Butylbenzene sec | X17: 135-98-8 | Y17: X | AA17: =VLOOKUP(D17,'[12]T5-8 COPC'!$D$11:$N$113,11,FALSE) -> V | AC17: sec-Butylbenzene | AD17: 7.7e+06 | AE17: μg/m3 | AF17: 2 | AG17: 1 | AI17: Benzo(k)fluoranthene | AJ17: -- | AK17: µg/L | AL17: 5 | AM17: 1
A18: x | B18: VOCs | C18: =VLOOKUP(D18,'[11]Analyte List'!$B$1:$G$187,2,FALSE) -> Carbon Disulfide | D18: Carbon disulfide | E18: 75-15-0 | F18: X | N18: =VLOOKUP(E18,'RSL(2017)'!$B$2:$O$813,10,FALSE) -> V | O18: X | P18: X | U18: VOCs | V18: Carbon disulfide | W18: Carbon Disulfide | X18: 75-15-0 | Y18: X | AA18: =VLOOKUP(D18,'[12]T5-8 COPC'!$D$11:$N$113,11,FALSE) -> V | AC18: Carbon disulfide | AD18: 1.1e+07 | AE18: μg/m3 | AF18: 2 | AG18: 2 | AI18: bis(2-Ethylhexyl)phthalate | AJ18: -- | AK18: µg/L | AL18: 5 | AM18: 2
A19: x | B19: VOCs | C19: =VLOOKUP(D19,'[11]Analyte List'!$B$1:$G$187,2,FALSE) -> Carbon Tetrachloride | D19: Carbon tetrachloride | E19: 56-23-5 | F19: X | N19: =VLOOKUP(E19,'RSL(2017)'!$B$2:$O$813,10,FALSE) -> V | O19: X | P19: X | U19: VOCs | V19: Carbon tetrachloride | W19: Carbon Tetrachloride | X19: 56-23-5 | Y19: X | AA19: =VLOOKUP(D19,'[12]T5-8 COPC'!$D$11:$N$113,11,FALSE) -> V | AC19: Carbon tetrachloride | AD19: 8.7e+03 | AE19: μg/m3 | AF19: 2 | AG19: 2 | AI19: Butylbenzylphthalate | AJ19: -- | AK19: µg/L | AL19: 5 | AM19: 1
A20: x | B20: VOCs | C20: =VLOOKUP(D20,'[11]Analyte List'!$B$1:$G$187,2,FALSE) -> Chloroethane | D20: Chloroethane | E20: 75-00-3 | F20: X | N20: =VLOOKUP(E20,'RSL(2017)'!$B$2:$O$813,10,FALSE) -> V | O20: X | P20: X | U20: VOCs | V20: Chloroethane | W20: Chloroethane | X20: 75-00-3 | Y20: X | AA20: =VLOOKUP(D20,'[12]T5-8 COPC'!$D$11:$N$113,11,FALSE) -> V | AC20: Chloroethane | AD20: 1.5e+08 | AE20: μg/m3 | AF20: 2 | AG20: 1 | AI20: Chrysene | AJ20: -- | AK20: µg/L | AL20: 5 | AM20: 1
A21: x | B21: VOCs | C21: =VLOOKUP(D21,'[11]Analyte List'!$B$1:$G$187,2,FALSE) -> Chloroform | D21: Chloroform | E21: 67-66-3 | F21: X | K21: X | N21: =VLOOKUP(E21,'RSL(2017)'!$B$2:$O$813,10,FALSE) -> V | O21: X | P21: X | R21: X | U21: VOCs | V21: Chloroform | W21: Chloroform | X21: 67-66-3 | Y21: X | Z21: X | AA21: =VLOOKUP(D21,'[12]T5-8 COPC'!$D$11:$N$113,11,FALSE) -> V | AC21: Chloroform | AD21: 1.8e+03 | AE21: μg/m3 | AF21: 2 | AG21: 2 | AI21: Di-n-octylphthalate | AJ21: -- | AK21: µg/L | AL21: 5 | AM21: 1
A22: x | B22: VOCs | C22: =VLOOKUP(D22,'[11]Analyte List'!$B$1:$G$187,2,FALSE) -> Cumene | D22: Cumene | E22: 98-82-8 | F22: X | N22: =VLOOKUP(E22,'RSL(2017)'!$B$2:$O$813,10,FALSE) -> V | O22: X | P22: X | U22: VOCs | V22: Cumene | W22: Cumene | X22: 98-82-8 | Y22: X | AA22: =VLOOKUP(D22,'[12]T5-8 COPC'!$D$11:$N$113,11,FALSE) -> V | AC22: Cumene | AD22: 7.7e+06 | AE22: μg/m3 | AF22: 2 | AG22: 1 | AI22: Dibenz(a,h)anthracene | AJ22: -- | AK22: µg/L | AL22: 5 | AM22: 1
A23: x | B23: VOCs | C23: =VLOOKUP(D23,'[11]Analyte List'!$B$1:$G$187,2,FALSE) -> Cymene, p | D23: p-Cymene | E23: 99-87-6 | F23: X | N23: V | O23: X | P23: X | U23: VOCs | V23: p-Cymene | W23: Cymene, p | X23: 99-87-6 | Y23: X | AA23: =VLOOKUP(D23,'[12]T5-8 COPC'!$D$11:$N$113,11,FALSE) -> V | AC23: p-Cymene | AD23: 7.7e+06 | AE23: μg/m3 | AF23: 2 | AG23: 2 | AI23: Fluoranthene | AJ23: -- | AK23: µg/L | AL23: 5 | AM23: 1
A24: x | B24: VOCs | C24: =VLOOKUP(D24,'[11]Analyte List'!$B$1:$G$187,2,FALSE) -> Dichlorobenzene 1,4 | D24: 1,4-Dichlorobenzene | E24: 106-46-7 | F24: X | N24: =VLOOKUP(E24,'RSL(2017)'!$B$2:$O$813,10,FALSE) -> V | O24: X | P24: X | U24: VOCs | V24: 1,4-Dichlorobenzene | W24: Dichlorobenzene 1,4 | X24: 106-46-7 | Y24: X | AA24: =VLOOKUP(D24,'[12]T5-8 COPC'!$D$11:$N$113,11,FALSE) -> V | AC24: 1,4-Dichlorobenzene | AD24: 5.2e+03 | AE24: μg/m3 | AF24: 2 | AG24: 2 | AI24: Fluorene | AJ24: -- | AK24: µg/L | AL24: 5 | AM24: 1
A25: x | B25: VOCs | C25: =VLOOKUP(D25,'[11]Analyte List'!$B$1:$G$187,2,FALSE) -> Dichlorodifluoromethane | D25: Dichlorodifluoromethane | E25: 75-71-8 | F25: X | N25: V | O25: X | P25: X | U25: VOCs | V25: Dichlorodifluoromethane | W25: Dichlorodifluoromethane | X25: 75-71-8 | Y25: X | AA25: =VLOOKUP(D25,'[12]T5-8 COPC'!$D$11:$N$113,11,FALSE) -> V | AC25: Dichlorodifluoromethane | AD25: 3.7e+06 | AE25: μg/m3 | AF25: 2 | AG25: 2 | AI25: Hexachlorobenzene | AJ25: -- | AK25: µg/L | AL25: 5 | AM25: 1
A26: x | B26: VOCs | C26: =VLOOKUP(D26,'[11]Analyte List'!$B$1:$G$187,2,FALSE) -> Dioxane 1,4 | D26: 1,4-Dioxane | E26: 123-91-1 | F26: X | N26: =VLOOKUP(E26,'RSL(2017)'!$B$2:$O$813,10,FALSE) -> V | O26: X | P26: X | U26: VOCs | V26: 1,4-Dioxane | W26: Dioxane 1,4 | X26: 123-91-1 | Y26: X | AA26: =VLOOKUP(D26,'[12]T5-8 COPC'!$D$11:$N$113,11,FALSE) -> V | AC26: 1,4-Dioxane | AD26: 5.5e+03 | AE26: μg/m3 | AF26: 2 | AG26: 2 | AI26: Indeno(1,2,3-cd)pyrene | AJ26: -- | AK26: µg/L | AL26: 5 | AM26: 1
A27: x | B27: VOCs | C27: =VLOOKUP(D27,'[11]Analyte List'!$B$1:$G$187,2,FALSE) -> Ethanol | D27: Ethanol | E27: 64-17-5 | F27: X | N27: V | O27: X | P27: X | U27: VOCs | V27: Ethanol | W27: Ethanol | X27: 64-17-5 | Y27: X | AA27: =VLOOKUP(D27,'[12]T5-8 COPC'!$D$11:$N$113,11,FALSE) -> V | AC27: Ethanol | AD27: 1.2e+09 | AE27: μg/m3 | AF27: 2 | AG27: 2 | AI27: 2-Methylnaphthalene | AJ27: -- | AK27: µg/L | AL27: 5 | AM27: 1
A28: x | B28: VOCs | C28: =VLOOKUP(D28,'[11]Analyte List'!$B$1:$G$187,2,FALSE) -> Ethyl Benzene | D28: Ethyl benzene | E28: 100-41-4 | F28: X | N28: =VLOOKUP(E28,'RSL(2017)'!$B$2:$O$813,10,FALSE) -> V | O28: X | P28: X | U28: VOCs | V28: Ethyl benzene | W28: Ethyl Benzene | X28: 100-41-4 | Y28: X | AA28: =VLOOKUP(D28,'[12]T5-8 COPC'!$D$11:$N$113,11,FALSE) -> V | AC28: Ethyl benzene | AD28: 2.2e+04 | AE28: μg/m3 | AF28: 2 | AG28: 2 | AI28: Phenanthrene | AJ28: -- | AK28: µg/L | AL28: 5 | AM28: 1
A29: x | B29: VOCs | C29: =VLOOKUP(D29,'[11]Analyte List'!$B$1:$G$187,2,FALSE) -> Ethyltoluene, 4- | D29: 4-Ethyltoluene | E29: 622-96-8 | F29: X | N29: V | O29: X | P29: X | U29: VOCs | V29: 4-Ethyltoluene | W29: Ethyltoluene, 4- | X29: 622-96-8 | Y29: X | AA29: =VLOOKUP(D29,'[12]T5-8 COPC'!$D$11:$N$113,11,FALSE) -> V | AC29: 4-Ethyltoluene | AD29: 7.7e+06 | AE29: μg/m3 | AF29: 2 | AG29: 2 | AI29: Pyrene | AJ29: -- | AK29: µg/L | AL29: 5 | AM29: 1
A30: x | B30: VOCs | C30: =VLOOKUP(D30,'[11]Analyte List'!$B$1:$G$187,2,FALSE) -> Freon 114 | D30: Freon 114 | E30: 76-14-2 | F30: X | N30: V | O30: X | P30: X | U30: VOCs | V30: Freon 114 | W30: Freon 114 | X30: 76-14-2 | Y30: X | AA30: =VLOOKUP(D30,'[12]T5-8 COPC'!$D$11:$N$113,11,FALSE) -> V | AC30: Freon 114 | AD30: 5.6e+08 | AE30: μg/m3 | AF30: 2 | AG30: 1 | AI30: Acetone | AJ30: -- | AK30: µg/L | AL30: 5 | AM30: 3
A31: x | B31: VOCs | C31: =VLOOKUP(D31,'[11]Analyte List'!$B$1:$G$187,2,FALSE) -> Heptane n | D31: n-Heptane | E31: 142-82-5 | F31: X | N31: V | O31: X | P31: X | U31: VOCs | V31: n-Heptane | W31: Heptane n | X31: 142-82-5 | Y31: X | AA31: =VLOOKUP(D31,'[12]T5-8 COPC'!$D$11:$N$113,11,FALSE) -> V | AC31: n-Heptane | AD31: 1.6e+08 | AE31: μg/m3 | AF31: 2 | AG31: 2 | AI31: Bromodichloromethane | AJ31: -- | AK31: µg/L | AL31: 4 | AM31: 2
A32: x | B32: VOCs | C32: =VLOOKUP(D32,'[11]Analyte List'!$B$1:$G$187,2,FALSE) -> Hexanone 2 | D32: 2-Hexanone | E32: 591-78-6 | F32: X | N32: =VLOOKUP(E32,'RSL(2017)'!$B$2:$O$813,10,FALSE) -> V | O32: X | P32: X | U32: VOCs | V32: 2-Hexanone | W32: Hexanone 2 | X32: 591-78-6 | Y32: X | AA32: =VLOOKUP(D32,'[12]T5-8 COPC'!$D$11:$N$113,11,FALSE) -> V | AC32: 2-Hexanone | AD32: 6.1e+05 | AE32: μg/m3 | AF32: 2 | AG32: 2 | AI32: Chloroform | AJ32: -- | AK32: µg/L | AL32: 4 | AM32: 4
A33: x | B33: VOCs | C33: =VLOOKUP(D33,'[11]Analyte List'!$B$1:$G$187,2,FALSE) -> Methyl-2-pentanone 4 | D33: 4-Methyl-2-pentanone | E33: 108-10-1 | F33: X | N33: =VLOOKUP(E33,'RSL(2017)'!$B$2:$O$813,10,FALSE) -> V | O33: X | P33: X | U33: VOCs | V33: 4-Methyl-2-pentanone | W33: Methyl-2-pentanone 4 | X33: 108-10-1 | Y33: X | AA33: =VLOOKUP(D33,'[12]T5-8 COPC'!$D$11:$N$113,11,FALSE) -> V | AC33: 4-Methyl-2-pentanone | AD33: 5.8e+07 | AE33: μg/m3 | AF33: 2 | AG33: 2
A34: x | B34: VOCs | C34: =VLOOKUP(D34,'[11]Analyte List'!$B$1:$G$187,2,FALSE) -> Methylene Chloride | D34: Methylene Chloride | E34: 75-09-2 | F34: X | N34: =VLOOKUP(E34,'RSL(2017)'!$B$2:$O$813,10,FALSE) -> V | O34: X | P34: X | U34: VOCs | V34: Methylene Chloride | W34: Methylene Chloride | X34: 75-09-2 | Y34: X | AA34: =VLOOKUP(D34,'[12]T5-8 COPC'!$D$11:$N$113,11,FALSE) -> V | AC34: Methylene Chloride | AD34: 9.2e+04 | AE34: μg/m3 | AF34: 2 | AG34: 2
A35: x | B35: VOCs | C35: =VLOOKUP(D35,'[11]Analyte List'!$B$1:$G$187,2,FALSE) -> Methylmethacrylate | D35: Methylmethacrylate | E35: 80-62-6 | F35: X | N35: =VLOOKUP(E35,'RSL(2017)'!$B$2:$O$813,10,FALSE) -> V | O35: X | P35: X | U35: VOCs | V35: Methylmethacrylate | W35: Methylmethacrylate | X35: 80-62-6 | Y35: X | AA35: =VLOOKUP(D35,'[12]T5-8 COPC'!$D$11:$N$113,11,FALSE) ->  | AC35: Methylmethacrylate | AD35: 1.3e+07 | AE35: μg/m3 | AF35: 2 | AG35: 1
A36: x | B36: VOCs | C36: =VLOOKUP(D36,'[11]Analyte List'!$B$1:$G$187,2,FALSE) -> OCTANE | D36: n-Octane | E36: 111-65-9 | F36: X | N36: V | O36: X | P36: X | U36: VOCs | V36: n-Octane | W36: OCTANE | X36: 111-65-9 | Y36: X | AA36: =VLOOKUP(D36,'[12]T5-8 COPC'!$D$11:$N$113,11,FALSE) -> V | AC36: n-Octane | AD36: 3.7e+08 | AE36: μg/m3 | AF36: 2 | AG36: 1
A37: x | B37: VOCs | C37: =VLOOKUP(D37,'[11]Analyte List'!$B$1:$G$187,2,FALSE) -> Propylbenzene n | D37: n-Propylbenzene | E37: 103-65-1 | F37: X | N37: =VLOOKUP(E37,'RSL(2017)'!$B$2:$O$813,10,FALSE) -> V | O37: X | P37: X | U37: VOCs | V37: n-Propylbenzene | W37: Propylbenzene n | X37: 103-65-1 | Y37: X | AA37: =VLOOKUP(D37,'[12]T5-8 COPC'!$D$11:$N$113,11,FALSE) -> V | AC37: n-Propylbenzene | AD37: 7.7e+06 | AE37: μg/m3 | AF37: 2 | AG37: 1
A38: x | B38: VOCs | C38: =VLOOKUP(D38,'[11]Analyte List'!$B$1:$G$187,2,FALSE) -> Styrene | D38: Styrene | E38: 100-42-5 | F38: X | N38: =VLOOKUP(E38,'RSL(2017)'!$B$2:$O$813,10,FALSE) -> V | O38: X | P38: X | U38: VOCs | V38: Styrene | W38: Styrene | X38: 100-42-5 | Y38: X | AA38: =VLOOKUP(D38,'[12]T5-8 COPC'!$D$11:$N$113,11,FALSE) -> V | AC38: Styrene | AD38: 2.0e+07 | AE38: μg/m3 | AF38: 2 | AG38: 2
A39: x | B39: VOCs | C39: =VLOOKUP(D39,'[11]Analyte List'!$B$1:$G$187,2,FALSE) -> styrene, alpha-Methyl | D39: alpha-Methylstyrene | E39: 98-83-9 | F39: X | N39: V | O39: X | P39: X | U39: VOCs | V39: alpha-Methylstyrene | W39: styrene, alpha-Methyl | X39: 98-83-9 | Y39: X | AA39: =VLOOKUP(D39,'[12]T5-8 COPC'!$D$11:$N$113,11,FALSE) -> V | AC39: 1,1,2,2-Tetrachloroethane | AD39: 9.7e+02 | AE39: μg/m3 | AF39: 2 | AG39: 1
A40: x | B40: VOCs | C40: =VLOOKUP(D40,'[11]Analyte List'!$B$1:$G$187,2,FALSE) -> tert Butyl alcohol | D40: tert Butyl alcohol | E40: 75-65-0 | F40: X | N40: V | O40: X | P40: X | U40: VOCs | V40: tert Butyl alcohol | W40: tert Butyl alcohol | X40: 75-65-0 | Y40: X | AA40: =VLOOKUP(D40,'[12]T5-8 COPC'!$D$11:$N$113,11,FALSE) -> V | AC40: Tetrachloroethene | AD40: 9.1e+03 | AE40: μg/m3 | AF40: 2 | AG40: 2
A41: x | B41: VOCs | C41: =VLOOKUP(D41,'[11]Analyte List'!$B$1:$G$187,2,FALSE) -> Tetrachloroethane 1,1,2,2 | D41: 1,1,2,2-Tetrachloroethane | E41: 79-34-5 | F41: X | N41: =VLOOKUP(E41,'RSL(2017)'!$B$2:$O$813,10,FALSE) -> V | O41: X | P41: X | U41: VOCs | V41: 1,1,2,2-Tetrachloroethane | W41: Tetrachloroethane 1,1,2,2 | X41: 79-34-5 | Y41: X | AA41: =VLOOKUP(D41,'[12]T5-8 COPC'!$D$11:$N$113,11,FALSE) -> V | AC41: Toluene | AD41: 8.6e+07 | AE41: μg/m3 | AF41: 2 | AG41: 2
A42: x | B42: VOCs | C42: =VLOOKUP(D42,'[11]Analyte List'!$B$1:$G$187,2,FALSE) -> Tetrachloroethene | D42: Tetrachloroethene | E42: 127-18-4 | F42: X | N42: V | O42: X | P42: X | U42: VOCs | V42: Tetrachloroethene | W42: Tetrachloroethene | X42: 127-18-4 | Y42: X | AA42: =VLOOKUP(D42,'[12]T5-8 COPC'!$D$11:$N$113,11,FALSE) -> V | AC42: 1,2,4-Trichlorobenzene | AD42: 8.3e+04 | AE42: μg/m3 | AF42: 2 | AG42: 1
A43: x | B43: =U43 -> VOCs | C43: =VLOOKUP(D43,'[11]Analyte List'!$B$1:$G$187,2,FALSE) -> Toluene | D43: Toluene | E43: 108-88-3 | F43: X | N43: V | O43: X | P43: X | U43: VOCs | V43: Toluene | W43: Toluene | X43: 108-88-3 | Y43: X | AA43: =VLOOKUP(D43,'[12]T5-8 COPC'!$D$11:$N$113,11,FALSE) -> V | AC43: Trichloroethene | AD43: 2.6e+04 | AE43: μg/m3 | AF43: 2 | AG43: 2
A44: x | B44: VOCs | C44: =VLOOKUP(D44,'[11]Analyte List'!$B$1:$G$187,2,FALSE) -> Trichlorobenzene 1,2,4 | D44: 1,2,4-Trichlorobenzene | E44: 120-82-1 | F44: X | N44: V | O44: X | P44: X | U44: VOCs | V44: 1,2,4-Trichlorobenzene | W44: Trichlorobenzene 1,2,4 | X44: 120-82-1 | Y44: X | AA44: =VLOOKUP(D44,'[12]T5-8 COPC'!$D$11:$N$113,11,FALSE) -> V | AC44: Trichlorofluoromethane | AD44: 1.2e+07 | AE44: μg/m3 | AF44: 2 | AG44: 2
A45: x | B45: VOCs | C45: =VLOOKUP(D45,'[11]Analyte List'!$B$1:$G$187,2,FALSE) -> Trichloroethene | D45: Trichloroethene | E45: 79-01-6 | F45: X | N45: =VLOOKUP(E45,'RSL(2017)'!$B$2:$O$813,10,FALSE) -> V | O45: X | P45: X | U45: VOCs | V45: Trichloroethene | W45: Trichloroethene | X45: 79-01-6 | Y45: X | AA45: =VLOOKUP(D45,'[12]T5-8 COPC'!$D$11:$N$113,11,FALSE) -> V | AC45: 1,2,4-Trimethylbenzene | AD45: 1.2e+06 | AE45: μg/m3 | AF45: 2 | AG45: 2
A46: x | B46: VOCs | C46: =VLOOKUP(D46,'[11]Analyte List'!$B$1:$G$187,2,FALSE) -> Trichlorofluoromethane | D46: Trichlorofluoromethane | E46: 75-69-4 | F46: X | N46: =VLOOKUP(E46,'RSL(2017)'!$B$2:$O$813,10,FALSE) -> V | O46: X | P46: X | U46: VOCs | V46: Trichlorofluoromethane | W46: Trichlorofluoromethane | X46: 75-69-4 | Y46: X | AA46: =VLOOKUP(D46,'[12]T5-8 COPC'!$D$11:$N$113,11,FALSE) -> V | AC46: 1,3,5-Trimethylbenzene | AD46: 1.2e+06 | AE46: μg/m3 | AF46: 2 | AG46: 2
A47: x | B47: VOCs | C47: =VLOOKUP(D47,'[11]Analyte List'!$B$1:$G$187,2,FALSE) -> trifluoroethane 1,1,2-Trichloro-1,2,2- | D47: 1,1,2-Trichloro-1,2,2-trifluoroethane | E47: 76-13-1 | F47: X | N47: V | O47: X | P47: X | U47: VOCs | V47: 1,1,2-Trichloro-1,2,2-trifluoroethane | W47: trifluoroethane 1,1,2-Trichloro-1,2,2- | X47: 76-13-1 | Y47: X | AA47: =VLOOKUP(D47,'[12]T5-8 COPC'!$D$11:$N$113,11,FALSE) -> V | AC47: Vinyl acetate | AD47: 3.5e+06 | AE47: μg/m3 | AF47: 2 | AG47: 2
A48: x | B48: VOCs | C48: =VLOOKUP(D48,'[11]Analyte List'!$B$1:$G$187,2,FALSE) -> Trimethylbenzene 1,2,4 | D48: 1,2,4-Trimethylbenzene | E48: 95-63-6 | F48: X | N48: =VLOOKUP(E48,'RSL(2017)'!$B$2:$O$813,10,FALSE) -> V | O48: X | P48: X | U48: VOCs | V48: 1,2,4-Trimethylbenzene | W48: Trimethylbenzene 1,2,4 | X48: 95-63-6 | Y48: X | AA48: =VLOOKUP(D48,'[12]T5-8 COPC'!$D$11:$N$113,11,FALSE) -> V | AC48: o-Xylene | AD48: 1.7e+06 | AE48: μg/m3 | AF48: 2 | AG48: 2
A49: x | B49: VOCs | C49: =VLOOKUP(D49,'[11]Analyte List'!$B$1:$G$187,2,FALSE) -> Trimethylbenzene 1,3,5 | D49: 1,3,5-Trimethylbenzene | E49: 108-67-8 | F49: X | N49: V | O49: X | P49: X | U49: VOCs | V49: 1,3,5-Trimethylbenzene | W49: Trimethylbenzene 1,3,5 | X49: 108-67-8 | Y49: X | AA49: =VLOOKUP(D49,'[12]T5-8 COPC'!$D$11:$N$113,11,FALSE) -> V | AC49: m,p-Xylene | AD49: 1.9e+06 | AE49: μg/m3 | AF49: 2 | AG49: 2
A50: x | B50: VOCs | C50: =VLOOKUP(D50,'[11]Analyte List'!$B$1:$G$187,2,FALSE) -> Vinyl Acetate | D50: Vinyl acetate | E50: 108-05-4 | F50: X | N50: V | O50: X | P50: X | U50: VOCs | V50: Vinyl acetate | W50: Vinyl Acetate | X50: 108-05-4 | Y50: X | AA50: =VLOOKUP(D50,'[12]T5-8 COPC'!$D$11:$N$113,11,FALSE) -> V | AC50: alpha-Methylstyrene | AD50: 2.0e+07 | AE50: μg/m3 | AF50: 2 | AG50: 1
A51: x | B51: VOCs | C51: =VLOOKUP(D51,'[11]Analyte List'!$B$1:$G$187,2,FALSE) -> Xylene ortho | D51: o-Xylene | E51: 95-47-6 | F51: X | N51: V | O51: X | P51: X | U51: VOCs | V51: o-Xylene | W51: Xylene ortho | X51: 95-47-6 | Y51: X | AA51: =VLOOKUP(D51,'[12]T5-8 COPC'!$D$11:$N$113,11,FALSE) -> V | AC51: tert Butyl alcohol | AD51: 4.7e+08 | AE51: μg/m3 | AF51: 2 | AG51: 2
A52: x | B52: VOCs | C52: =VLOOKUP(D52,'[11]Analyte List'!$B$1:$G$187,2,FALSE) -> Xylene, m,p | D52: m,p-Xylene | E52: 79601-23-1 | F52: X | N52: V | O52: X | P52: X | U52: VOCs | V52: m,p-Xylene | W52: Xylene, m,p | X52: 79601-23-1 | Y52: X | AA52: =VLOOKUP(D52,'[12]T5-8 COPC'!$D$11:$N$113,11,FALSE) -> V | AC52: 1,1,2-Trichloro-1,2,2-trifluoroethane | AD52: 1.3e+09 | AE52: μg/m3 | AF52: 2 | AG52: 2
A53: x | B53: SVOCs | C53: =VLOOKUP(D53,'[11]Analyte List'!$B$1:$G$187,2,FALSE) -> Acenaphthene | D53: Acenaphthene | E53: 83-32-9 | K53: X | N53: =VLOOKUP(E53,'RSL(2017)'!$B$2:$O$813,10,FALSE) -> V | R53: X | U53: SVOCs | V53: Acenaphthene | W53: Acenaphthene | X53: 83-32-9 | Z53: X | AA53: =VLOOKUP(D53,'[12]T5-8 COPC'!$D$11:$N$113,11,FALSE) -> V
A54: x | B54: SVOCs | C54: =VLOOKUP(D54,'[11]Analyte List'!$B$1:$G$187,2,FALSE) -> Anthracene | D54: Anthracene | E54: 120-12-7 | K54: X | N54: =VLOOKUP(E54,'RSL(2017)'!$B$2:$O$813,10,FALSE) -> V | R54: X | U54: SVOCs | V54: Anthracene | W54: Anthracene | X54: 120-12-7 | Z54: X | AA54: =VLOOKUP(D54,'[12]T5-8 COPC'!$D$11:$N$113,11,FALSE) -> V
A55: x | B55: SVOCs | C55: =VLOOKUP(D55,'[11]Analyte List'!$B$1:$G$187,2,FALSE) -> Benzo(a)anthracene | D55: Benzo(a)anthracene | E55: 56-55-3 | K55: X | N55: =VLOOKUP(E55,'RSL(2017)'!$B$2:$O$813,10,FALSE) -> V | R55: X | U55: SVOCs | V55: Benzo(a)anthracene | W55: Benzo(a)anthracene | X55: 56-55-3 | Z55: X | AA55: =VLOOKUP(D55,'[12]T5-8 COPC'!$D$11:$N$113,11,FALSE) -> 
A56: x | B56: SVOCs | C56: =VLOOKUP(D56,'[11]Analyte List'!$B$1:$G$187,2,FALSE) -> Benzo(a)pyrene | D56: Benzo(a)pyrene | E56: 50-32-8 | K56: X | U56: SVOCs | V56: Benzo(a)pyrene | W56: Benzo(a)pyrene | X56: 50-32-8 | Z56: X | AA56: =VLOOKUP(D56,'[12]T5-8 COPC'!$D$11:$N$113,11,FALSE) -> 
A57: x | B57: SVOCs | C57: =VLOOKUP(D57,'[11]Analyte List'!$B$1:$G$187,2,FALSE) -> Benzo(b)fluoranthene | D57: Benzo(b)fluoranthene | E57: 205-99-2 | K57: X | N57: =VLOOKUP(E57,'RSL(2017)'!$B$2:$O$813,10,FALSE) ->  | U57: SVOCs | V57: Benzo(b)fluoranthene | W57: Benzo(b)fluoranthene | X57: 205-99-2 | Z57: X | AA57: =VLOOKUP(D57,'[12]T5-8 COPC'!$D$11:$N$113,11,FALSE) -> 
A58: x | B58: SVOCs | C58: =VLOOKUP(D58,'[11]Analyte List'!$B$1:$G$187,2,FALSE) -> Benzo(g,h,i)perylene | D58: Benzo(g,h,i)perylene | E58: 191-24-2 | K58: X | U58: SVOCs | V58: Benzo(g,h,i)perylene | W58: Benzo(g,h,i)perylene | X58: 191-24-2 | Z58: X | AA58: =VLOOKUP(D58,'[12]T5-8 COPC'!$D$11:$N$113,11,FALSE) -> 
A59: x | B59: SVOCs | C59: =VLOOKUP(D59,'[11]Analyte List'!$B$1:$G$187,2,FALSE) -> Benzo(k)fluoranthene | D59: Benzo(k)fluoranthene | E59: 207-08-9 | K59: X | U59: SVOCs | V59: Benzo(k)fluoranthene | W59: Benzo(k)fluoranthene | X59: 207-08-9 | Z59: X | AA59: =VLOOKUP(D59,'[12]T5-8 COPC'!$D$11:$N$113,11,FALSE) -> 
A60: x | B60: SVOCs | C60: =VLOOKUP(D60,'[11]Analyte List'!$B$1:$G$187,2,FALSE) -> Bis(2-Ethylhexyl)phthalate | D60: bis(2-Ethylhexyl)phthalate | E60: 117-81-7 | K60: X | N60: =VLOOKUP(E60,'RSL(2017)'!$B$2:$O$813,10,FALSE) ->  | U60: SVOCs | V60: bis(2-Ethylhexyl)phthalate | W60: Bis(2-Ethylhexyl)phthalate | X60: 117-81-7 | Z60: X | AA60: =VLOOKUP(D60,'[12]T5-8 COPC'!$D$11:$N$113,11,FALSE) -> 0
A61: x | B61: SVOCs | C61: =VLOOKUP(D61,'[11]Analyte List'!$B$1:$G$187,2,FALSE) -> Butylbenzylphthalate | D61: Butylbenzylphthalate | E61: 85-68-7 | K61: X | N61: =VLOOKUP(E61,'RSL(2017)'!$B$2:$O$813,10,FALSE) ->  | U61: SVOCs | V61: Butylbenzylphthalate | W61: Butylbenzylphthalate | X61: 85-68-7 | Z61: X | AA61: =VLOOKUP(D61,'[12]T5-8 COPC'!$D$11:$N$113,11,FALSE) -> 0
A62: x | B62: SVOCs | C62: =VLOOKUP(D62,'[11]Analyte List'!$B$1:$G$187,2,FALSE) -> Chrysene | D62: Chrysene | E62: 218-01-9 | K62: X | N62: =VLOOKUP(E62,'RSL(2017)'!$B$2:$O$813,10,FALSE) ->  | U62: SVOCs | V62: Chrysene | W62: Chrysene | X62: 218-01-9 | Z62: X | AA62: =VLOOKUP(D62,'[12]T5-8 COPC'!$D$11:$N$113,11,FALSE) -> 
A63: x | B63: SVOCs | C63: =VLOOKUP(D63,'[11]Analyte List'!$B$1:$G$187,2,FALSE) -> Dibenz(a,h)anthracene | D63: Dibenz(a,h)anthracene | E63: 53-70-3 | K63: X | N63: =VLOOKUP(E63,'RSL(2017)'!$B$2:$O$813,10,FALSE) ->  | U63: SVOCs | V63: Dibenz(a,h)anthracene | W63: Dibenz(a,h)anthracene | X63: 53-70-3 | Z63: X | AA63: =VLOOKUP(D63,'[12]T5-8 COPC'!$D$11:$N$113,11,FALSE) -> 
A64: x | B64: SVOCs | C64: =VLOOKUP(D64,'[11]Analyte List'!$B$1:$G$187,2,FALSE) -> Di-n-octylphthalate | D64: Di-n-octylphthalate | E64: 117-84-0 | K64: X | N64: =VLOOKUP(E64,'RSL(2017)'!$B$2:$O$813,10,FALSE) ->  | U64: SVOCs | V64: Di-n-octylphthalate | W64: Di-n-octylphthalate | X64: 117-84-0 | Z64: X | AA64: =VLOOKUP(D64,'[12]T5-8 COPC'!$D$11:$N$113,11,FALSE) -> 
A65: x | B65: SVOCs | C65: =VLOOKUP(D65,'[11]Analyte List'!$B$1:$G$187,2,FALSE) -> Fluoranthene | D65: Fluoranthene | E65: 206-44-0 | K65: X | N65: =VLOOKUP(E65,'RSL(2017)'!$B$2:$O$813,10,FALSE) ->  | U65: SVOCs | V65: Fluoranthene | W65: Fluoranthene | X65: 206-44-0 | Z65: X | AA65: =VLOOKUP(D65,'[12]T5-8 COPC'!$D$11:$N$113,11,FALSE) -> 
A66: x | B66: SVOCs | C66: =VLOOKUP(D66,'[11]Analyte List'!$B$1:$G$187,2,FALSE) -> Fluorene | D66: Fluorene | E66: 86-73-7 | K66: X | N66: =VLOOKUP(E66,'RSL(2017)'!$B$2:$O$813,10,FALSE) -> V | R66: X | U66: SVOCs | V66: Fluorene | W66: Fluorene | X66: 86-73-7 | Z66: X | AA66: =VLOOKUP(D66,'[12]T5-8 COPC'!$D$11:$N$113,11,FALSE) -> 
A67: x | B67: SVOCs | C67: =VLOOKUP(D67,'[11]Analyte List'!$B$1:$G$187,2,FALSE) -> Hexachlorobenzene | D67: Hexachlorobenzene | E67: 118-74-1 | K67: X | N67: =VLOOKUP(E67,'RSL(2017)'!$B$2:$O$813,10,FALSE) -> V | R67: X | U67: SVOCs | V67: Hexachlorobenzene | W67: Hexachlorobenzene | X67: 118-74-1 | Z67: X | AA67: =VLOOKUP(D67,'[12]T5-8 COPC'!$D$11:$N$113,11,FALSE) -> 
A68: x | B68: SVOCs | C68: =VLOOKUP(D68,'[11]Analyte List'!$B$1:$G$187,2,FALSE) -> Indeno(1,2,3-cd)pyrene | D68: Indeno(1,2,3-cd)pyrene | E68: 193-39-5 | K68: X | N68: =VLOOKUP(E68,'RSL(2017)'!$B$2:$O$813,10,FALSE) ->  | U68: SVOCs | V68: Indeno(1,2,3-cd)pyrene | W68: Indeno(1,2,3-cd)pyrene | X68: 193-39-5 | Z68: X | AA68: =VLOOKUP(D68,'[12]T5-8 COPC'!$D$11:$N$113,11,FALSE) -> 
A69: x | B69: SVOCs | C69: =VLOOKUP(D69,'[11]Analyte List'!$B$1:$G$187,2,FALSE) -> Methylnaphthalene 2 | D69: 2-Methylnaphthalene | E69: 91-57-6 | K69: X | N69: =VLOOKUP(E69,'RSL(2017)'!$B$2:$O$813,10,FALSE) -> V | R69: X | U69: SVOCs | V69: 2-Methylnaphthalene | W69: Methylnaphthalene 2 | X69: 91-57-6 | Z69: X | AA69: =VLOOKUP(D69,'[12]T5-8 COPC'!$D$11:$N$113,11,FALSE) -> V
A70: x | B70: SVOCs | C70: =VLOOKUP(D70,'[11]Analyte List'!$B$1:$G$187,2,FALSE) -> Naphthalene | D70: Naphthalene | E70: 91-20-3 | F70: X | N70: =VLOOKUP(E70,'RSL(2017)'!$B$2:$O$813,10,FALSE) -> V | O70: X | P70: X | U70: SVOCs | V70: Naphthalene | W70: Naphthalene | X70: 91-20-3 | Y70: X | AA70: =VLOOKUP(D70,'[12]T5-8 COPC'!$D$11:$N$113,11,FALSE) -> V
A71: x | B71: SVOCs | C71: =VLOOKUP(D71,'[11]Analyte List'!$B$1:$G$187,2,FALSE) -> Phenanthrene | D71: Phenanthrene | E71: 85-01-8 | K71: X | U71: SVOCs | V71: Phenanthrene | W71: Phenanthrene | X71: 85-01-8 | Z71: X | AA71: =VLOOKUP(D71,'[12]T5-8 COPC'!$D$11:$N$113,11,FALSE) -> 0
A72: x | B72: SVOCs | C72: =VLOOKUP(D72,'[11]Analyte List'!$B$1:$G$187,2,FALSE) -> Pyrene | D72: Pyrene | E72: 129-00-0 | K72: X | N72: =VLOOKUP(E72,'RSL(2017)'!$B$2:$O$813,10,FALSE) -> V | R72: X | U72: SVOCs | V72: Pyrene | W72: Pyrene | X72: 129-00-0 | Z72: X | AA72: =VLOOKUP(D72,'[12]T5-8 COPC'!$D$11:$N$113,11,FALSE) -> 
O76: =IF(OR(F76="X",G76="X",H76="X",I76="X",J76="X"),IF(N76="V","X",""),"") ->  | P76: =IF(OR(F76="X",H76="X",J76="X"),IF(N76="V","X",""),"") ->  | R76: =IF(OR(K76="X",L76="X",M76="X"),IF(N76="V","X",""),"") -> 
Q81: =IF(OR(G81="X",I81="X",),IF(N81="V","X",""),"") ->  | U81: VOCs
A114: x
A115: x | B115: Notes:
A116: x | B116: X = Indicate a constituent was detected in a specific medium.
A117: x | B117: atm = atmosphere
A118: x | B118: m3 = cubic meter
A119: x | B119: mm Hg = millimeter mercury
A120: x | B120: SVOC = Semivolatile organic compound
A121: x | B121: VOC = Volatile organic compound
A122: x | B122: USEPA = United States Environmental Protection Agency
A123: x
A124: x | B124: a Based on detected constituents in soil gas and the most recent two years of shallow groundwater sampling data collected within or near Parcels C, D and G after January 1, 2006.
A125: x | B125: b Only 5 feet soil gas samples were collected within Parcel H.
A126: x | B126: c The volatile compounds were identified using the following criteria consistent with recommendation from the USEPA Regional Screening Levels Table (USEPA 2016): 1) vapor pressure greater than 1 mm Hg or 2) Henry's Law constant greater than 0.00001 atm or m3/mole.
A127: x
A128: x | B128: Source:
A129: x | B129: USEPA. 2017. Regional Screening Levels. June.

Sheet COPC_not include (hidden)
B1: =TOC!#REF! -> 
B2: =TOC!#REF! -> 
B3: =Tracking!B2 -> Nevada Environmental Response Trust Site
B4: =Tracking!C2 -> Henderson, Nevada
E6: 1 | F6: 2 | G6: 6 | H6: 7 | I6: 8 | J6: 11
B7: Constituent Group | C7: Constituent | D7: CAS # | E7: CAS # | F7: Soil Gas | G7: Groundwater | J7: Soil
A8: Include | K8: missing from tox
A9: x | B9: VOC | C9: Acetone | D9: 67-64-1 | E9: =INDEX(#REF!,MATCH(C9,#REF!,0)) ->  | F9: X | K9: =INDEX('T5-17A Tox'!$D$12:$D$134,MATCH('COPC_not include'!D9,'T5-17A Tox'!$E$12:$E$134,0)) -> Acetone
A10: x | B10: VOC | C10: Benzene | D10: 71-43-2 | E10: 71-43-2 | F10: X | G10: X | K10: =INDEX('T5-17A Tox'!$D$12:$D$134,MATCH('COPC_not include'!D10,'T5-17A Tox'!$E$12:$E$134,0)) -> Benzene
A11: x | B11: VOC | C11: Bromodichloromethane | D11: 75-27-4 | E11: 75-27-4 | G11: X | K11: =INDEX('T5-17A Tox'!$D$12:$D$134,MATCH('COPC_not include'!D11,'T5-17A Tox'!$E$12:$E$134,0)) -> Bromodichloromethane
A12: x | B12: VOC | C12: 2-Butanone | D12: 78-93-3 | E12: 78-93-3 | F12: X | K12: =INDEX('T5-17A Tox'!$D$12:$D$134,MATCH('COPC_not include'!D12,'T5-17A Tox'!$E$12:$E$134,0)) -> 2-Butanone
A13: x | B13: VOC | C13: sec-Butylbenzene | D13: 135-98-8 | E13: 135-98-8 | G13: X | K13: =INDEX('T5-17A Tox'!$D$12:$D$134,MATCH('COPC_not include'!D13,'T5-17A Tox'!$E$12:$E$134,0)) -> sec-Butylbenzene
A14: x | B14: VOC | C14: Carbon Disulfide | D14: 75-15-0 | E14: 75-15-0 | F14: X | K14: =INDEX('T5-17A Tox'!$D$12:$D$134,MATCH('COPC_not include'!D14,'T5-17A Tox'!$E$12:$E$134,0)) -> Carbon disulfide
A15: x | B15: VOC | C15: Chloroethane | D15: 75-00-3 | E15: 75-00-3 | G15: X | K15: =INDEX('T5-17A Tox'!$D$12:$D$134,MATCH('COPC_not include'!D15,'T5-17A Tox'!$E$12:$E$134,0)) -> Chloroethane
A16: x | B16: VOC | C16: Chloroform | D16: 67-66-3 | E16: 67-66-3 | F16: X | K16: =INDEX('T5-17A Tox'!$D$12:$D$134,MATCH('COPC_not include'!D16,'T5-17A Tox'!$E$12:$E$134,0)) -> Chloroform
A17: x | B17: VOC | C17: Chloromethane | D17: 74-87-3 | E17: 74-87-3 | F17: X | K17: =INDEX('T5-17A Tox'!$D$12:$D$134,MATCH('COPC_not include'!D17,'T5-17A Tox'!$E$12:$E$134,0)) -> Chloromethane
A18: x | B18: VOC | C18: 1,3-Dichlorobenzene | D18: 541-73-1 | E18: 541-73-1 | F18: X | K18: =INDEX('T5-17A Tox'!$D$12:$D$134,MATCH('COPC_not include'!D18,'T5-17A Tox'!$E$12:$E$134,0)) -> 1,3-Dichlorobenzene
A19: x | B19: VOC | C19: 1,1-Dichloroethane | D19: 75-34-3 | E19: 75-34-3 | F19: X | G19: X | K19: =INDEX('T5-17A Tox'!$D$12:$D$134,MATCH('COPC_not include'!D19,'T5-17A Tox'!$E$12:$E$134,0)) -> 1,1-Dichloroethane
A20: x | B20: VOC | C20: 1,2-Dichloroethane | D20: 107-06-2 | E20: 107-06-2 | F20: X | G20: X | K20: =INDEX('T5-17A Tox'!$D$12:$D$134,MATCH('COPC_not include'!D20,'T5-17A Tox'!$E$12:$E$134,0)) -> 1,2-Dichloroethane
A21: x | B21: VOC | C21: 1,1-Dichloroethene | D21: 75-35-4 | E21: 75-35-4 | F21: X | G21: X | K21: =INDEX('T5-17A Tox'!$D$12:$D$134,MATCH('COPC_not include'!D21,'T5-17A Tox'!$E$12:$E$134,0)) -> 1,1-Dichloroethene
A22: x | B22: VOC | C22: cis-1,2-Dichloroethene | D22: 156-59-2 | E22: 156-59-2 | F22: X | G22: X | K22: =INDEX('T5-17A Tox'!$D$12:$D$134,MATCH('COPC_not include'!D22,'T5-17A Tox'!$E$12:$E$134,0)) -> cis-1,2-Dichloroethene
A23: x | B23: VOC | C23: trans-1,2-Dichloroethene | D23: 156-60-5 | E23: 156-60-5 | F23: X | G23: X | K23: =INDEX('T5-17A Tox'!$D$12:$D$134,MATCH('COPC_not include'!D23,'T5-17A Tox'!$E$12:$E$134,0)) -> trans-1,2-Dichloroethene
A24: x | B24: VOC | C24: 1,4-Dioxane | D24: 123-91-1 | E24: 123-91-1 | F24: X | G24: X | K24: =INDEX('T5-17A Tox'!$D$12:$D$134,MATCH('COPC_not include'!D24,'T5-17A Tox'!$E$12:$E$134,0)) -> 1,4-Dioxane
A25: x | B25: VOC | C25: Ethyl Benzene | D25: 100-41-4 | E25: 100-41-4 | F25: X | G25: X | K25: =INDEX('T5-17A Tox'!$D$12:$D$134,MATCH('COPC_not include'!D25,'T5-17A Tox'!$E$12:$E$134,0)) -> Ethyl benzene
A26: x | B26: VOC | C26: Cumene | D26: 98-82-8 | E26: 98-82-8 | G26: X | K26: =INDEX('T5-17A Tox'!$D$12:$D$134,MATCH('COPC_not include'!D26,'T5-17A Tox'!$E$12:$E$134,0)) -> Cumene
A27: x | B27: VOC | C27: n-Propylbenzene | D27: 103-65-1 | E27: 103-65-1 | G27: X | K27: =INDEX('T5-17A Tox'!$D$12:$D$134,MATCH('COPC_not include'!D27,'T5-17A Tox'!$E$12:$E$134,0)) -> n-Propylbenzene
A28: x | B28: VOC | C28: Tetrachloroethene | D28: 127-18-4 | E28: 127-18-4 | F28: X | G28: X | K28: =INDEX('T5-17A Tox'!$D$12:$D$134,MATCH('COPC_not include'!D28,'T5-17A Tox'!$E$12:$E$134,0)) -> Tetrachloroethene
A29: x | B29: VOC | C29: Toluene | D29: 108-88-3 | E29: 108-88-3 | F29: X | G29: X | K29: =INDEX('T5-17A Tox'!$D$12:$D$134,MATCH('COPC_not include'!D29,'T5-17A Tox'!$E$12:$E$134,0)) -> Toluene
A30: x | B30: VOC | C30: 1,1,1-Trichloroethane | D30: 71-55-6 | E30: 71-55-6 | G30: X | K30: =INDEX('T5-17A Tox'!$D$12:$D$134,MATCH('COPC_not include'!D30,'T5-17A Tox'!$E$12:$E$134,0)) -> 1,1,1-Trichloroethane
A31: x | B31: VOC | C31: 1,1,2-Trichloroethane | D31: 79-00-5 | E31: 79-00-5 | G31: X | K31: =INDEX('T5-17A Tox'!$D$12:$D$134,MATCH('COPC_not include'!D31,'T5-17A Tox'!$E$12:$E$134,0)) -> 1,1,2-Trichloroethane
A32: x | B32: VOC | C32: Trichloroethene | D32: 79-01-6 | E32: 79-01-6 | F32: X | G32: X | K32: =INDEX('T5-17A Tox'!$D$12:$D$134,MATCH('COPC_not include'!D32,'T5-17A Tox'!$E$12:$E$134,0)) -> Trichloroethene
A33: x | B33: VOC | C33: 1,3,5-Trimethylbenzene | D33: 108-67-8 | E33: 108-67-8 | G33: X | K33: =INDEX('T5-17A Tox'!$D$12:$D$134,MATCH('COPC_not include'!D33,'T5-17A Tox'!$E$12:$E$134,0)) -> 1,3,5-Trimethylbenzene
A34: x | B34: VOC | C34: Vinyl Chloride | D34: 75-01-4 | E34: 75-01-4 | F34: X | G34: X | K34: =INDEX('T5-17A Tox'!$D$12:$D$134,MATCH('COPC_not include'!D34,'T5-17A Tox'!$E$12:$E$134,0)) -> Vinyl chloride
A35: x | B35: VOC | C35: Xylenes (total) a | D35: 1330-20-7 | E35: 1330-20-7 | F35: X | G35: X | K35: =INDEX('T5-17A Tox'!$D$12:$D$134,MATCH('COPC_not include'!D35,'T5-17A Tox'!$E$12:$E$134,0)) -> Xylenes (total)
A36: x | B36: SVOC | C36: Hexachlorobutadiene | D36: 87-68-3 | E36: 87-68-3 | F36: X | G36: X | K36: =INDEX('T5-17A Tox'!$D$12:$D$134,MATCH('COPC_not include'!D36,'T5-17A Tox'!$E$12:$E$134,0)) -> Hexachlorobutadiene
A37: x | B37: SVOC | C37: Naphthalene | D37: 91-20-3 | E37: 91-20-3 | G37: X | K37: =INDEX('T5-17A Tox'!$D$12:$D$134,MATCH('COPC_not include'!D37,'T5-17A Tox'!$E$12:$E$134,0)) -> 
B127: Notes:
A128: x | B128: X = Indicate a Constituent was detected in a specific medium.
B130: 2,3,7,8-TCDD TEQ = 2,3,7,8-Tetrachlorodibenzo-p-dioxin Toxic Equivalent Quotient
B131: ft = feet
B132: INORG = Inorganic
B133: PCDD/F = Polychlorinated dioxins and furans
B134: PDIST = Petroleum distillates
A135: x | B135: SVOC = Semivolatile organic compound
B136: TPH = Total Petroleum Hydrocarbon
A137: x | B137: VOC = Volatile organic compound
B138: a Xylene isomers were combined under xylenes (total)
A139: x

Sheet T5-9 Model params
A1: =TOC!A3&". "&TOC!B3 -> TABLE 5-9. Johnson and Ettinger/Jury Modeling Parameters | F1: To Use
A2: =TOC!B3 -> Johnson and Ettinger/Jury Modeling Parameters
A3: =Tracking!B2 -> Nevada Environmental Response Trust Site
A4: =Tracking!C2 -> Henderson, Nevada
A6: Parameter | B6: Value | C6: Units | D6: Notes
A7: Source/Receptor Parameters - Indoor and Outdoor Scenarios
A8: Depth to groundwater: Parcel C | B8: 30 | C8: feet | D8: Site-specific estimate
A9: Depth to groundwater: Parcel D | B9: 25 | C9: feet | D9: Site-specific estimate
A10: Depth to groundwater: Parcel H | B10: 55 | C10: feet | D10: Site-specific estimate
A11: Soil gas sampling depth (shallow) | B11: 5 | C11: feet | D11: Site-specific estimated based on sampling depth
A12: Depth to top of soil contamination | B12: 1 | C12: cm | D12: Conservative estimate
A13: Depth to base of soil contamination | B13: 55 | C13: ft | D13: Conservative estimate that assumes VOCs in soil extend until the water table depth.
A14: Soil temperature at source | B14: 17 | C14: Celsius | D14: Site-specific measurement
A15: Soil Parameters
A16: USDA soil type | B16: Loamy Sand | C16: -- | D16: Site-specific estimate based on soil boring logs and site measurements. See text for further discussion.
A17: Bulk density | B17: 1.722 | C17: g/cm3 | D17: Site-specific measurement
A18: Total porosity | B18: 0.358 | C18: unitless | D18: Site-specific measurement
A19: Water-filled porosity | B19: 0.148 | C19: unitless | D19: Site-specific measurement
A20: Parameters used for benzene degradation
A21: Fraction organic carbon | B21: 0.006 | C21: unitless | D21: Default value (USEPA 2002)
A22: Minimum oxygen content for aerobic respiration | B22: 1 | C22: percentage | D22: Default value (API 2012)
A23: First order biodegradation rate for benzene | B23: 0.79 | C23: 1/hr | D23: Default value (API 2012)
A24: USDA soil type in layer B (30 cm, indoor scenarios only) | B24: Fill | C24: -- | D24: Lower Layer of Engineered Fill
A25: Bulk density | B25: 1.8 | C25: g/cm3 | D25: Default value (Cal/EPA 2005)
A26: Total porosity | B26: 0.3 | C26: unitless | D26: Default value (Cal/EPA 2005)
A27: Water-filled porosity | B27: 0.15 | C27: unitless | D27: Default value (Cal/EPA 2005)
A28: USDA soil type in layer C (remaining 97-147 cm) | B28: Loamy Sand | C28: -- | D28: Site-specific estimate of subsurface materials
A29: Bulk density | B29: 1.62 | C29: g/cm3 | D29: Default value (USEPA 2004)
A30: Total porosity | B30: 0.39 | C30: unitless | D30: Default value (USEPA 2004)
A31: Water-filled porosity | B31: 0.076 | C31: unitless | D31: Default value (USEPA 2004)
A32: Building Foundation Parameters
A33: Depth to Bottom of Foundation, Slab-on-grade | B33: 15 | C33: cm | D33: Default value (Cal/EPA 2011)
A34: Foundation crack ratio | B34: 0.005 | C34: unitless | D34: Default value (Cal/EPA 2011)
A35: Average vapor flow rate into building | B35: 5 | C35: L/min/m2 | D35: Default value (USEPA 2004)
A36: Foundation thickness | B36: 10 | C36: cm | D36: Default value (Cal/EPA 2011)
A37: Air Dispersion Parameters - Indoor Scenario
A38: Residential Indoor Air Scenarios
A39: Air exchange rate | B39: 0.5 | C39: 1/hour | D39: Residential default value (Cal/EPA 2011)
A40: Length of building | B40: 1000 | C40: cm | D40: Default value (USEPA 2004)
A41: Width of building | B41: 1000 | C41: cm | D41: Default value (USEPA 2004)
A42: Mixing height of building, Slab-on-grade | B42: 244 | C42: cm | D42: Residential default value (Cal/EPA 2011)
A43: Commercial Indoor Air Scenarios
A44: Air exchange rate | B44: 1 | C44: 1/hour | D44: Default value for commercial buildings (Cal/EPA 2011)
A45: Length of building | B45: 1000 | C45: cm | D45: Default value for commercial buildings (USEPA 2004)
A46: Width of building | B46: 1000 | C46: cm | D46: Default value for commercial buildings (USEPA 2004)
A47: Mixing height of building, Slab-on-grade | B47: 305 | C47: cm | D47: Engineering estimate.
A48: Air Dispersion Parameters - Outdoor Scenario
A49: Residential Indoor Air Scenarios
A50: Air exchange rate | B50: 0.5 | C50: 1/hour | D50: Residential default value (Cal/EPA 2011)
A51: Length of building | B51: 1000 | C51: cm | D51: Default value (USEPA 2004)
A52: Width of building | B52: 1000 | C52: cm | D52: Default value (USEPA 2004)
A53: Mixing height of building, Slab-on-grade | B53: 244 | C53: cm | D53: Residential default value (Cal/EPA 2011)
A54: Commercial Outdoor Air Scenarios
A55: Site specific dispersion factor (Q/C): Parcel H | B55: 44 | C55: g/m2-s per kg/m3 | D55: Site-specific estimate based on parcel area of 24.81 acres.
A56: Site specific dispersion factor (Q/C): Parcel D | B56: 45.24 | C56: g/m2-s per kg/m3 | D56: Site-specific estimate based on parcel area of 21.27 acres.
A57: Site specific dispersion factor (Q/C): Parcel G | B57: 62.45 | C57: g/m2-s per kg/m3 | D57: Site-specific estimate based on parcel area of 2.65 acres.
A58: Source/Receptor Parameters -10 foot Construction Trench Scenario
A59: Depth to groundwater: Parcel H | B59: 45 | C59: feet | D59: Site-specific estimate
A60: Depth to groundwater: Parcel D | B60: 15 | C60: feet | D60: Site-specific estimate
A61: Depth to groundwater: Parcel G | B61: 30 | C61: feet | D61: Site-specific estimate
A62: Soil gas sampling depth | B62: 1 | C62: cm | D62: Site-specific estimate for depth between trench and soil gas sample
A63: Length of construction trench | B63: =20*30.48 -> 609.6 | C63: cm | D63: Assumed (20 feet)
A64: Width of construction trench | B64: 152.4 | C64: cm | D64: Assumed (5 feet)
A65: Depth of construction trench | B65: 10 | C65: feet | D65: Assumed
A66: Windspeed | B66: 0.41 | C66: m/s | D66: Conservative Estimate (1/10 of site-specific windspeed)
A67: Depth of pooled water (wet scenario only) | B67: 1 | C67: cm | D67: Conservative Estimate
A68: Site specific dispersion factor (Q/Cvol) | B68: 34.17 | C68: g/m2-s per kg/m3 | D68: Site-specific estimate based on box model.
A69: Residential Indoor Air Scenarios
A70: Air exchange rate | B70: 0.5 | C70: 1/hour | D70: Default value for residential buildings (Cal/EPA 2011)
A71: Length of building | B71: 1000 | C71: cm | D71: Default value for residential buildings (USEPA 2004)
A72: Width of building | B72: 1000 | C72: cm | D72: Default value for residential buildings (USEPA 2004)
A73: Mixing height of building, Slab-on-grade | B73: 244 | C73: cm | D73: Default value for residential buildings (Cal/EPA 2011)
A75: Notes:
A76: -- =Not applicable | D76: Cal/EPA = California Environmental Protection Agency
A77: cm = centimeter | D77: USDA = United States Department of Agriculture
A78: g/cm3 = gram per cubic centimeter | D78: USEPA = United States Environmental Protection Agency
A79: L/min/m2 = liter per minute per 100 square meter
A81: Sources:
A82: California Environmental Protection Agency (Cal/EPA). 2005. Human-Exposure-Based Screening Numbers Developed to Aid Estimation of Cleanup Costs for Contaminated Soil. January.
A83: California Environmental Protection Agency (CalEPA). 2011. Guidance for the Evaluation and Mitigation of Subsurface Vapor Intrusion to Indoor Air (Vapor Intrusion Guidance). Final. Department of Toxic Substances Control. October.
A84: United States Environmental Protection Agency (USEPA). 2004. User’s Guide for Evaluating Subsurface Vapor Intrusion Into Buildings Office of Emergency and Remedial Response. February.
A85: United States Environmental Protection Agency (USEPA). 2002. Supplemental Guidance for Developing. Soil Screening Levels for Superfund Sites. December
A86: American Petroleum Institute (API) 2012. BIOVAPOR – A 1-D Vapor Intrusion Model with Oxygen-Limited Aerobic Biodegradation. Version 2.1. November

Sheet T5-10 Phys Chem
C1: =TOC!A4&". "&TOC!B4 -> TABLE 5-10. Physical/Chemical Properties
C2: =TOC!B4 -> Physical/Chemical Properties
C3: =Tracking!B2 -> Nevada Environmental Response Trust Site
C4: =Tracking!C2 -> Henderson, Nevada
C6: Chemical Group | D6: Sort Name | E6: Constituent a, b | G6: Molecular Weight | H6: Organic Carbon Partition Coefficient | I6: Diffusivity in Air | J6: Diffusivity in Water | K6: Pure Component Water Solubility | L6: Henry's Law Constant at 25° C | M6: Distribution Coefficient | N6: Normal Boiling Point | O6: Critical Temperature | P6: Enthalpy of Vaporization at the Normal Boiling Point | Q6: Source
G9: MW | H9: Koc | I9: Da | J9: Dw | K9: S | L9: H | M9: Kd | N9: TB | O9: TC | P9: ΔHv,b
A10: VOC? | B10: Include? | F10: CAS # | G10: (g/mol) | H10: (cm3/g) | I10: (cm2/s) | J10: (cm2/s) | K10: (mg/L) | L10: (atm-m3/mol) | M10: (m3/Kg) | N10: (oK) | O10: (oK) | P10: (cal/mol)
A11: ='T5-17A Tox'!K11:K280 ->  | B11: =IF(VLOOKUP(F11,'T5-6 COPC'!E$11:N$113,10,FALSE)="V","X","") ->  | C11: ='T5-17A Tox'!B11:E280 -> VOCs | D11: Acetaldehyde | E11: Acetaldehyde | F11: 75-07-0 | G11: =VLOOKUP(S11,[13]VLOOKUP!$A$25:$X$200,23,FALSE) -> 44 | H11: =VLOOKUP(S11,[13]VLOOKUP!$A$25:$X$200,3,FALSE) -> 18.1 | I11: =VLOOKUP(S11,[13]VLOOKUP!$A$25:$X$200,5,FALSE) -> 0.124 | J11: =VLOOKUP(S11,[13]VLOOKUP!$A$25:$X$200,7,FALSE) -> 1.41e-05 | K11: =VLOOKUP(S11,[13]VLOOKUP!$A$25:$X$200,9,FALSE) -> 1000000 | L11: =VLOOKUP(S11,[13]VLOOKUP!$A$25:$X$200,13,FALSE) -> 7.9e-05 | M11: 4.728e-06 | N11: =VLOOKUP(S11,[13]VLOOKUP!$A$25:$X$200,17,FALSE) -> 0 | O11: =VLOOKUP(S11,[13]VLOOKUP!$A$25:$X$200,19,FALSE) -> 0 | P11: =VLOOKUP(S11,[13]VLOOKUP!$A$25:$X$200,21,FALSE) -> 0 | Q11: =R11 -> NDEP | R11: =VLOOKUP(S11,[13]VLOOKUP!$A$25:$Z$200,26,FALSE) -> NDEP | S11: 75070
A12: V | B12: =IF(VLOOKUP(F12,'T5-6 COPC'!E$11:N$113,10,FALSE)="V","X","") -> X | C12: VOCs | D12: Acetone | E12: Acetone | F12: 67-64-1 | G12: =VLOOKUP(S12,[13]VLOOKUP!$A$25:$X$200,23,FALSE) -> 58 | H12: =VLOOKUP(S12,[13]VLOOKUP!$A$25:$X$200,3,FALSE) -> 0.575 | I12: =VLOOKUP(S12,[13]VLOOKUP!$A$25:$X$200,5,FALSE) -> 0.124 | J12: =VLOOKUP(S12,[13]VLOOKUP!$A$25:$X$200,7,FALSE) -> 1.14e-05 | K12: =VLOOKUP(S12,[13]VLOOKUP!$A$25:$X$200,9,FALSE) -> 1000000 | L12: =VLOOKUP(S12,[13]VLOOKUP!$A$25:$X$200,13,FALSE) -> 3.88e-05 | M12: 1.000004728 | N12: =VLOOKUP(S12,[13]VLOOKUP!$A$25:$X$200,17,FALSE) -> 329.2 | O12: =VLOOKUP(S12,[13]VLOOKUP!$A$25:$X$200,19,FALSE) -> 508.1 | P12: =VLOOKUP(S12,[13]VLOOKUP!$A$25:$X$200,21,FALSE) -> 6955 | Q12: =R12 -> NDEP + USEPA 2004 for Tb, Tc, ΔH | R12: =VLOOKUP(S12,[13]VLOOKUP!$A$25:$Z$200,26,FALSE) -> NDEP + USEPA 2004 for Tb, Tc, ΔH | S12: 67641
B13: =IF(VLOOKUP(F13,'T5-6 COPC'!E$11:N$113,10,FALSE)="V","X","") ->  | C13: VOCs | D13: Acetonitrile | E13: Acetonitrile | F13: 75-05-8 | G13: =VLOOKUP(S13,[13]VLOOKUP!$A$25:$X$200,23,FALSE) -> 41 | H13: =VLOOKUP(S13,[13]VLOOKUP!$A$25:$X$200,3,FALSE) -> 15.6 | I13: =VLOOKUP(S13,[13]VLOOKUP!$A$25:$X$200,5,FALSE) -> 0.128 | J13: =VLOOKUP(S13,[13]VLOOKUP!$A$25:$X$200,7,FALSE) -> 1.7e-05 | K13: =VLOOKUP(S13,[13]VLOOKUP!$A$25:$X$200,9,FALSE) -> 1000000 | L13: =VLOOKUP(S13,[13]VLOOKUP!$A$25:$X$200,13,FALSE) -> 2e-05 | M13: 2.000004728 | N13: =VLOOKUP(S13,[13]VLOOKUP!$A$25:$X$200,17,FALSE) -> 354.6 | O13: =VLOOKUP(S13,[13]VLOOKUP!$A$25:$X$200,19,FALSE) -> 545.5 | P13: =VLOOKUP(S13,[13]VLOOKUP!$A$25:$X$200,21,FALSE) -> 7110.25 | Q13: NDEP + USEPA 2004 for Tb, Tc, ΔH | R13: =VLOOKUP(S13,[13]VLOOKUP!$A$25:$Z$200,26,FALSE) -> NDEP + USEPA 2004 for Tb, Tc, ΔH | S13: 75058
A14: V | B14: =IF(VLOOKUP(F14,'T5-6 COPC'!E$11:N$113,10,FALSE)="V","X","") -> X | C14: VOCs | D14: Acrylonitrile | E14: Acrylonitrile | F14: 107-13-1 | G14: =VLOOKUP(S14,[13]VLOOKUP!$A$25:$X$200,23,FALSE) -> 53 | H14: =VLOOKUP(S14,[13]VLOOKUP!$A$25:$X$200,3,FALSE) -> 0.85 | I14: =VLOOKUP(S14,[13]VLOOKUP!$A$25:$X$200,5,FALSE) -> 0.1084 | J14: =VLOOKUP(S14,[13]VLOOKUP!$A$25:$X$200,7,FALSE) -> 1.34e-05 | K14: =VLOOKUP(S14,[13]VLOOKUP!$A$25:$X$200,9,FALSE) -> 79000 | L14: =VLOOKUP(S14,[13]VLOOKUP!$A$25:$X$200,13,FALSE) -> 8.84e-05 | M14: 3.000004728 | N14: =VLOOKUP(S14,[13]VLOOKUP!$A$25:$X$200,17,FALSE) -> 350.3 | O14: =VLOOKUP(S14,[13]VLOOKUP!$A$25:$X$200,19,FALSE) -> 519 | P14: =VLOOKUP(S14,[13]VLOOKUP!$A$25:$X$200,21,FALSE) -> 7786 | Q14: NDEP + USEPA 2004 for Tb, Tc, ΔH | R14: =VLOOKUP(S14,[13]VLOOKUP!$A$25:$Z$200,26,FALSE) -> NDEP + USEPA 2004 for Tb, Tc, ΔH | S14: 107131
B15: =IF(VLOOKUP(F15,'T5-6 COPC'!E$11:N$113,10,FALSE)="V","X","") ->  | C15: VOCs | D15: Amyl methyl ether t- | E15: t-Amyl methyl ether | F15: 994-05-8 | G15: =VLOOKUP(S15,[13]VLOOKUP!$A$25:$X$200,23,FALSE) -> 102.18 | H15: =VLOOKUP(S15,[13]VLOOKUP!$A$25:$X$200,3,FALSE) -> 22.66 | I15: =VLOOKUP(S15,[13]VLOOKUP!$A$25:$X$200,5,FALSE) -> 0.065 | J15: =VLOOKUP(S15,[13]VLOOKUP!$A$25:$X$200,7,FALSE) -> 7.8e-06 | K15: =VLOOKUP(S15,[13]VLOOKUP!$A$25:$X$200,9,FALSE) -> 2640 | L15: =VLOOKUP(S15,[13]VLOOKUP!$A$25:$X$200,13,FALSE) -> 0.00132 | M15: 4.000004728 | N15: =VLOOKUP(S15,[13]VLOOKUP!$A$25:$X$200,17,FALSE) -> 0 | O15: =VLOOKUP(S15,[13]VLOOKUP!$A$25:$X$200,19,FALSE) -> 0 | P15: =VLOOKUP(S15,[13]VLOOKUP!$A$25:$X$200,21,FALSE) -> 0 | Q15: EPISUITE + diisopropyl ether for diffusivities | R15: =VLOOKUP(S15,[13]VLOOKUP!$A$25:$Z$200,26,FALSE) -> EPISUITE + diisopropyl ether for diffusivities | S15: 994058
A16: V | B16: =IF(VLOOKUP(F16,'T5-6 COPC'!E$11:N$113,10,FALSE)="V","X","") -> X | C16: VOCs | D16: Benzene | E16: Benzene | F16: 71-43-2 | G16: =VLOOKUP(S16,[13]VLOOKUP!$A$25:$X$200,23,FALSE) -> 78.1 | H16: =VLOOKUP(S16,[13]VLOOKUP!$A$25:$X$200,3,FALSE) -> 62 | I16: =VLOOKUP(S16,[13]VLOOKUP!$A$25:$X$200,5,FALSE) -> 0.088 | J16: =VLOOKUP(S16,[13]VLOOKUP!$A$25:$X$200,7,FALSE) -> 9.8e-06 | K16: =VLOOKUP(S16,[13]VLOOKUP!$A$25:$X$200,9,FALSE) -> 1750 | L16: =VLOOKUP(S16,[13]VLOOKUP!$A$25:$X$200,13,FALSE) -> 0.00555 | M16: 5.000004728 | N16: =VLOOKUP(S16,[13]VLOOKUP!$A$25:$X$200,17,FALSE) -> 353.24 | O16: =VLOOKUP(S16,[13]VLOOKUP!$A$25:$X$200,19,FALSE) -> 562.16 | P16: =VLOOKUP(S16,[13]VLOOKUP!$A$25:$X$200,21,FALSE) -> 7342 | Q16: NDEP + USEPA 2004 for Tb, Tc, ΔH | R16: =VLOOKUP(S16,[13]VLOOKUP!$A$25:$Z$200,26,FALSE) -> NDEP + USEPA 2004 for Tb, Tc, ΔH | S16: 71432
B17: =IF(VLOOKUP(F17,'T5-6 COPC'!E$11:N$113,10,FALSE)="V","X","") ->  | C17: VOCs | D17: Benzyl chloride | E17: Benzyl chloride | F17: 100-44-7 | G17: =VLOOKUP(S17,[13]VLOOKUP!$A$25:$X$200,23,FALSE) -> 127 | H17: =VLOOKUP(S17,[13]VLOOKUP!$A$25:$X$200,3,FALSE) -> 50 | I17: =VLOOKUP(S17,[13]VLOOKUP!$A$25:$X$200,5,FALSE) -> 0.0666 | J17: =VLOOKUP(S17,[13]VLOOKUP!$A$25:$X$200,7,FALSE) -> 7.8e-06 | K17: =VLOOKUP(S17,[13]VLOOKUP!$A$25:$X$200,9,FALSE) -> 3300 | L17: =VLOOKUP(S17,[13]VLOOKUP!$A$25:$X$200,13,FALSE) -> 5.06e-05 | M17: 6.000004728 | N17: =VLOOKUP(S17,[13]VLOOKUP!$A$25:$X$200,17,FALSE) -> 0 | O17: =VLOOKUP(S17,[13]VLOOKUP!$A$25:$X$200,19,FALSE) -> 0 | P17: =VLOOKUP(S17,[13]VLOOKUP!$A$25:$X$200,21,FALSE) -> 0 | Q17: NDEP | R17: =VLOOKUP(S17,[13]VLOOKUP!$A$25:$Z$200,26,FALSE) -> NDEP | S17: 100447
B18: =IF(VLOOKUP(F18,'T5-6 COPC'!E$11:N$113,10,FALSE)="V","X","") ->  | C18: VOCs | D18: Bromobenzene | E18: Bromobenzene | F18: 108-86-1 | G18: =VLOOKUP(S18,[13]VLOOKUP!$A$25:$X$200,23,FALSE) -> 157 | H18: =VLOOKUP(S18,[13]VLOOKUP!$A$25:$X$200,3,FALSE) -> 224 | I18: =VLOOKUP(S18,[13]VLOOKUP!$A$25:$X$200,5,FALSE) -> 0.073 | J18: =VLOOKUP(S18,[13]VLOOKUP!$A$25:$X$200,7,FALSE) -> 8.7e-06 | K18: =VLOOKUP(S18,[13]VLOOKUP!$A$25:$X$200,9,FALSE) -> 472 | L18: =VLOOKUP(S18,[13]VLOOKUP!$A$25:$X$200,13,FALSE) -> 0.0037 | M18: 7.000004728 | N18: =VLOOKUP(S18,[13]VLOOKUP!$A$25:$X$200,17,FALSE) -> 0 | O18: =VLOOKUP(S18,[13]VLOOKUP!$A$25:$X$200,19,FALSE) -> 0 | P18: =VLOOKUP(S18,[13]VLOOKUP!$A$25:$X$200,21,FALSE) -> 0 | Q18: NDEP | R18: =VLOOKUP(S18,[13]VLOOKUP!$A$25:$Z$200,26,FALSE) -> NDEP | S18: 108861
B19: =IF(VLOOKUP(F19,'T5-6 COPC'!E$11:N$113,10,FALSE)="V","X","") ->  | C19: VOCs | D19: Bromochloromethane | E19: Bromochloromethane | F19: 74-97-5 | G19: =VLOOKUP(S19,[13]VLOOKUP!$A$25:$X$200,23,FALSE) -> 129.38 | H19: =VLOOKUP(S19,[13]VLOOKUP!$A$25:$X$200,3,FALSE) -> 21.73 | I19: =VLOOKUP(S19,[13]VLOOKUP!$A$25:$X$200,5,FALSE) -> 0.078692 | J19: =VLOOKUP(S19,[13]VLOOKUP!$A$25:$X$200,7,FALSE) -> 1.22e-05 | K19: =VLOOKUP(S19,[13]VLOOKUP!$A$25:$X$200,9,FALSE) -> 16700 | L19: =VLOOKUP(S19,[13]VLOOKUP!$A$25:$X$200,13,FALSE) -> 0.00146 | M19: 8.000004728 | N19: =VLOOKUP(S19,[13]VLOOKUP!$A$25:$X$200,17,FALSE) -> 0 | O19: =VLOOKUP(S19,[13]VLOOKUP!$A$25:$X$200,19,FALSE) -> 0 | P19: =VLOOKUP(S19,[13]VLOOKUP!$A$25:$X$200,21,FALSE) -> 0 | Q19: RSL | R19: =VLOOKUP(S19,[13]VLOOKUP!$A$25:$Z$200,26,FALSE) -> RSL | S19: 74975
A20: V | B20: =IF(VLOOKUP(F20,'T5-6 COPC'!E$11:N$113,10,FALSE)="V","X","") -> X | C20: VOCs | D20: Bromodichloromethane | E20: Bromodichloromethane | F20: 75-27-4 | G20: =VLOOKUP(S20,[13]VLOOKUP!$A$25:$X$200,23,FALSE) -> 164 | H20: =VLOOKUP(S20,[13]VLOOKUP!$A$25:$X$200,3,FALSE) -> 100 | I20: =VLOOKUP(S20,[13]VLOOKUP!$A$25:$X$200,5,FALSE) -> 0.0298 | J20: =VLOOKUP(S20,[13]VLOOKUP!$A$25:$X$200,7,FALSE) -> 1.06e-05 | K20: =VLOOKUP(S20,[13]VLOOKUP!$A$25:$X$200,9,FALSE) -> 6740 | L20: =VLOOKUP(S20,[13]VLOOKUP!$A$25:$X$200,13,FALSE) -> 0.0016 | M20: 9.000004728 | N20: =VLOOKUP(S20,[13]VLOOKUP!$A$25:$X$200,17,FALSE) -> 363.15 | O20: =VLOOKUP(S20,[13]VLOOKUP!$A$25:$X$200,19,FALSE) -> 585.85 | P20: =VLOOKUP(S20,[13]VLOOKUP!$A$25:$X$200,21,FALSE) -> 7800 | Q20: NDEP + USEPA 2004 for Tb, Tc, ΔH | R20: =VLOOKUP(S20,[13]VLOOKUP!$A$25:$Z$200,26,FALSE) -> NDEP + USEPA 2004 for Tb, Tc, ΔH | S20: 75274
B21: =IF(VLOOKUP(F21,'T5-6 COPC'!E$11:N$113,10,FALSE)="V","X","") ->  | C21: VOCs | D21: Bromoform | E21: Bromoform | F21: 75-25-2 | G21: =VLOOKUP(S21,[13]VLOOKUP!$A$25:$X$200,23,FALSE) -> 252.73 | H21: =VLOOKUP(S21,[13]VLOOKUP!$A$25:$X$200,3,FALSE) -> 31.82 | I21: =VLOOKUP(S21,[13]VLOOKUP!$A$25:$X$200,5,FALSE) -> 0.0357324 | J21: =VLOOKUP(S21,[13]VLOOKUP!$A$25:$X$200,7,FALSE) -> 1.04e-05 | K21: =VLOOKUP(S21,[13]VLOOKUP!$A$25:$X$200,9,FALSE) -> 3100 | L21: =VLOOKUP(S21,[13]VLOOKUP!$A$25:$X$200,13,FALSE) -> 0.000535 | M21: 10.00000473 | N21: =VLOOKUP(S21,[13]VLOOKUP!$A$25:$X$200,17,FALSE) -> 422.35 | O21: =VLOOKUP(S21,[13]VLOOKUP!$A$25:$X$200,19,FALSE) -> 696 | P21: =VLOOKUP(S21,[13]VLOOKUP!$A$25:$X$200,21,FALSE) -> 9479 | Q21: RSL + USEPA 2004 for Tb, Tc, and ΔH | R21: =VLOOKUP(S21,[13]VLOOKUP!$A$25:$Z$200,26,FALSE) -> RSL + USEPA 2004 for Tb, Tc, and ΔH | S21: 75252
B22: =IF(VLOOKUP(F22,'T5-6 COPC'!E$11:N$113,10,FALSE)="V","X","") ->  | C22: VOCs | D22: Bromomethane | E22: Bromomethane | F22: 74-83-9 | G22: =VLOOKUP(S22,[13]VLOOKUP!$A$25:$X$200,23,FALSE) -> 94.95 | H22: =VLOOKUP(S22,[13]VLOOKUP!$A$25:$X$200,3,FALSE) -> 9 | I22: =VLOOKUP(S22,[13]VLOOKUP!$A$25:$X$200,5,FALSE) -> 0.0728 | J22: =VLOOKUP(S22,[13]VLOOKUP!$A$25:$X$200,7,FALSE) -> 1.21e-05 | K22: =VLOOKUP(S22,[13]VLOOKUP!$A$25:$X$200,9,FALSE) -> 15200 | L22: =VLOOKUP(S22,[13]VLOOKUP!$A$25:$X$200,13,FALSE) -> 0.00624 | M22: 11.00000473 | N22: =VLOOKUP(S22,[13]VLOOKUP!$A$25:$X$200,17,FALSE) -> 276.71 | O22: =VLOOKUP(S22,[13]VLOOKUP!$A$25:$X$200,19,FALSE) -> 467 | P22: =VLOOKUP(S22,[13]VLOOKUP!$A$25:$X$200,21,FALSE) -> 5714 | Q22: NDEP + USEPA 2004 for Tb, Tc, ΔH | R22: =VLOOKUP(S22,[13]VLOOKUP!$A$25:$Z$200,26,FALSE) -> NDEP + USEPA 2004 for Tb, Tc, ΔH | S22: 74839
B23: =IF(VLOOKUP(F23,'T5-6 COPC'!E$11:N$113,10,FALSE)="V","X","") ->  | C23: VOCs | D23: Butadiene, 1,3- | E23: 1,3-Butadiene | F23: 106-99-0 | G23: =VLOOKUP(S23,[13]VLOOKUP!$A$25:$X$200,23,FALSE) -> 54 | H23: =VLOOKUP(S23,[13]VLOOKUP!$A$25:$X$200,3,FALSE) -> 120 | I23: =VLOOKUP(S23,[13]VLOOKUP!$A$25:$X$200,5,FALSE) -> 0.098019 | J23: =VLOOKUP(S23,[13]VLOOKUP!$A$25:$X$200,7,FALSE) -> 1.1e-05 | K23: =VLOOKUP(S23,[13]VLOOKUP!$A$25:$X$200,9,FALSE) -> 735 | L23: =VLOOKUP(S23,[13]VLOOKUP!$A$25:$X$200,13,FALSE) -> 0.178 | M23: 12.00000473 | N23: =VLOOKUP(S23,[13]VLOOKUP!$A$25:$X$200,17,FALSE) -> 0 | O23: =VLOOKUP(S23,[13]VLOOKUP!$A$25:$X$200,19,FALSE) -> 0 | P23: =VLOOKUP(S23,[13]VLOOKUP!$A$25:$X$200,21,FALSE) -> 0 | Q23: NDEP | R23: =VLOOKUP(S23,[13]VLOOKUP!$A$25:$Z$200,26,FALSE) -> NDEP | S23: 106990
A24: V | B24: =IF(VLOOKUP(F24,'T5-6 COPC'!E$11:N$113,10,FALSE)="V","X","") -> X | C24: VOCs | D24: Butanone 2 | E24: 2-Butanone | F24: 78-93-3 | G24: =VLOOKUP(S24,[13]VLOOKUP!$A$25:$X$200,23,FALSE) -> 72 | H24: =VLOOKUP(S24,[13]VLOOKUP!$A$25:$X$200,3,FALSE) -> 4.5 | I24: =VLOOKUP(S24,[13]VLOOKUP!$A$25:$X$200,5,FALSE) -> 0.08951 | J24: =VLOOKUP(S24,[13]VLOOKUP!$A$25:$X$200,7,FALSE) -> 9.8e-06 | K24: =VLOOKUP(S24,[13]VLOOKUP!$A$25:$X$200,9,FALSE) -> 268000 | L24: =VLOOKUP(S24,[13]VLOOKUP!$A$25:$X$200,13,FALSE) -> 2.74e-05 | M24: 13.00000473 | N24: =VLOOKUP(S24,[13]VLOOKUP!$A$25:$X$200,17,FALSE) -> 352.5 | O24: =VLOOKUP(S24,[13]VLOOKUP!$A$25:$X$200,19,FALSE) -> 536.78 | P24: =VLOOKUP(S24,[13]VLOOKUP!$A$25:$X$200,21,FALSE) -> 7480.7 | Q24: NDEP + USEPA 2004 for Tb, Tc, ΔH | R24: =VLOOKUP(S24,[13]VLOOKUP!$A$25:$Z$200,26,FALSE) -> NDEP + USEPA 2004 for Tb, Tc, ΔH | S24: 78933
A25: V | B25: =IF(VLOOKUP(F25,'T5-6 COPC'!E$11:N$113,10,FALSE)="V","X","") -> X | C25: VOCs | D25: Butylbenzene n | E25: n-Butylbenzene | F25: 104-51-8 | G25: =VLOOKUP(S25,[13]VLOOKUP!$A$25:$X$200,23,FALSE) -> 134.22 | H25: =VLOOKUP(S25,[13]VLOOKUP!$A$25:$X$200,3,FALSE) -> 2830 | I25: =VLOOKUP(S25,[13]VLOOKUP!$A$25:$X$200,5,FALSE) -> 0.075 | J25: =VLOOKUP(S25,[13]VLOOKUP!$A$25:$X$200,7,FALSE) -> 7.8e-06 | K25: =VLOOKUP(S25,[13]VLOOKUP!$A$25:$X$200,9,FALSE) -> 13.8 | L25: =VLOOKUP(S25,[13]VLOOKUP!$A$25:$X$200,13,FALSE) -> 0.0131 | M25: 14.00000473 | N25: =VLOOKUP(S25,[13]VLOOKUP!$A$25:$X$200,17,FALSE) -> 456.46 | O25: =VLOOKUP(S25,[13]VLOOKUP!$A$25:$X$200,19,FALSE) -> 660.5 | P25: =VLOOKUP(S25,[13]VLOOKUP!$A$25:$X$200,21,FALSE) -> 9289.93 | Q25: NDEP + USEPA 2004 for Tb, Tc, ΔH | R25: =VLOOKUP(S25,[13]VLOOKUP!$A$25:$Z$200,26,FALSE) -> NDEP + USEPA 2004 for Tb, Tc, ΔH | S25: 104518
A26: V | B26: =IF(VLOOKUP(F26,'T5-6 COPC'!E$11:N$113,10,FALSE)="V","X","") -> X | C26: VOCs | D26: Butylbenzene sec | E26: sec-Butylbenzene | F26: 135-98-8 | G26: =VLOOKUP(S26,[13]VLOOKUP!$A$25:$X$200,23,FALSE) -> 134.22 | H26: =VLOOKUP(S26,[13]VLOOKUP!$A$25:$X$200,3,FALSE) -> 2150 | I26: =VLOOKUP(S26,[13]VLOOKUP!$A$25:$X$200,5,FALSE) -> 0.075 | J26: =VLOOKUP(S26,[13]VLOOKUP!$A$25:$X$200,7,FALSE) -> 7.8e-06 | K26: =VLOOKUP(S26,[13]VLOOKUP!$A$25:$X$200,9,FALSE) -> 17 | L26: =VLOOKUP(S26,[13]VLOOKUP!$A$25:$X$200,13,FALSE) -> 0.0187 | M26: 15.00000473 | N26: =VLOOKUP(S26,[13]VLOOKUP!$A$25:$X$200,17,FALSE) -> 446.5 | O26: =VLOOKUP(S26,[13]VLOOKUP!$A$25:$X$200,19,FALSE) -> 679 | P26: =VLOOKUP(S26,[13]VLOOKUP!$A$25:$X$200,21,FALSE) -> 88730 | Q26: NDEP + USEPA 2004 for Tb, Tc, ΔH | R26: =VLOOKUP(S26,[13]VLOOKUP!$A$25:$Z$200,26,FALSE) -> NDEP + USEPA 2004 for Tb, Tc, ΔH | S26: 135988
B27: =IF(VLOOKUP(F27,'T5-6 COPC'!E$11:N$113,10,FALSE)="V","X","") ->  | C27: VOCs | D27: Butylbenzene tert | E27: tert-Butylbenzene | F27: 98-06-6 | G27: =VLOOKUP(S27,[13]VLOOKUP!$A$25:$X$200,23,FALSE) -> 134.22 | H27: =VLOOKUP(S27,[13]VLOOKUP!$A$25:$X$200,3,FALSE) -> 2150 | I27: =VLOOKUP(S27,[13]VLOOKUP!$A$25:$X$200,5,FALSE) -> 0.075 | J27: =VLOOKUP(S27,[13]VLOOKUP!$A$25:$X$200,7,FALSE) -> 7.8e-06 | K27: =VLOOKUP(S27,[13]VLOOKUP!$A$25:$X$200,9,FALSE) -> 30 | L27: =VLOOKUP(S27,[13]VLOOKUP!$A$25:$X$200,13,FALSE) -> 0.0126 | M27: 16.00000473 | N27: =VLOOKUP(S27,[13]VLOOKUP!$A$25:$X$200,17,FALSE) -> 0 | O27: =VLOOKUP(S27,[13]VLOOKUP!$A$25:$X$200,19,FALSE) -> 0 | P27: =VLOOKUP(S27,[13]VLOOKUP!$A$25:$X$200,21,FALSE) -> 0 | Q27: NDEP | R27: =VLOOKUP(S27,[13]VLOOKUP!$A$25:$Z$200,26,FALSE) -> NDEP | S27: 98066
A28: V | B28: =IF(VLOOKUP(F28,'T5-6 COPC'!E$11:N$113,10,FALSE)="V","X","") -> X | C28: VOCs | D28: Carbon Disulfide | E28: Carbon disulfide | F28: 75-15-0 | G28: =VLOOKUP(S28,[13]VLOOKUP!$A$25:$X$200,23,FALSE) -> 76 | H28: =VLOOKUP(S28,[13]VLOOKUP!$A$25:$X$200,3,FALSE) -> 45.7 | I28: =VLOOKUP(S28,[13]VLOOKUP!$A$25:$X$200,5,FALSE) -> 0.104 | J28: =VLOOKUP(S28,[13]VLOOKUP!$A$25:$X$200,7,FALSE) -> 1e-05 | K28: =VLOOKUP(S28,[13]VLOOKUP!$A$25:$X$200,9,FALSE) -> 1190 | L28: =VLOOKUP(S28,[13]VLOOKUP!$A$25:$X$200,13,FALSE) -> 0.0303 | M28: 17.00000473 | N28: =VLOOKUP(S28,[13]VLOOKUP!$A$25:$X$200,17,FALSE) -> 319 | O28: =VLOOKUP(S28,[13]VLOOKUP!$A$25:$X$200,19,FALSE) -> 552 | P28: =VLOOKUP(S28,[13]VLOOKUP!$A$25:$X$200,21,FALSE) -> 6391 | Q28: NDEP + USEPA 2004 for Tb, Tc, ΔH | R28: =VLOOKUP(S28,[13]VLOOKUP!$A$25:$Z$200,26,FALSE) -> NDEP + USEPA 2004 for Tb, Tc, ΔH | S28: 75150
A29: V | B29: =IF(VLOOKUP(F29,'T5-6 COPC'!E$11:N$113,10,FALSE)="V","X","") -> X | C29: VOCs | D29: Carbon Tetrachloride | E29: Carbon tetrachloride | F29: 56-23-5 | G29: =VLOOKUP(S29,[13]VLOOKUP!$A$25:$X$200,23,FALSE) -> 154 | H29: =VLOOKUP(S29,[13]VLOOKUP!$A$25:$X$200,3,FALSE) -> 152 | I29: =VLOOKUP(S29,[13]VLOOKUP!$A$25:$X$200,5,FALSE) -> 0.078 | J29: =VLOOKUP(S29,[13]VLOOKUP!$A$25:$X$200,7,FALSE) -> 8.8e-06 | K29: =VLOOKUP(S29,[13]VLOOKUP!$A$25:$X$200,9,FALSE) -> 793 | L29: =VLOOKUP(S29,[13]VLOOKUP!$A$25:$X$200,13,FALSE) -> 0.0304 | M29: 18.00000473 | N29: =VLOOKUP(S29,[13]VLOOKUP!$A$25:$X$200,17,FALSE) -> 349.9 | O29: =VLOOKUP(S29,[13]VLOOKUP!$A$25:$X$200,19,FALSE) -> 556.6 | P29: =VLOOKUP(S29,[13]VLOOKUP!$A$25:$X$200,21,FALSE) -> 7127 | Q29: NDEP + USEPA 2004 for Tb, Tc, ΔH | R29: =VLOOKUP(S29,[13]VLOOKUP!$A$25:$Z$200,26,FALSE) -> NDEP + USEPA 2004 for Tb, Tc, ΔH | S29: 56235
B30: =IF(VLOOKUP(F30,'T5-6 COPC'!E$11:N$113,10,FALSE)="V","X","") ->  | C30: VOCs | D30: Chloro-1-propene 3 | E30: 3-Chloro-1-propene | F30: 107-05-1 | G30: =VLOOKUP(S30,[13]VLOOKUP!$A$25:$X$200,23,FALSE) -> 77 | H30: =VLOOKUP(S30,[13]VLOOKUP!$A$25:$X$200,3,FALSE) -> 43.79 | I30: =VLOOKUP(S30,[13]VLOOKUP!$A$25:$X$200,5,FALSE) -> 0.094 | J30: =VLOOKUP(S30,[13]VLOOKUP!$A$25:$X$200,7,FALSE) -> 1.1e-05 | K30: =VLOOKUP(S30,[13]VLOOKUP!$A$25:$X$200,9,FALSE) -> 3370 | L30: =VLOOKUP(S30,[13]VLOOKUP!$A$25:$X$200,13,FALSE) -> 0.01097560976 | M30: 19.00000473 | N30: =VLOOKUP(S30,[13]VLOOKUP!$A$25:$X$200,17,FALSE) -> 0 | O30: =VLOOKUP(S30,[13]VLOOKUP!$A$25:$X$200,19,FALSE) -> 0 | P30: =VLOOKUP(S30,[13]VLOOKUP!$A$25:$X$200,21,FALSE) -> 0 | Q30: NDEP | R30: =VLOOKUP(S30,[13]VLOOKUP!$A$25:$Z$200,26,FALSE) -> NDEP | S30: 107051
B31: =IF(VLOOKUP(F31,'T5-6 COPC'!E$11:N$113,10,FALSE)="V","X","") ->  | C31: VOCs | D31: Chlorobenzene | E31: Chlorobenzene | F31: 108-90-7 | G31: =VLOOKUP(S31,[13]VLOOKUP!$A$25:$X$200,23,FALSE) -> 113 | H31: =VLOOKUP(S31,[13]VLOOKUP!$A$25:$X$200,3,FALSE) -> 224 | I31: =VLOOKUP(S31,[13]VLOOKUP!$A$25:$X$200,5,FALSE) -> 0.073 | J31: =VLOOKUP(S31,[13]VLOOKUP!$A$25:$X$200,7,FALSE) -> 8.7e-06 | K31: =VLOOKUP(S31,[13]VLOOKUP!$A$25:$X$200,9,FALSE) -> 472 | L31: =VLOOKUP(S31,[13]VLOOKUP!$A$25:$X$200,13,FALSE) -> 0.0037 | M31: 20.00000473 | N31: =VLOOKUP(S31,[13]VLOOKUP!$A$25:$X$200,17,FALSE) -> 404.87 | O31: =VLOOKUP(S31,[13]VLOOKUP!$A$25:$X$200,19,FALSE) -> 632.4 | P31: =VLOOKUP(S31,[13]VLOOKUP!$A$25:$X$200,21,FALSE) -> 8410 | Q31: NDEP + USEPA 2004 for Tb, Tc, ΔH | R31: =VLOOKUP(S31,[13]VLOOKUP!$A$25:$Z$200,26,FALSE) -> NDEP + USEPA 2004 for Tb, Tc, ΔH | S31: 108907
A32: V | B32: =IF(VLOOKUP(F32,'T5-6 COPC'!E$11:N$113,10,FALSE)="V","X","") -> X | C32: VOCs | D32: Chloroethane | E32: Chloroethane | F32: 75-00-3 | G32: =VLOOKUP(S32,[13]VLOOKUP!$A$25:$X$200,23,FALSE) -> 65 | H32: =VLOOKUP(S32,[13]VLOOKUP!$A$25:$X$200,3,FALSE) -> 14.7 | I32: =VLOOKUP(S32,[13]VLOOKUP!$A$25:$X$200,5,FALSE) -> 0.1041 | J32: =VLOOKUP(S32,[13]VLOOKUP!$A$25:$X$200,7,FALSE) -> 1.15e-05 | K32: =VLOOKUP(S32,[13]VLOOKUP!$A$25:$X$200,9,FALSE) -> 5700 | L32: =VLOOKUP(S32,[13]VLOOKUP!$A$25:$X$200,13,FALSE) -> 0.011 | M32: 21.00000473 | N32: =VLOOKUP(S32,[13]VLOOKUP!$A$25:$X$200,17,FALSE) -> 285.3 | O32: =VLOOKUP(S32,[13]VLOOKUP!$A$25:$X$200,19,FALSE) -> 460.4 | P32: =VLOOKUP(S32,[13]VLOOKUP!$A$25:$X$200,21,FALSE) -> 5879.4 | Q32: NDEP + USEPA 2004 for Tb, Tc, ΔH | R32: =VLOOKUP(S32,[13]VLOOKUP!$A$25:$Z$200,26,FALSE) -> NDEP + USEPA 2004 for Tb, Tc, ΔH | S32: 75003
A33: V | B33: =IF(VLOOKUP(F33,'T5-6 COPC'!E$11:N$113,10,FALSE)="V","X","") -> X | C33: VOCs | D33: Chloroform | E33: Chloroform | F33: 67-66-3 | G33: =VLOOKUP(S33,[13]VLOOKUP!$A$25:$X$200,23,FALSE) -> 119 | H33: =VLOOKUP(S33,[13]VLOOKUP!$A$25:$X$200,3,FALSE) -> 53 | I33: =VLOOKUP(S33,[13]VLOOKUP!$A$25:$X$200,5,FALSE) -> 0.104 | J33: =VLOOKUP(S33,[13]VLOOKUP!$A$25:$X$200,7,FALSE) -> 1e-05 | K33: =VLOOKUP(S33,[13]VLOOKUP!$A$25:$X$200,9,FALSE) -> 7920 | L33: =VLOOKUP(S33,[13]VLOOKUP!$A$25:$X$200,13,FALSE) -> 0.00367 | M33: 22.00000473 | N33: =VLOOKUP(S33,[13]VLOOKUP!$A$25:$X$200,17,FALSE) -> 334.32 | O33: =VLOOKUP(S33,[13]VLOOKUP!$A$25:$X$200,19,FALSE) -> 536.4 | P33: =VLOOKUP(S33,[13]VLOOKUP!$A$25:$X$200,21,FALSE) -> 6988 | Q33: NDEP + USEPA 2004 for Tb, Tc, ΔH | R33: =VLOOKUP(S33,[13]VLOOKUP!$A$25:$Z$200,26,FALSE) -> NDEP + USEPA 2004 for Tb, Tc, ΔH | S33: 67663
B34: =IF(VLOOKUP(F34,'T5-6 COPC'!E$11:N$113,10,FALSE)="V","X","") ->  | C34: VOCs | D34: Chlorohexane, 1- | E34: 1-Chlorohexane | F34: 544-10-5 | G34: =VLOOKUP(S34,[13]VLOOKUP!$A$25:$X$200,23,FALSE) -> 102.62 | H34: =VLOOKUP(S34,[13]VLOOKUP!$A$25:$X$200,3,FALSE) -> 239.7 | I34: =VLOOKUP(S34,[13]VLOOKUP!$A$25:$X$200,5,FALSE) -> 0.2 | J34: =VLOOKUP(S34,[13]VLOOKUP!$A$25:$X$200,7,FALSE) -> 7.77e-06 | K34: =VLOOKUP(S34,[13]VLOOKUP!$A$25:$X$200,9,FALSE) -> 91 | L34: =VLOOKUP(S34,[13]VLOOKUP!$A$25:$X$200,13,FALSE) -> 0.0242 | M34: 23.00000473 | N34: =VLOOKUP(S34,[13]VLOOKUP!$A$25:$X$200,17,FALSE) -> 0 | O34: =VLOOKUP(S34,[13]VLOOKUP!$A$25:$X$200,19,FALSE) -> 0 | P34: =VLOOKUP(S34,[13]VLOOKUP!$A$25:$X$200,21,FALSE) -> 0 | Q34: EPISUITE + n-Hexane for diffusivities | R34: =VLOOKUP(S34,[13]VLOOKUP!$A$25:$Z$200,26,FALSE) -> EPISUITE + n-Hexane for diffusivities | S34: 544105
B35: =IF(VLOOKUP(F35,'T5-6 COPC'!E$11:N$113,10,FALSE)="V","X","") ->  | C35: VOCs | D35: Chloromethane | E35: Chloromethane | F35: 74-87-3 | G35: =VLOOKUP(S35,[13]VLOOKUP!$A$25:$X$200,23,FALSE) -> 51 | H35: =VLOOKUP(S35,[13]VLOOKUP!$A$25:$X$200,3,FALSE) -> 35 | I35: =VLOOKUP(S35,[13]VLOOKUP!$A$25:$X$200,5,FALSE) -> 0.1088935 | J35: =VLOOKUP(S35,[13]VLOOKUP!$A$25:$X$200,7,FALSE) -> 6.5e-06 | K35: =VLOOKUP(S35,[13]VLOOKUP!$A$25:$X$200,9,FALSE) -> 8200 | L35: =VLOOKUP(S35,[13]VLOOKUP!$A$25:$X$200,13,FALSE) -> 0.024 | M35: 24.00000473 | N35: =VLOOKUP(S35,[13]VLOOKUP!$A$25:$X$200,17,FALSE) -> 249 | O35: =VLOOKUP(S35,[13]VLOOKUP!$A$25:$X$200,19,FALSE) -> 416.25 | P35: =VLOOKUP(S35,[13]VLOOKUP!$A$25:$X$200,21,FALSE) -> 5114.6 | Q35: NDEP + USEPA 2004 for Tb, Tc, ΔH | R35: =VLOOKUP(S35,[13]VLOOKUP!$A$25:$Z$200,26,FALSE) -> NDEP + USEPA 2004 for Tb, Tc, ΔH | S35: 74873
B36: =IF(VLOOKUP(F36,'T5-6 COPC'!E$11:N$113,10,FALSE)="V","X","") ->  | C36: VOCs | D36: Chlorotoluene 2 | E36: 2-Chlorotoluene | F36: 95-49-8 | G36: =VLOOKUP(S36,[13]VLOOKUP!$A$25:$X$200,23,FALSE) -> 127 | H36: =VLOOKUP(S36,[13]VLOOKUP!$A$25:$X$200,3,FALSE) -> 160 | I36: =VLOOKUP(S36,[13]VLOOKUP!$A$25:$X$200,5,FALSE) -> 0.072 | J36: =VLOOKUP(S36,[13]VLOOKUP!$A$25:$X$200,7,FALSE) -> 8.65e-06 | K36: =VLOOKUP(S36,[13]VLOOKUP!$A$25:$X$200,9,FALSE) -> 470 | L36: =VLOOKUP(S36,[13]VLOOKUP!$A$25:$X$200,13,FALSE) -> 0.0035 | M36: 25.00000473 | N36: =VLOOKUP(S36,[13]VLOOKUP!$A$25:$X$200,17,FALSE) -> 0 | O36: =VLOOKUP(S36,[13]VLOOKUP!$A$25:$X$200,19,FALSE) -> 0 | P36: =VLOOKUP(S36,[13]VLOOKUP!$A$25:$X$200,21,FALSE) -> 0 | Q36: NDEP | R36: =VLOOKUP(S36,[13]VLOOKUP!$A$25:$Z$200,26,FALSE) -> NDEP | S36: 95498
B37: =IF(VLOOKUP(F37,'T5-6 COPC'!E$11:N$113,10,FALSE)="V","X","") ->  | C37: VOCs | D37: Chlorotoluene 4 | E37: 4-Chlorotoluene | F37: 106-43-4 | G37: =VLOOKUP(S37,[13]VLOOKUP!$A$25:$X$200,23,FALSE) -> 126.59 | H37: =VLOOKUP(S37,[13]VLOOKUP!$A$25:$X$200,3,FALSE) -> 375.3 | I37: =VLOOKUP(S37,[13]VLOOKUP!$A$25:$X$200,5,FALSE) -> 0.062571 | J37: =VLOOKUP(S37,[13]VLOOKUP!$A$25:$X$200,7,FALSE) -> 8.6574e-06 | K37: =VLOOKUP(S37,[13]VLOOKUP!$A$25:$X$200,9,FALSE) -> 106 | L37: =VLOOKUP(S37,[13]VLOOKUP!$A$25:$X$200,13,FALSE) -> 0.00438 | M37: 26.00000473 | N37: =VLOOKUP(S37,[13]VLOOKUP!$A$25:$X$200,17,FALSE) -> 0 | O37: =VLOOKUP(S37,[13]VLOOKUP!$A$25:$X$200,19,FALSE) -> 0 | P37: =VLOOKUP(S37,[13]VLOOKUP!$A$25:$X$200,21,FALSE) -> 0 | Q37: RSL | R37: =VLOOKUP(S37,[13]VLOOKUP!$A$25:$Z$200,26,FALSE) -> RSL | S37: 106434
A38: V | B38: =IF(VLOOKUP(F38,'T5-6 COPC'!E$11:N$113,10,FALSE)="V","X","") -> X | C38: VOCs | D38: Cumene | E38: Cumene | F38: 98-82-8 | G38: =VLOOKUP(S38,[13]VLOOKUP!$A$25:$X$200,23,FALSE) -> 120 | H38: =VLOOKUP(S38,[13]VLOOKUP!$A$25:$X$200,3,FALSE) -> 220 | I38: =VLOOKUP(S38,[13]VLOOKUP!$A$25:$X$200,5,FALSE) -> 0.075 | J38: =VLOOKUP(S38,[13]VLOOKUP!$A$25:$X$200,7,FALSE) -> 7.1e-06 | K38: =VLOOKUP(S38,[13]VLOOKUP!$A$25:$X$200,9,FALSE) -> 61 | L38: =VLOOKUP(S38,[13]VLOOKUP!$A$25:$X$200,13,FALSE) -> 1.2 | M38: 27.00000473 | N38: =VLOOKUP(S38,[13]VLOOKUP!$A$25:$X$200,17,FALSE) -> 425.56 | O38: =VLOOKUP(S38,[13]VLOOKUP!$A$25:$X$200,19,FALSE) -> 631.1 | P38: =VLOOKUP(S38,[13]VLOOKUP!$A$25:$X$200,21,FALSE) -> 10335.3 | Q38: NDEP + USEPA 2004 for Tb, Tc, ΔH | R38: =VLOOKUP(S38,[13]VLOOKUP!$A$25:$Z$200,26,FALSE) -> NDEP + USEPA 2004 for Tb, Tc, ΔH | S38: 98828
B39: =IF(VLOOKUP(F39,'T5-6 COPC'!E$11:N$113,10,FALSE)="V","X","") ->  | C39: VOCs | D39: Cyclohexane | E39: Cyclohexane | F39: 110-82-7 | G39: =VLOOKUP(S39,[13]VLOOKUP!$A$25:$X$200,23,FALSE) -> 84 | H39: =VLOOKUP(S39,[13]VLOOKUP!$A$25:$X$200,3,FALSE) -> 160 | I39: =VLOOKUP(S39,[13]VLOOKUP!$A$25:$X$200,5,FALSE) -> 0.08 | J39: =VLOOKUP(S39,[13]VLOOKUP!$A$25:$X$200,7,FALSE) -> 9e-06 | K39: =VLOOKUP(S39,[13]VLOOKUP!$A$25:$X$200,9,FALSE) -> 55 | L39: =VLOOKUP(S39,[13]VLOOKUP!$A$25:$X$200,13,FALSE) -> 0.198 | M39: 28.00000473 | N39: =VLOOKUP(S39,[13]VLOOKUP!$A$25:$X$200,17,FALSE) -> 0 | O39: =VLOOKUP(S39,[13]VLOOKUP!$A$25:$X$200,19,FALSE) -> 0 | P39: =VLOOKUP(S39,[13]VLOOKUP!$A$25:$X$200,21,FALSE) -> 0 | Q39: NDEP | R39: =VLOOKUP(S39,[13]VLOOKUP!$A$25:$Z$200,26,FALSE) -> NDEP | S39: 110827
A40: V | B40: =IF(VLOOKUP(F40,'T5-6 COPC'!E$11:N$113,10,FALSE)="V","X","") -> X | C40: VOCs | D40: Cymene, p | E40: p-Cymene | F40: 99-87-6 | G40: =VLOOKUP(S40,[13]VLOOKUP!$A$25:$X$200,23,FALSE) -> 134 | H40: =VLOOKUP(S40,[13]VLOOKUP!$A$25:$X$200,3,FALSE) -> 220 | I40: =VLOOKUP(S40,[13]VLOOKUP!$A$25:$X$200,5,FALSE) -> 0.075 | J40: =VLOOKUP(S40,[13]VLOOKUP!$A$25:$X$200,7,FALSE) -> 7.1e-06 | K40: =VLOOKUP(S40,[13]VLOOKUP!$A$25:$X$200,9,FALSE) -> 61 | L40: =VLOOKUP(S40,[13]VLOOKUP!$A$25:$X$200,13,FALSE) -> 1.2 | M40: 29.00000473 | N40: =VLOOKUP(S40,[13]VLOOKUP!$A$25:$X$200,17,FALSE) -> 0 | O40: =VLOOKUP(S40,[13]VLOOKUP!$A$25:$X$200,19,FALSE) -> 0 | P40: =VLOOKUP(S40,[13]VLOOKUP!$A$25:$X$200,21,FALSE) -> 0 | Q40: NDEP | R40: =VLOOKUP(S40,[13]VLOOKUP!$A$25:$Z$200,26,FALSE) -> NDEP | S40: 99876
B41: =IF(VLOOKUP(F41,'T5-6 COPC'!E$11:N$113,10,FALSE)="V","X","") ->  | C41: VOCs | D41: Dibromo-3-chloropropane, 1,2- | E41: 1,2-Dibromo-3-chloropropane | F41: 96-12-8 | G41: =VLOOKUP(S41,[13]VLOOKUP!$A$25:$X$200,23,FALSE) -> 236.33 | H41: =VLOOKUP(S41,[13]VLOOKUP!$A$25:$X$200,3,FALSE) -> 169.82 | I41: =VLOOKUP(S41,[13]VLOOKUP!$A$25:$X$200,5,FALSE) -> 0.08 | J41: =VLOOKUP(S41,[13]VLOOKUP!$A$25:$X$200,7,FALSE) -> 8e-06 | K41: =VLOOKUP(S41,[13]VLOOKUP!$A$25:$X$200,9,FALSE) -> 1230 | L41: =VLOOKUP(S41,[13]VLOOKUP!$A$25:$X$200,13,FALSE) -> 0.00015 | M41: 30.00000473 | N41: =VLOOKUP(S41,[13]VLOOKUP!$A$25:$X$200,17,FALSE) -> 0 | O41: =VLOOKUP(S41,[13]VLOOKUP!$A$25:$X$200,19,FALSE) -> 0 | P41: =VLOOKUP(S41,[13]VLOOKUP!$A$25:$X$200,21,FALSE) -> 0 | Q41: R | R41: =VLOOKUP(S41,[13]VLOOKUP!$A$25:$Z$200,26,FALSE) -> R | S41: 96128
B42: =IF(VLOOKUP(F42,'T5-6 COPC'!E$11:N$113,10,FALSE)="V","X","") ->  | C42: VOCs | D42: Dibromochloromethane | E42: Dibromochloromethane | F42: 124-48-1 | G42: =VLOOKUP(S42,[13]VLOOKUP!$A$25:$X$200,23,FALSE) -> 208.28 | H42: =VLOOKUP(S42,[13]VLOOKUP!$A$25:$X$200,3,FALSE) -> 63.0957 | I42: =VLOOKUP(S42,[13]VLOOKUP!$A$25:$X$200,5,FALSE) -> 0.0196 | J42: =VLOOKUP(S42,[13]VLOOKUP!$A$25:$X$200,7,FALSE) -> 1.05e-05 | K42: =VLOOKUP(S42,[13]VLOOKUP!$A$25:$X$200,9,FALSE) -> 2700 | L42: =VLOOKUP(S42,[13]VLOOKUP!$A$25:$X$200,13,FALSE) -> 0.00085 | M42: 31.00000473 | N42: =VLOOKUP(S42,[13]VLOOKUP!$A$25:$X$200,17,FALSE) -> 416.14 | O42: =VLOOKUP(S42,[13]VLOOKUP!$A$25:$X$200,19,FALSE) -> 678.2 | P42: =VLOOKUP(S42,[13]VLOOKUP!$A$25:$X$200,21,FALSE) -> 5900 | Q42: NDEP + USEPA 2004 for Tb, Tc, ΔH | R42: =VLOOKUP(S42,[13]VLOOKUP!$A$25:$Z$200,26,FALSE) -> NDEP + USEPA 2004 for Tb, Tc, ΔH | S42: 124481
B43: =IF(VLOOKUP(F43,'T5-6 COPC'!E$11:N$113,10,FALSE)="V","X","") ->  | C43: VOCs | D43: Dibromoethane 1,2 | E43: 1,2-Dibromoethane | F43: 106-93-4 | G43: =VLOOKUP(S43,[13]VLOOKUP!$A$25:$X$200,23,FALSE) -> 188 | H43: =VLOOKUP(S43,[13]VLOOKUP!$A$25:$X$200,3,FALSE) -> 28.1 | I43: =VLOOKUP(S43,[13]VLOOKUP!$A$25:$X$200,5,FALSE) -> 0.0733 | J43: =VLOOKUP(S43,[13]VLOOKUP!$A$25:$X$200,7,FALSE) -> 8.06e-06 | K43: =VLOOKUP(S43,[13]VLOOKUP!$A$25:$X$200,9,FALSE) -> 3400 | L43: =VLOOKUP(S43,[13]VLOOKUP!$A$25:$X$200,13,FALSE) -> 0.00032 | M43: 32.00000473 | N43: =VLOOKUP(S43,[13]VLOOKUP!$A$25:$X$200,17,FALSE) -> 404.6 | O43: =VLOOKUP(S43,[13]VLOOKUP!$A$25:$X$200,19,FALSE) -> 583 | P43: =VLOOKUP(S43,[13]VLOOKUP!$A$25:$X$200,21,FALSE) -> 8310.03 | Q43: NDEP + USEPA 2004 for Tb, Tc, ΔH | R43: =VLOOKUP(S43,[13]VLOOKUP!$A$25:$Z$200,26,FALSE) -> NDEP + USEPA 2004 for Tb, Tc, ΔH | S43: 106934
B44: =IF(VLOOKUP(F44,'T5-6 COPC'!E$11:N$113,10,FALSE)="V","X","") ->  | C44: VOCs | D44: Dibromomethane | E44: Dibromomethane | F44: 74-95-3 | G44: =VLOOKUP(S44,[13]VLOOKUP!$A$25:$X$200,23,FALSE) -> 174 | H44: =VLOOKUP(S44,[13]VLOOKUP!$A$25:$X$200,3,FALSE) -> 181.97 | I44: =VLOOKUP(S44,[13]VLOOKUP!$A$25:$X$200,5,FALSE) -> 0.08 | J44: =VLOOKUP(S44,[13]VLOOKUP!$A$25:$X$200,7,FALSE) -> 8e-06 | K44: =VLOOKUP(S44,[13]VLOOKUP!$A$25:$X$200,9,FALSE) -> 11900 | L44: =VLOOKUP(S44,[13]VLOOKUP!$A$25:$X$200,13,FALSE) -> 0.0009 | M44: 33.00000473 | N44: =VLOOKUP(S44,[13]VLOOKUP!$A$25:$X$200,17,FALSE) -> 370 | O44: =VLOOKUP(S44,[13]VLOOKUP!$A$25:$X$200,19,FALSE) -> 583 | P44: =VLOOKUP(S44,[13]VLOOKUP!$A$25:$X$200,21,FALSE) -> 7867.88 | Q44: NDEP + USEPA 2004 for Tb, Tc, ΔH | R44: =VLOOKUP(S44,[13]VLOOKUP!$A$25:$Z$200,26,FALSE) -> NDEP + USEPA 2004 for Tb, Tc, ΔH | S44: 74953
B45: =IF(VLOOKUP(F45,'T5-6 COPC'!E$11:N$113,10,FALSE)="V","X","") ->  | C45: VOCs | D45: Dichlorobenzene 1,2 | E45: 1,2-Dichlorobenzene | F45: 95-50-1 | G45: =VLOOKUP(S45,[13]VLOOKUP!$A$25:$X$200,23,FALSE) -> 147 | H45: =VLOOKUP(S45,[13]VLOOKUP!$A$25:$X$200,3,FALSE) -> 379 | I45: =VLOOKUP(S45,[13]VLOOKUP!$A$25:$X$200,5,FALSE) -> 0.069 | J45: =VLOOKUP(S45,[13]VLOOKUP!$A$25:$X$200,7,FALSE) -> 7.9e-06 | K45: =VLOOKUP(S45,[13]VLOOKUP!$A$25:$X$200,9,FALSE) -> 156 | L45: =VLOOKUP(S45,[13]VLOOKUP!$A$25:$X$200,13,FALSE) -> 0.0019 | M45: 34.00000473 | N45: =VLOOKUP(S45,[13]VLOOKUP!$A$25:$X$200,17,FALSE) -> 453.57 | O45: =VLOOKUP(S45,[13]VLOOKUP!$A$25:$X$200,19,FALSE) -> 705 | P45: =VLOOKUP(S45,[13]VLOOKUP!$A$25:$X$200,21,FALSE) -> 9700 | Q45: NDEP + USEPA 2004 for Tb, Tc, ΔH | R45: =VLOOKUP(S45,[13]VLOOKUP!$A$25:$Z$200,26,FALSE) -> NDEP + USEPA 2004 for Tb, Tc, ΔH | S45: 95501
B46: =IF(VLOOKUP(F46,'T5-6 COPC'!E$11:N$113,10,FALSE)="V","X","") ->  | C46: VOCs | D46: Dichlorobenzene 1,3 | E46: 1,3-Dichlorobenzene | F46: 541-73-1 | G46: =VLOOKUP(S46,[13]VLOOKUP!$A$25:$X$200,23,FALSE) -> 147 | H46: =VLOOKUP(S46,[13]VLOOKUP!$A$25:$X$200,3,FALSE) -> 379 | I46: =VLOOKUP(S46,[13]VLOOKUP!$A$25:$X$200,5,FALSE) -> 0.069 | J46: =VLOOKUP(S46,[13]VLOOKUP!$A$25:$X$200,7,FALSE) -> 7.9e-06 | K46: =VLOOKUP(S46,[13]VLOOKUP!$A$25:$X$200,9,FALSE) -> 156 | L46: =VLOOKUP(S46,[13]VLOOKUP!$A$25:$X$200,13,FALSE) -> 0.0019 | M46: 35.00000473 | N46: =VLOOKUP(S46,[13]VLOOKUP!$A$25:$X$200,17,FALSE) -> 446 | O46: =VLOOKUP(S46,[13]VLOOKUP!$A$25:$X$200,19,FALSE) -> 684 | P46: =VLOOKUP(S46,[13]VLOOKUP!$A$25:$X$200,21,FALSE) -> 9230.18 | Q46: NDEP + USEPA 2004 for Tb, Tc, ΔH | R46: =VLOOKUP(S46,[13]VLOOKUP!$A$25:$Z$200,26,FALSE) -> NDEP + USEPA 2004 for Tb, Tc, ΔH | S46: 541731
A47: V | B47: =IF(VLOOKUP(F47,'T5-6 COPC'!E$11:N$113,10,FALSE)="V","X","") -> X | C47: VOCs | D47: Dichlorobenzene 1,4 | E47: 1,4-Dichlorobenzene | F47: 106-46-7 | G47: =VLOOKUP(S47,[13]VLOOKUP!$A$25:$X$200,23,FALSE) -> 147 | H47: =VLOOKUP(S47,[13]VLOOKUP!$A$25:$X$200,3,FALSE) -> 616 | I47: =VLOOKUP(S47,[13]VLOOKUP!$A$25:$X$200,5,FALSE) -> 0.069 | J47: =VLOOKUP(S47,[13]VLOOKUP!$A$25:$X$200,7,FALSE) -> 7.9e-06 | K47: =VLOOKUP(S47,[13]VLOOKUP!$A$25:$X$200,9,FALSE) -> 73.8 | L47: =VLOOKUP(S47,[13]VLOOKUP!$A$25:$X$200,13,FALSE) -> 0.00243 | M47: 36.00000473 | N47: =VLOOKUP(S47,[13]VLOOKUP!$A$25:$X$200,17,FALSE) -> 447.21 | O47: =VLOOKUP(S47,[13]VLOOKUP!$A$25:$X$200,19,FALSE) -> 684.75 | P47: =VLOOKUP(S47,[13]VLOOKUP!$A$25:$X$200,21,FALSE) -> 9271 | Q47: NDEP + USEPA 2004 for Tb, Tc, ΔH | R47: =VLOOKUP(S47,[13]VLOOKUP!$A$25:$Z$200,26,FALSE) -> NDEP + USEPA 2004 for Tb, Tc, ΔH | S47: 106467
A48: V | B48: =IF(VLOOKUP(F48,'T5-6 COPC'!E$11:N$113,10,FALSE)="V","X","") -> X | C48: VOCs | D48: Dichlorodifluoromethane | E48: Dichlorodifluoromethane | F48: 75-71-8 | G48: =VLOOKUP(S48,[13]VLOOKUP!$A$25:$X$200,23,FALSE) -> 120.92 | H48: =VLOOKUP(S48,[13]VLOOKUP!$A$25:$X$200,3,FALSE) -> 58 | I48: =VLOOKUP(S48,[13]VLOOKUP!$A$25:$X$200,5,FALSE) -> 0.08 | J48: =VLOOKUP(S48,[13]VLOOKUP!$A$25:$X$200,7,FALSE) -> 1.05e-05 | K48: =VLOOKUP(S48,[13]VLOOKUP!$A$25:$X$200,9,FALSE) -> 280 | L48: =VLOOKUP(S48,[13]VLOOKUP!$A$25:$X$200,13,FALSE) -> 0.1 | M48: 37.00000473 | N48: =VLOOKUP(S48,[13]VLOOKUP!$A$25:$X$200,17,FALSE) -> 243.2 | O48: =VLOOKUP(S48,[13]VLOOKUP!$A$25:$X$200,19,FALSE) -> 384.95 | P48: =VLOOKUP(S48,[13]VLOOKUP!$A$25:$X$200,21,FALSE) -> 9421.36088 | Q48: NDEP + USEPA 2004 for Tb, Tc, ΔH | R48: =VLOOKUP(S48,[13]VLOOKUP!$A$25:$Z$200,26,FALSE) -> NDEP + USEPA 2004 for Tb, Tc, ΔH | S48: 75718
B49: =IF(VLOOKUP(F49,'T5-6 COPC'!E$11:N$113,10,FALSE)="V","X","") ->  | C49: VOCs | D49: Dichloroethane 1,1 | E49: 1,1-Dichloroethane | F49: 75-34-3 | G49: =VLOOKUP(S49,[13]VLOOKUP!$A$25:$X$200,23,FALSE) -> 99 | H49: =VLOOKUP(S49,[13]VLOOKUP!$A$25:$X$200,3,FALSE) -> 53 | I49: =VLOOKUP(S49,[13]VLOOKUP!$A$25:$X$200,5,FALSE) -> 0.0742 | J49: =VLOOKUP(S49,[13]VLOOKUP!$A$25:$X$200,7,FALSE) -> 1.05e-05 | K49: =VLOOKUP(S49,[13]VLOOKUP!$A$25:$X$200,9,FALSE) -> 5060 | L49: =VLOOKUP(S49,[13]VLOOKUP!$A$25:$X$200,13,FALSE) -> 0.00562 | M49: 38.00000473 | N49: =VLOOKUP(S49,[13]VLOOKUP!$A$25:$X$200,17,FALSE) -> 330.55 | O49: =VLOOKUP(S49,[13]VLOOKUP!$A$25:$X$200,19,FALSE) -> 523 | P49: =VLOOKUP(S49,[13]VLOOKUP!$A$25:$X$200,21,FALSE) -> 6895 | Q49: NDEP + USEPA 2004 for Tb, Tc, ΔH | R49: =VLOOKUP(S49,[13]VLOOKUP!$A$25:$Z$200,26,FALSE) -> NDEP + USEPA 2004 for Tb, Tc, ΔH | S49: 75343
B50: =IF(VLOOKUP(F50,'T5-6 COPC'!E$11:N$113,10,FALSE)="V","X","") ->  | C50: VOCs | D50: Dichloroethane 1,2 | E50: 1,2-Dichloroethane | F50: 107-06-2 | G50: =VLOOKUP(S50,[13]VLOOKUP!$A$25:$X$200,23,FALSE) -> 99 | H50: =VLOOKUP(S50,[13]VLOOKUP!$A$25:$X$200,3,FALSE) -> 38 | I50: =VLOOKUP(S50,[13]VLOOKUP!$A$25:$X$200,5,FALSE) -> 0.104 | J50: =VLOOKUP(S50,[13]VLOOKUP!$A$25:$X$200,7,FALSE) -> 9.9e-06 | K50: =VLOOKUP(S50,[13]VLOOKUP!$A$25:$X$200,9,FALSE) -> 8520 | L50: =VLOOKUP(S50,[13]VLOOKUP!$A$25:$X$200,13,FALSE) -> 0.000979 | M50: 39.00000473 | N50: =VLOOKUP(S50,[13]VLOOKUP!$A$25:$X$200,17,FALSE) -> 356.65 | O50: =VLOOKUP(S50,[13]VLOOKUP!$A$25:$X$200,19,FALSE) -> 561 | P50: =VLOOKUP(S50,[13]VLOOKUP!$A$25:$X$200,21,FALSE) -> 7643 | Q50: NDEP + USEPA 2004 for Tb, Tc, ΔH | R50: =VLOOKUP(S50,[13]VLOOKUP!$A$25:$Z$200,26,FALSE) -> NDEP + USEPA 2004 for Tb, Tc, ΔH | S50: 107062
B51: =IF(VLOOKUP(F51,'T5-6 COPC'!E$11:N$113,10,FALSE)="V","X","") ->  | C51: VOCs | D51: Dichloroethene 1,1 | E51: 1,1-Dichloroethene | F51: 75-35-4 | G51: =VLOOKUP(S51,[13]VLOOKUP!$A$25:$X$200,23,FALSE) -> 97 | H51: =VLOOKUP(S51,[13]VLOOKUP!$A$25:$X$200,3,FALSE) -> 65 | I51: =VLOOKUP(S51,[13]VLOOKUP!$A$25:$X$200,5,FALSE) -> 0.09 | J51: =VLOOKUP(S51,[13]VLOOKUP!$A$25:$X$200,7,FALSE) -> 1.04e-05 | K51: =VLOOKUP(S51,[13]VLOOKUP!$A$25:$X$200,9,FALSE) -> 2250 | L51: =VLOOKUP(S51,[13]VLOOKUP!$A$25:$X$200,13,FALSE) -> 0.0261 | M51: 40.00000473 | N51: =VLOOKUP(S51,[13]VLOOKUP!$A$25:$X$200,17,FALSE) -> 304.75 | O51: =VLOOKUP(S51,[13]VLOOKUP!$A$25:$X$200,19,FALSE) -> 576.05 | P51: =VLOOKUP(S51,[13]VLOOKUP!$A$25:$X$200,21,FALSE) -> 6247 | Q51: NDEP + USEPA 2004 for Tb, Tc, ΔH | R51: =VLOOKUP(S51,[13]VLOOKUP!$A$25:$Z$200,26,FALSE) -> NDEP + USEPA 2004 for Tb, Tc, ΔH | S51: 75354
B52: =IF(VLOOKUP(F52,'T5-6 COPC'!E$11:N$113,10,FALSE)="V","X","") ->  | C52: VOCs | D52: Dichloroethene 1,2 (total) | E52: 1,2-Dichloroethene | F52: 540-59-0 | G52: =VLOOKUP(S52,[13]VLOOKUP!$A$25:$X$200,23,FALSE) -> 96.9 | H52: =VLOOKUP(S52,[13]VLOOKUP!$A$25:$X$200,3,FALSE) -> 39.6 | I52: =VLOOKUP(S52,[13]VLOOKUP!$A$25:$X$200,5,FALSE) -> 0.0736 | J52: =VLOOKUP(S52,[13]VLOOKUP!$A$25:$X$200,7,FALSE) -> 1.13e-05 | K52: =VLOOKUP(S52,[13]VLOOKUP!$A$25:$X$200,9,FALSE) -> 0.0361 | L52: =VLOOKUP(S52,[13]VLOOKUP!$A$25:$X$200,13,FALSE) -> 0.00408 | M52: 41.00000473 | N52: =VLOOKUP(S52,[13]VLOOKUP!$A$25:$X$200,17,FALSE) -> 0 | O52: =VLOOKUP(S52,[13]VLOOKUP!$A$25:$X$200,19,FALSE) -> 0 | P52: =VLOOKUP(S52,[13]VLOOKUP!$A$25:$X$200,21,FALSE) -> 0 | Q52: EPISUITE + Cis-1,2-dichloroethene for diffusivities | R52: =VLOOKUP(S52,[13]VLOOKUP!$A$25:$Z$200,26,FALSE) -> EPISUITE + Cis-1,2-dichloroethene for diffusivities | S52: 540590
B53: =IF(VLOOKUP(F53,'T5-6 COPC'!E$11:N$113,10,FALSE)="V","X","") ->  | C53: VOCs | D53: Dichloroethene 1,2 cis | E53: cis-1,2-Dichloroethene | F53: 156-59-2 | G53: =VLOOKUP(S53,[13]VLOOKUP!$A$25:$X$200,23,FALSE) -> 97 | H53: =VLOOKUP(S53,[13]VLOOKUP!$A$25:$X$200,3,FALSE) -> 35.5 | I53: =VLOOKUP(S53,[13]VLOOKUP!$A$25:$X$200,5,FALSE) -> 0.0736 | J53: =VLOOKUP(S53,[13]VLOOKUP!$A$25:$X$200,7,FALSE) -> 1.13e-05 | K53: =VLOOKUP(S53,[13]VLOOKUP!$A$25:$X$200,9,FALSE) -> 3500 | L53: =VLOOKUP(S53,[13]VLOOKUP!$A$25:$X$200,13,FALSE) -> 0.00408 | M53: 42.00000473 | N53: =VLOOKUP(S53,[13]VLOOKUP!$A$25:$X$200,17,FALSE) -> 333.65 | O53: =VLOOKUP(S53,[13]VLOOKUP!$A$25:$X$200,19,FALSE) -> 544 | P53: =VLOOKUP(S53,[13]VLOOKUP!$A$25:$X$200,21,FALSE) -> 7192 | Q53: NDEP + USEPA 2004 for Tb, Tc, ΔH | R53: =VLOOKUP(S53,[13]VLOOKUP!$A$25:$Z$200,26,FALSE) -> NDEP + USEPA 2004 for Tb, Tc, ΔH | S53: 156592
B54: =IF(VLOOKUP(F54,'T5-6 COPC'!E$11:N$113,10,FALSE)="V","X","") ->  | C54: VOCs | D54: Dichloroethene 1,2 trans | E54: trans-1,2-Dichloroethene | F54: 156-60-5 | G54: =VLOOKUP(S54,[13]VLOOKUP!$A$25:$X$200,23,FALSE) -> 97 | H54: =VLOOKUP(S54,[13]VLOOKUP!$A$25:$X$200,3,FALSE) -> 38 | I54: =VLOOKUP(S54,[13]VLOOKUP!$A$25:$X$200,5,FALSE) -> 0.0707 | J54: =VLOOKUP(S54,[13]VLOOKUP!$A$25:$X$200,7,FALSE) -> 1.19e-05 | K54: =VLOOKUP(S54,[13]VLOOKUP!$A$25:$X$200,9,FALSE) -> 6300 | L54: =VLOOKUP(S54,[13]VLOOKUP!$A$25:$X$200,13,FALSE) -> 0.00938 | M54: 43.00000473 | N54: =VLOOKUP(S54,[13]VLOOKUP!$A$25:$X$200,17,FALSE) -> 320.85 | O54: =VLOOKUP(S54,[13]VLOOKUP!$A$25:$X$200,19,FALSE) -> 516.5 | P54: =VLOOKUP(S54,[13]VLOOKUP!$A$25:$X$200,21,FALSE) -> 6717 | Q54: NDEP + USEPA 2004 for Tb, Tc, ΔH | R54: =VLOOKUP(S54,[13]VLOOKUP!$A$25:$Z$200,26,FALSE) -> NDEP + USEPA 2004 for Tb, Tc, ΔH | S54: 156605
B55: =IF(VLOOKUP(F55,'T5-6 COPC'!E$11:N$113,10,FALSE)="V","X","") ->  | C55: VOCs | D55: Dichloropropane 1,2 | E55: 1,2-Dichloropropane | F55: 78-87-5 | G55: =VLOOKUP(S55,[13]VLOOKUP!$A$25:$X$200,23,FALSE) -> 113 | H55: =VLOOKUP(S55,[13]VLOOKUP!$A$25:$X$200,3,FALSE) -> 47 | I55: =VLOOKUP(S55,[13]VLOOKUP!$A$25:$X$200,5,FALSE) -> 0.0782 | J55: =VLOOKUP(S55,[13]VLOOKUP!$A$25:$X$200,7,FALSE) -> 8.73e-06 | K55: =VLOOKUP(S55,[13]VLOOKUP!$A$25:$X$200,9,FALSE) -> 2800 | L55: =VLOOKUP(S55,[13]VLOOKUP!$A$25:$X$200,13,FALSE) -> 0.0028 | M55: 44.00000473 | N55: =VLOOKUP(S55,[13]VLOOKUP!$A$25:$X$200,17,FALSE) -> 369.52 | O55: =VLOOKUP(S55,[13]VLOOKUP!$A$25:$X$200,19,FALSE) -> 572 | P55: =VLOOKUP(S55,[13]VLOOKUP!$A$25:$X$200,21,FALSE) -> 7590 | Q55: NDEP + USEPA 2004 for Tb, Tc, ΔH | R55: =VLOOKUP(S55,[13]VLOOKUP!$A$25:$Z$200,26,FALSE) -> NDEP + USEPA 2004 for Tb, Tc, ΔH | S55: 78875
B56: =IF(VLOOKUP(F56,'T5-6 COPC'!E$11:N$113,10,FALSE)="V","X","") ->  | C56: VOCs | D56: Dichloropropane 1,3 | E56: 1,3-Dichloropropane | F56: 142-28-9 | G56: =VLOOKUP(S56,[13]VLOOKUP!$A$25:$X$200,23,FALSE) -> 113 | H56: =VLOOKUP(S56,[13]VLOOKUP!$A$25:$X$200,3,FALSE) -> 47 | I56: =VLOOKUP(S56,[13]VLOOKUP!$A$25:$X$200,5,FALSE) -> 0.0782 | J56: =VLOOKUP(S56,[13]VLOOKUP!$A$25:$X$200,7,FALSE) -> 8.73e-06 | K56: =VLOOKUP(S56,[13]VLOOKUP!$A$25:$X$200,9,FALSE) -> 2800 | L56: =VLOOKUP(S56,[13]VLOOKUP!$A$25:$X$200,13,FALSE) -> 0.0028 | M56: 45.00000473 | N56: =VLOOKUP(S56,[13]VLOOKUP!$A$25:$X$200,17,FALSE) -> 0 | O56: =VLOOKUP(S56,[13]VLOOKUP!$A$25:$X$200,19,FALSE) -> 0 | P56: =VLOOKUP(S56,[13]VLOOKUP!$A$25:$X$200,21,FALSE) -> 0 | Q56: NDEP | R56: =VLOOKUP(S56,[13]VLOOKUP!$A$25:$Z$200,26,FALSE) -> NDEP | S56: 142289
B57: =IF(VLOOKUP(F57,'T5-6 COPC'!E$11:N$113,10,FALSE)="V","X","") ->  | C57: VOCs | D57: Dichloropropane 2,2- | E57: 2,2-Dichloropropane | F57: 594-20-7 | G57: =VLOOKUP(S57,[13]VLOOKUP!$A$25:$X$200,23,FALSE) -> 112.99 | H57: =VLOOKUP(S57,[13]VLOOKUP!$A$25:$X$200,3,FALSE) -> 43.89 | I57: =VLOOKUP(S57,[13]VLOOKUP!$A$25:$X$200,5,FALSE) -> 0.0782 | J57: =VLOOKUP(S57,[13]VLOOKUP!$A$25:$X$200,7,FALSE) -> 8.73e-06 | K57: =VLOOKUP(S57,[13]VLOOKUP!$A$25:$X$200,9,FALSE) -> 343.5 | L57: =VLOOKUP(S57,[13]VLOOKUP!$A$25:$X$200,13,FALSE) -> 0.0161 | M57: 46.00000473 | N57: =VLOOKUP(S57,[13]VLOOKUP!$A$25:$X$200,17,FALSE) -> 0 | O57: =VLOOKUP(S57,[13]VLOOKUP!$A$25:$X$200,19,FALSE) -> 0 | P57: =VLOOKUP(S57,[13]VLOOKUP!$A$25:$X$200,21,FALSE) -> 0 | Q57: EPISUITE + 1,3-Dichloropropane for diffusivities | R57: =VLOOKUP(S57,[13]VLOOKUP!$A$25:$Z$200,26,FALSE) -> EPISUITE + 1,3-Dichloropropane for diffusivities | S57: 594207
B58: =IF(VLOOKUP(F58,'T5-6 COPC'!E$11:N$113,10,FALSE)="V","X","") ->  | C58: VOCs | D58: Dichloropropene 1,1 | E58: 1,1-Dichloropropene | F58: 563-58-6 | G58: =VLOOKUP(S58,[13]VLOOKUP!$A$25:$X$200,23,FALSE) -> 110.97 | H58: =VLOOKUP(S58,[13]VLOOKUP!$A$25:$X$200,3,FALSE) -> 60.7 | I58: =VLOOKUP(S58,[13]VLOOKUP!$A$25:$X$200,5,FALSE) -> 0.0626 | J58: =VLOOKUP(S58,[13]VLOOKUP!$A$25:$X$200,7,FALSE) -> 1e-05 | K58: =VLOOKUP(S58,[13]VLOOKUP!$A$25:$X$200,9,FALSE) -> 748.8 | L58: =VLOOKUP(S58,[13]VLOOKUP!$A$25:$X$200,13,FALSE) -> 0.05 | M58: 47.00000473 | N58: =VLOOKUP(S58,[13]VLOOKUP!$A$25:$X$200,17,FALSE) -> 0 | O58: =VLOOKUP(S58,[13]VLOOKUP!$A$25:$X$200,19,FALSE) -> 0 | P58: =VLOOKUP(S58,[13]VLOOKUP!$A$25:$X$200,21,FALSE) -> 0 | Q58: EPISUITE + cis-1,3-Dichloropropene for diffusivities | R58: =VLOOKUP(S58,[13]VLOOKUP!$A$25:$Z$200,26,FALSE) -> EPISUITE + cis-1,3-Dichloropropene for diffusivities | S58: 563586
B59: =IF(VLOOKUP(F59,'T5-6 COPC'!E$11:N$113,10,FALSE)="V","X","") ->  | C59: VOCs | D59: Dichloropropene 1,3 cis | E59: cis-1,3-Dichloropropene | F59: 10061-01-5 | G59: =VLOOKUP(S59,[13]VLOOKUP!$A$25:$X$200,23,FALSE) -> 110.97 | H59: =VLOOKUP(S59,[13]VLOOKUP!$A$25:$X$200,3,FALSE) -> 45.7 | I59: =VLOOKUP(S59,[13]VLOOKUP!$A$25:$X$200,5,FALSE) -> 0.0626 | J59: =VLOOKUP(S59,[13]VLOOKUP!$A$25:$X$200,7,FALSE) -> 1e-05 | K59: =VLOOKUP(S59,[13]VLOOKUP!$A$25:$X$200,9,FALSE) -> 2800 | L59: =VLOOKUP(S59,[13]VLOOKUP!$A$25:$X$200,13,FALSE) -> 0.01765548848 | M59: 48.00000473 | N59: =VLOOKUP(S59,[13]VLOOKUP!$A$25:$X$200,17,FALSE) -> 381.15 | O59: =VLOOKUP(S59,[13]VLOOKUP!$A$25:$X$200,19,FALSE) -> 587.38 | P59: =VLOOKUP(S59,[13]VLOOKUP!$A$25:$X$200,21,FALSE) -> 7900 | Q59: 1,3-Dichloropropene (total) used as surrogate for all properties | R59: =VLOOKUP(S59,[13]VLOOKUP!$A$25:$Z$200,26,FALSE) -> 1,3-Dichloropropene (total) used as surrogate for all properties | S59: 10061015
B60: =IF(VLOOKUP(F60,'T5-6 COPC'!E$11:N$113,10,FALSE)="V","X","") ->  | C60: VOCs | D60: Dichloropropene 1,3 trans | E60: trans-1,3-Dichloropropene | F60: 10061-02-6 | G60: =VLOOKUP(S60,[13]VLOOKUP!$A$25:$X$200,23,FALSE) -> 110.97 | H60: =VLOOKUP(S60,[13]VLOOKUP!$A$25:$X$200,3,FALSE) -> 45.7 | I60: =VLOOKUP(S60,[13]VLOOKUP!$A$25:$X$200,5,FALSE) -> 0.0626 | J60: =VLOOKUP(S60,[13]VLOOKUP!$A$25:$X$200,7,FALSE) -> 1e-05 | K60: =VLOOKUP(S60,[13]VLOOKUP!$A$25:$X$200,9,FALSE) -> 2800 | L60: =VLOOKUP(S60,[13]VLOOKUP!$A$25:$X$200,13,FALSE) -> 0.01765548848 | M60: 49.00000473 | N60: =VLOOKUP(S60,[13]VLOOKUP!$A$25:$X$200,17,FALSE) -> 381.15 | O60: =VLOOKUP(S60,[13]VLOOKUP!$A$25:$X$200,19,FALSE) -> 587.38 | P60: =VLOOKUP(S60,[13]VLOOKUP!$A$25:$X$200,21,FALSE) -> 7900 | Q60: 1,3-Dichloropropene (total) used as surrogate for all properties | R60: =VLOOKUP(S60,[13]VLOOKUP!$A$25:$Z$200,26,FALSE) -> 1,3-Dichloropropene (total) used as surrogate for all properties | S60: 10061026
B61: =IF(VLOOKUP(F61,'T5-6 COPC'!E$11:N$113,10,FALSE)="V","X","") ->  | C61: VOCs | D61: Dimethylpentane, 2,2- | E61: 2,2-Dimethylpentane | F61: 590-35-2 | G61: =VLOOKUP(S61,[13]VLOOKUP!$A$25:$X$200,23,FALSE) -> 100.21 | H61: =VLOOKUP(S61,[13]VLOOKUP!$A$25:$X$200,3,FALSE) -> 156.8 | I61: =VLOOKUP(S61,[13]VLOOKUP!$A$25:$X$200,5,FALSE) -> 0.065 | J61: =VLOOKUP(S61,[13]VLOOKUP!$A$25:$X$200,7,FALSE) -> 7.8e-06 | K61: =VLOOKUP(S61,[13]VLOOKUP!$A$25:$X$200,9,FALSE) -> 4.4 | L61: =VLOOKUP(S61,[13]VLOOKUP!$A$25:$X$200,13,FALSE) -> 3.15 | M61: 50.00000473 | N61: =VLOOKUP(S61,[13]VLOOKUP!$A$25:$X$200,17,FALSE) -> 0 | O61: =VLOOKUP(S61,[13]VLOOKUP!$A$25:$X$200,19,FALSE) -> 0 | P61: =VLOOKUP(S61,[13]VLOOKUP!$A$25:$X$200,21,FALSE) -> 0 | Q61: EPISUITE + diisopropyl ether for diffusivities | R61: =VLOOKUP(S61,[13]VLOOKUP!$A$25:$Z$200,26,FALSE) -> EPISUITE + diisopropyl ether for diffusivities | S61: 590352
B62: =IF(VLOOKUP(F62,'T5-6 COPC'!E$11:N$113,10,FALSE)="V","X","") ->  | C62: VOCs | D62: DIMETHYLPENTANE, 2,3- | E62: 2,3-Dimethylpentane | F62: 565-59-3 | G62: =VLOOKUP(S62,[13]VLOOKUP!$A$25:$X$200,23,FALSE) -> 100.21 | H62: =VLOOKUP(S62,[13]VLOOKUP!$A$25:$X$200,3,FALSE) -> 181.1 | I62: =VLOOKUP(S62,[13]VLOOKUP!$A$25:$X$200,5,FALSE) -> 0.065 | J62: =VLOOKUP(S62,[13]VLOOKUP!$A$25:$X$200,7,FALSE) -> 7.8e-06 | K62: =VLOOKUP(S62,[13]VLOOKUP!$A$25:$X$200,9,FALSE) -> 5.25 | L62: =VLOOKUP(S62,[13]VLOOKUP!$A$25:$X$200,13,FALSE) -> 1.73 | M62: 51.00000473 | N62: =VLOOKUP(S62,[13]VLOOKUP!$A$25:$X$200,17,FALSE) -> 0 | O62: =VLOOKUP(S62,[13]VLOOKUP!$A$25:$X$200,19,FALSE) -> 0 | P62: =VLOOKUP(S62,[13]VLOOKUP!$A$25:$X$200,21,FALSE) -> 0 | Q62: EPISUITE + diisopropyl ether for diffusivities | R62: =VLOOKUP(S62,[13]VLOOKUP!$A$25:$Z$200,26,FALSE) -> EPISUITE + diisopropyl ether for diffusivities | S62: 565593
B63: =IF(VLOOKUP(F63,'T5-6 COPC'!E$11:N$113,10,FALSE)="V","X","") ->  | C63: VOCs | D63: DIMETHYLPENTANE, 2,4- | E63: 2,4-Dimethylpentane | F63: 108-08-7 | G63: =VLOOKUP(S63,[13]VLOOKUP!$A$25:$X$200,23,FALSE) -> 100.21 | H63: =VLOOKUP(S63,[13]VLOOKUP!$A$25:$X$200,3,FALSE) -> 169.6 | I63: =VLOOKUP(S63,[13]VLOOKUP!$A$25:$X$200,5,FALSE) -> 0.065 | J63: =VLOOKUP(S63,[13]VLOOKUP!$A$25:$X$200,7,FALSE) -> 7.8e-06 | K63: =VLOOKUP(S63,[13]VLOOKUP!$A$25:$X$200,9,FALSE) -> 5.5 | L63: =VLOOKUP(S63,[13]VLOOKUP!$A$25:$X$200,13,FALSE) -> 1.9 | M63: 52.00000473 | N63: =VLOOKUP(S63,[13]VLOOKUP!$A$25:$X$200,17,FALSE) -> 0 | O63: =VLOOKUP(S63,[13]VLOOKUP!$A$25:$X$200,19,FALSE) -> 0 | P63: =VLOOKUP(S63,[13]VLOOKUP!$A$25:$X$200,21,FALSE) -> 0 | Q63: EPISUITE + diisopropyl ether for diffusivities | R63: =VLOOKUP(S63,[13]VLOOKUP!$A$25:$Z$200,26,FALSE) -> EPISUITE + diisopropyl ether for diffusivities | S63: 108087
B64: =IF(VLOOKUP(F64,'T5-6 COPC'!E$11:N$113,10,FALSE)="V","X","") ->  | C64: VOCs | D64: Dimethylpentane, 3,3- | E64: 3,3-Dimethylpentane | F64: 562-49-2 | G64: =VLOOKUP(S64,[13]VLOOKUP!$A$25:$X$200,23,FALSE) -> 100.21 | H64: =VLOOKUP(S64,[13]VLOOKUP!$A$25:$X$200,3,FALSE) -> 168.6 | I64: =VLOOKUP(S64,[13]VLOOKUP!$A$25:$X$200,5,FALSE) -> 0.065 | J64: =VLOOKUP(S64,[13]VLOOKUP!$A$25:$X$200,7,FALSE) -> 7.8e-06 | K64: =VLOOKUP(S64,[13]VLOOKUP!$A$25:$X$200,9,FALSE) -> 5.92 | L64: =VLOOKUP(S64,[13]VLOOKUP!$A$25:$X$200,13,FALSE) -> 1.84 | M64: 53.00000473 | N64: =VLOOKUP(S64,[13]VLOOKUP!$A$25:$X$200,17,FALSE) -> 0 | O64: =VLOOKUP(S64,[13]VLOOKUP!$A$25:$X$200,19,FALSE) -> 0 | P64: =VLOOKUP(S64,[13]VLOOKUP!$A$25:$X$200,21,FALSE) -> 0 | Q64: EPISUITE + diisopropyl ether for diffusivities | R64: =VLOOKUP(S64,[13]VLOOKUP!$A$25:$Z$200,26,FALSE) -> EPISUITE + diisopropyl ether for diffusivities | S64: 562492
A65: V | B65: =IF(VLOOKUP(F65,'T5-6 COPC'!E$11:N$113,10,FALSE)="V","X","") -> X | C65: VOCs | D65: Dioxane 1,4 | E65: 1,4-Dioxane | F65: 123-91-1 | G65: =VLOOKUP(S65,[13]VLOOKUP!$A$25:$X$200,23,FALSE) -> 88.107 | H65: =VLOOKUP(S65,[13]VLOOKUP!$A$25:$X$200,3,FALSE) -> 2.633 | I65: =VLOOKUP(S65,[13]VLOOKUP!$A$25:$X$200,5,FALSE) -> 0.0873739 | J65: =VLOOKUP(S65,[13]VLOOKUP!$A$25:$X$200,7,FALSE) -> 1.05e-05 | K65: =VLOOKUP(S65,[13]VLOOKUP!$A$25:$X$200,9,FALSE) -> 1000000 | L65: =VLOOKUP(S65,[13]VLOOKUP!$A$25:$X$200,13,FALSE) -> 4.8e-06 | M65: 54.00000473 | N65: =VLOOKUP(S65,[13]VLOOKUP!$A$25:$X$200,17,FALSE) -> 0 | O65: =VLOOKUP(S65,[13]VLOOKUP!$A$25:$X$200,19,FALSE) -> 0 | P65: =VLOOKUP(S65,[13]VLOOKUP!$A$25:$X$200,21,FALSE) -> 0 | Q65: RSL | R65: =VLOOKUP(S65,[13]VLOOKUP!$A$25:$Z$200,26,FALSE) -> RSL | S65: 123911
B66: =IF(VLOOKUP(F66,'T5-6 COPC'!E$11:N$113,10,FALSE)="V","X","") ->  | C66: VOCs | D66: DISULFIDE, DIMETHYL | E66: Dimethyl disulfide | F66: 624-92-0 | G66: =VLOOKUP(S66,[13]VLOOKUP!$A$25:$X$200,23,FALSE) -> 94.19 | H66: =VLOOKUP(S66,[13]VLOOKUP!$A$25:$X$200,3,FALSE) -> 39.6 | I66: =VLOOKUP(S66,[13]VLOOKUP!$A$25:$X$200,5,FALSE) -> 0.08 | J66: =VLOOKUP(S66,[13]VLOOKUP!$A$25:$X$200,7,FALSE) -> 1e-05 | K66: =VLOOKUP(S66,[13]VLOOKUP!$A$25:$X$200,9,FALSE) -> 3000 | L66: =VLOOKUP(S66,[13]VLOOKUP!$A$25:$X$200,13,FALSE) -> 0.00121 | M66: 55.00000473 | N66: =VLOOKUP(S66,[13]VLOOKUP!$A$25:$X$200,17,FALSE) -> 0 | O66: =VLOOKUP(S66,[13]VLOOKUP!$A$25:$X$200,19,FALSE) -> 0 | P66: =VLOOKUP(S66,[13]VLOOKUP!$A$25:$X$200,21,FALSE) -> 0 | Q66: EPISUITE + Methyl tert-butyl ether for diffusivities | R66: =VLOOKUP(S66,[13]VLOOKUP!$A$25:$Z$200,26,FALSE) -> EPISUITE + Methyl tert-butyl ether for diffusivities | S66: 624920
A67: V | B67: =IF(VLOOKUP(F67,'T5-6 COPC'!E$11:N$113,10,FALSE)="V","X","") -> X | C67: VOCs | D67: Ethanol | E67: Ethanol | F67: 64-17-5 | G67: =VLOOKUP(S67,[13]VLOOKUP!$A$25:$X$200,23,FALSE) -> 46 | H67: =VLOOKUP(S67,[13]VLOOKUP!$A$25:$X$200,3,FALSE) -> 1 | I67: =VLOOKUP(S67,[13]VLOOKUP!$A$25:$X$200,5,FALSE) -> 0.124 | J67: =VLOOKUP(S67,[13]VLOOKUP!$A$25:$X$200,7,FALSE) -> 1.37e-05 | K67: =VLOOKUP(S67,[13]VLOOKUP!$A$25:$X$200,9,FALSE) -> 1000000 | L67: =VLOOKUP(S67,[13]VLOOKUP!$A$25:$X$200,13,FALSE) -> 5e-06 | M67: 56.00000473 | N67: =VLOOKUP(S67,[13]VLOOKUP!$A$25:$X$200,17,FALSE) -> 0 | O67: =VLOOKUP(S67,[13]VLOOKUP!$A$25:$X$200,19,FALSE) -> 0 | P67: =VLOOKUP(S67,[13]VLOOKUP!$A$25:$X$200,21,FALSE) -> 0 | Q67: NDEP | R67: =VLOOKUP(S67,[13]VLOOKUP!$A$25:$Z$200,26,FALSE) -> NDEP | S67: 64175
B68: =IF(VLOOKUP(F68,'T5-6 COPC'!E$11:N$113,10,FALSE)="V","X","") ->  | C68: VOCs | D68: ether Ethyl tert-butyl | E68: Ethyl tert-butyl ether | F68: 637-92-3 | G68: =VLOOKUP(S68,[13]VLOOKUP!$A$25:$X$200,23,FALSE) -> 102.18 | H68: =VLOOKUP(S68,[13]VLOOKUP!$A$25:$X$200,3,FALSE) -> 21.07 | I68: =VLOOKUP(S68,[13]VLOOKUP!$A$25:$X$200,5,FALSE) -> 0.065 | J68: =VLOOKUP(S68,[13]VLOOKUP!$A$25:$X$200,7,FALSE) -> 7.8e-06 | K68: =VLOOKUP(S68,[13]VLOOKUP!$A$25:$X$200,9,FALSE) -> 2640 | L68: =VLOOKUP(S68,[13]VLOOKUP!$A$25:$X$200,13,FALSE) -> 0.00164 | M68: 57.00000473 | N68: =VLOOKUP(S68,[13]VLOOKUP!$A$25:$X$200,17,FALSE) -> 0 | O68: =VLOOKUP(S68,[13]VLOOKUP!$A$25:$X$200,19,FALSE) -> 0 | P68: =VLOOKUP(S68,[13]VLOOKUP!$A$25:$X$200,21,FALSE) -> 0 | Q68: EPISUITE + diisopropyl ether for diffusivities | R68: =VLOOKUP(S68,[13]VLOOKUP!$A$25:$Z$200,26,FALSE) -> EPISUITE + diisopropyl ether for diffusivities | S68: 637923
B69: =IF(VLOOKUP(F69,'T5-6 COPC'!E$11:N$113,10,FALSE)="V","X","") ->  | C69: VOCs | D69: Ethyl acetate | E69: Ethyl acetate | F69: 141-78-6 | G69: =VLOOKUP(S69,[13]VLOOKUP!$A$25:$X$200,23,FALSE) -> 88 | H69: =VLOOKUP(S69,[13]VLOOKUP!$A$25:$X$200,3,FALSE) -> 59.4 | I69: =VLOOKUP(S69,[13]VLOOKUP!$A$25:$X$200,5,FALSE) -> 0.0732 | J69: =VLOOKUP(S69,[13]VLOOKUP!$A$25:$X$200,7,FALSE) -> 9.66e-06 | K69: =VLOOKUP(S69,[13]VLOOKUP!$A$25:$X$200,9,FALSE) -> 80000 | L69: =VLOOKUP(S69,[13]VLOOKUP!$A$25:$X$200,13,FALSE) -> 0.00014 | M69: 58.00000473 | N69: =VLOOKUP(S69,[13]VLOOKUP!$A$25:$X$200,17,FALSE) -> 0 | O69: =VLOOKUP(S69,[13]VLOOKUP!$A$25:$X$200,19,FALSE) -> 0 | P69: =VLOOKUP(S69,[13]VLOOKUP!$A$25:$X$200,21,FALSE) -> 0 | Q69: NDEP | R69: =VLOOKUP(S69,[13]VLOOKUP!$A$25:$Z$200,26,FALSE) -> NDEP | S69: 141786
A70: V | B70: =IF(VLOOKUP(F70,'T5-6 COPC'!E$11:N$113,10,FALSE)="V","X","") -> X | C70: VOCs | D70: Ethyl Benzene | E70: Ethyl benzene | F70: 100-41-4 | G70: =VLOOKUP(S70,[13]VLOOKUP!$A$25:$X$200,23,FALSE) -> 106.2 | H70: =VLOOKUP(S70,[13]VLOOKUP!$A$25:$X$200,3,FALSE) -> 204 | I70: =VLOOKUP(S70,[13]VLOOKUP!$A$25:$X$200,5,FALSE) -> 0.075 | J70: =VLOOKUP(S70,[13]VLOOKUP!$A$25:$X$200,7,FALSE) -> 7.8e-06 | K70: =VLOOKUP(S70,[13]VLOOKUP!$A$25:$X$200,9,FALSE) -> 169 | L70: =VLOOKUP(S70,[13]VLOOKUP!$A$25:$X$200,13,FALSE) -> 0.00788 | M70: 59.00000473 | N70: =VLOOKUP(S70,[13]VLOOKUP!$A$25:$X$200,17,FALSE) -> 409.34 | O70: =VLOOKUP(S70,[13]VLOOKUP!$A$25:$X$200,19,FALSE) -> 617.2 | P70: =VLOOKUP(S70,[13]VLOOKUP!$A$25:$X$200,21,FALSE) -> 8501 | Q70: NDEP + USEPA 2004 for Tb, Tc, ΔH | R70: =VLOOKUP(S70,[13]VLOOKUP!$A$25:$Z$200,26,FALSE) -> NDEP + USEPA 2004 for Tb, Tc, ΔH | S70: 100414
B71: =IF(VLOOKUP(F71,'T5-6 COPC'!E$11:N$113,10,FALSE)="V","X","") ->  | C71: VOCs | D71: Ethylpentane, 3 | E71: 3-Ethylpentane | F71: 617-78-7 | G71: =VLOOKUP(S71,[13]VLOOKUP!$A$25:$X$200,23,FALSE) -> 100.21 | H71: =VLOOKUP(S71,[13]VLOOKUP!$A$25:$X$200,3,FALSE) -> 220.9 | I71: =VLOOKUP(S71,[13]VLOOKUP!$A$25:$X$200,5,FALSE) -> 0.065 | J71: =VLOOKUP(S71,[13]VLOOKUP!$A$25:$X$200,7,FALSE) -> 7.8e-06 | K71: =VLOOKUP(S71,[13]VLOOKUP!$A$25:$X$200,9,FALSE) -> 23.22 | L71: =VLOOKUP(S71,[13]VLOOKUP!$A$25:$X$200,13,FALSE) -> 2.27 | M71: 60.00000473 | N71: =VLOOKUP(S71,[13]VLOOKUP!$A$25:$X$200,17,FALSE) -> 0 | O71: =VLOOKUP(S71,[13]VLOOKUP!$A$25:$X$200,19,FALSE) -> 0 | P71: =VLOOKUP(S71,[13]VLOOKUP!$A$25:$X$200,21,FALSE) -> 0 | Q71: EPISUITE + diisopropyl ether for diffusivities | R71: =VLOOKUP(S71,[13]VLOOKUP!$A$25:$Z$200,26,FALSE) -> EPISUITE + diisopropyl ether for diffusivities | S71: 617787 | T71: using m-xylenes
A72: V | B72: =IF(VLOOKUP(F72,'T5-6 COPC'!E$11:N$113,10,FALSE)="V","X","") -> X | C72: VOCs | D72: Ethyltoluene, 4- | E72: 4-Ethyltoluene | F72: 622-96-8 | G72: =VLOOKUP(S72,[13]VLOOKUP!$A$25:$X$200,23,FALSE) -> 120.19 | H72: =VLOOKUP(S72,[13]VLOOKUP!$A$25:$X$200,3,FALSE) -> 220 | I72: =VLOOKUP(S72,[13]VLOOKUP!$A$25:$X$200,5,FALSE) -> 0.075 | J72: =VLOOKUP(S72,[13]VLOOKUP!$A$25:$X$200,7,FALSE) -> 7.1e-06 | K72: =VLOOKUP(S72,[13]VLOOKUP!$A$25:$X$200,9,FALSE) -> 61 | L72: =VLOOKUP(S72,[13]VLOOKUP!$A$25:$X$200,13,FALSE) -> 1.2 | M72: 61.00000473 | N72: =VLOOKUP(S72,[13]VLOOKUP!$A$25:$X$200,17,FALSE) -> 0 | O72: =VLOOKUP(S72,[13]VLOOKUP!$A$25:$X$200,19,FALSE) -> 0 | P72: =VLOOKUP(S72,[13]VLOOKUP!$A$25:$X$200,21,FALSE) -> 0 | Q72: NDEP | R72: =VLOOKUP(S72,[13]VLOOKUP!$A$25:$Z$200,26,FALSE) -> NDEP | S72: 622968
B73: =IF(VLOOKUP(F73,'T5-6 COPC'!E$11:N$113,10,FALSE)="V","X","") ->  | C73: VOCs | D73: Formaldehyde | E73: Formaldehyde | F73: 50-00-0 | G73: =VLOOKUP(S73,[13]VLOOKUP!$A$25:$X$200,23,FALSE) -> 30.03 | H73: =VLOOKUP(S73,[13]VLOOKUP!$A$25:$X$200,3,FALSE) -> 3.63 | I73: =VLOOKUP(S73,[13]VLOOKUP!$A$25:$X$200,5,FALSE) -> 0.18 | J73: =VLOOKUP(S73,[13]VLOOKUP!$A$25:$X$200,7,FALSE) -> 2e-05 | K73: =VLOOKUP(S73,[13]VLOOKUP!$A$25:$X$200,9,FALSE) -> 550000 | L73: =VLOOKUP(S73,[13]VLOOKUP!$A$25:$X$200,13,FALSE) -> 3.4e-07 | M73: 62.00000473 | N73: =VLOOKUP(S73,[13]VLOOKUP!$A$25:$X$200,17,FALSE) -> 0 | O73: =VLOOKUP(S73,[13]VLOOKUP!$A$25:$X$200,19,FALSE) -> 0 | P73: =VLOOKUP(S73,[13]VLOOKUP!$A$25:$X$200,21,FALSE) -> 0 | Q73: NDEP | R73: =VLOOKUP(S73,[13]VLOOKUP!$A$25:$Z$200,26,FALSE) -> NDEP | S73: 50000
A74: V | B74: =IF(VLOOKUP(F74,'T5-6 COPC'!E$11:N$113,10,FALSE)="V","X","") -> X | C74: VOCs | D74: Freon 114 | E74: Freon 114 | F74: 76-14-2 | G74: =VLOOKUP(S74,[13]VLOOKUP!$A$25:$X$200,23,FALSE) -> 170.92 | H74: =VLOOKUP(S74,[13]VLOOKUP!$A$25:$X$200,3,FALSE) -> 196.8 | I74: =VLOOKUP(S74,[13]VLOOKUP!$A$25:$X$200,5,FALSE) -> 0.078 | J74: =VLOOKUP(S74,[13]VLOOKUP!$A$25:$X$200,7,FALSE) -> 8.2e-06 | K74: =VLOOKUP(S74,[13]VLOOKUP!$A$25:$X$200,9,FALSE) -> 43.07 | L74: =VLOOKUP(S74,[13]VLOOKUP!$A$25:$X$200,13,FALSE) -> 1.51 | M74: 63.00000473 | N74: =VLOOKUP(S74,[13]VLOOKUP!$A$25:$X$200,17,FALSE) -> 0 | O74: =VLOOKUP(S74,[13]VLOOKUP!$A$25:$X$200,19,FALSE) -> 0 | P74: =VLOOKUP(S74,[13]VLOOKUP!$A$25:$X$200,21,FALSE) -> 0 | Q74: EPISUITE + 1,1,2-Trichloro-1,2,2-trifluoroethane for diffusivities | R74: =VLOOKUP(S74,[13]VLOOKUP!$A$25:$Z$200,26,FALSE) -> EPISUITE + 1,1,2-Trichloro-1,2,2-trifluoroethane for diffusivities | S74: 76142
A75: V | B75: =IF(VLOOKUP(F75,'T5-6 COPC'!E$11:N$113,10,FALSE)="V","X","") -> X | C75: VOCs | D75: Heptane n | E75: n-Heptane | F75: 142-82-5 | G75: =VLOOKUP(S75,[13]VLOOKUP!$A$25:$X$200,23,FALSE) -> 100 | H75: =VLOOKUP(S75,[13]VLOOKUP!$A$25:$X$200,3,FALSE) -> 8200 | I75: =VLOOKUP(S75,[13]VLOOKUP!$A$25:$X$200,5,FALSE) -> 0.0616 | J75: =VLOOKUP(S75,[13]VLOOKUP!$A$25:$X$200,7,FALSE) -> 6.45e-06 | K75: =VLOOKUP(S75,[13]VLOOKUP!$A$25:$X$200,9,FALSE) -> 3.4 | L75: =VLOOKUP(S75,[13]VLOOKUP!$A$25:$X$200,13,FALSE) -> 2 | M75: 64.00000473 | N75: =VLOOKUP(S75,[13]VLOOKUP!$A$25:$X$200,17,FALSE) -> 0 | O75: =VLOOKUP(S75,[13]VLOOKUP!$A$25:$X$200,19,FALSE) -> 0 | P75: =VLOOKUP(S75,[13]VLOOKUP!$A$25:$X$200,21,FALSE) -> 0 | Q75: NDEP | R75: =VLOOKUP(S75,[13]VLOOKUP!$A$25:$Z$200,26,FALSE) -> NDEP | S75: 142825
B76: =IF(VLOOKUP(F76,'T5-6 COPC'!E$11:N$113,10,FALSE)="V","X","") ->  | C76: VOCs | D76: Hexane n | E76: n-Hexane | F76: 110-54-3 | G76: =VLOOKUP(S76,[13]VLOOKUP!$A$25:$X$200,23,FALSE) -> 86 | H76: =VLOOKUP(S76,[13]VLOOKUP!$A$25:$X$200,3,FALSE) -> 890 | I76: =VLOOKUP(S76,[13]VLOOKUP!$A$25:$X$200,5,FALSE) -> 0.2 | J76: =VLOOKUP(S76,[13]VLOOKUP!$A$25:$X$200,7,FALSE) -> 7.77e-06 | K76: =VLOOKUP(S76,[13]VLOOKUP!$A$25:$X$200,9,FALSE) -> 18 | L76: =VLOOKUP(S76,[13]VLOOKUP!$A$25:$X$200,13,FALSE) -> 0.122 | M76: 65.00000473 | N76: =VLOOKUP(S76,[13]VLOOKUP!$A$25:$X$200,17,FALSE) -> 341.7 | O76: =VLOOKUP(S76,[13]VLOOKUP!$A$25:$X$200,19,FALSE) -> 508 | P76: =VLOOKUP(S76,[13]VLOOKUP!$A$25:$X$200,21,FALSE) -> 6895.15 | Q76: =R76 -> NDEP + USEPA 2004 for Tb, Tc, ΔH | R76: =VLOOKUP(S76,[13]VLOOKUP!$A$25:$Z$200,26,FALSE) -> NDEP + USEPA 2004 for Tb, Tc, ΔH | S76: 110543
A77: V | B77: =IF(VLOOKUP(F77,'T5-6 COPC'!E$11:N$113,10,FALSE)="V","X","") -> X | C77: VOCs | D77: Hexanone 2 | E77: 2-Hexanone | F77: 591-78-6 | G77: =VLOOKUP(S77,[13]VLOOKUP!$A$25:$X$200,23,FALSE) -> 100.16 | H77: =VLOOKUP(S77,[13]VLOOKUP!$A$25:$X$200,3,FALSE) -> 14.98 | I77: =VLOOKUP(S77,[13]VLOOKUP!$A$25:$X$200,5,FALSE) -> 0.07 | J77: =VLOOKUP(S77,[13]VLOOKUP!$A$25:$X$200,7,FALSE) -> 8.4e-06 | K77: =VLOOKUP(S77,[13]VLOOKUP!$A$25:$X$200,9,FALSE) -> 17200 | L77: =VLOOKUP(S77,[13]VLOOKUP!$A$25:$X$200,13,FALSE) -> 9.32e-05 | M77: 66.00000473 | N77: =VLOOKUP(S77,[13]VLOOKUP!$A$25:$X$200,17,FALSE) -> 0 | O77: =VLOOKUP(S77,[13]VLOOKUP!$A$25:$X$200,19,FALSE) -> 0 | P77: =VLOOKUP(S77,[13]VLOOKUP!$A$25:$X$200,21,FALSE) -> 0 | Q77: NDEP | R77: =VLOOKUP(S77,[13]VLOOKUP!$A$25:$Z$200,26,FALSE) -> NDEP | S77: 591786
B78: =IF(VLOOKUP(F78,'T5-6 COPC'!E$11:N$113,10,FALSE)="V","X","") ->  | C78: VOCs | D78: Iodomethane | E78: Iodomethane | F78: 74-88-4 | G78: =VLOOKUP(S78,[13]VLOOKUP!$A$25:$X$200,23,FALSE) -> 141.94 | H78: =VLOOKUP(S78,[13]VLOOKUP!$A$25:$X$200,3,FALSE) -> 14 | I78: =VLOOKUP(S78,[13]VLOOKUP!$A$25:$X$200,5,FALSE) -> 0.0749 | J78: =VLOOKUP(S78,[13]VLOOKUP!$A$25:$X$200,7,FALSE) -> 0.000115 | K78: =VLOOKUP(S78,[13]VLOOKUP!$A$25:$X$200,9,FALSE) -> 13900 | L78: =VLOOKUP(S78,[13]VLOOKUP!$A$25:$X$200,13,FALSE) -> 0.0054 | M78: 67.00000473 | N78: =VLOOKUP(S78,[13]VLOOKUP!$A$25:$X$200,17,FALSE) -> 0 | O78: =VLOOKUP(S78,[13]VLOOKUP!$A$25:$X$200,19,FALSE) -> 0 | P78: =VLOOKUP(S78,[13]VLOOKUP!$A$25:$X$200,21,FALSE) -> 0 | Q78: NDEP | R78: =VLOOKUP(S78,[13]VLOOKUP!$A$25:$Z$200,26,FALSE) -> NDEP | S78: 74884
B79: =IF(VLOOKUP(F79,'T5-6 COPC'!E$11:N$113,10,FALSE)="V","X","") ->  | C79: VOCs | D79: Methanol | E79: Methanol | F79: 67-56-1 | G79: =VLOOKUP(S79,[13]VLOOKUP!$A$25:$X$200,23,FALSE) -> 32.042 | H79: =VLOOKUP(S79,[13]VLOOKUP!$A$25:$X$200,3,FALSE) -> 1 | I79: =VLOOKUP(S79,[13]VLOOKUP!$A$25:$X$200,5,FALSE) -> 0.1582741 | J79: =VLOOKUP(S79,[13]VLOOKUP!$A$25:$X$200,7,FALSE) -> 1.65e-05 | K79: =VLOOKUP(S79,[13]VLOOKUP!$A$25:$X$200,9,FALSE) -> 1000000 | L79: =VLOOKUP(S79,[13]VLOOKUP!$A$25:$X$200,13,FALSE) -> 4.55e-06 | M79: 68.00000473 | N79: =VLOOKUP(S79,[13]VLOOKUP!$A$25:$X$200,17,FALSE) -> 0 | O79: =VLOOKUP(S79,[13]VLOOKUP!$A$25:$X$200,19,FALSE) -> 0 | P79: =VLOOKUP(S79,[13]VLOOKUP!$A$25:$X$200,21,FALSE) -> 0 | Q79: RSL | R79: =VLOOKUP(S79,[13]VLOOKUP!$A$25:$Z$200,26,FALSE) -> RSL | S79: 67561
B80: =IF(VLOOKUP(F80,'T5-6 COPC'!E$11:N$113,10,FALSE)="V","X","") ->  | C80: VOCs | D80: Methyl tert butyl ether | E80: Methyl tert-butyl ether | F80: 1634-04-4 | G80: =VLOOKUP(S80,[13]VLOOKUP!$A$25:$X$200,23,FALSE) -> 85 | H80: =VLOOKUP(S80,[13]VLOOKUP!$A$25:$X$200,3,FALSE) -> 6 | I80: =VLOOKUP(S80,[13]VLOOKUP!$A$25:$X$200,5,FALSE) -> 0.08 | J80: =VLOOKUP(S80,[13]VLOOKUP!$A$25:$X$200,7,FALSE) -> 1e-05 | K80: =VLOOKUP(S80,[13]VLOOKUP!$A$25:$X$200,9,FALSE) -> 150000 | L80: =VLOOKUP(S80,[13]VLOOKUP!$A$25:$X$200,13,FALSE) -> 0.00059 | M80: 69.00000473 | N80: =VLOOKUP(S80,[13]VLOOKUP!$A$25:$X$200,17,FALSE) -> 328.3 | O80: =VLOOKUP(S80,[13]VLOOKUP!$A$25:$X$200,19,FALSE) -> 497.1 | P80: =VLOOKUP(S80,[13]VLOOKUP!$A$25:$X$200,21,FALSE) -> 6677.66 | Q80: NDEP + USEPA 2004 for Tb, Tc, ΔH | R80: =VLOOKUP(S80,[13]VLOOKUP!$A$25:$Z$200,26,FALSE) -> NDEP + USEPA 2004 for Tb, Tc, ΔH | S80: 1634044
A81: V | B81: =IF(VLOOKUP(F81,'T5-6 COPC'!E$11:N$113,10,FALSE)="V","X","") -> X | C81: VOCs | D81: Methyl-2-pentanone 4 | E81: 4-Methyl-2-pentanone | F81: 108-10-1 | G81: =VLOOKUP(S81,[13]VLOOKUP!$A$25:$X$200,23,FALSE) -> 100 | H81: =VLOOKUP(S81,[13]VLOOKUP!$A$25:$X$200,3,FALSE) -> 134 | I81: =VLOOKUP(S81,[13]VLOOKUP!$A$25:$X$200,5,FALSE) -> 0.075 | J81: =VLOOKUP(S81,[13]VLOOKUP!$A$25:$X$200,7,FALSE) -> 7.8e-06 | K81: =VLOOKUP(S81,[13]VLOOKUP!$A$25:$X$200,9,FALSE) -> 19000 | L81: =VLOOKUP(S81,[13]VLOOKUP!$A$25:$X$200,13,FALSE) -> 0.00014 | M81: 70.00000473 | N81: =VLOOKUP(S81,[13]VLOOKUP!$A$25:$X$200,17,FALSE) -> 389.5 | O81: =VLOOKUP(S81,[13]VLOOKUP!$A$25:$X$200,19,FALSE) -> 571 | P81: =VLOOKUP(S81,[13]VLOOKUP!$A$25:$X$200,21,FALSE) -> 8243.11 | Q81: NDEP + USEPA 2004 for Tb, Tc, ΔH | R81: =VLOOKUP(S81,[13]VLOOKUP!$A$25:$Z$200,26,FALSE) -> NDEP + USEPA 2004 for Tb, Tc, ΔH | S81: 108101
A82: V | B82: =IF(VLOOKUP(F82,'T5-6 COPC'!E$11:N$113,10,FALSE)="V","X","") -> X | C82: VOCs | D82: Methylene Chloride | E82: Methylene Chloride | F82: 75-09-2 | G82: =VLOOKUP(S82,[13]VLOOKUP!$A$25:$X$200,23,FALSE) -> 85 | H82: =VLOOKUP(S82,[13]VLOOKUP!$A$25:$X$200,3,FALSE) -> 10 | I82: =VLOOKUP(S82,[13]VLOOKUP!$A$25:$X$200,5,FALSE) -> 0.101 | J82: =VLOOKUP(S82,[13]VLOOKUP!$A$25:$X$200,7,FALSE) -> 1.17e-05 | K82: =VLOOKUP(S82,[13]VLOOKUP!$A$25:$X$200,9,FALSE) -> 13200 | L82: =VLOOKUP(S82,[13]VLOOKUP!$A$25:$X$200,13,FALSE) -> 0.00219 | M82: 71.00000473 | N82: =VLOOKUP(S82,[13]VLOOKUP!$A$25:$X$200,17,FALSE) -> 313 | O82: =VLOOKUP(S82,[13]VLOOKUP!$A$25:$X$200,19,FALSE) -> 510 | P82: =VLOOKUP(S82,[13]VLOOKUP!$A$25:$X$200,21,FALSE) -> 6706 | Q82: NDEP + USEPA 2004 for Tb, Tc, ΔH | R82: =VLOOKUP(S82,[13]VLOOKUP!$A$25:$Z$200,26,FALSE) -> NDEP + USEPA 2004 for Tb, Tc, ΔH | S82: 75092
B83: =IF(VLOOKUP(F83,'T5-6 COPC'!E$11:N$113,10,FALSE)="V","X","") ->  | C83: VOCs | D83: Methylhexane, 2 | E83: 2-Methylhexane | F83: 591-76-4 | G83: =VLOOKUP(S83,[13]VLOOKUP!$A$25:$X$200,23,FALSE) -> 100.21 | H83: =VLOOKUP(S83,[13]VLOOKUP!$A$25:$X$200,3,FALSE) -> 201.6 | I83: =VLOOKUP(S83,[13]VLOOKUP!$A$25:$X$200,5,FALSE) -> 0.065 | J83: =VLOOKUP(S83,[13]VLOOKUP!$A$25:$X$200,7,FALSE) -> 7.8e-06 | K83: =VLOOKUP(S83,[13]VLOOKUP!$A$25:$X$200,9,FALSE) -> 2.54 | L83: =VLOOKUP(S83,[13]VLOOKUP!$A$25:$X$200,13,FALSE) -> 3.43 | M83: 72.00000473 | N83: =VLOOKUP(S83,[13]VLOOKUP!$A$25:$X$200,17,FALSE) -> 0 | O83: =VLOOKUP(S83,[13]VLOOKUP!$A$25:$X$200,19,FALSE) -> 0 | P83: =VLOOKUP(S83,[13]VLOOKUP!$A$25:$X$200,21,FALSE) -> 0 | Q83: EPISUITE + diisopropyl ether for diffusivities | R83: =VLOOKUP(S83,[13]VLOOKUP!$A$25:$Z$200,26,FALSE) -> EPISUITE + diisopropyl ether for diffusivities | S83: 591764
B84: =IF(VLOOKUP(F84,'T5-6 COPC'!E$11:N$113,10,FALSE)="V","X","") ->  | C84: VOCs | D84: METHYLHEXANE, 3- | E84: 3-Methylhexane | F84: 589-34-4 | G84: =VLOOKUP(S84,[13]VLOOKUP!$A$25:$X$200,23,FALSE) -> 100.21 | H84: =VLOOKUP(S84,[13]VLOOKUP!$A$25:$X$200,3,FALSE) -> 211 | I84: =VLOOKUP(S84,[13]VLOOKUP!$A$25:$X$200,5,FALSE) -> 0.065 | J84: =VLOOKUP(S84,[13]VLOOKUP!$A$25:$X$200,7,FALSE) -> 7.8e-06 | K84: =VLOOKUP(S84,[13]VLOOKUP!$A$25:$X$200,9,FALSE) -> 4.95 | L84: =VLOOKUP(S84,[13]VLOOKUP!$A$25:$X$200,13,FALSE) -> 1.64 | M84: 73.00000473 | N84: =VLOOKUP(S84,[13]VLOOKUP!$A$25:$X$200,17,FALSE) -> 0 | O84: =VLOOKUP(S84,[13]VLOOKUP!$A$25:$X$200,19,FALSE) -> 0 | P84: =VLOOKUP(S84,[13]VLOOKUP!$A$25:$X$200,21,FALSE) -> 0 | Q84: EPISUITE + diisopropyl ether for diffusivities | R84: =VLOOKUP(S84,[13]VLOOKUP!$A$25:$Z$200,26,FALSE) -> EPISUITE + diisopropyl ether for diffusivities | S84: 589344
A85: V | B85: =IF(VLOOKUP(F85,'T5-6 COPC'!E$11:N$113,10,FALSE)="V","X","") -> X | C85: VOCs | D85: Methylmethacrylate | E85: Methylmethacrylate | F85: 80-62-6 | G85: =VLOOKUP(S85,[13]VLOOKUP!$A$25:$X$200,23,FALSE) -> 100 | H85: =VLOOKUP(S85,[13]VLOOKUP!$A$25:$X$200,3,FALSE) -> 13.1 | I85: =VLOOKUP(S85,[13]VLOOKUP!$A$25:$X$200,5,FALSE) -> 0.077 | J85: =VLOOKUP(S85,[13]VLOOKUP!$A$25:$X$200,7,FALSE) -> 8.6e-06 | K85: =VLOOKUP(S85,[13]VLOOKUP!$A$25:$X$200,9,FALSE) -> 15000 | L85: =VLOOKUP(S85,[13]VLOOKUP!$A$25:$X$200,13,FALSE) -> 0.00034 | M85: 74.00000473 | N85: =VLOOKUP(S85,[13]VLOOKUP!$A$25:$X$200,17,FALSE) -> 373.5 | O85: =VLOOKUP(S85,[13]VLOOKUP!$A$25:$X$200,19,FALSE) -> 567 | P85: =VLOOKUP(S85,[13]VLOOKUP!$A$25:$X$200,21,FALSE) -> 8974.9 | Q85: NDEP + USEPA 2004 for Tb, Tc, ΔH | R85: =VLOOKUP(S85,[13]VLOOKUP!$A$25:$Z$200,26,FALSE) -> NDEP + USEPA 2004 for Tb, Tc, ΔH | S85: 80626
B86: =IF(VLOOKUP(F86,'T5-6 COPC'!E$11:N$113,10,FALSE)="V","X","") ->  | C86: VOCs | D86: Nitropropane,2 | E86: 2-Nitropropane | F86: 79-46-9 | G86: =VLOOKUP(S86,[13]VLOOKUP!$A$25:$X$200,23,FALSE) -> 89.09 | H86: =VLOOKUP(S86,[13]VLOOKUP!$A$25:$X$200,3,FALSE) -> 30.8 | I86: =VLOOKUP(S86,[13]VLOOKUP!$A$25:$X$200,5,FALSE) -> 0.085 | J86: =VLOOKUP(S86,[13]VLOOKUP!$A$25:$X$200,7,FALSE) -> 1e-05 | K86: =VLOOKUP(S86,[13]VLOOKUP!$A$25:$X$200,9,FALSE) -> 17000 | L86: =VLOOKUP(S86,[13]VLOOKUP!$A$25:$X$200,13,FALSE) -> 0.000119 | M86: 75.00000473 | N86: =VLOOKUP(S86,[13]VLOOKUP!$A$25:$X$200,17,FALSE) -> 0 | O86: =VLOOKUP(S86,[13]VLOOKUP!$A$25:$X$200,19,FALSE) -> 0 | P86: =VLOOKUP(S86,[13]VLOOKUP!$A$25:$X$200,21,FALSE) -> 0 | Q86: NDEP | R86: =VLOOKUP(S86,[13]VLOOKUP!$A$25:$Z$200,26,FALSE) -> NDEP | S86: 79469
B87: =IF(VLOOKUP(F87,'T5-6 COPC'!E$11:N$113,10,FALSE)="V","X","") ->  | C87: VOCs | D87: Nonyl Aldehyde n- | E87: n-Nonyl aldehyde | F87: 124-19-6 | G87: =VLOOKUP(S87,[13]VLOOKUP!$A$25:$X$200,23,FALSE) -> 142.24 | H87: =VLOOKUP(S87,[13]VLOOKUP!$A$25:$X$200,3,FALSE) -> 36.05 | I87: =VLOOKUP(S87,[13]VLOOKUP!$A$25:$X$200,5,FALSE) -> 0.075 | J87: =VLOOKUP(S87,[13]VLOOKUP!$A$25:$X$200,7,FALSE) -> 7.8e-06 | K87: =VLOOKUP(S87,[13]VLOOKUP!$A$25:$X$200,9,FALSE) -> 96 | L87: =VLOOKUP(S87,[13]VLOOKUP!$A$25:$X$200,13,FALSE) -> 0.000734 | M87: 76.00000473 | N87: =VLOOKUP(S87,[13]VLOOKUP!$A$25:$X$200,17,FALSE) -> 0 | O87: =VLOOKUP(S87,[13]VLOOKUP!$A$25:$X$200,19,FALSE) -> 0 | P87: =VLOOKUP(S87,[13]VLOOKUP!$A$25:$X$200,21,FALSE) -> 0 | Q87: EPISUITE + n-Butylbenzene for diffusivities | R87: =VLOOKUP(S87,[13]VLOOKUP!$A$25:$Z$200,26,FALSE) -> EPISUITE + n-Butylbenzene for diffusivities | S87: 124196
A88: V | B88: =IF(VLOOKUP(F88,'T5-6 COPC'!E$11:N$113,10,FALSE)="V","X","") -> X | C88: VOCs | D88: OCTANE | E88: n-Octane | F88: 111-65-9 | G88: =VLOOKUP(S88,[13]VLOOKUP!$A$25:$X$200,23,FALSE) -> 114 | H88: =VLOOKUP(S88,[13]VLOOKUP!$A$25:$X$200,3,FALSE) -> 16000 | I88: =VLOOKUP(S88,[13]VLOOKUP!$A$25:$X$200,5,FALSE) -> 0.0709 | J88: =VLOOKUP(S88,[13]VLOOKUP!$A$25:$X$200,7,FALSE) -> 7.34e-06 | K88: =VLOOKUP(S88,[13]VLOOKUP!$A$25:$X$200,9,FALSE) -> 0.66 | L88: =VLOOKUP(S88,[13]VLOOKUP!$A$25:$X$200,13,FALSE) -> 3.2 | M88: 77.00000473 | N88: =VLOOKUP(S88,[13]VLOOKUP!$A$25:$X$200,17,FALSE) -> 0 | O88: =VLOOKUP(S88,[13]VLOOKUP!$A$25:$X$200,19,FALSE) -> 0 | P88: =VLOOKUP(S88,[13]VLOOKUP!$A$25:$X$200,21,FALSE) -> 0 | Q88: NDEP | R88: =VLOOKUP(S88,[13]VLOOKUP!$A$25:$Z$200,26,FALSE) -> NDEP | S88: 111659
B89: =IF(VLOOKUP(F89,'T5-6 COPC'!E$11:N$113,10,FALSE)="V","X","") ->  | C89: VOCs | D89: PROPANE, 2,2'-OXYBIS- | E89: Diisopropyl ether | F89: 108-20-3 | G89: =VLOOKUP(S89,[13]VLOOKUP!$A$25:$X$200,23,FALSE) -> 102.18 | H89: =VLOOKUP(S89,[13]VLOOKUP!$A$25:$X$200,3,FALSE) -> 22.79 | I89: =VLOOKUP(S89,[13]VLOOKUP!$A$25:$X$200,5,FALSE) -> 0.0654226 | J89: =VLOOKUP(S89,[13]VLOOKUP!$A$25:$X$200,7,FALSE) -> 7.7582e-06 | K89: =VLOOKUP(S89,[13]VLOOKUP!$A$25:$X$200,9,FALSE) -> 8800 | L89: =VLOOKUP(S89,[13]VLOOKUP!$A$25:$X$200,13,FALSE) -> 0.00256 | M89: 78.00000473 | N89: =VLOOKUP(S89,[13]VLOOKUP!$A$25:$X$200,17,FALSE) -> 341.65 | O89: =VLOOKUP(S89,[13]VLOOKUP!$A$25:$X$200,19,FALSE) -> 500.3 | P89: =VLOOKUP(S89,[13]VLOOKUP!$A$25:$X$200,21,FALSE) -> 0 | Q89: RSL + USEPA 2004 for Tb, Tc, and ΔH | R89: =VLOOKUP(S89,[13]VLOOKUP!$A$25:$Z$200,26,FALSE) -> RSL + USEPA 2004 for Tb, Tc, and ΔH | S89: 108203
A90: V | B90: =IF(VLOOKUP(F90,'T5-6 COPC'!E$11:N$113,10,FALSE)="V","X","") -> X | C90: VOCs | D90: Propylbenzene n | E90: n-Propylbenzene | F90: 103-65-1 | G90: =VLOOKUP(S90,[13]VLOOKUP!$A$25:$X$200,23,FALSE) -> 120 | H90: =VLOOKUP(S90,[13]VLOOKUP!$A$25:$X$200,3,FALSE) -> 2830 | I90: =VLOOKUP(S90,[13]VLOOKUP!$A$25:$X$200,5,FALSE) -> 0.075 | J90: =VLOOKUP(S90,[13]VLOOKUP!$A$25:$X$200,7,FALSE) -> 7.8e-06 | K90: =VLOOKUP(S90,[13]VLOOKUP!$A$25:$X$200,9,FALSE) -> 13.8 | L90: =VLOOKUP(S90,[13]VLOOKUP!$A$25:$X$200,13,FALSE) -> 0.0131 | M90: 79.00000473 | N90: =VLOOKUP(S90,[13]VLOOKUP!$A$25:$X$200,17,FALSE) -> 432.2 | O90: =VLOOKUP(S90,[13]VLOOKUP!$A$25:$X$200,19,FALSE) -> 630 | P90: =VLOOKUP(S90,[13]VLOOKUP!$A$25:$X$200,21,FALSE) -> 9123 | Q90: NDEP + USEPA 2004 for Tb, Tc, ΔH | R90: =VLOOKUP(S90,[13]VLOOKUP!$A$25:$Z$200,26,FALSE) -> NDEP + USEPA 2004 for Tb, Tc, ΔH | S90: 103651
A91: V | B91: =IF(VLOOKUP(F91,'T5-6 COPC'!E$11:N$113,10,FALSE)="V","X","") -> X | C91: VOCs | D91: Styrene | E91: Styrene | F91: 100-42-5 | G91: =VLOOKUP(S91,[13]VLOOKUP!$A$25:$X$200,23,FALSE) -> 104.2 | H91: =VLOOKUP(S91,[13]VLOOKUP!$A$25:$X$200,3,FALSE) -> 912 | I91: =VLOOKUP(S91,[13]VLOOKUP!$A$25:$X$200,5,FALSE) -> 0.071 | J91: =VLOOKUP(S91,[13]VLOOKUP!$A$25:$X$200,7,FALSE) -> 8e-06 | K91: =VLOOKUP(S91,[13]VLOOKUP!$A$25:$X$200,9,FALSE) -> 310 | L91: =VLOOKUP(S91,[13]VLOOKUP!$A$25:$X$200,13,FALSE) -> 0.00275 | M91: 80.00000473 | N91: =VLOOKUP(S91,[13]VLOOKUP!$A$25:$X$200,17,FALSE) -> 418.31 | O91: =VLOOKUP(S91,[13]VLOOKUP!$A$25:$X$200,19,FALSE) -> 636 | P91: =VLOOKUP(S91,[13]VLOOKUP!$A$25:$X$200,21,FALSE) -> 8737 | Q91: NDEP + USEPA 2004 for Tb, Tc, ΔH | R91: =VLOOKUP(S91,[13]VLOOKUP!$A$25:$Z$200,26,FALSE) -> NDEP + USEPA 2004 for Tb, Tc, ΔH | S91: 100425
A92: V | B92: =IF(VLOOKUP(F92,'T5-6 COPC'!E$11:N$113,10,FALSE)="V","X","") -> X | C92: VOCs | D92: styrene, alpha-Methyl | E92: alpha-Methylstyrene | F92: 98-83-9 | G92: =VLOOKUP(S92,[13]VLOOKUP!$A$25:$X$200,23,FALSE) -> 118 | H92: =VLOOKUP(S92,[13]VLOOKUP!$A$25:$X$200,3,FALSE) -> 360 | I92: =VLOOKUP(S92,[13]VLOOKUP!$A$25:$X$200,5,FALSE) -> 0.0712 | J92: =VLOOKUP(S92,[13]VLOOKUP!$A$25:$X$200,7,FALSE) -> 8e-06 | K92: =VLOOKUP(S92,[13]VLOOKUP!$A$25:$X$200,9,FALSE) -> 300 | L92: =VLOOKUP(S92,[13]VLOOKUP!$A$25:$X$200,13,FALSE) -> 0.0023 | M92: 81.00000473 | N92: =VLOOKUP(S92,[13]VLOOKUP!$A$25:$X$200,17,FALSE) -> 0 | O92: =VLOOKUP(S92,[13]VLOOKUP!$A$25:$X$200,19,FALSE) -> 0 | P92: =VLOOKUP(S92,[13]VLOOKUP!$A$25:$X$200,21,FALSE) -> 0 | Q92: NDEP | R92: =VLOOKUP(S92,[13]VLOOKUP!$A$25:$Z$200,26,FALSE) -> NDEP | S92: 98839
A93: V | B93: =IF(VLOOKUP(F93,'T5-6 COPC'!E$11:N$113,10,FALSE)="V","X","") -> X | C93: VOCs | D93: tert Butyl alcohol | E93: tert Butyl alcohol | F93: 75-65-0 | G93: =VLOOKUP(S93,[13]VLOOKUP!$A$25:$X$200,23,FALSE) -> 74.12 | H93: =VLOOKUP(S93,[13]VLOOKUP!$A$25:$X$200,3,FALSE) -> 2.919 | I93: =VLOOKUP(S93,[13]VLOOKUP!$A$25:$X$200,5,FALSE) -> 0.09 | J93: =VLOOKUP(S93,[13]VLOOKUP!$A$25:$X$200,7,FALSE) -> 1e-05 | K93: =VLOOKUP(S93,[13]VLOOKUP!$A$25:$X$200,9,FALSE) -> 181000 | L93: =VLOOKUP(S93,[13]VLOOKUP!$A$25:$X$200,13,FALSE) -> 9.05e-06 | M93: 82.00000473 | N93: =VLOOKUP(S93,[13]VLOOKUP!$A$25:$X$200,17,FALSE) -> 0 | O93: =VLOOKUP(S93,[13]VLOOKUP!$A$25:$X$200,19,FALSE) -> 0 | P93: =VLOOKUP(S93,[13]VLOOKUP!$A$25:$X$200,21,FALSE) -> 0 | Q93: NDEP | R93: =VLOOKUP(S93,[13]VLOOKUP!$A$25:$Z$200,26,FALSE) -> NDEP | S93: 75650
B94: =IF(VLOOKUP(F94,'T5-6 COPC'!E$11:N$113,10,FALSE)="V","X","") ->  | C94: VOCs | D94: Tetrachloroethane 1,1,1,2 | E94: 1,1,1,2-Tetrachloroethane | F94: 630-20-6 | G94: =VLOOKUP(S94,[13]VLOOKUP!$A$25:$X$200,23,FALSE) -> 168 | H94: =VLOOKUP(S94,[13]VLOOKUP!$A$25:$X$200,3,FALSE) -> 79 | I94: =VLOOKUP(S94,[13]VLOOKUP!$A$25:$X$200,5,FALSE) -> 0.071 | J94: =VLOOKUP(S94,[13]VLOOKUP!$A$25:$X$200,7,FALSE) -> 7.9e-06 | K94: =VLOOKUP(S94,[13]VLOOKUP!$A$25:$X$200,9,FALSE) -> 2970 | L94: =VLOOKUP(S94,[13]VLOOKUP!$A$25:$X$200,13,FALSE) -> 0.000345 | M94: 83.00000473 | N94: =VLOOKUP(S94,[13]VLOOKUP!$A$25:$X$200,17,FALSE) -> 403.5 | O94: =VLOOKUP(S94,[13]VLOOKUP!$A$25:$X$200,19,FALSE) -> 624 | P94: =VLOOKUP(S94,[13]VLOOKUP!$A$25:$X$200,21,FALSE) -> 9768.282525 | Q94: NDEP + USEPA 2004 for Tb, Tc, ΔH | R94: =VLOOKUP(S94,[13]VLOOKUP!$A$25:$Z$200,26,FALSE) -> NDEP + USEPA 2004 for Tb, Tc, ΔH | S94: 630206
A95: V | B95: =IF(VLOOKUP(F95,'T5-6 COPC'!E$11:N$113,10,FALSE)="V","X","") -> X | C95: VOCs | D95: Tetrachloroethane 1,1,2,2 | E95: 1,1,2,2-Tetrachloroethane | F95: 79-34-5 | G95: =VLOOKUP(S95,[13]VLOOKUP!$A$25:$X$200,23,FALSE) -> 168 | H95: =VLOOKUP(S95,[13]VLOOKUP!$A$25:$X$200,3,FALSE) -> 79 | I95: =VLOOKUP(S95,[13]VLOOKUP!$A$25:$X$200,5,FALSE) -> 0.071 | J95: =VLOOKUP(S95,[13]VLOOKUP!$A$25:$X$200,7,FALSE) -> 7.9e-06 | K95: =VLOOKUP(S95,[13]VLOOKUP!$A$25:$X$200,9,FALSE) -> 2970 | L95: =VLOOKUP(S95,[13]VLOOKUP!$A$25:$X$200,13,FALSE) -> 0.000345 | M95: 84.00000473 | N95: =VLOOKUP(S95,[13]VLOOKUP!$A$25:$X$200,17,FALSE) -> 419.6 | O95: =VLOOKUP(S95,[13]VLOOKUP!$A$25:$X$200,19,FALSE) -> 661.15 | P95: =VLOOKUP(S95,[13]VLOOKUP!$A$25:$X$200,21,FALSE) -> 8996 | Q95: NDEP + USEPA 2004 for Tb, Tc, ΔH | R95: =VLOOKUP(S95,[13]VLOOKUP!$A$25:$Z$200,26,FALSE) -> NDEP + USEPA 2004 for Tb, Tc, ΔH | S95: 79345
A96: V | B96: =IF(VLOOKUP(F96,'T5-6 COPC'!E$11:N$113,10,FALSE)="V","X","") -> X | C96: VOCs | D96: Tetrachloroethene | E96: Tetrachloroethene | F96: 127-18-4 | G96: =VLOOKUP(S96,[13]VLOOKUP!$A$25:$X$200,23,FALSE) -> 165.83 | H96: =VLOOKUP(S96,[13]VLOOKUP!$A$25:$X$200,3,FALSE) -> 265 | I96: =VLOOKUP(S96,[13]VLOOKUP!$A$25:$X$200,5,FALSE) -> 0.072 | J96: =VLOOKUP(S96,[13]VLOOKUP!$A$25:$X$200,7,FALSE) -> 8.2e-06 | K96: =VLOOKUP(S96,[13]VLOOKUP!$A$25:$X$200,9,FALSE) -> 200 | L96: =VLOOKUP(S96,[13]VLOOKUP!$A$25:$X$200,13,FALSE) -> 0.0184 | M96: 85.00000473 | N96: =VLOOKUP(S96,[13]VLOOKUP!$A$25:$X$200,17,FALSE) -> 394.4 | O96: =VLOOKUP(S96,[13]VLOOKUP!$A$25:$X$200,19,FALSE) -> 620.2 | P96: =VLOOKUP(S96,[13]VLOOKUP!$A$25:$X$200,21,FALSE) -> 8288 | Q96: NDEP + USEPA 2004 for Tb, Tc, ΔH | R96: =VLOOKUP(S96,[13]VLOOKUP!$A$25:$Z$200,26,FALSE) -> NDEP + USEPA 2004 for Tb, Tc, ΔH | S96: 127184
B97: =IF(VLOOKUP(F97,'T5-6 COPC'!E$11:N$113,10,FALSE)="V","X","") ->  | C97: VOCs | D97: Tetrahydrofuran | E97: Tetrahydrofuran | F97: 109-99-9 | G97: =VLOOKUP(S97,[13]VLOOKUP!$A$25:$X$200,23,FALSE) -> 72 | H97: =VLOOKUP(S97,[13]VLOOKUP!$A$25:$X$200,3,FALSE) -> 0.95 | I97: =VLOOKUP(S97,[13]VLOOKUP!$A$25:$X$200,5,FALSE) -> 0.098 | J97: =VLOOKUP(S97,[13]VLOOKUP!$A$25:$X$200,7,FALSE) -> 1.1e-05 | K97: =VLOOKUP(S97,[13]VLOOKUP!$A$25:$X$200,9,FALSE) -> 1000000 | L97: =VLOOKUP(S97,[13]VLOOKUP!$A$25:$X$200,13,FALSE) -> 7e-05 | M97: 86.00000473 | N97: =VLOOKUP(S97,[13]VLOOKUP!$A$25:$X$200,17,FALSE) -> 0 | O97: =VLOOKUP(S97,[13]VLOOKUP!$A$25:$X$200,19,FALSE) -> 0 | P97: =VLOOKUP(S97,[13]VLOOKUP!$A$25:$X$200,21,FALSE) -> 0 | Q97: NDEP | R97: =VLOOKUP(S97,[13]VLOOKUP!$A$25:$Z$200,26,FALSE) -> NDEP | S97: 109999
A98: V | B98: =IF(VLOOKUP(F98,'T5-6 COPC'!E$11:N$113,10,FALSE)="V","X","") -> X | C98: VOCs | D98: Toluene | E98: Toluene | F98: 108-88-3 | G98: =VLOOKUP(S98,[13]VLOOKUP!$A$25:$X$200,23,FALSE) -> 92 | H98: =VLOOKUP(S98,[13]VLOOKUP!$A$25:$X$200,3,FALSE) -> 140 | I98: =VLOOKUP(S98,[13]VLOOKUP!$A$25:$X$200,5,FALSE) -> 0.087 | J98: =VLOOKUP(S98,[13]VLOOKUP!$A$25:$X$200,7,FALSE) -> 8.6e-06 | K98: =VLOOKUP(S98,[13]VLOOKUP!$A$25:$X$200,9,FALSE) -> 526 | L98: =VLOOKUP(S98,[13]VLOOKUP!$A$25:$X$200,13,FALSE) -> 0.00664 | M98: 87.00000473 | N98: =VLOOKUP(S98,[13]VLOOKUP!$A$25:$X$200,17,FALSE) -> 383.78 | O98: =VLOOKUP(S98,[13]VLOOKUP!$A$25:$X$200,19,FALSE) -> 591.79 | P98: =VLOOKUP(S98,[13]VLOOKUP!$A$25:$X$200,21,FALSE) -> 7930 | Q98: NDEP + USEPA 2004 for Tb, Tc, ΔH | R98: =VLOOKUP(S98,[13]VLOOKUP!$A$25:$Z$200,26,FALSE) -> NDEP + USEPA 2004 for Tb, Tc, ΔH | S98: 108883
B99: =IF(VLOOKUP(F99,'T5-6 COPC'!E$11:N$113,10,FALSE)="V","X","") ->  | C99: VOCs | D99: Trichlorobenzene 1,2,3 | E99: 1,2,3-Trichlorobenzene | F99: 87-61-6 | G99: =VLOOKUP(S99,[13]VLOOKUP!$A$25:$X$200,23,FALSE) -> 181.45 | H99: =VLOOKUP(S99,[13]VLOOKUP!$A$25:$X$200,3,FALSE) -> 1383 | I99: =VLOOKUP(S99,[13]VLOOKUP!$A$25:$X$200,5,FALSE) -> 0.03953 | J99: =VLOOKUP(S99,[13]VLOOKUP!$A$25:$X$200,7,FALSE) -> 8.3836e-06 | K99: =VLOOKUP(S99,[13]VLOOKUP!$A$25:$X$200,9,FALSE) -> 18 | L99: =VLOOKUP(S99,[13]VLOOKUP!$A$25:$X$200,13,FALSE) -> 0.00125 | M99: 88.00000473 | N99: =VLOOKUP(S99,[13]VLOOKUP!$A$25:$X$200,17,FALSE) -> 0 | O99: =VLOOKUP(S99,[13]VLOOKUP!$A$25:$X$200,19,FALSE) -> 0 | P99: =VLOOKUP(S99,[13]VLOOKUP!$A$25:$X$200,21,FALSE) -> 0 | Q99: RSL | R99: =VLOOKUP(S99,[13]VLOOKUP!$A$25:$Z$200,26,FALSE) -> RSL | S99: 87616
A100: V | B100: =IF(VLOOKUP(F100,'T5-6 COPC'!E$11:N$113,10,FALSE)="V","X","") -> X | C100: VOCs | D100: Trichlorobenzene 1,2,4 | E100: 1,2,4-Trichlorobenzene | F100: 120-82-1 | G100: =VLOOKUP(S100,[13]VLOOKUP!$A$25:$X$200,23,FALSE) -> 181 | H100: =VLOOKUP(S100,[13]VLOOKUP!$A$25:$X$200,3,FALSE) -> 1659 | I100: =VLOOKUP(S100,[13]VLOOKUP!$A$25:$X$200,5,FALSE) -> 0.03 | J100: =VLOOKUP(S100,[13]VLOOKUP!$A$25:$X$200,7,FALSE) -> 8.23e-06 | K100: =VLOOKUP(S100,[13]VLOOKUP!$A$25:$X$200,9,FALSE) -> 300 | L100: =VLOOKUP(S100,[13]VLOOKUP!$A$25:$X$200,13,FALSE) -> 0.00142 | M100: 89.00000473 | N100: =VLOOKUP(S100,[13]VLOOKUP!$A$25:$X$200,17,FALSE) -> 486.15 | O100: =VLOOKUP(S100,[13]VLOOKUP!$A$25:$X$200,19,FALSE) -> 725 | P100: =VLOOKUP(S100,[13]VLOOKUP!$A$25:$X$200,21,FALSE) -> 10471 | Q100: NDEP + USEPA 2004 for Tb, Tc, ΔH | R100: =VLOOKUP(S100,[13]VLOOKUP!$A$25:$Z$200,26,FALSE) -> NDEP + USEPA 2004 for Tb, Tc, ΔH | S100: 120821
B101: =IF(VLOOKUP(F101,'T5-6 COPC'!E$11:N$113,10,FALSE)="V","X","") ->  | C101: VOCs | D101: Trichlorobenzene 1,3,5 | E101: 1,3,5-Trichlorobenzene | F101: 108-70-3 | G101: =VLOOKUP(S101,[13]VLOOKUP!$A$25:$X$200,23,FALSE) -> 181.45 | H101: =VLOOKUP(S101,[13]VLOOKUP!$A$25:$X$200,3,FALSE) -> 1329 | I101: =VLOOKUP(S101,[13]VLOOKUP!$A$25:$X$200,5,FALSE) -> 0.075 | J101: =VLOOKUP(S101,[13]VLOOKUP!$A$25:$X$200,7,FALSE) -> 7.1e-06 | K101: =VLOOKUP(S101,[13]VLOOKUP!$A$25:$X$200,9,FALSE) -> 30 | L101: =VLOOKUP(S101,[13]VLOOKUP!$A$25:$X$200,13,FALSE) -> 0.00189 | M101: 90.00000473 | N101: =VLOOKUP(S101,[13]VLOOKUP!$A$25:$X$200,17,FALSE) -> 0 | O101: =VLOOKUP(S101,[13]VLOOKUP!$A$25:$X$200,19,FALSE) -> 0 | P101: =VLOOKUP(S101,[13]VLOOKUP!$A$25:$X$200,21,FALSE) -> 0 | Q101: EPISUITE + 1,2,4-Trimethylbenzene for diffusivities | R101: =VLOOKUP(S101,[13]VLOOKUP!$A$25:$Z$200,26,FALSE) -> EPISUITE + 1,2,4-Trimethylbenzene for diffusivities | S101: 108703
B102: =IF(VLOOKUP(F102,'T5-6 COPC'!E$11:N$113,10,FALSE)="V","X","") ->  | C102: VOCs | D102: Trichloroethane 1,1,1 | E102: 1,1,1-Trichloroethane | F102: 71-55-6 | G102: =VLOOKUP(S102,[13]VLOOKUP!$A$25:$X$200,23,FALSE) -> 133 | H102: =VLOOKUP(S102,[13]VLOOKUP!$A$25:$X$200,3,FALSE) -> 135 | I102: =VLOOKUP(S102,[13]VLOOKUP!$A$25:$X$200,5,FALSE) -> 0.078 | J102: =VLOOKUP(S102,[13]VLOOKUP!$A$25:$X$200,7,FALSE) -> 8.8e-06 | K102: =VLOOKUP(S102,[13]VLOOKUP!$A$25:$X$200,9,FALSE) -> 1330 | L102: =VLOOKUP(S102,[13]VLOOKUP!$A$25:$X$200,13,FALSE) -> 0.0172 | M102: 91.00000473 | N102: =VLOOKUP(S102,[13]VLOOKUP!$A$25:$X$200,17,FALSE) -> 347.24 | O102: =VLOOKUP(S102,[13]VLOOKUP!$A$25:$X$200,19,FALSE) -> 545 | P102: =VLOOKUP(S102,[13]VLOOKUP!$A$25:$X$200,21,FALSE) -> 7136 | Q102: NDEP + USEPA 2004 for Tb, Tc, ΔH | R102: =VLOOKUP(S102,[13]VLOOKUP!$A$25:$Z$200,26,FALSE) -> NDEP + USEPA 2004 for Tb, Tc, ΔH | S102: 71556
B103: =IF(VLOOKUP(F103,'T5-6 COPC'!E$11:N$113,10,FALSE)="V","X","") ->  | C103: VOCs | D103: Trichloroethane 1,1,2 | E103: 1,1,2-Trichloroethane | F103: 79-00-5 | G103: =VLOOKUP(S103,[13]VLOOKUP!$A$25:$X$200,23,FALSE) -> 133 | H103: =VLOOKUP(S103,[13]VLOOKUP!$A$25:$X$200,3,FALSE) -> 75 | I103: =VLOOKUP(S103,[13]VLOOKUP!$A$25:$X$200,5,FALSE) -> 0.078 | J103: =VLOOKUP(S103,[13]VLOOKUP!$A$25:$X$200,7,FALSE) -> 8.8e-06 | K103: =VLOOKUP(S103,[13]VLOOKUP!$A$25:$X$200,9,FALSE) -> 4420 | L103: =VLOOKUP(S103,[13]VLOOKUP!$A$25:$X$200,13,FALSE) -> 0.000913 | M103: 92.00000473 | N103: =VLOOKUP(S103,[13]VLOOKUP!$A$25:$X$200,17,FALSE) -> 386.15 | O103: =VLOOKUP(S103,[13]VLOOKUP!$A$25:$X$200,19,FALSE) -> 602 | P103: =VLOOKUP(S103,[13]VLOOKUP!$A$25:$X$200,21,FALSE) -> 8322 | Q103: NDEP + USEPA 2004 for Tb, Tc, ΔH | R103: =VLOOKUP(S103,[13]VLOOKUP!$A$25:$Z$200,26,FALSE) -> NDEP + USEPA 2004 for Tb, Tc, ΔH | S103: 79005
A104: V | B104: =IF(VLOOKUP(F104,'T5-6 COPC'!E$11:N$113,10,FALSE)="V","X","") -> X | C104: VOCs | D104: Trichloroethene | E104: Trichloroethene | F104: 79-01-6 | G104: =VLOOKUP(S104,[13]VLOOKUP!$A$25:$X$200,23,FALSE) -> 131 | H104: =VLOOKUP(S104,[13]VLOOKUP!$A$25:$X$200,3,FALSE) -> 94.3 | I104: =VLOOKUP(S104,[13]VLOOKUP!$A$25:$X$200,5,FALSE) -> 0.079 | J104: =VLOOKUP(S104,[13]VLOOKUP!$A$25:$X$200,7,FALSE) -> 9.1e-06 | K104: =VLOOKUP(S104,[13]VLOOKUP!$A$25:$X$200,9,FALSE) -> 1100 | L104: =VLOOKUP(S104,[13]VLOOKUP!$A$25:$X$200,13,FALSE) -> 0.0103 | M104: 93.00000473 | N104: =VLOOKUP(S104,[13]VLOOKUP!$A$25:$X$200,17,FALSE) -> 360.36 | O104: =VLOOKUP(S104,[13]VLOOKUP!$A$25:$X$200,19,FALSE) -> 544.2 | P104: =VLOOKUP(S104,[13]VLOOKUP!$A$25:$X$200,21,FALSE) -> 7505 | Q104: NDEP + USEPA 2004 for Tb, Tc, ΔH | R104: =VLOOKUP(S104,[13]VLOOKUP!$A$25:$Z$200,26,FALSE) -> NDEP + USEPA 2004 for Tb, Tc, ΔH | S104: 79016
A105: V | B105: =IF(VLOOKUP(F105,'T5-6 COPC'!E$11:N$113,10,FALSE)="V","X","") -> X | C105: VOCs | D105: Trichlorofluoromethane | E105: Trichlorofluoromethane | F105: 75-69-4 | G105: =VLOOKUP(S105,[13]VLOOKUP!$A$25:$X$200,23,FALSE) -> 137.4 | H105: =VLOOKUP(S105,[13]VLOOKUP!$A$25:$X$200,3,FALSE) -> 160 | I105: =VLOOKUP(S105,[13]VLOOKUP!$A$25:$X$200,5,FALSE) -> 0.087 | J105: =VLOOKUP(S105,[13]VLOOKUP!$A$25:$X$200,7,FALSE) -> 1.3e-05 | K105: =VLOOKUP(S105,[13]VLOOKUP!$A$25:$X$200,9,FALSE) -> 1100 | L105: =VLOOKUP(S105,[13]VLOOKUP!$A$25:$X$200,13,FALSE) -> 0.097 | M105: 94.00000473 | N105: =VLOOKUP(S105,[13]VLOOKUP!$A$25:$X$200,17,FALSE) -> 296.7 | O105: =VLOOKUP(S105,[13]VLOOKUP!$A$25:$X$200,19,FALSE) -> 471 | P105: =VLOOKUP(S105,[13]VLOOKUP!$A$25:$X$200,21,FALSE) -> 5998.9 | Q105: NDEP + USEPA 2004 for Tb, Tc, ΔH | R105: =VLOOKUP(S105,[13]VLOOKUP!$A$25:$Z$200,26,FALSE) -> NDEP + USEPA 2004 for Tb, Tc, ΔH | S105: 75694
B106: =IF(VLOOKUP(F106,'T5-6 COPC'!E$11:N$113,10,FALSE)="V","X","") ->  | C106: VOCs | D106: Trichloropropane 1,2,3 | E106: 1,2,3-Trichloropropane | F106: 96-18-4 | G106: =VLOOKUP(S106,[13]VLOOKUP!$A$25:$X$200,23,FALSE) -> 147.43 | H106: =VLOOKUP(S106,[13]VLOOKUP!$A$25:$X$200,3,FALSE) -> 51 | I106: =VLOOKUP(S106,[13]VLOOKUP!$A$25:$X$200,5,FALSE) -> 0.071 | J106: =VLOOKUP(S106,[13]VLOOKUP!$A$25:$X$200,7,FALSE) -> 7.9e-06 | K106: =VLOOKUP(S106,[13]VLOOKUP!$A$25:$X$200,9,FALSE) -> 2700 | L106: =VLOOKUP(S106,[13]VLOOKUP!$A$25:$X$200,13,FALSE) -> 0.028 | M106: 95.00000473 | N106: =VLOOKUP(S106,[13]VLOOKUP!$A$25:$X$200,17,FALSE) -> 430 | O106: =VLOOKUP(S106,[13]VLOOKUP!$A$25:$X$200,19,FALSE) -> 652 | P106: =VLOOKUP(S106,[13]VLOOKUP!$A$25:$X$200,21,FALSE) -> 9171 | Q106: NDEP + USEPA 2004 for Tb, Tc, ΔH | R106: =VLOOKUP(S106,[13]VLOOKUP!$A$25:$Z$200,26,FALSE) -> NDEP + USEPA 2004 for Tb, Tc, ΔH | S106: 96184
A107: V | B107: =IF(VLOOKUP(F107,'T5-6 COPC'!E$11:N$113,10,FALSE)="V","X","") -> X | C107: VOCs | D107: trifluoroethane 1,1,2-Trichloro-1,2,2- | E107: 1,1,2-Trichloro-1,2,2-trifluoroethane | F107: 76-13-1 | G107: =VLOOKUP(S107,[13]VLOOKUP!$A$25:$X$200,23,FALSE) -> 187.38 | H107: =VLOOKUP(S107,[13]VLOOKUP!$A$25:$X$200,3,FALSE) -> 160 | I107: =VLOOKUP(S107,[13]VLOOKUP!$A$25:$X$200,5,FALSE) -> 0.0288 | J107: =VLOOKUP(S107,[13]VLOOKUP!$A$25:$X$200,7,FALSE) -> 8.07e-06 | K107: =VLOOKUP(S107,[13]VLOOKUP!$A$25:$X$200,9,FALSE) -> 1100 | L107: =VLOOKUP(S107,[13]VLOOKUP!$A$25:$X$200,13,FALSE) -> 0.5210555 | M107: 96.00000473 | N107: =VLOOKUP(S107,[13]VLOOKUP!$A$25:$X$200,17,FALSE) -> 320.7 | O107: =VLOOKUP(S107,[13]VLOOKUP!$A$25:$X$200,19,FALSE) -> 487.3 | P107: =VLOOKUP(S107,[13]VLOOKUP!$A$25:$X$200,21,FALSE) -> 6462.56 | Q107: NDEP + USEPA 2004 for Tb, Tc, ΔH | R107: =VLOOKUP(S107,[13]VLOOKUP!$A$25:$Z$200,26,FALSE) -> NDEP + USEPA 2004 for Tb, Tc, ΔH | S107: 76131
A108: V | B108: =IF(VLOOKUP(F108,'T5-6 COPC'!E$11:N$113,10,FALSE)="V","X","") -> X | C108: VOCs | D108: Trimethylbenzene 1,2,4 | E108: 1,2,4-Trimethylbenzene | F108: 95-63-6 | G108: =VLOOKUP(S108,[13]VLOOKUP!$A$25:$X$200,23,FALSE) -> 120.19 | H108: =VLOOKUP(S108,[13]VLOOKUP!$A$25:$X$200,3,FALSE) -> 3720 | I108: =VLOOKUP(S108,[13]VLOOKUP!$A$25:$X$200,5,FALSE) -> 0.075 | J108: =VLOOKUP(S108,[13]VLOOKUP!$A$25:$X$200,7,FALSE) -> 7.1e-06 | K108: =VLOOKUP(S108,[13]VLOOKUP!$A$25:$X$200,9,FALSE) -> 0.255 | L108: =VLOOKUP(S108,[13]VLOOKUP!$A$25:$X$200,13,FALSE) -> 0.0057 | M108: 97.00000473 | N108: =VLOOKUP(S108,[13]VLOOKUP!$A$25:$X$200,17,FALSE) -> 442.3 | O108: =VLOOKUP(S108,[13]VLOOKUP!$A$25:$X$200,19,FALSE) -> 649.17 | P108: =VLOOKUP(S108,[13]VLOOKUP!$A$25:$X$200,21,FALSE) -> 9368.8 | Q108: NDEP + USEPA 2004 for Tb, Tc, ΔH | R108: =VLOOKUP(S108,[13]VLOOKUP!$A$25:$Z$200,26,FALSE) -> NDEP + USEPA 2004 for Tb, Tc, ΔH | S108: 95636
A109: V | B109: =IF(VLOOKUP(F109,'T5-6 COPC'!E$11:N$113,10,FALSE)="V","X","") -> X | C109: VOCs | D109: Trimethylbenzene 1,3,5 | E109: 1,3,5-Trimethylbenzene | F109: 108-67-8 | G109: =VLOOKUP(S109,[13]VLOOKUP!$A$25:$X$200,23,FALSE) -> 120.19 | H109: =VLOOKUP(S109,[13]VLOOKUP!$A$25:$X$200,3,FALSE) -> 819 | I109: =VLOOKUP(S109,[13]VLOOKUP!$A$25:$X$200,5,FALSE) -> 0.075 | J109: =VLOOKUP(S109,[13]VLOOKUP!$A$25:$X$200,7,FALSE) -> 7.1e-06 | K109: =VLOOKUP(S109,[13]VLOOKUP!$A$25:$X$200,9,FALSE) -> 50 | L109: =VLOOKUP(S109,[13]VLOOKUP!$A$25:$X$200,13,FALSE) -> 0.00771 | M109: 98.00000473 | N109: =VLOOKUP(S109,[13]VLOOKUP!$A$25:$X$200,17,FALSE) -> 437.89 | O109: =VLOOKUP(S109,[13]VLOOKUP!$A$25:$X$200,19,FALSE) -> 637.25 | P109: =VLOOKUP(S109,[13]VLOOKUP!$A$25:$X$200,21,FALSE) -> 9321 | Q109: NDEP + USEPA 2004 for Tb, Tc, ΔH | R109: =VLOOKUP(S109,[13]VLOOKUP!$A$25:$Z$200,26,FALSE) -> NDEP + USEPA 2004 for Tb, Tc, ΔH | S109: 108678
B110: =IF(VLOOKUP(F110,'T5-6 COPC'!E$11:N$113,10,FALSE)="V","X","") ->  | C110: VOCs | D110: TRIMETHYLBUTANE, 2,2,3- | E110: 2,2,3-Trimethylbutane | F110: 464-06-2 | G110: =VLOOKUP(S110,[13]VLOOKUP!$A$25:$X$200,23,FALSE) -> 100.21 | H110: =VLOOKUP(S110,[13]VLOOKUP!$A$25:$X$200,3,FALSE) -> 136.2 | I110: =VLOOKUP(S110,[13]VLOOKUP!$A$25:$X$200,5,FALSE) -> 0.065 | J110: =VLOOKUP(S110,[13]VLOOKUP!$A$25:$X$200,7,FALSE) -> 7.8e-06 | K110: =VLOOKUP(S110,[13]VLOOKUP!$A$25:$X$200,9,FALSE) -> 28.89 | L110: =VLOOKUP(S110,[13]VLOOKUP!$A$25:$X$200,13,FALSE) -> 2.27 | M110: 99.00000473 | N110: =VLOOKUP(S110,[13]VLOOKUP!$A$25:$X$200,17,FALSE) -> 0 | O110: =VLOOKUP(S110,[13]VLOOKUP!$A$25:$X$200,19,FALSE) -> 0 | P110: =VLOOKUP(S110,[13]VLOOKUP!$A$25:$X$200,21,FALSE) -> 0 | Q110: EPISUITE + diisopropyl ether for diffusivities | R110: =VLOOKUP(S110,[13]VLOOKUP!$A$25:$Z$200,26,FALSE) -> EPISUITE + diisopropyl ether for diffusivities | S110: 464062
A111: V | B111: =IF(VLOOKUP(F111,'T5-6 COPC'!E$11:N$113,10,FALSE)="V","X","") -> X | C111: VOCs | D111: Vinyl Acetate | E111: Vinyl acetate | F111: 108-05-4 | G111: =VLOOKUP(S111,[13]VLOOKUP!$A$25:$X$200,23,FALSE) -> 86 | H111: =VLOOKUP(S111,[13]VLOOKUP!$A$25:$X$200,3,FALSE) -> 5.25 | I111: =VLOOKUP(S111,[13]VLOOKUP!$A$25:$X$200,5,FALSE) -> 0.085 | J111: =VLOOKUP(S111,[13]VLOOKUP!$A$25:$X$200,7,FALSE) -> 9.2e-06 | K111: =VLOOKUP(S111,[13]VLOOKUP!$A$25:$X$200,9,FALSE) -> 20000 | L111: =VLOOKUP(S111,[13]VLOOKUP!$A$25:$X$200,13,FALSE) -> 0.000511 | M111: 100.0000047 | N111: =VLOOKUP(S111,[13]VLOOKUP!$A$25:$X$200,17,FALSE) -> 345.65 | O111: =VLOOKUP(S111,[13]VLOOKUP!$A$25:$X$200,19,FALSE) -> 519.13 | P111: =VLOOKUP(S111,[13]VLOOKUP!$A$25:$X$200,21,FALSE) -> 7800 | Q111: NDEP + USEPA 2004 for Tb, Tc, ΔH | R111: =VLOOKUP(S111,[13]VLOOKUP!$A$25:$Z$200,26,FALSE) -> NDEP + USEPA 2004 for Tb, Tc, ΔH | S111: 108054
B112: =IF(VLOOKUP(F112,'T5-6 COPC'!E$11:N$113,10,FALSE)="V","X","") ->  | C112: VOCs | D112: Vinyl Chloride | E112: Vinyl chloride | F112: 75-01-4 | G112: =VLOOKUP(S112,[13]VLOOKUP!$A$25:$X$200,23,FALSE) -> 63 | H112: =VLOOKUP(S112,[13]VLOOKUP!$A$25:$X$200,3,FALSE) -> 18.6 | I112: =VLOOKUP(S112,[13]VLOOKUP!$A$25:$X$200,5,FALSE) -> 0.106 | J112: =VLOOKUP(S112,[13]VLOOKUP!$A$25:$X$200,7,FALSE) -> 1.23e-06 | K112: =VLOOKUP(S112,[13]VLOOKUP!$A$25:$X$200,9,FALSE) -> 2760 | L112: =VLOOKUP(S112,[13]VLOOKUP!$A$25:$X$200,13,FALSE) -> 0.027 | M112: 101.0000047 | N112: =VLOOKUP(S112,[13]VLOOKUP!$A$25:$X$200,17,FALSE) -> 259.25 | O112: =VLOOKUP(S112,[13]VLOOKUP!$A$25:$X$200,19,FALSE) -> 432 | P112: =VLOOKUP(S112,[13]VLOOKUP!$A$25:$X$200,21,FALSE) -> 5250 | Q112: NDEP + USEPA 2004 for Tb, Tc, ΔH | R112: =VLOOKUP(S112,[13]VLOOKUP!$A$25:$Z$200,26,FALSE) -> NDEP + USEPA 2004 for Tb, Tc, ΔH | S112: 75014
A113: V | B113: =IF(VLOOKUP(F113,'T5-6 COPC'!E$11:N$113,10,FALSE)="V","X","") -> X | C113: VOCs | D113: Xylene ortho | E113: o-Xylene | F113: 95-47-6 | G113: =VLOOKUP(S113,[13]VLOOKUP!$A$25:$X$200,23,FALSE) -> 106.2 | H113: =VLOOKUP(S113,[13]VLOOKUP!$A$25:$X$200,3,FALSE) -> 241 | I113: =VLOOKUP(S113,[13]VLOOKUP!$A$25:$X$200,5,FALSE) -> 0.087 | J113: =VLOOKUP(S113,[13]VLOOKUP!$A$25:$X$200,7,FALSE) -> 1e-05 | K113: =VLOOKUP(S113,[13]VLOOKUP!$A$25:$X$200,9,FALSE) -> 178 | L113: =VLOOKUP(S113,[13]VLOOKUP!$A$25:$X$200,13,FALSE) -> 0.00519 | M113: 102.0000047 | N113: =VLOOKUP(S113,[13]VLOOKUP!$A$25:$X$200,17,FALSE) -> 417.6 | O113: =VLOOKUP(S113,[13]VLOOKUP!$A$25:$X$200,19,FALSE) -> 630.3 | P113: =VLOOKUP(S113,[13]VLOOKUP!$A$25:$X$200,21,FALSE) -> 8661 | Q113: NDEP + USEPA 2004 for Tb, Tc, ΔH | R113: =VLOOKUP(S113,[13]VLOOKUP!$A$25:$Z$200,26,FALSE) -> NDEP + USEPA 2004 for Tb, Tc, ΔH | S113: 95476
A114: V | B114: =IF(VLOOKUP(F114,'T5-6 COPC'!E$11:N$113,10,FALSE)="V","X","") -> X | C114: VOCs | D114: Xylene, m,p | E114: m,p-Xylene | F114: 79601-23-1 | G114: =VLOOKUP(S114,[13]VLOOKUP!$A$25:$X$200,23,FALSE) -> 106.17 | H114: =VLOOKUP(S114,[13]VLOOKUP!$A$25:$X$200,3,FALSE) -> 389 | I114: =VLOOKUP(S114,[13]VLOOKUP!$A$25:$X$200,5,FALSE) -> 0.0769 | J114: =VLOOKUP(S114,[13]VLOOKUP!$A$25:$X$200,7,FALSE) -> 8.44e-06 | K114: =VLOOKUP(S114,[13]VLOOKUP!$A$25:$X$200,9,FALSE) -> 185 | L114: =VLOOKUP(S114,[13]VLOOKUP!$A$25:$X$200,13,FALSE) -> 0.007640736822 | M114: 103.0000047 | N114: =VLOOKUP(S114,[13]VLOOKUP!$A$25:$X$200,17,FALSE) -> 0 | O114: =VLOOKUP(S114,[13]VLOOKUP!$A$25:$X$200,19,FALSE) -> 0 | P114: =VLOOKUP(S114,[13]VLOOKUP!$A$25:$X$200,21,FALSE) -> 0 | Q114: USEPA 2004 | R114: =VLOOKUP(S114,[13]VLOOKUP!$A$25:$Z$200,26,FALSE) -> USEPA 2004 | S114: 79601231
B115: =IF(VLOOKUP(F115,'T5-6 COPC'!E$11:N$113,10,FALSE)="V","X","") ->  | C115: VOCs | D115: Xylenes (total) | E115: Xylenes (total) | F115: 1330-20-7 | G115: =VLOOKUP(S115,[13]VLOOKUP!$A$25:$X$200,23,FALSE) -> 106.2 | H115: =VLOOKUP(S115,[13]VLOOKUP!$A$25:$X$200,3,FALSE) -> 196 | I115: =VLOOKUP(S115,[13]VLOOKUP!$A$25:$X$200,5,FALSE) -> 0.07 | J115: =VLOOKUP(S115,[13]VLOOKUP!$A$25:$X$200,7,FALSE) -> 7.8e-06 | K115: =VLOOKUP(S115,[13]VLOOKUP!$A$25:$X$200,9,FALSE) -> 161 | L115: =VLOOKUP(S115,[13]VLOOKUP!$A$25:$X$200,13,FALSE) -> 0.00734 | M115: 104.0000047 | N115: =VLOOKUP(S115,[13]VLOOKUP!$A$25:$X$200,17,FALSE) -> 411.52 | O115: =VLOOKUP(S115,[13]VLOOKUP!$A$25:$X$200,19,FALSE) -> 616.2 | P115: =VLOOKUP(S115,[13]VLOOKUP!$A$25:$X$200,21,FALSE) -> 8525 | Q115: NDEP + USEPA 2004 for Tb, Tc, ΔH | R115: =VLOOKUP(S115,[13]VLOOKUP!$A$25:$Z$200,26,FALSE) -> NDEP + USEPA 2004 for Tb, Tc, ΔH | S115: 1330207
A116: V | B116: =IF(VLOOKUP(F116,'T5-6 COPC'!E$11:N$113,10,FALSE)="V","X","") -> X | C116: SVOCs | D116: Acenaphthene | E116: Acenaphthene | F116: 83-32-9 | G116: =VLOOKUP(S116,[13]VLOOKUP!$A$25:$X$200,23,FALSE) -> 154.21 | H116: =VLOOKUP(S116,[13]VLOOKUP!$A$25:$X$200,3,FALSE) -> 4898 | I116: =VLOOKUP(S116,[13]VLOOKUP!$A$25:$X$200,5,FALSE) -> 0.0421 | J116: =VLOOKUP(S116,[13]VLOOKUP!$A$25:$X$200,7,FALSE) -> 7.69e-06 | K116: =VLOOKUP(S116,[13]VLOOKUP!$A$25:$X$200,9,FALSE) -> 4.24 | L116: =VLOOKUP(S116,[13]VLOOKUP!$A$25:$X$200,13,FALSE) -> 0.000155 | M116: 105.0000047 | N116: =VLOOKUP(S116,[13]VLOOKUP!$A$25:$X$200,17,FALSE) -> 550.54 | O116: =VLOOKUP(S116,[13]VLOOKUP!$A$25:$X$200,19,FALSE) -> 803.15 | P116: =VLOOKUP(S116,[13]VLOOKUP!$A$25:$X$200,21,FALSE) -> 12155 | Q116: NDEP + USEPA 2004 for Tb, Tc, ΔH | R116: =VLOOKUP(S116,[13]VLOOKUP!$A$25:$Z$200,26,FALSE) -> NDEP + USEPA 2004 for Tb, Tc, ΔH | S116: 83329
B117: =IF(VLOOKUP(F117,'T5-6 COPC'!E$11:N$113,10,FALSE)="V","X","") ->  | C117: SVOCs | D117: Acenaphthylene | E117: Acenaphthylene | F117: 208-96-8 | G117: =VLOOKUP(S117,[13]VLOOKUP!$A$25:$X$200,23,FALSE) -> 152 | H117: =VLOOKUP(S117,[13]VLOOKUP!$A$25:$X$200,3,FALSE) -> 1500 | I117: =VLOOKUP(S117,[13]VLOOKUP!$A$25:$X$200,5,FALSE) -> 0.0421 | J117: =VLOOKUP(S117,[13]VLOOKUP!$A$25:$X$200,7,FALSE) -> 7.69e-06 | K117: =VLOOKUP(S117,[13]VLOOKUP!$A$25:$X$200,9,FALSE) -> 16.1 | L117: =VLOOKUP(S117,[13]VLOOKUP!$A$25:$X$200,13,FALSE) -> 0.000114 | M117: 106.0000047 | N117: =VLOOKUP(S117,[13]VLOOKUP!$A$25:$X$200,17,FALSE) -> 0 | O117: =VLOOKUP(S117,[13]VLOOKUP!$A$25:$X$200,19,FALSE) -> 999 | P117: =VLOOKUP(S117,[13]VLOOKUP!$A$25:$X$200,21,FALSE) -> 0 | Q117: NDEP + USEPA 2004 for Tb, Tc, ΔH | R117: =VLOOKUP(S117,[13]VLOOKUP!$A$25:$Z$200,26,FALSE) -> NDEP + USEPA 2004 for Tb, Tc, ΔH | S117: 208968
B118: =IF(VLOOKUP(F118,'T5-6 COPC'!E$11:N$113,10,FALSE)="V","X","") ->  | C118: SVOCs | D118: Acetophenone | E118: Acetophenone | F118: 98-86-2 | G118: =VLOOKUP(S118,[13]VLOOKUP!$A$25:$X$200,23,FALSE) -> 120 | H118: =VLOOKUP(S118,[13]VLOOKUP!$A$25:$X$200,3,FALSE) -> 30.9 | I118: =VLOOKUP(S118,[13]VLOOKUP!$A$25:$X$200,5,FALSE) -> 0.06 | J118: =VLOOKUP(S118,[13]VLOOKUP!$A$25:$X$200,7,FALSE) -> 8.7e-06 | K118: =VLOOKUP(S118,[13]VLOOKUP!$A$25:$X$200,9,FALSE) -> 6100 | L118: =VLOOKUP(S118,[13]VLOOKUP!$A$25:$X$200,13,FALSE) -> 1.1e-05 | M118: 107.0000047 | N118: =VLOOKUP(S118,[13]VLOOKUP!$A$25:$X$200,17,FALSE) -> 475 | O118: =VLOOKUP(S118,[13]VLOOKUP!$A$25:$X$200,19,FALSE) -> 709.5 | P118: =VLOOKUP(S118,[13]VLOOKUP!$A$25:$X$200,21,FALSE) -> 11731.5 | Q118: NDEP + USEPA 2004 for Tb, Tc, ΔH | R118: =VLOOKUP(S118,[13]VLOOKUP!$A$25:$Z$200,26,FALSE) -> NDEP + USEPA 2004 for Tb, Tc, ΔH | S118: 98862
A119: V | B119: =IF(VLOOKUP(F119,'T5-6 COPC'!E$11:N$113,10,FALSE)="V","X","") -> X | C119: SVOCs | D119: Anthracene | E119: Anthracene | F119: 120-12-7 | G119: =VLOOKUP(S119,[13]VLOOKUP!$A$25:$X$200,23,FALSE) -> 178 | H119: =VLOOKUP(S119,[13]VLOOKUP!$A$25:$X$200,3,FALSE) -> 23500 | I119: =VLOOKUP(S119,[13]VLOOKUP!$A$25:$X$200,5,FALSE) -> 0.0324 | J119: =VLOOKUP(S119,[13]VLOOKUP!$A$25:$X$200,7,FALSE) -> 7.74e-06 | K119: =VLOOKUP(S119,[13]VLOOKUP!$A$25:$X$200,9,FALSE) -> 0.0434 | L119: =VLOOKUP(S119,[13]VLOOKUP!$A$25:$X$200,13,FALSE) -> 6.5e-05 | M119: 108.0000047 | N119: =VLOOKUP(S119,[13]VLOOKUP!$A$25:$X$200,17,FALSE) -> 0 | O119: =VLOOKUP(S119,[13]VLOOKUP!$A$25:$X$200,19,FALSE) -> 999 | P119: =VLOOKUP(S119,[13]VLOOKUP!$A$25:$X$200,21,FALSE) -> 0 | Q119: NDEP + USEPA 2004 for Tb, Tc, ΔH | R119: =VLOOKUP(S119,[13]VLOOKUP!$A$25:$Z$200,26,FALSE) -> NDEP + USEPA 2004 for Tb, Tc, ΔH | S119: 120127
B120: =IF(VLOOKUP(F120,'T5-6 COPC'!E$11:N$113,10,FALSE)="V","X","") ->  | C120: SVOCs | D120: Azobenzene | E120: Azobenzene | F120: 103-33-3 | G120: =VLOOKUP(S120,[13]VLOOKUP!$A$25:$X$200,23,FALSE) -> 182 | H120: =VLOOKUP(S120,[13]VLOOKUP!$A$25:$X$200,3,FALSE) -> 1954 | I120: =VLOOKUP(S120,[13]VLOOKUP!$A$25:$X$200,5,FALSE) -> 0.034 | J120: =VLOOKUP(S120,[13]VLOOKUP!$A$25:$X$200,7,FALSE) -> 7e-06 | K120: =VLOOKUP(S120,[13]VLOOKUP!$A$25:$X$200,9,FALSE) -> 6.4 | L120: =VLOOKUP(S120,[13]VLOOKUP!$A$25:$X$200,13,FALSE) -> 1.341463415e-05 | M120: 109.0000047 | N120: =VLOOKUP(S120,[13]VLOOKUP!$A$25:$X$200,17,FALSE) -> 0 | O120: =VLOOKUP(S120,[13]VLOOKUP!$A$25:$X$200,19,FALSE) -> 0 | P120: =VLOOKUP(S120,[13]VLOOKUP!$A$25:$X$200,21,FALSE) -> 0 | Q120: NDEP | R120: =VLOOKUP(S120,[13]VLOOKUP!$A$25:$Z$200,26,FALSE) -> NDEP | S120: 103333
A121: V | B121: =IF(VLOOKUP(F121,'T5-6 COPC'!E$11:N$113,10,FALSE)="V","X","") -> X | C121: SVOCs | D121: Benzo(a)anthracene | E121: Benzo(a)anthracene | F121: 56-55-3 | G121: =VLOOKUP(S121,[13]VLOOKUP!$A$25:$X$200,23,FALSE) -> 228.3 | H121: =VLOOKUP(S121,[13]VLOOKUP!$A$25:$X$200,3,FALSE) -> 176900 | I121: =VLOOKUP(S121,[13]VLOOKUP!$A$25:$X$200,5,FALSE) -> 0.0261138 | J121: =VLOOKUP(S121,[13]VLOOKUP!$A$25:$X$200,7,FALSE) -> 6.7495e-06 | K121: =VLOOKUP(S121,[13]VLOOKUP!$A$25:$X$200,9,FALSE) -> 0.0094 | L121: =VLOOKUP(S121,[13]VLOOKUP!$A$25:$X$200,13,FALSE) -> 1.2e-05 | M121: 110.0000047 | N121: =VLOOKUP(S121,[13]VLOOKUP!$A$25:$X$200,17,FALSE) -> 0 | O121: =VLOOKUP(S121,[13]VLOOKUP!$A$25:$X$200,19,FALSE) -> 0 | P121: =VLOOKUP(S121,[13]VLOOKUP!$A$25:$X$200,21,FALSE) -> 0 | Q121: RSL | R121: =VLOOKUP(S121,[13]VLOOKUP!$A$25:$Z$200,26,FALSE) -> RSL | S121: 56553
A122: 0 | B122: =IF(VLOOKUP(F122,'T5-6 COPC'!E$11:N$113,10,FALSE)="V","X","") ->  | C122: SVOCs | D122: Benzo(a)pyrene | E122: Benzo(a)pyrene | F122: 50-32-8 | G122: =VLOOKUP(S122,[13]VLOOKUP!$A$25:$X$200,23,FALSE) ->  | H122: =VLOOKUP(S122,[13]VLOOKUP!$A$25:$X$200,3,FALSE) ->  | I122: =VLOOKUP(S122,[13]VLOOKUP!$A$25:$X$200,5,FALSE) ->  | J122: =VLOOKUP(S122,[13]VLOOKUP!$A$25:$X$200,7,FALSE) ->  | K122: =VLOOKUP(S122,[13]VLOOKUP!$A$25:$X$200,9,FALSE) ->  | L122: =VLOOKUP(S122,[13]VLOOKUP!$A$25:$X$200,13,FALSE) ->  | M122: 111.0000047 | N122: =VLOOKUP(S122,[13]VLOOKUP!$A$25:$X$200,17,FALSE) ->  | O122: =VLOOKUP(S122,[13]VLOOKUP!$A$25:$X$200,19,FALSE) ->  | P122: =VLOOKUP(S122,[13]VLOOKUP!$A$25:$X$200,21,FALSE) ->  | R122: =VLOOKUP(S122,[13]VLOOKUP!$A$25:$Z$200,26,FALSE) ->  | S122: 50328
A123: 0 | B123: =IF(VLOOKUP(F123,'T5-6 COPC'!E$11:N$113,10,FALSE)="V","X","") ->  | C123: SVOCs | D123: Benzo(g,h,i)perylene | E123: Benzo(g,h,i)perylene | F123: 191-24-2 | G123: =VLOOKUP(S123,[13]VLOOKUP!$A$25:$X$200,23,FALSE) ->  | H123: =VLOOKUP(S123,[13]VLOOKUP!$A$25:$X$200,3,FALSE) ->  | I123: =VLOOKUP(S123,[13]VLOOKUP!$A$25:$X$200,5,FALSE) ->  | J123: =VLOOKUP(S123,[13]VLOOKUP!$A$25:$X$200,7,FALSE) ->  | K123: =VLOOKUP(S123,[13]VLOOKUP!$A$25:$X$200,9,FALSE) ->  | L123: =VLOOKUP(S123,[13]VLOOKUP!$A$25:$X$200,13,FALSE) ->  | M123: 112.0000047 | N123: =VLOOKUP(S123,[13]VLOOKUP!$A$25:$X$200,17,FALSE) ->  | O123: =VLOOKUP(S123,[13]VLOOKUP!$A$25:$X$200,19,FALSE) ->  | P123: =VLOOKUP(S123,[13]VLOOKUP!$A$25:$X$200,21,FALSE) ->  | R123: =VLOOKUP(S123,[13]VLOOKUP!$A$25:$Z$200,26,FALSE) ->  | S123: 191242
A124: 0 | B124: =IF(VLOOKUP(F124,'T5-6 COPC'!E$11:N$113,10,FALSE)="V","X","") ->  | C124: SVOCs | D124: Benzo(k)fluoranthene | E124: Benzo(k)fluoranthene | F124: 207-08-9 | G124: =VLOOKUP(S124,[13]VLOOKUP!$A$25:$X$200,23,FALSE) ->  | H124: =VLOOKUP(S124,[13]VLOOKUP!$A$25:$X$200,3,FALSE) ->  | I124: =VLOOKUP(S124,[13]VLOOKUP!$A$25:$X$200,5,FALSE) ->  | J124: =VLOOKUP(S124,[13]VLOOKUP!$A$25:$X$200,7,FALSE) ->  | K124: =VLOOKUP(S124,[13]VLOOKUP!$A$25:$X$200,9,FALSE) ->  | L124: =VLOOKUP(S124,[13]VLOOKUP!$A$25:$X$200,13,FALSE) ->  | M124: 113.0000047 | N124: =VLOOKUP(S124,[13]VLOOKUP!$A$25:$X$200,17,FALSE) ->  | O124: =VLOOKUP(S124,[13]VLOOKUP!$A$25:$X$200,19,FALSE) ->  | P124: =VLOOKUP(S124,[13]VLOOKUP!$A$25:$X$200,21,FALSE) ->  | R124: =VLOOKUP(S124,[13]VLOOKUP!$A$25:$Z$200,26,FALSE) ->  | S124: 207089
B125: =IF(VLOOKUP(F125,'T5-6 COPC'!E$11:N$113,10,FALSE)="V","X","") ->  | C125: SVOCs | D125: Bis(2-chloroethyl)ether | E125: bis(2-Chloroethyl) ether | F125: 111-44-4 | G125: =VLOOKUP(S125,[13]VLOOKUP!$A$25:$X$200,23,FALSE) -> 143 | H125: =VLOOKUP(S125,[13]VLOOKUP!$A$25:$X$200,3,FALSE) -> 76 | I125: =VLOOKUP(S125,[13]VLOOKUP!$A$25:$X$200,5,FALSE) -> 0.0692 | J125: =VLOOKUP(S125,[13]VLOOKUP!$A$25:$X$200,7,FALSE) -> 7.53e-06 | K125: =VLOOKUP(S125,[13]VLOOKUP!$A$25:$X$200,9,FALSE) -> 17200 | L125: =VLOOKUP(S125,[13]VLOOKUP!$A$25:$X$200,13,FALSE) -> 1.8e-05 | M125: 114.0000047 | N125: =VLOOKUP(S125,[13]VLOOKUP!$A$25:$X$200,17,FALSE) -> 451.15 | O125: =VLOOKUP(S125,[13]VLOOKUP!$A$25:$X$200,19,FALSE) -> 659.79 | P125: =VLOOKUP(S125,[13]VLOOKUP!$A$25:$X$200,21,FALSE) -> 10803 | Q125: NDEP + USEPA 2004 for Tb, Tc, ΔH | R125: =VLOOKUP(S125,[13]VLOOKUP!$A$25:$Z$200,26,FALSE) -> NDEP + USEPA 2004 for Tb, Tc, ΔH | S125: 111444
B126: =IF(VLOOKUP(F126,'T5-6 COPC'!E$11:N$113,10,FALSE)="V","X","") ->  | C126: SVOCs | D126: Bis(2-Ethylhexyl)phthalate | E126: bis(2-Ethylhexyl)phthalate | F126: 117-81-7 | G126: =VLOOKUP(S126,[13]VLOOKUP!$A$25:$X$200,23,FALSE) ->  | H126: =VLOOKUP(S126,[13]VLOOKUP!$A$25:$X$200,3,FALSE) ->  | I126: =VLOOKUP(S126,[13]VLOOKUP!$A$25:$X$200,5,FALSE) ->  | J126: =VLOOKUP(S126,[13]VLOOKUP!$A$25:$X$200,7,FALSE) ->  | K126: =VLOOKUP(S126,[13]VLOOKUP!$A$25:$X$200,9,FALSE) ->  | L126: =VLOOKUP(S126,[13]VLOOKUP!$A$25:$X$200,13,FALSE) ->  | M126: 115.0000047 | N126: =VLOOKUP(S126,[13]VLOOKUP!$A$25:$X$200,17,FALSE) ->  | O126: =VLOOKUP(S126,[13]VLOOKUP!$A$25:$X$200,19,FALSE) ->  | P126: =VLOOKUP(S126,[13]VLOOKUP!$A$25:$X$200,21,FALSE) ->  | R126: =VLOOKUP(S126,[13]VLOOKUP!$A$25:$Z$200,26,FALSE) ->  | S126: 117817
B127: =IF(VLOOKUP(F127,'T5-6 COPC'!E$11:N$113,10,FALSE)="V","X","") ->  | C127: SVOCs | D127: Bromophenyl-phenylether 4 | E127: 4-Bromophenyl-phenyl ether | F127: 101-55-3 | G127: =VLOOKUP(S127,[13]VLOOKUP!$A$25:$X$200,23,FALSE) -> 249.11 | H127: =VLOOKUP(S127,[13]VLOOKUP!$A$25:$X$200,3,FALSE) -> 3077 | I127: =VLOOKUP(S127,[13]VLOOKUP!$A$25:$X$200,5,FALSE) -> 0.08 | J127: =VLOOKUP(S127,[13]VLOOKUP!$A$25:$X$200,7,FALSE) -> 8e-06 | K127: =VLOOKUP(S127,[13]VLOOKUP!$A$25:$X$200,9,FALSE) -> 1.448 | L127: =VLOOKUP(S127,[13]VLOOKUP!$A$25:$X$200,13,FALSE) -> 4.69e-05 | M127: 116.0000047 | N127: =VLOOKUP(S127,[13]VLOOKUP!$A$25:$X$200,17,FALSE) -> 0 | O127: =VLOOKUP(S127,[13]VLOOKUP!$A$25:$X$200,19,FALSE) -> 0 | P127: =VLOOKUP(S127,[13]VLOOKUP!$A$25:$X$200,21,FALSE) -> 0 | Q127: EPISUITE + 1,2-Dibromo-3-chloropropane for diffusivities | R127: =VLOOKUP(S127,[13]VLOOKUP!$A$25:$Z$200,26,FALSE) -> EPISUITE + 1,2-Dibromo-3-chloropropane for diffusivities | S127: 101553
B128: =IF(VLOOKUP(F128,'T5-6 COPC'!E$11:N$113,10,FALSE)="V","X","") ->  | C128: SVOCs | D128: Chloronaphthalene 2 | E128: 2-Chloronaphthalene | F128: 91-58-7 | G128: =VLOOKUP(S128,[13]VLOOKUP!$A$25:$X$200,23,FALSE) -> 160 | H128: =VLOOKUP(S128,[13]VLOOKUP!$A$25:$X$200,3,FALSE) -> 1550 | I128: =VLOOKUP(S128,[13]VLOOKUP!$A$25:$X$200,5,FALSE) -> 0.0347 | J128: =VLOOKUP(S128,[13]VLOOKUP!$A$25:$X$200,7,FALSE) -> 8.8e-06 | K128: =VLOOKUP(S128,[13]VLOOKUP!$A$25:$X$200,9,FALSE) -> 12 | L128: =VLOOKUP(S128,[13]VLOOKUP!$A$25:$X$200,13,FALSE) -> 0.00031 | M128: 117.0000047 | N128: =VLOOKUP(S128,[13]VLOOKUP!$A$25:$X$200,17,FALSE) -> 0 | O128: =VLOOKUP(S128,[13]VLOOKUP!$A$25:$X$200,19,FALSE) -> 0 | P128: =VLOOKUP(S128,[13]VLOOKUP!$A$25:$X$200,21,FALSE) -> 0 | Q128: NDEP | R128: =VLOOKUP(S128,[13]VLOOKUP!$A$25:$Z$200,26,FALSE) -> NDEP | S128: 91587
B129: =IF(VLOOKUP(F129,'T5-6 COPC'!E$11:N$113,10,FALSE)="V","X","") ->  | C129: SVOCs | D129: Chlorophenol 2 | E129: 2-Chlorophenol | F129: 95-57-8 | G129: =VLOOKUP(S129,[13]VLOOKUP!$A$25:$X$200,23,FALSE) -> 130 | H129: =VLOOKUP(S129,[13]VLOOKUP!$A$25:$X$200,3,FALSE) -> 398 | I129: =VLOOKUP(S129,[13]VLOOKUP!$A$25:$X$200,5,FALSE) -> 0.501 | J129: =VLOOKUP(S129,[13]VLOOKUP!$A$25:$X$200,7,FALSE) -> 9.46e-06 | K129: =VLOOKUP(S129,[13]VLOOKUP!$A$25:$X$200,9,FALSE) -> 22000 | L129: =VLOOKUP(S129,[13]VLOOKUP!$A$25:$X$200,13,FALSE) -> 0.000391 | M129: 118.0000047 | N129: =VLOOKUP(S129,[13]VLOOKUP!$A$25:$X$200,17,FALSE) -> 447.53 | O129: =VLOOKUP(S129,[13]VLOOKUP!$A$25:$X$200,19,FALSE) -> 675 | P129: =VLOOKUP(S129,[13]VLOOKUP!$A$25:$X$200,21,FALSE) -> 9572 | Q129: NDEP + USEPA 2004 for Tb, Tc, ΔH | R129: =VLOOKUP(S129,[13]VLOOKUP!$A$25:$Z$200,26,FALSE) -> NDEP + USEPA 2004 for Tb, Tc, ΔH | S129: 95578
B130: =IF(VLOOKUP(F130,'T5-6 COPC'!E$11:N$113,10,FALSE)="V","X","") ->  | C130: SVOCs | D130: Chlorophenyl-phenyl ether 4 | E130: 4-Chlorophenyl-phenyl ether | F130: 7005-72-3 | G130: =VLOOKUP(S130,[13]VLOOKUP!$A$25:$X$200,23,FALSE) -> 204.66 | H130: =VLOOKUP(S130,[13]VLOOKUP!$A$25:$X$200,3,FALSE) -> 3077 | I130: =VLOOKUP(S130,[13]VLOOKUP!$A$25:$X$200,5,FALSE) -> 0.03 | J130: =VLOOKUP(S130,[13]VLOOKUP!$A$25:$X$200,7,FALSE) -> 8.23e-06 | K130: =VLOOKUP(S130,[13]VLOOKUP!$A$25:$X$200,9,FALSE) -> 3.3 | L130: =VLOOKUP(S130,[13]VLOOKUP!$A$25:$X$200,13,FALSE) -> 8.73e-05 | M130: 119.0000047 | N130: =VLOOKUP(S130,[13]VLOOKUP!$A$25:$X$200,17,FALSE) -> 0 | O130: =VLOOKUP(S130,[13]VLOOKUP!$A$25:$X$200,19,FALSE) -> 0 | P130: =VLOOKUP(S130,[13]VLOOKUP!$A$25:$X$200,21,FALSE) -> 0 | Q130: EPISUITE + 1,2,4-Trichlorobenzene for diffusivities | R130: =VLOOKUP(S130,[13]VLOOKUP!$A$25:$Z$200,26,FALSE) -> EPISUITE + 1,2,4-Trichlorobenzene for diffusivities | S130: 7005723
B131: =IF(VLOOKUP(F131,'T5-6 COPC'!E$11:N$113,10,FALSE)="V","X","") ->  | C131: SVOCs | D131: Dibenzofuran | E131: Dibenzofuran | F131: 132-64-9 | G131: =VLOOKUP(S131,[13]VLOOKUP!$A$25:$X$200,23,FALSE) -> 170 | H131: =VLOOKUP(S131,[13]VLOOKUP!$A$25:$X$200,3,FALSE) -> 7760 | I131: =VLOOKUP(S131,[13]VLOOKUP!$A$25:$X$200,5,FALSE) -> 0.0601 | J131: =VLOOKUP(S131,[13]VLOOKUP!$A$25:$X$200,7,FALSE) -> 1e-05 | K131: =VLOOKUP(S131,[13]VLOOKUP!$A$25:$X$200,9,FALSE) -> 3.1 | L131: =VLOOKUP(S131,[13]VLOOKUP!$A$25:$X$200,13,FALSE) -> 1.3e-05 | M131: 120.0000047 | N131: =VLOOKUP(S131,[13]VLOOKUP!$A$25:$X$200,17,FALSE) -> 560 | O131: =VLOOKUP(S131,[13]VLOOKUP!$A$25:$X$200,19,FALSE) -> 824 | P131: =VLOOKUP(S131,[13]VLOOKUP!$A$25:$X$200,21,FALSE) -> 66400 | Q131: NDEP + USEPA 2004 for Tb, Tc, ΔH | R131: =VLOOKUP(S131,[13]VLOOKUP!$A$25:$Z$200,26,FALSE) -> NDEP + USEPA 2004 for Tb, Tc, ΔH | S131: 132649
A132: V | B132: =IF(VLOOKUP(F132,'T5-6 COPC'!E$11:N$113,10,FALSE)="V","X","") -> X | C132: SVOCs | D132: Fluorene | E132: Fluorene | F132: 86-73-7 | G132: =VLOOKUP(S132,[13]VLOOKUP!$A$25:$X$200,23,FALSE) -> 166.21 | H132: =VLOOKUP(S132,[13]VLOOKUP!$A$25:$X$200,3,FALSE) -> 7900 | I132: =VLOOKUP(S132,[13]VLOOKUP!$A$25:$X$200,5,FALSE) -> 0.06081 | J132: =VLOOKUP(S132,[13]VLOOKUP!$A$25:$X$200,7,FALSE) -> 7.88e-06 | K132: =VLOOKUP(S132,[13]VLOOKUP!$A$25:$X$200,9,FALSE) -> 1.9 | L132: =VLOOKUP(S132,[13]VLOOKUP!$A$25:$X$200,13,FALSE) -> 7.7e-05 | M132: 121.0000047 | N132: =VLOOKUP(S132,[13]VLOOKUP!$A$25:$X$200,17,FALSE) -> 570.44 | O132: =VLOOKUP(S132,[13]VLOOKUP!$A$25:$X$200,19,FALSE) -> 870 | P132: =VLOOKUP(S132,[13]VLOOKUP!$A$25:$X$200,21,FALSE) -> 12666 | Q132: NDEP + USEPA 2004 for Tb, Tc, ΔH | R132: =VLOOKUP(S132,[13]VLOOKUP!$A$25:$Z$200,26,FALSE) -> NDEP + USEPA 2004 for Tb, Tc, ΔH | S132: 86737
A133: V | B133: =IF(VLOOKUP(F133,'T5-6 COPC'!E$11:N$113,10,FALSE)="V","X","") -> X | C133: SVOCs | D133: Hexachlorobenzene | E133: Hexachlorobenzene | F133: 118-74-1 | G133: =VLOOKUP(S133,[13]VLOOKUP!$A$25:$X$200,23,FALSE) -> 284.78 | H133: =VLOOKUP(S133,[13]VLOOKUP!$A$25:$X$200,3,FALSE) -> 6195 | I133: =VLOOKUP(S133,[13]VLOOKUP!$A$25:$X$200,5,FALSE) -> 0.0289745 | J133: =VLOOKUP(S133,[13]VLOOKUP!$A$25:$X$200,7,FALSE) -> 7.8497e-06 | K133: =VLOOKUP(S133,[13]VLOOKUP!$A$25:$X$200,9,FALSE) -> 0.0062 | L133: =VLOOKUP(S133,[13]VLOOKUP!$A$25:$X$200,13,FALSE) -> 0.0017 | M133: 122.0000047 | N133: =VLOOKUP(S133,[13]VLOOKUP!$A$25:$X$200,17,FALSE) -> 582.55 | O133: =VLOOKUP(S133,[13]VLOOKUP!$A$25:$X$200,19,FALSE) -> 825 | P133: =VLOOKUP(S133,[13]VLOOKUP!$A$25:$X$200,21,FALSE) -> 14447 | Q133: RSL + USEPA 2004 for Tb, Tc, and ΔH | R133: =VLOOKUP(S133,[13]VLOOKUP!$A$25:$Z$200,26,FALSE) -> RSL + USEPA 2004 for Tb, Tc, and ΔH | S133: 118741
B134: =IF(VLOOKUP(F134,'T5-6 COPC'!E$11:N$113,10,FALSE)="V","X","") ->  | C134: SVOCs | D134: Hexachlorobutadiene | E134: Hexachlorobutadiene | F134: 87-68-3 | G134: =VLOOKUP(S134,[13]VLOOKUP!$A$25:$X$200,23,FALSE) -> 260.76 | H134: =VLOOKUP(S134,[13]VLOOKUP!$A$25:$X$200,3,FALSE) -> 845.2 | I134: =VLOOKUP(S134,[13]VLOOKUP!$A$25:$X$200,5,FALSE) -> 0.0267445 | J134: =VLOOKUP(S134,[13]VLOOKUP!$A$25:$X$200,7,FALSE) -> 7.0264e-06 | K134: =VLOOKUP(S134,[13]VLOOKUP!$A$25:$X$200,9,FALSE) -> 3.2 | L134: =VLOOKUP(S134,[13]VLOOKUP!$A$25:$X$200,13,FALSE) -> 0.0103 | M134: 123.0000047 | N134: =VLOOKUP(S134,[13]VLOOKUP!$A$25:$X$200,17,FALSE) -> 486.15 | O134: =VLOOKUP(S134,[13]VLOOKUP!$A$25:$X$200,19,FALSE) -> 738 | P134: =VLOOKUP(S134,[13]VLOOKUP!$A$25:$X$200,21,FALSE) -> 10206 | Q134: RSL + USEPA 2004 for Tb, Tc, and ΔH | R134: =VLOOKUP(S134,[13]VLOOKUP!$A$25:$Z$200,26,FALSE) -> RSL + USEPA 2004 for Tb, Tc, and ΔH | S134: 87683
B135: =IF(VLOOKUP(F135,'T5-6 COPC'!E$11:N$113,10,FALSE)="V","X","") ->  | C135: SVOCs | D135: Hexachloroethane | E135: Hexachloroethane | F135: 67-72-1 | G135: =VLOOKUP(S135,[13]VLOOKUP!$A$25:$X$200,23,FALSE) -> 236.74 | H135: =VLOOKUP(S135,[13]VLOOKUP!$A$25:$X$200,3,FALSE) -> 196.8 | I135: =VLOOKUP(S135,[13]VLOOKUP!$A$25:$X$200,5,FALSE) -> 0.0320938 | J135: =VLOOKUP(S135,[13]VLOOKUP!$A$25:$X$200,7,FALSE) -> 8.8904e-06 | K135: =VLOOKUP(S135,[13]VLOOKUP!$A$25:$X$200,9,FALSE) -> 50 | L135: =VLOOKUP(S135,[13]VLOOKUP!$A$25:$X$200,13,FALSE) -> 0.00389 | M135: 124.0000047 | N135: =VLOOKUP(S135,[13]VLOOKUP!$A$25:$X$200,17,FALSE) -> 458 | O135: =VLOOKUP(S135,[13]VLOOKUP!$A$25:$X$200,19,FALSE) -> 695 | P135: =VLOOKUP(S135,[13]VLOOKUP!$A$25:$X$200,21,FALSE) -> 9510 | Q135: RSL + USEPA 2004 for Tb, Tc, and ΔH | R135: =VLOOKUP(S135,[13]VLOOKUP!$A$25:$Z$200,26,FALSE) -> RSL + USEPA 2004 for Tb, Tc, and ΔH | S135: 67721
A136: V | B136: =IF(VLOOKUP(F136,'T5-6 COPC'!E$11:N$113,10,FALSE)="V","X","") -> X | C136: SVOCs | D136: Methylnaphthalene 2 | E136: 2-Methylnaphthalene | F136: 91-57-6 | G136: =VLOOKUP(S136,[13]VLOOKUP!$A$25:$X$200,23,FALSE) -> 142.2 | H136: =VLOOKUP(S136,[13]VLOOKUP!$A$25:$X$200,3,FALSE) -> 2478 | I136: =VLOOKUP(S136,[13]VLOOKUP!$A$25:$X$200,5,FALSE) -> 0.0524319 | J136: =VLOOKUP(S136,[13]VLOOKUP!$A$25:$X$200,7,FALSE) -> 7.7811e-06 | K136: =VLOOKUP(S136,[13]VLOOKUP!$A$25:$X$200,9,FALSE) -> 24.6 | L136: =VLOOKUP(S136,[13]VLOOKUP!$A$25:$X$200,13,FALSE) -> 0.000518 | M136: 125.0000047 | N136: =VLOOKUP(S136,[13]VLOOKUP!$A$25:$X$200,17,FALSE) -> 514.26 | O136: =VLOOKUP(S136,[13]VLOOKUP!$A$25:$X$200,19,FALSE) -> 761 | P136: =VLOOKUP(S136,[13]VLOOKUP!$A$25:$X$200,21,FALSE) -> 12600 | Q136: RSL + USEPA 2004 for Tb, Tc, and ΔH | R136: =VLOOKUP(S136,[13]VLOOKUP!$A$25:$Z$200,26,FALSE) -> RSL + USEPA 2004 for Tb, Tc, and ΔH | S136: 91576
B137: =IF(VLOOKUP(F137,'T5-6 COPC'!E$11:N$113,10,FALSE)="V","X","") ->  | C137: SVOCs | D137: Methylphenol, 3&4 | E137: 3&4-Methylphenol | F137: 15831-10-4 | G137: =VLOOKUP(S137,[13]VLOOKUP!$A$25:$X$200,23,FALSE) -> 108.14 | H137: =VLOOKUP(S137,[13]VLOOKUP!$A$25:$X$200,3,FALSE) -> 300.4 | I137: =VLOOKUP(S137,[13]VLOOKUP!$A$25:$X$200,5,FALSE) -> 0.0723938 | J137: =VLOOKUP(S137,[13]VLOOKUP!$A$25:$X$200,7,FALSE) -> 9.2397e-06 | K137: =VLOOKUP(S137,[13]VLOOKUP!$A$25:$X$200,9,FALSE) -> 21500 | L137: =VLOOKUP(S137,[13]VLOOKUP!$A$25:$X$200,13,FALSE) -> 1e-06 | M137: 126.0000047 | N137: =VLOOKUP(S137,[13]VLOOKUP!$A$25:$X$200,17,FALSE) -> 0 | O137: =VLOOKUP(S137,[13]VLOOKUP!$A$25:$X$200,19,FALSE) -> 0 | P137: =VLOOKUP(S137,[13]VLOOKUP!$A$25:$X$200,21,FALSE) -> 0 | Q137: RSL - 4-Methylphenol used as surrogate for all properties | R137: =VLOOKUP(S137,[13]VLOOKUP!$A$25:$Z$200,26,FALSE) -> RSL - 4-Methylphenol used as surrogate for all properties | S137: 15831104
A138: V | B138: =IF(VLOOKUP(F138,'T5-6 COPC'!E$11:N$113,10,FALSE)="V","X","") -> X | C138: SVOCs | D138: Naphthalene | E138: Naphthalene | F138: 91-20-3 | G138: =VLOOKUP(S138,[13]VLOOKUP!$A$25:$X$200,23,FALSE) -> 128.16 | H138: =VLOOKUP(S138,[13]VLOOKUP!$A$25:$X$200,3,FALSE) -> 1191 | I138: =VLOOKUP(S138,[13]VLOOKUP!$A$25:$X$200,5,FALSE) -> 0.059 | J138: =VLOOKUP(S138,[13]VLOOKUP!$A$25:$X$200,7,FALSE) -> 7.5e-06 | K138: =VLOOKUP(S138,[13]VLOOKUP!$A$25:$X$200,9,FALSE) -> 31 | L138: =VLOOKUP(S138,[13]VLOOKUP!$A$25:$X$200,13,FALSE) -> 0.000483 | M138: 127.0000047 | N138: =VLOOKUP(S138,[13]VLOOKUP!$A$25:$X$200,17,FALSE) -> 491.14 | O138: =VLOOKUP(S138,[13]VLOOKUP!$A$25:$X$200,19,FALSE) -> 748.4 | P138: =VLOOKUP(S138,[13]VLOOKUP!$A$25:$X$200,21,FALSE) -> 10373 | Q138: NDEP + USEPA 2004 for Tb, Tc, ΔH | R138: =VLOOKUP(S138,[13]VLOOKUP!$A$25:$Z$200,26,FALSE) -> NDEP + USEPA 2004 for Tb, Tc, ΔH | S138: 91203
B139: =IF(VLOOKUP(F139,'T5-6 COPC'!E$11:N$113,10,FALSE)="V","X","") ->  | C139: SVOCs | D139: Nitrobenzene | E139: Nitrobenzene | F139: 98-95-3 | G139: =VLOOKUP(S139,[13]VLOOKUP!$A$25:$X$200,23,FALSE) -> 120 | H139: =VLOOKUP(S139,[13]VLOOKUP!$A$25:$X$200,3,FALSE) -> 64.6 | I139: =VLOOKUP(S139,[13]VLOOKUP!$A$25:$X$200,5,FALSE) -> 0.076 | J139: =VLOOKUP(S139,[13]VLOOKUP!$A$25:$X$200,7,FALSE) -> 8.6e-06 | K139: =VLOOKUP(S139,[13]VLOOKUP!$A$25:$X$200,9,FALSE) -> 2100 | L139: =VLOOKUP(S139,[13]VLOOKUP!$A$25:$X$200,13,FALSE) -> 2.39e-05 | M139: 128.0000047 | N139: =VLOOKUP(S139,[13]VLOOKUP!$A$25:$X$200,17,FALSE) -> 483.95 | O139: =VLOOKUP(S139,[13]VLOOKUP!$A$25:$X$200,19,FALSE) -> 719 | P139: =VLOOKUP(S139,[13]VLOOKUP!$A$25:$X$200,21,FALSE) -> 10566 | Q139: NDEP + USEPA 2004 for Tb, Tc, ΔH | R139: =VLOOKUP(S139,[13]VLOOKUP!$A$25:$Z$200,26,FALSE) -> NDEP + USEPA 2004 for Tb, Tc, ΔH | S139: 98953
B140: =IF(VLOOKUP(F140,'T5-6 COPC'!E$11:N$113,10,FALSE)="V","X","") ->  | C140: SVOCs | D140: Nitrophenol 2 | E140: 2-Nitrophenol | F140: 88-75-5 | G140: =VLOOKUP(S140,[13]VLOOKUP!$A$25:$X$200,23,FALSE) -> 139.11 | H140: =VLOOKUP(S140,[13]VLOOKUP!$A$25:$X$200,3,FALSE) -> 296.7 | I140: =VLOOKUP(S140,[13]VLOOKUP!$A$25:$X$200,5,FALSE) -> 0.0666 | J140: =VLOOKUP(S140,[13]VLOOKUP!$A$25:$X$200,7,FALSE) -> 7.8e-06 | K140: =VLOOKUP(S140,[13]VLOOKUP!$A$25:$X$200,9,FALSE) -> 2500 | L140: =VLOOKUP(S140,[13]VLOOKUP!$A$25:$X$200,13,FALSE) -> 1.28e-05 | M140: 129.0000047 | N140: =VLOOKUP(S140,[13]VLOOKUP!$A$25:$X$200,17,FALSE) -> 0 | O140: =VLOOKUP(S140,[13]VLOOKUP!$A$25:$X$200,19,FALSE) -> 0 | P140: =VLOOKUP(S140,[13]VLOOKUP!$A$25:$X$200,21,FALSE) -> 0 | Q140: =R140 -> EPISUITE + Benzyl chloride for diffusivities | R140: =VLOOKUP(S140,[13]VLOOKUP!$A$25:$Z$200,26,FALSE) -> EPISUITE + Benzyl chloride for diffusivities | S140: 88755
B141: =IF(VLOOKUP(F141,'T5-6 COPC'!E$11:N$113,10,FALSE)="V","X","") ->  | C141: SVOCs | D141: Nitrosodimethylamine N | E141: n-Nitrosodimethylamine | F141: 62-75-9 | G141: =VLOOKUP(S141,[13]VLOOKUP!$A$25:$X$200,23,FALSE) -> 74.083 | H141: =VLOOKUP(S141,[13]VLOOKUP!$A$25:$X$200,3,FALSE) -> 22.79 | I141: =VLOOKUP(S141,[13]VLOOKUP!$A$25:$X$200,5,FALSE) -> 0.0987674 | J141: =VLOOKUP(S141,[13]VLOOKUP!$A$25:$X$200,7,FALSE) -> 1.15e-05 | K141: =VLOOKUP(S141,[13]VLOOKUP!$A$25:$X$200,9,FALSE) -> 1000000 | L141: =VLOOKUP(S141,[13]VLOOKUP!$A$25:$X$200,13,FALSE) -> 1.82e-06 | M141: 130.0000047 | N141: =VLOOKUP(S141,[13]VLOOKUP!$A$25:$X$200,17,FALSE) -> 0 | O141: =VLOOKUP(S141,[13]VLOOKUP!$A$25:$X$200,19,FALSE) -> 0 | P141: =VLOOKUP(S141,[13]VLOOKUP!$A$25:$X$200,21,FALSE) -> 0 | Q141: RSL | R141: =VLOOKUP(S141,[13]VLOOKUP!$A$25:$Z$200,26,FALSE) -> RSL | S141: 62759
B142: =IF(VLOOKUP(F142,'T5-6 COPC'!E$11:N$113,10,FALSE)="V","X","") ->  | C142: SVOCs | D142: Octachlorostyrene | E142: Octachlorostyrene | F142: 29082-74-4 | G142: =VLOOKUP(S142,[13]VLOOKUP!$A$25:$X$200,23,FALSE) -> 379.71 | H142: =VLOOKUP(S142,[13]VLOOKUP!$A$25:$X$200,3,FALSE) -> 55140 | I142: =VLOOKUP(S142,[13]VLOOKUP!$A$25:$X$200,5,FALSE) -> 0.0289745 | J142: =VLOOKUP(S142,[13]VLOOKUP!$A$25:$X$200,7,FALSE) -> 7.8497e-06 | K142: =VLOOKUP(S142,[13]VLOOKUP!$A$25:$X$200,9,FALSE) -> 0.00174 | L142: =VLOOKUP(S142,[13]VLOOKUP!$A$25:$X$200,13,FALSE) -> 0.00023 | M142: 131.0000047 | N142: =VLOOKUP(S142,[13]VLOOKUP!$A$25:$X$200,17,FALSE) -> 0 | O142: =VLOOKUP(S142,[13]VLOOKUP!$A$25:$X$200,19,FALSE) -> 0 | P142: =VLOOKUP(S142,[13]VLOOKUP!$A$25:$X$200,21,FALSE) -> 0 | Q142: EPISUITE + Hexachlorobenzene for diffusivities | R142: =VLOOKUP(S142,[13]VLOOKUP!$A$25:$Z$200,26,FALSE) -> EPISUITE + Hexachlorobenzene for diffusivities | S142: 29082744
B143: =IF(VLOOKUP(F143,'T5-6 COPC'!E$11:N$113,10,FALSE)="V","X","") ->  | C143: SVOCs | D143: oxybis(1-Chloropropane) 2,2' | E143: bis(2-Chloro-1-methylethyl) ether | F143: 108-60-1 | G143: =VLOOKUP(S143,[13]VLOOKUP!$A$25:$X$200,23,FALSE) -> 171 | H143: =VLOOKUP(S143,[13]VLOOKUP!$A$25:$X$200,3,FALSE) -> 61 | I143: =VLOOKUP(S143,[13]VLOOKUP!$A$25:$X$200,5,FALSE) -> 0.06308 | J143: =VLOOKUP(S143,[13]VLOOKUP!$A$25:$X$200,7,FALSE) -> 6.4e-06 | K143: =VLOOKUP(S143,[13]VLOOKUP!$A$25:$X$200,9,FALSE) -> 1700 | L143: =VLOOKUP(S143,[13]VLOOKUP!$A$25:$X$200,13,FALSE) -> 0.000113 | M143: 132.0000047 | N143: =VLOOKUP(S143,[13]VLOOKUP!$A$25:$X$200,17,FALSE) -> 0 | O143: =VLOOKUP(S143,[13]VLOOKUP!$A$25:$X$200,19,FALSE) -> 0 | P143: =VLOOKUP(S143,[13]VLOOKUP!$A$25:$X$200,21,FALSE) -> 0 | Q143: NDEP | R143: =VLOOKUP(S143,[13]VLOOKUP!$A$25:$Z$200,26,FALSE) -> NDEP | S143: 108601
B144: =IF(VLOOKUP(F144,'T5-6 COPC'!E$11:N$113,10,FALSE)="V","X","") ->  | C144: SVOCs | D144: Pentachlorobenzene | E144: Pentachlorobenzene | F144: 608-93-5 | G144: =VLOOKUP(S144,[13]VLOOKUP!$A$25:$X$200,23,FALSE) -> 250.34 | H144: =VLOOKUP(S144,[13]VLOOKUP!$A$25:$X$200,3,FALSE) -> 3708 | I144: =VLOOKUP(S144,[13]VLOOKUP!$A$25:$X$200,5,FALSE) -> 0.0294332 | J144: =VLOOKUP(S144,[13]VLOOKUP!$A$25:$X$200,7,FALSE) -> 7.9473e-06 | K144: =VLOOKUP(S144,[13]VLOOKUP!$A$25:$X$200,9,FALSE) -> 0.831 | L144: =VLOOKUP(S144,[13]VLOOKUP!$A$25:$X$200,13,FALSE) -> 0.000703 | M144: 133.0000047 | N144: =VLOOKUP(S144,[13]VLOOKUP!$A$25:$X$200,17,FALSE) -> 0 | O144: =VLOOKUP(S144,[13]VLOOKUP!$A$25:$X$200,19,FALSE) -> 0 | P144: =VLOOKUP(S144,[13]VLOOKUP!$A$25:$X$200,21,FALSE) -> 0 | Q144: RSL | R144: =VLOOKUP(S144,[13]VLOOKUP!$A$25:$Z$200,26,FALSE) -> RSL | S144: 608935
A145: V | B145: =IF(VLOOKUP(F145,'T5-6 COPC'!E$11:N$113,10,FALSE)="V","X","") -> X | C145: SVOCs | D145: Pyrene | E145: Pyrene | F145: 129-00-0 | G145: =VLOOKUP(S145,[13]VLOOKUP!$A$25:$X$200,23,FALSE) -> 200 | H145: =VLOOKUP(S145,[13]VLOOKUP!$A$25:$X$200,3,FALSE) -> 67992 | I145: =VLOOKUP(S145,[13]VLOOKUP!$A$25:$X$200,5,FALSE) -> 0.0272 | J145: =VLOOKUP(S145,[13]VLOOKUP!$A$25:$X$200,7,FALSE) -> 7.24e-06 | K145: =VLOOKUP(S145,[13]VLOOKUP!$A$25:$X$200,9,FALSE) -> 0.135 | L145: =VLOOKUP(S145,[13]VLOOKUP!$A$25:$X$200,13,FALSE) -> 1.1e-05 | M145: 134.0000047 | N145: =VLOOKUP(S145,[13]VLOOKUP!$A$25:$X$200,17,FALSE) -> 667.95 | O145: =VLOOKUP(S145,[13]VLOOKUP!$A$25:$X$200,19,FALSE) -> 936 | P145: =VLOOKUP(S145,[13]VLOOKUP!$A$25:$X$200,21,FALSE) -> 14370 | Q145: NDEP + USEPA 2004 for Tb, Tc, ΔH | R145: =VLOOKUP(S145,[13]VLOOKUP!$A$25:$Z$200,26,FALSE) -> NDEP + USEPA 2004 for Tb, Tc, ΔH | S145: 129000
B146: =IF(VLOOKUP(F146,'T5-6 COPC'!E$11:N$113,10,FALSE)="V","X","") ->  | C146: SVOCs | D146: Pyridine | E146: Pyridine | F146: 110-86-1 | G146: =VLOOKUP(S146,[13]VLOOKUP!$A$25:$X$200,23,FALSE) -> 79 | H146: =VLOOKUP(S146,[13]VLOOKUP!$A$25:$X$200,3,FALSE) -> 33.01 | I146: =VLOOKUP(S146,[13]VLOOKUP!$A$25:$X$200,5,FALSE) -> 0.093 | J146: =VLOOKUP(S146,[13]VLOOKUP!$A$25:$X$200,7,FALSE) -> 1.1e-05 | K146: =VLOOKUP(S146,[13]VLOOKUP!$A$25:$X$200,9,FALSE) -> 1000000 | L146: =VLOOKUP(S146,[13]VLOOKUP!$A$25:$X$200,13,FALSE) -> 1.097560976e-05 | M146: 135.0000047 | N146: =VLOOKUP(S146,[13]VLOOKUP!$A$25:$X$200,17,FALSE) -> 0 | O146: =VLOOKUP(S146,[13]VLOOKUP!$A$25:$X$200,19,FALSE) -> 0 | P146: =VLOOKUP(S146,[13]VLOOKUP!$A$25:$X$200,21,FALSE) -> 0 | Q146: NDEP | R146: =VLOOKUP(S146,[13]VLOOKUP!$A$25:$Z$200,26,FALSE) -> NDEP | S146: 110861
B147: =IF(VLOOKUP(F147,'T5-6 COPC'!E$11:N$113,10,FALSE)="V","X","") ->  | C147: SVOCs | D147: Tetrachlorobenzene 1,2,4,5 | E147: 1,2,4,5-Tetrachlorobenzene | F147: 95-94-3 | G147: =VLOOKUP(S147,[13]VLOOKUP!$A$25:$X$200,23,FALSE) -> 215.89 | H147: =VLOOKUP(S147,[13]VLOOKUP!$A$25:$X$200,3,FALSE) -> 2220 | I147: =VLOOKUP(S147,[13]VLOOKUP!$A$25:$X$200,5,FALSE) -> 0.0318958 | J147: =VLOOKUP(S147,[13]VLOOKUP!$A$25:$X$200,7,FALSE) -> 8.7531e-06 | K147: =VLOOKUP(S147,[13]VLOOKUP!$A$25:$X$200,9,FALSE) -> 0.595 | L147: =VLOOKUP(S147,[13]VLOOKUP!$A$25:$X$200,13,FALSE) -> 0.001 | M147: 136.0000047 | N147: =VLOOKUP(S147,[13]VLOOKUP!$A$25:$X$200,17,FALSE) -> 0 | O147: =VLOOKUP(S147,[13]VLOOKUP!$A$25:$X$200,19,FALSE) -> 0 | P147: =VLOOKUP(S147,[13]VLOOKUP!$A$25:$X$200,21,FALSE) -> 0 | Q147: RSL | R147: =VLOOKUP(S147,[13]VLOOKUP!$A$25:$Z$200,26,FALSE) -> RSL | S147: 95943
A148: 0 | C148: 0 | D148: 0 | E148: 0 | F148: 0 | R148: =VLOOKUP(F148,#REF!,31,FALSE) ->  | S148: 0
A149: 0 | C149: 0 | D149: 0 | E149: 0 | F149: 0 | R149: =VLOOKUP(F149,#REF!,31,FALSE) ->  | S149: 0
A150: 0 | C150: 0 | D150: 0 | E150: 0 | F150: 0 | R150: =VLOOKUP(F150,#REF!,31,FALSE) ->  | S150: 0
A151: 0 | C151: 0 | D151: 0 | E151: 0 | F151: 0 | R151: =VLOOKUP(F151,#REF!,31,FALSE) ->  | S151: 0
A152: 0 | C152: 0 | D152: 0 | E152: 0 | F152: 0 | R152: =VLOOKUP(F152,#REF!,31,FALSE) ->  | S152: 0
A153: 0 | C153: 0 | D153: 0 | E153: 0 | F153: 0 | R153: =VLOOKUP(F153,#REF!,31,FALSE) ->  | S153: 0
A154: 0 | C154: 0 | D154: 0 | E154: 0 | F154: 0 | R154: =VLOOKUP(F154,#REF!,31,FALSE) ->  | S154: 0
A155: 0 | C155: 0 | D155: 0 | E155: 0 | F155: 0 | R155: =VLOOKUP(F155,#REF!,31,FALSE) ->  | S155: 0
A156: 0 | C156: 0 | D156: 0 | E156: 0 | F156: 0 | R156: =VLOOKUP(F156,#REF!,31,FALSE) ->  | S156: 0
A157: 0 | C157: 0 | D157: 0 | E157: 0 | F157: 0 | R157: =VLOOKUP(F157,#REF!,31,FALSE) ->  | S157: 0
A158: 0 | C158: 0 | D158: 0 | E158: 0 | F158: 0 | R158: =VLOOKUP(F158,#REF!,31,FALSE) ->  | S158: 0
A159: 0 | C159: 0 | D159: 0 | E159: 0 | F159: 0 | R159: =VLOOKUP(F159,#REF!,31,FALSE) ->  | S159: 0
A160: 0 | C160: 0 | D160: 0 | E160: 0 | F160: 0 | R160: =VLOOKUP(F160,#REF!,31,FALSE) ->  | S160: 0
A161: 0 | C161: 0 | D161: 0 | E161: 0 | F161: 0 | R161: =VLOOKUP(F161,#REF!,31,FALSE) ->  | S161: 0
A162: 0 | C162: 0 | D162: 0 | E162: 0 | F162: 0 | R162: =VLOOKUP(F162,#REF!,31,FALSE) ->  | S162: 0
A163: 0 | C163: 0 | D163: 0 | E163: 0 | F163: 0 | R163: =VLOOKUP(F163,#REF!,31,FALSE) ->  | S163: 0
A164: 0 | C164: 0 | D164: 0 | E164: 0 | F164: 0 | R164: =VLOOKUP(F164,#REF!,31,FALSE) ->  | S164: 0
A165: 0 | C165: 0 | D165: 0 | E165: 0 | F165: 0 | R165: =VLOOKUP(F165,#REF!,31,FALSE) ->  | S165: 0
A166: 0 | C166: 0 | D166: 0 | E166: 0 | F166: 0 | R166: =VLOOKUP(F166,#REF!,31,FALSE) ->  | S166: 0
A167: 0 | C167: 0 | D167: 0 | E167: 0 | F167: 0 | R167: =VLOOKUP(F167,#REF!,31,FALSE) ->  | S167: 0
A168: 0 | C168: 0 | D168: 0 | E168: 0 | F168: 0 | R168: =VLOOKUP(F168,#REF!,31,FALSE) ->  | S168: 0
A169: 0 | C169: 0 | D169: 0 | E169: 0 | F169: 0 | R169: =VLOOKUP(F169,#REF!,31,FALSE) ->  | S169: 0
A170: 0 | C170: 0 | D170: 0 | E170: 0 | F170: 0 | R170: =VLOOKUP(F170,#REF!,31,FALSE) ->  | S170: 0
A171: 0 | C171: 0 | D171: 0 | E171: 0 | F171: 0 | R171: =VLOOKUP(F171,#REF!,31,FALSE) ->  | S171: 0
A172: 0 | C172: 0 | D172: 0 | E172: 0 | F172: 0 | R172: =VLOOKUP(F172,#REF!,31,FALSE) ->  | S172: 0
A173: 0 | C173: 0 | D173: 0 | E173: 0 | F173: 0 | R173: =VLOOKUP(F173,#REF!,31,FALSE) ->  | S173: 0
A174: 0 | C174: 0 | D174: 0 | E174: 0 | F174: 0 | R174: =VLOOKUP(F174,#REF!,31,FALSE) ->  | S174: 0
A175: 0 | C175: 0 | D175: 0 | E175: 0 | F175: 0 | R175: =VLOOKUP(F175,#REF!,31,FALSE) ->  | S175: 0
A176: 0 | C176: 0 | D176: 0 | E176: 0 | F176: 0 | R176: =VLOOKUP(F176,#REF!,31,FALSE) ->  | S176: 0
A177: 0 | C177: 0 | D177: 0 | E177: 0 | F177: 0 | R177: =VLOOKUP(F177,#REF!,31,FALSE) ->  | S177: 0
A178: 0 | C178: 0 | D178: 0 | E178: 0 | F178: 0 | R178: =VLOOKUP(F178,#REF!,31,FALSE) ->  | S178: 0
A179: 0 | C179: 0 | D179: 0 | E179: 0 | F179: 0 | R179: =VLOOKUP(F179,#REF!,31,FALSE) ->  | S179: 0
A180: 0 | C180: 0 | D180: 0 | E180: 0 | F180: 0 | R180: =VLOOKUP(F180,#REF!,31,FALSE) ->  | S180: 0
A181: 0 | C181: 0 | D181: 0 | E181: 0 | F181: 0 | R181: =VLOOKUP(F181,#REF!,31,FALSE) ->  | S181: 0
A182: 0 | C182: 0 | D182: 0 | E182: 0 | F182: 0 | R182: =VLOOKUP(F182,#REF!,31,FALSE) ->  | S182: 0
A183: 0 | C183: 0 | D183: 0 | E183: 0 | F183: 0 | R183: =VLOOKUP(F183,#REF!,31,FALSE) ->  | S183: 0
A184: 0 | C184: 0 | D184: 0 | E184: 0 | F184: 0 | R184: =VLOOKUP(F184,#REF!,31,FALSE) ->  | S184: 0
A185: 0 | C185: 0 | D185: 0 | E185: 0 | F185: 0 | R185: =VLOOKUP(F185,#REF!,31,FALSE) ->  | S185: 0
A186: 0 | C186: 0 | D186: 0 | E186: 0 | F186: 0 | R186: =VLOOKUP(F186,#REF!,31,FALSE) ->  | S186: 0
A187: 0 | C187: 0 | D187: 0 | E187: 0 | F187: 0 | R187: =VLOOKUP(F187,#REF!,31,FALSE) ->  | S187: 0
A188: 0 | C188: 0 | D188: 0 | E188: 0 | F188: 0 | R188: =VLOOKUP(F188,#REF!,31,FALSE) ->  | S188: 0
A189: 0 | C189: 0 | D189: 0 | E189: 0 | F189: 0 | R189: =VLOOKUP(F189,#REF!,31,FALSE) ->  | S189: 0
A190: 0 | C190: 0 | D190: 0 | E190: 0 | F190: 0 | R190: =VLOOKUP(F190,#REF!,31,FALSE) ->  | S190: 0
A191: 0 | C191: 0 | D191: 0 | E191: 0 | F191: 0 | R191: =VLOOKUP(F191,#REF!,31,FALSE) ->  | S191: 0
A192: 0 | C192: 0 | D192: 0 | E192: 0 | F192: 0 | R192: =VLOOKUP(F192,#REF!,31,FALSE) ->  | S192: 0
A193: 0 | C193: 0 | D193: 0 | E193: 0 | F193: 0 | R193: =VLOOKUP(F193,#REF!,31,FALSE) ->  | S193: 0
A194: 0 | C194: 0 | D194: 0 | E194: 0 | F194: 0 | R194: =VLOOKUP(F194,#REF!,31,FALSE) ->  | S194: 0
A195: 0 | C195: 0 | D195: 0 | E195: 0 | F195: 0 | R195: =VLOOKUP(F195,#REF!,31,FALSE) ->  | S195: 0
A196: 0 | C196: 0 | D196: 0 | E196: 0 | F196: 0 | R196: =VLOOKUP(F196,#REF!,31,FALSE) ->  | S196: 0
A197: 0 | C197: 0 | D197: 0 | E197: 0 | F197: 0 | R197: =VLOOKUP(F197,#REF!,31,FALSE) ->  | S197: 0
A198: 0 | C198: 0 | D198: 0 | E198: 0 | F198: 0 | R198: =VLOOKUP(F198,#REF!,31,FALSE) ->  | S198: 0
A199: 0 | C199: 0 | D199: 0 | E199: 0 | F199: 0 | R199: =VLOOKUP(F199,#REF!,31,FALSE) ->  | S199: 0
A200: 0 | C200: 0 | D200: 0 | E200: 0 | F200: 0 | R200: =VLOOKUP(F200,#REF!,31,FALSE) ->  | S200: 0
A201: 0 | C201: 0 | D201: 0 | E201: 0 | F201: 0 | R201: =VLOOKUP(F201,#REF!,31,FALSE) ->  | S201: 0
A202: 0 | C202: 0 | D202: 0 | E202: 0 | F202: 0 | R202: =VLOOKUP(F202,#REF!,31,FALSE) ->  | S202: 0
A203: 0 | C203: 0 | D203: 0 | E203: 0 | F203: 0 | R203: =VLOOKUP(F203,#REF!,31,FALSE) ->  | S203: 0
... 94 more rows

Sheet T5-11 Soil Property
A2: TABLE 5-11. Soil Properties Data a
A3: =Tracking!B2 -> Nevada Environmental Response Trust Site
A4: =Tracking!C2 -> Henderson, Nevada
A6: Sample ID | B6: Depth (ft) | C6: Volumetric Water Contentb | D6: Dry Bulk Densityc (g/cm3) | E6: Grain Densityd (g/cm3) | F6: Soil Total Porositye (g/cm3) | G6: Soil Type
A7: SA56-10BSPLP | B7: 10 | C7: 0.1343342143 | D7: 1.688876348 | E7: 2.719076657 | F7: 0.3788787295 | G7: Loamy Sand
A8: RSAM3-10BSPLP | B8: 10 | C8: 0.1450402508 | D8: 1.59296616 | E8: 2.674027932 | F8: 0.4042821536 | G8: Loamy Sand
A9: SA166-10BSPLP | B9: 10 | C9: 0.09971655491 | D9: 1.720662336 | E9: 2.681339549 | F9: 0.3582825657 | G9: Loamy Sand
A10: SA182-10BSPLP | B10: 10 | C10: 0.1819805007 | D10: 1.739923893 | E10: 2.600562538 | F10: 0.3309432603 | G10: Sandy Loam
A11: RSAJ3-10BSPLP | B11: 10 | C11: 0.1539545746 | D11: 1.769942766 | E11: 2.682368239 | F11: 0.3401566793 | G11: Loamy Sand
A12: RSAI7-10B | B12: 10 | C12: 0.1383166823 | D12: 1.661256119 | E12: 2.682162094 | F12: 0.3806279932 | G12: Sand
A13: SA34-10BSPLP | B13: 10 | C13: 0.1692168774 | D13: 1.738473917 | E13: 2.695536023 | F13: 0.355054467 | G13: Loamy Sand
A14: SA52-15BSPLPf | B14: 15 | C14: 0.2394945764 | D14: 1.4054255 | E14: 2.71004987 | F14: 0.4814023476 | G14: Sand
A15: RSAQ8-10BSPLP | B15: 10 | C15: 0.1477044956 | D15: 1.696751639 | E15: 2.694507269 | F15: 0.3702924249 | G15: Sand
A16: RSAN8-10BSPLP | B16: 10 | C16: 0.1891744129 | D16: 1.679196166 | E16: 2.683234295 | F16: 0.3741895109 | G16: Loamy Sand
A17: RSAQ4-10BSPLP | B17: 10 | C17: 0.1412275815 | D17: 1.841481754 | E17: 2.70524248 | F17: 0.319291425 | G17: Sand
A18: SA148-10BSPLP | B18: 10 | C18: 0.1190064536 | D18: 1.761541363 | E18: 2.731876839 | F18: 0.3551900519 | G18: Sand
A19: SA30-9BSPLP | B19: 9 | C19: 0.1599876893 | D19: 1.804989491 | E19: 2.71136569 | F19: 0.3342876995 | G19: Sand
A20: SA128-10BSPLP | B20: 10 | C20: 0.1560534792 | D20: 1.654316607 | E20: 2.654266154 | F20: 0.3767329606 | G20: Loamy Sand
A21: SA102-10BSPLP | B21: 10 | C21: 0.135492293 | D21: 1.76856951 | E21: 2.696141246 | F21: 0.3440367737 | G21: Sand
A22: SA64-10BSPLP | B22: 10 | C22: 0.1481184147 | D22: 1.7167311 | E22: 2.65053673 | F22: 0.3523081265 | G22: Sand
A23: Mean | B23: =AVERAGE(B7:B13,B15:B22) -> 9.933333333 | C23: =AVERAGE(C7:C13,C15:C22) -> 0.147954965 | D23: =AVERAGE(D7:D13,D15:D22) -> 1.722378611 | E23: =AVERAGE(E7:E13,E15:E22) -> 2.684149582 | F23: =AVERAGE(F7:F13,F15:F22) -> 0.3583036548 | G23: Loamy Sand
A24: Mininum | B24: 9 | C24: 0.09971655491 | D24: 1.593 | E24: 2.600562538 | F24: 0.319291425 | G24: NA
A25: Maximum | B25: 10 | C25: =0.189 -> 0.189 | D25: 1.841481754 | E25: 2.731876839 | F25: 0.404 | G25: NA
A26: Median | B26: 10 | C26: =MEDIAN(C7:C13,C15:C22) -> 0.1477044956 | D26: =MEDIAN(D7:D13,D15:D22) -> 1.720662336 | E26: =MEDIAN(E7:E13,E15:E22) -> 2.683234295 | F26: =MEDIAN(F7:F13,F15:F22) -> 0.3551900519 | G26: NA
A28: Notes:
A29: NA = not applicable
A31: g/cm3 = grams per cubic centimeter
A33: a The soil properties were reported in Northgate (2010). Soil type is discussed in the main text in both section 2.3 and section 5.2.2.3.
A34: b As measured according to ASTM D 2216 and adjusted to convert from mass-based water moisture to volumetric water content.
A35: c As measured according to ASTM D 2937.
A36: d As measured according to ASTM D 854.
A37: e Calculated from dry bulk density and grain density.
A38: f Sample not included in evaluation.
A40: Reference:
A41: Northgate Environmental Management, Inc. (Northgate), 2010. Site-Wide Soil Gas Human Health Risk Assessment, Tronox LLC,
A42: Henderson, Nevada. November 22.

Sheet T5-12A TF_SG
B1: =TOC!A6&". "&TOC!B6 -> TABLE 5-12A. Transfer Factors for Vapors from Soil Gas to Indoor Air, Outdoor Air, and Trench Air – Parcel H
B2: =TOC!B6 -> Transfer Factors for Vapors from Soil Gas to Indoor Air, Outdoor Air, and Trench Air – Parcel H
B3: =Tracking!B2 -> Nevada Environmental Response Trust Site
B4: =Tracking!C2 -> Henderson, Nevada
A8: Soil Gas COPC | B8: Chemical Group | C8: sort name | D8: Constituent | E8: CASRN | F8: TF for Soil Gas Migrating to Indoor Air (µg/m3 per µg/m3) | H8: TF for Soil Gas Migrating to Outdoor Air (µg/m3 per µg/m3) | N8: TF for Soil Gas Migrating to Construction Trench Air (µg/m3 per µg/m3) | R8: CASRN
F9: 5 ft bgs | H9: 5 ft bgs | K9: 5 - 10 ft bgs
F10: Parcel H | G10: 10 ft bgs | H10: Parcel H | I10: Parcel D | J10: Parcel G | K10: Parcel C | L10: Parcel D | M10: Parcel G | N10: Parcel H | O10: Parcel D | P10: Parcel G
A11: ='T5-17A Tox'!N11:N280 ->  | B11: ='T5-17A Tox'!B11:E280 -> VOCs | C11: Acetaldehyde | D11: Acetaldehyde | E11: 75-07-0 | F11: =VLOOKUP(R11,'[14]SG-Comm_IA_5ft'!$A$1:$O$65536,7,FALSE) -> 0.0003284398589 | G11: =VLOOKUP(R11,'[14]SG-Comm_IA_10ft'!$A$1:$O$65536,7,FALSE) -> 0.0001888781921 | H11: =VLOOKUP(R11,'[14]SG-Comm-OA_H_5ft'!$A$1:$O$65536,11,FALSE) -> 8.068348922e-06 | I11: =VLOOKUP(R11,'[13]SG-Comm-OA_H_Trench'!$A$3:$O$280,11,FALSE) ->  | J11: =VLOOKUP(R11,'[13]GW-Comm_IA_H'!$A$3:$O$280,11,FALSE) ->  | K11: =VLOOKUP(R11,'[13]GW-Comm_H-OA'!$A$3:$O$280,11,FALSE) ->  | L11: =VLOOKUP(R11,'[13]GW-Comm_H-OA_Trench'!$A$3:$O$280,11,FALSE) ->  | M11: =VLOOKUP(R11,'[13]GW-Comm_H-OA_Trench'!$A$3:$O$280,11,FALSE) ->  | N11: =VLOOKUP(R11,'[14]SG-Comm-OA_H_Trench'!$A$1:$O$65536,11,FALSE) -> 0.001583654648 | O11: =VLOOKUP(R11,'[13]SG-Comm-OA_G_Trench'!$A$3:$O$280,11,FALSE) -> 0.001583654648 | P11: =VLOOKUP(R11,'[13]GW-Comm_IA_D'!$A$3:$O$280,11,FALSE) -> 7.425653677e-07 | R11: 75070
A12: X | B12: VOCs | C12: Acetone | D12: Acetone | E12: 67-64-1 | F12: =VLOOKUP(R12,'[14]SG-Comm_IA_5ft'!$A$1:$O$65536,7,FALSE) -> 0.0003315046602 | G12: =VLOOKUP(R12,'[14]SG-Comm_IA_10ft'!$A$1:$O$65536,7,FALSE) -> 0.0001910202426 | H12: =VLOOKUP(R12,'[14]SG-Comm-OA_H_5ft'!$A$1:$O$65536,11,FALSE) -> 8.181897217e-06 | I12: =VLOOKUP(R12,'[13]SG-Comm-OA_H_Trench'!$A$3:$O$280,11,FALSE) ->  | J12: =VLOOKUP(R12,'[13]GW-Comm_IA_H'!$A$3:$O$280,11,FALSE) ->  | K12: =VLOOKUP(R12,'[13]GW-Comm_H-OA'!$A$3:$O$280,11,FALSE) ->  | L12: =VLOOKUP(R12,'[13]GW-Comm_H-OA_Trench'!$A$3:$O$280,11,FALSE) ->  | M12: =VLOOKUP(R12,'[13]GW-Comm_H-OA_Trench'!$A$3:$O$280,11,FALSE) ->  | N12: =VLOOKUP(R12,'[14]SG-Comm-OA_H_Trench'!$A$1:$O$65536,11,FALSE) -> 0.001605941895 | O12: =VLOOKUP(R12,'[13]SG-Comm-OA_G_Trench'!$A$3:$O$280,11,FALSE) -> 0.001605941895 | P12: =VLOOKUP(R12,'[13]GW-Comm_IA_D'!$A$3:$O$280,11,FALSE) -> 8.289751163e-07 | R12: 67641
A13: 0 | B13: VOCs | C13: Acetonitrile | D13: Acetonitrile | E13: 75-05-8 | F13: =VLOOKUP(R13,'[14]SG-Comm_IA_5ft'!$A$1:$O$65536,7,FALSE) -> 0.0003484027351 | G13: =VLOOKUP(R13,'[14]SG-Comm_IA_10ft'!$A$1:$O$65536,7,FALSE) -> 0.0002029855014 | H13: =VLOOKUP(R13,'[14]SG-Comm-OA_H_5ft'!$A$1:$O$65536,11,FALSE) -> 8.827624276e-06 | I13: =VLOOKUP(R13,'[13]SG-Comm-OA_H_Trench'!$A$3:$O$280,11,FALSE) ->  | J13: =VLOOKUP(R13,'[13]GW-Comm_IA_H'!$A$3:$O$280,11,FALSE) ->  | K13: =VLOOKUP(R13,'[13]GW-Comm_H-OA'!$A$3:$O$280,11,FALSE) ->  | L13: =VLOOKUP(R13,'[13]GW-Comm_H-OA_Trench'!$A$3:$O$280,11,FALSE) ->  | M13: =VLOOKUP(R13,'[13]GW-Comm_H-OA_Trench'!$A$3:$O$280,11,FALSE) ->  | N13: =VLOOKUP(R13,'[14]SG-Comm-OA_H_Trench'!$A$1:$O$65536,11,FALSE) -> 0.001732685131 | O13: =VLOOKUP(R13,'[13]SG-Comm-OA_G_Trench'!$A$3:$O$280,11,FALSE) -> 0.001732685131 | P13: =VLOOKUP(R13,'[13]GW-Comm_IA_D'!$A$3:$O$280,11,FALSE) -> 9.449726513e-07 | R13: 75058
A14: X | B14: VOCs | C14: Acrylonitrile | D14: Acrylonitrile | E14: 107-13-1 | F14: =VLOOKUP(R14,'[14]SG-Comm_IA_5ft'!$A$1:$O$65536,7,FALSE) -> 0.000300719196 | G14: =VLOOKUP(R14,'[14]SG-Comm_IA_10ft'!$A$1:$O$65536,7,FALSE) -> 0.000169883539 | H14: =VLOOKUP(R14,'[14]SG-Comm-OA_H_5ft'!$A$1:$O$65536,11,FALSE) -> 7.087604517e-06 | I14: =VLOOKUP(R14,'[13]SG-Comm-OA_H_Trench'!$A$3:$O$280,11,FALSE) ->  | J14: =VLOOKUP(R14,'[13]GW-Comm_IA_H'!$A$3:$O$280,11,FALSE) ->  | K14: =VLOOKUP(R14,'[13]GW-Comm_H-OA'!$A$3:$O$280,11,FALSE) ->  | L14: =VLOOKUP(R14,'[13]GW-Comm_H-OA_Trench'!$A$3:$O$280,11,FALSE) ->  | M14: =VLOOKUP(R14,'[13]GW-Comm_H-OA_Trench'!$A$3:$O$280,11,FALSE) ->  | N14: =VLOOKUP(R14,'[14]SG-Comm-OA_H_Trench'!$A$1:$O$65536,11,FALSE) -> 0.001391154243 | O14: =VLOOKUP(R14,'[13]SG-Comm-OA_G_Trench'!$A$3:$O$280,11,FALSE) -> 0.001391154243 | P14: =VLOOKUP(R14,'[13]GW-Comm_IA_D'!$A$3:$O$280,11,FALSE) -> 6.861442334e-07 | R14: 107131
B15: VOCs | C15: Amyl methyl ether t- | D15: t-Amyl methyl ether | E15: 994-05-8 | F15: =VLOOKUP(R15,'[14]SG-Comm_IA_5ft'!$A$1:$O$65536,7,FALSE) -> 0.0002030671324 | G15: =VLOOKUP(R15,'[14]SG-Comm_IA_10ft'!$A$1:$O$65536,7,FALSE) -> 0.0001080007067 | H15: =VLOOKUP(R15,'[14]SG-Comm-OA_H_5ft'!$A$1:$O$65536,11,FALSE) -> 4.187474852e-06 | I15: =VLOOKUP(R15,'[13]SG-Comm-OA_H_Trench'!$A$3:$O$280,11,FALSE) ->  | J15: =VLOOKUP(R15,'[13]GW-Comm_IA_H'!$A$3:$O$280,11,FALSE) ->  | K15: =VLOOKUP(R15,'[13]GW-Comm_H-OA'!$A$3:$O$280,11,FALSE) ->  | L15: =VLOOKUP(R15,'[13]GW-Comm_H-OA_Trench'!$A$3:$O$280,11,FALSE) ->  | M15: =VLOOKUP(R15,'[13]GW-Comm_H-OA_Trench'!$A$3:$O$280,11,FALSE) ->  | N15: =VLOOKUP(R15,'[14]SG-Comm-OA_H_Trench'!$A$1:$O$65536,11,FALSE) -> 0.000821917108 | O15: =VLOOKUP(R15,'[13]SG-Comm-OA_G_Trench'!$A$3:$O$280,11,FALSE) -> 0.000821917108 | P15: =VLOOKUP(R15,'[13]GW-Comm_IA_D'!$A$3:$O$280,11,FALSE) -> 1.978141075e-07 | R15: 994058
A16: X | B16: VOCs | C16: Benzene | D16: Benzene | E16: 71-43-2 | F16: =VLOOKUP(R16,'[14]SG-Comm_IA_5ft'!$A$1:$O$65536,7,FALSE)*'[14]Benzene BioVapor'!$D$2 -> 5.454047355e-15 | G16: =VLOOKUP(R16,'[14]SG-Comm_IA_10ft'!$A$1:$O$65536,7,FALSE)*'[14]Benzene BioVapor'!$D$4 -> 1.351548865e-15 | H16: =VLOOKUP(R16,'[14]SG-Comm-OA_H_5ft'!$A$1:$O$65536,11,FALSE)*'[14]Benzene BioVapor'!$D$2 -> 1.206682235e-16 | I16: =VLOOKUP(R16,'[13]SG-Comm-OA_H_Trench'!$A$3:$O$280,11,FALSE)*'[13]Benzene BioVapor'!$D$2 ->  | J16: =VLOOKUP(R16,'[13]GW-Comm_IA_H'!$A$3:$O$280,11,FALSE)*'[13]Benzene BioVapor'!$D$2 ->  | K16: =VLOOKUP(R16,'[13]GW-Comm_H-OA'!$A$3:$O$280,11,FALSE)*'[13]Benzene BioVapor'!$D$4 ->  | L16: =VLOOKUP(R16,'[13]GW-Comm_H-OA_Trench'!$A$3:$O$280,11,FALSE)*'[13]Benzene BioVapor'!$D$4 ->  | M16: =VLOOKUP(R16,'[13]GW-Comm_H-OA_Trench'!$A$3:$O$280,11,FALSE) ->  | N16: =VLOOKUP(R16,'[14]SG-Comm-OA_H_Trench'!$A$1:$O$65536,11,FALSE)*'[14]Benzene BioVapor'!$D$10 -> 0.001082905841 | O16: =VLOOKUP(R16,'[13]SG-Comm-OA_G_Trench'!$A$3:$O$280,11,FALSE)*'[13]Benzene BioVapor'!$D$10 -> 0.001082905841 | P16: =VLOOKUP(R16,'[13]GW-Comm_IA_D'!$A$3:$O$280,11,FALSE)*'[13]Benzene BioVapor'!$D$10 -> 2.171406252e-07 | R16: 71432
B17: VOCs | C17: Benzyl chloride | D17: Benzyl chloride | E17: 100-44-7 | F17: =VLOOKUP(R17,'[14]SG-Comm_IA_5ft'!$A$1:$O$65536,7,FALSE) -> 0.0002097018131 | G17: =VLOOKUP(R17,'[14]SG-Comm_IA_10ft'!$A$1:$O$65536,7,FALSE) -> 0.0001119747875 | H17: =VLOOKUP(R17,'[14]SG-Comm-OA_H_5ft'!$A$1:$O$65536,11,FALSE) -> 4.361349555e-06 | I17: =VLOOKUP(R17,'[13]SG-Comm-OA_H_Trench'!$A$3:$O$280,11,FALSE) ->  | J17: =VLOOKUP(R17,'[13]GW-Comm_IA_H'!$A$3:$O$280,11,FALSE) ->  | K17: =VLOOKUP(R17,'[13]GW-Comm_H-OA'!$A$3:$O$280,11,FALSE) ->  | L17: =VLOOKUP(R17,'[13]GW-Comm_H-OA_Trench'!$A$3:$O$280,11,FALSE) ->  | M17: =VLOOKUP(R17,'[13]GW-Comm_H-OA_Trench'!$A$3:$O$280,11,FALSE) ->  | N17: =VLOOKUP(R17,'[14]SG-Comm-OA_H_Trench'!$A$1:$O$65536,11,FALSE) -> 0.0008560452157 | O17: =VLOOKUP(R17,'[13]SG-Comm-OA_G_Trench'!$A$3:$O$280,11,FALSE) -> 0.0008560452157 | P17: =VLOOKUP(R17,'[13]GW-Comm_IA_D'!$A$3:$O$280,11,FALSE) -> 4.268142029e-07 | R17: 100447
B18: VOCs | C18: Bromobenzene | D18: Bromobenzene | E18: 108-86-1 | F18: =VLOOKUP(R18,'[14]SG-Comm_IA_5ft'!$A$1:$O$65536,7,FALSE) -> 0.0002223351567 | G18: =VLOOKUP(R18,'[14]SG-Comm_IA_10ft'!$A$1:$O$65536,7,FALSE) -> 0.000119630428 | H18: =VLOOKUP(R18,'[14]SG-Comm-OA_H_5ft'!$A$1:$O$65536,11,FALSE) -> 4.700807886e-06 | I18: =VLOOKUP(R18,'[13]SG-Comm-OA_H_Trench'!$A$3:$O$280,11,FALSE) ->  | J18: =VLOOKUP(R18,'[13]GW-Comm_IA_H'!$A$3:$O$280,11,FALSE) ->  | K18: =VLOOKUP(R18,'[13]GW-Comm_H-OA'!$A$3:$O$280,11,FALSE) ->  | L18: =VLOOKUP(R18,'[13]GW-Comm_H-OA_Trench'!$A$3:$O$280,11,FALSE) ->  | M18: =VLOOKUP(R18,'[13]GW-Comm_H-OA_Trench'!$A$3:$O$280,11,FALSE) ->  | N18: =VLOOKUP(R18,'[14]SG-Comm-OA_H_Trench'!$A$1:$O$65536,11,FALSE) -> 0.0009226740599 | O18: =VLOOKUP(R18,'[13]SG-Comm-OA_G_Trench'!$A$3:$O$280,11,FALSE) -> 0.0009226740599 | P18: =VLOOKUP(R18,'[13]GW-Comm_IA_D'!$A$3:$O$280,11,FALSE) -> 1.870416531e-07 | R18: 108861
B19: VOCs | C19: Bromochloromethane | D19: Bromochloromethane | E19: 74-97-5 | F19: =VLOOKUP(R19,'[14]SG-Comm_IA_5ft'!$A$1:$O$65536,7,FALSE) -> 0.0002356195837 | G19: =VLOOKUP(R19,'[14]SG-Comm_IA_10ft'!$A$1:$O$65536,7,FALSE) -> 0.0001278082066 | H19: =VLOOKUP(R19,'[14]SG-Comm-OA_H_5ft'!$A$1:$O$65536,11,FALSE) -> 5.070125116e-06 | I19: =VLOOKUP(R19,'[13]SG-Comm-OA_H_Trench'!$A$3:$O$280,11,FALSE) ->  | J19: =VLOOKUP(R19,'[13]GW-Comm_IA_H'!$A$3:$O$280,11,FALSE) ->  | K19: =VLOOKUP(R19,'[13]GW-Comm_H-OA'!$A$3:$O$280,11,FALSE) ->  | L19: =VLOOKUP(R19,'[13]GW-Comm_H-OA_Trench'!$A$3:$O$280,11,FALSE) ->  | M19: =VLOOKUP(R19,'[13]GW-Comm_H-OA_Trench'!$A$3:$O$280,11,FALSE) ->  | N19: =VLOOKUP(R19,'[14]SG-Comm-OA_H_Trench'!$A$1:$O$65536,11,FALSE) -> 0.0009951636057 | O19: =VLOOKUP(R19,'[13]SG-Comm-OA_G_Trench'!$A$3:$O$280,11,FALSE) -> 0.0009951636057 | P19: =VLOOKUP(R19,'[13]GW-Comm_IA_D'!$A$3:$O$280,11,FALSE) -> 2.480726123e-07 | R19: 74975
B20: VOCs | C20: Bromodichloromethane | D20: Bromodichloromethane | E20: 75-27-4 | F20: =VLOOKUP(R20,'[14]SG-Comm_IA_5ft'!$A$1:$O$65536,7,FALSE) -> 0.0001049810847 | G20: =VLOOKUP(R20,'[14]SG-Comm_IA_10ft'!$A$1:$O$65536,7,FALSE) -> 5.273263806e-05 | H20: =VLOOKUP(R20,'[14]SG-Comm-OA_H_5ft'!$A$1:$O$65536,11,FALSE) -> 1.923225974e-06 | I20: =VLOOKUP(R20,'[13]SG-Comm-OA_H_Trench'!$A$3:$O$280,11,FALSE) ->  | J20: =VLOOKUP(R20,'[13]GW-Comm_IA_H'!$A$3:$O$280,11,FALSE) ->  | K20: =VLOOKUP(R20,'[13]GW-Comm_H-OA'!$A$3:$O$280,11,FALSE) ->  | L20: =VLOOKUP(R20,'[13]GW-Comm_H-OA_Trench'!$A$3:$O$280,11,FALSE) ->  | M20: =VLOOKUP(R20,'[13]GW-Comm_H-OA_Trench'!$A$3:$O$280,11,FALSE) ->  | N20: =VLOOKUP(R20,'[14]SG-Comm-OA_H_Trench'!$A$1:$O$65536,11,FALSE) -> 0.0003774905847 | O20: =VLOOKUP(R20,'[13]SG-Comm-OA_G_Trench'!$A$3:$O$280,11,FALSE) -> 0.0003774905847 | P20: =VLOOKUP(R20,'[13]GW-Comm_IA_D'!$A$3:$O$280,11,FALSE) -> 1.275760566e-07 | R20: 75274
B21: VOCs | C21: Bromoform | D21: Bromoform | E21: 75-25-2 | F21: =VLOOKUP(R21,'[14]SG-Comm_IA_5ft'!$A$1:$O$65536,7,FALSE) -> 0.000123715136 | G21: =VLOOKUP(R21,'[14]SG-Comm_IA_10ft'!$A$1:$O$65536,7,FALSE) -> 6.280919569e-05 | H21: =VLOOKUP(R21,'[14]SG-Comm-OA_H_5ft'!$A$1:$O$65536,11,FALSE) -> 2.315792062e-06 | I21: =VLOOKUP(R21,'[13]SG-Comm-OA_H_Trench'!$A$3:$O$280,11,FALSE) ->  | J21: =VLOOKUP(R21,'[13]GW-Comm_IA_H'!$A$3:$O$280,11,FALSE) ->  | K21: =VLOOKUP(R21,'[13]GW-Comm_H-OA'!$A$3:$O$280,11,FALSE) ->  | L21: =VLOOKUP(R21,'[13]GW-Comm_H-OA_Trench'!$A$3:$O$280,11,FALSE) ->  | M21: =VLOOKUP(R21,'[13]GW-Comm_H-OA_Trench'!$A$3:$O$280,11,FALSE) ->  | N21: =VLOOKUP(R21,'[14]SG-Comm-OA_H_Trench'!$A$1:$O$65536,11,FALSE) -> 0.0004545434138 | O21: =VLOOKUP(R21,'[13]SG-Comm-OA_G_Trench'!$A$3:$O$280,11,FALSE) -> 0.0004545434138 | P21: =VLOOKUP(R21,'[13]GW-Comm_IA_D'!$A$3:$O$280,11,FALSE) -> 1.961882625e-07 | R21: 75252
B22: VOCs | C22: Bromomethane | D22: Bromomethane | E22: 74-83-9 | F22: =VLOOKUP(R22,'[14]SG-Comm_IA_5ft'!$A$1:$O$65536,7,FALSE) -> 0.000221866347 | G22: =VLOOKUP(R22,'[14]SG-Comm_IA_10ft'!$A$1:$O$65536,7,FALSE) -> 0.0001193442398 | H22: =VLOOKUP(R22,'[14]SG-Comm-OA_H_5ft'!$A$1:$O$65536,11,FALSE) -> 4.688009857e-06 | I22: =VLOOKUP(R22,'[13]SG-Comm-OA_H_Trench'!$A$3:$O$280,11,FALSE) ->  | J22: =VLOOKUP(R22,'[13]GW-Comm_IA_H'!$A$3:$O$280,11,FALSE) ->  | K22: =VLOOKUP(R22,'[13]GW-Comm_H-OA'!$A$3:$O$280,11,FALSE) ->  | L22: =VLOOKUP(R22,'[13]GW-Comm_H-OA_Trench'!$A$3:$O$280,11,FALSE) ->  | M22: =VLOOKUP(R22,'[13]GW-Comm_H-OA_Trench'!$A$3:$O$280,11,FALSE) ->  | N22: =VLOOKUP(R22,'[14]SG-Comm-OA_H_Trench'!$A$1:$O$65536,11,FALSE) -> 0.0009201620641 | O22: =VLOOKUP(R22,'[13]SG-Comm-OA_G_Trench'!$A$3:$O$280,11,FALSE) -> 0.0009201620641 | P22: =VLOOKUP(R22,'[13]GW-Comm_IA_D'!$A$3:$O$280,11,FALSE) -> 1.880710736e-07 | R22: 74839
B23: VOCs | C23: Butadiene, 1,3- | D23: 1,3-Butadiene | E23: 106-99-0 | F23: =VLOOKUP(R23,'[14]SG-Comm_IA_5ft'!$A$1:$O$65536,7,FALSE) -> 0.0002770289632 | G23: =VLOOKUP(R23,'[14]SG-Comm_IA_10ft'!$A$1:$O$65536,7,FALSE) -> 0.0001541742085 | H23: =VLOOKUP(R23,'[14]SG-Comm-OA_H_5ft'!$A$1:$O$65536,11,FALSE) -> 6.310417305e-06 | I23: =VLOOKUP(R23,'[13]SG-Comm-OA_H_Trench'!$A$3:$O$280,11,FALSE) ->  | J23: =VLOOKUP(R23,'[13]GW-Comm_IA_H'!$A$3:$O$280,11,FALSE) ->  | K23: =VLOOKUP(R23,'[13]GW-Comm_H-OA'!$A$3:$O$280,11,FALSE) ->  | L23: =VLOOKUP(R23,'[13]GW-Comm_H-OA_Trench'!$A$3:$O$280,11,FALSE) ->  | M23: =VLOOKUP(R23,'[13]GW-Comm_H-OA_Trench'!$A$3:$O$280,11,FALSE) ->  | N23: =VLOOKUP(R23,'[14]SG-Comm-OA_H_Trench'!$A$1:$O$65536,11,FALSE) -> 0.001238608021 | O23: =VLOOKUP(R23,'[13]SG-Comm-OA_G_Trench'!$A$3:$O$280,11,FALSE) -> 0.001238608021 | P23: =VLOOKUP(R23,'[13]GW-Comm_IA_D'!$A$3:$O$280,11,FALSE) -> 2.209067037e-07 | R23: 106990
A24: X | B24: VOCs | C24: Butanone 2 | D24: 2-Butanone | E24: 78-93-3 | F24: =VLOOKUP(R24,'[14]SG-Comm_IA_5ft'!$A$1:$O$65536,7,FALSE) -> 0.0002675730425 | G24: =VLOOKUP(R24,'[14]SG-Comm_IA_10ft'!$A$1:$O$65536,7,FALSE) -> 0.0001480334838 | H24: =VLOOKUP(R24,'[14]SG-Comm-OA_H_5ft'!$A$1:$O$65536,11,FALSE) -> 6.014559334e-06 | I24: =VLOOKUP(R24,'[13]SG-Comm-OA_H_Trench'!$A$3:$O$280,11,FALSE) ->  | J24: =VLOOKUP(R24,'[13]GW-Comm_IA_H'!$A$3:$O$280,11,FALSE) ->  | K24: =VLOOKUP(R24,'[13]GW-Comm_H-OA'!$A$3:$O$280,11,FALSE) ->  | L24: =VLOOKUP(R24,'[13]GW-Comm_H-OA_Trench'!$A$3:$O$280,11,FALSE) ->  | M24: =VLOOKUP(R24,'[13]GW-Comm_H-OA_Trench'!$A$3:$O$280,11,FALSE) ->  | N24: =VLOOKUP(R24,'[14]SG-Comm-OA_H_Trench'!$A$1:$O$65536,11,FALSE) -> 0.001180537051 | O24: =VLOOKUP(R24,'[13]SG-Comm-OA_G_Trench'!$A$3:$O$280,11,FALSE) -> 0.001180537051 | P24: =VLOOKUP(R24,'[13]GW-Comm_IA_D'!$A$3:$O$280,11,FALSE) -> 6.315356764e-07 | R24: 78933
A25: X | B25: VOCs | C25: Butylbenzene n | D25: n-Butylbenzene | E25: 104-51-8 | F25: =VLOOKUP(R25,'[14]SG-Comm_IA_5ft'!$A$1:$O$65536,7,FALSE) -> 0.0002269970027 | G25: =VLOOKUP(R25,'[14]SG-Comm_IA_10ft'!$A$1:$O$65536,7,FALSE) -> 0.0001224851674 | H25: =VLOOKUP(R25,'[14]SG-Comm-OA_H_5ft'!$A$1:$O$65536,11,FALSE) -> 4.828934262e-06 | I25: =VLOOKUP(R25,'[13]SG-Comm-OA_H_Trench'!$A$3:$O$280,11,FALSE) ->  | J25: =VLOOKUP(R25,'[13]GW-Comm_IA_H'!$A$3:$O$280,11,FALSE) ->  | K25: =VLOOKUP(R25,'[13]GW-Comm_H-OA'!$A$3:$O$280,11,FALSE) ->  | L25: =VLOOKUP(R25,'[13]GW-Comm_H-OA_Trench'!$A$3:$O$280,11,FALSE) ->  | M25: =VLOOKUP(R25,'[13]GW-Comm_H-OA_Trench'!$A$3:$O$280,11,FALSE) ->  | N25: =VLOOKUP(R25,'[14]SG-Comm-OA_H_Trench'!$A$1:$O$65536,11,FALSE) -> 0.0009478226909 | O25: =VLOOKUP(R25,'[13]SG-Comm-OA_G_Trench'!$A$3:$O$280,11,FALSE) -> 0.0009478226909 | P25: =VLOOKUP(R25,'[13]GW-Comm_IA_D'!$A$3:$O$280,11,FALSE) -> 1.789875317e-07 | R25: 104518
A26: X | B26: VOCs | C26: Butylbenzene sec | D26: sec-Butylbenzene | E26: 135-98-8 | F26: =VLOOKUP(R26,'[14]SG-Comm_IA_5ft'!$A$1:$O$65536,7,FALSE) -> 0.0002280439048 | G26: =VLOOKUP(R26,'[14]SG-Comm_IA_10ft'!$A$1:$O$65536,7,FALSE) -> 0.0001231284787 | H26: =VLOOKUP(R26,'[14]SG-Comm-OA_H_5ft'!$A$1:$O$65536,11,FALSE) -> 4.857924693e-06 | I26: =VLOOKUP(R26,'[13]SG-Comm-OA_H_Trench'!$A$3:$O$280,11,FALSE) ->  | J26: =VLOOKUP(R26,'[13]GW-Comm_IA_H'!$A$3:$O$280,11,FALSE) ->  | K26: =VLOOKUP(R26,'[13]GW-Comm_H-OA'!$A$3:$O$280,11,FALSE) ->  | L26: =VLOOKUP(R26,'[13]GW-Comm_H-OA_Trench'!$A$3:$O$280,11,FALSE) ->  | M26: =VLOOKUP(R26,'[13]GW-Comm_H-OA_Trench'!$A$3:$O$280,11,FALSE) ->  | N26: =VLOOKUP(R26,'[14]SG-Comm-OA_H_Trench'!$A$1:$O$65536,11,FALSE) -> 0.0009535129297 | O26: =VLOOKUP(R26,'[13]SG-Comm-OA_G_Trench'!$A$3:$O$280,11,FALSE) -> 0.0009535129297 | P26: =VLOOKUP(R26,'[13]GW-Comm_IA_D'!$A$3:$O$280,11,FALSE) -> 4.040189832e-07 | R26: 135988
B27: VOCs | C27: Butylbenzene tert | D27: tert-Butylbenzene | E27: 98-06-6 | F27: =VLOOKUP(R27,'[14]SG-Comm_IA_5ft'!$A$1:$O$65536,7,FALSE) -> 0.0002269899127 | G27: =VLOOKUP(R27,'[14]SG-Comm_IA_10ft'!$A$1:$O$65536,7,FALSE) -> 0.0001224808135 | H27: =VLOOKUP(R27,'[14]SG-Comm-OA_H_5ft'!$A$1:$O$65536,11,FALSE) -> 4.828738203e-06 | I27: =VLOOKUP(R27,'[13]SG-Comm-OA_H_Trench'!$A$3:$O$280,11,FALSE) ->  | J27: =VLOOKUP(R27,'[13]GW-Comm_IA_H'!$A$3:$O$280,11,FALSE) ->  | K27: =VLOOKUP(R27,'[13]GW-Comm_H-OA'!$A$3:$O$280,11,FALSE) ->  | L27: =VLOOKUP(R27,'[13]GW-Comm_H-OA_Trench'!$A$3:$O$280,11,FALSE) ->  | M27: =VLOOKUP(R27,'[13]GW-Comm_H-OA_Trench'!$A$3:$O$280,11,FALSE) ->  | N27: =VLOOKUP(R27,'[14]SG-Comm-OA_H_Trench'!$A$1:$O$65536,11,FALSE) -> 0.0009477842087 | O27: =VLOOKUP(R27,'[13]SG-Comm-OA_G_Trench'!$A$3:$O$280,11,FALSE) -> 0.0009477842087 | P27: =VLOOKUP(R27,'[13]GW-Comm_IA_D'!$A$3:$O$280,11,FALSE) -> 1.748942296e-07 | R27: 98066
A28: X | B28: VOCs | C28: Carbon Disulfide | D28: Carbon disulfide | E28: 75-15-0 | F28: =VLOOKUP(R28,'[14]SG-Comm_IA_5ft'!$A$1:$O$65536,7,FALSE) -> 0.0002889736755 | G28: =VLOOKUP(R28,'[14]SG-Comm_IA_10ft'!$A$1:$O$65536,7,FALSE) -> 0.0001620361066 | H28: =VLOOKUP(R28,'[14]SG-Comm-OA_H_5ft'!$A$1:$O$65536,11,FALSE) -> 6.695654715e-06 | I28: =VLOOKUP(R28,'[13]SG-Comm-OA_H_Trench'!$A$3:$O$280,11,FALSE) ->  | J28: =VLOOKUP(R28,'[13]GW-Comm_IA_H'!$A$3:$O$280,11,FALSE) ->  | K28: =VLOOKUP(R28,'[13]GW-Comm_H-OA'!$A$3:$O$280,11,FALSE) ->  | L28: =VLOOKUP(R28,'[13]GW-Comm_H-OA_Trench'!$A$3:$O$280,11,FALSE) ->  | M28: =VLOOKUP(R28,'[13]GW-Comm_H-OA_Trench'!$A$3:$O$280,11,FALSE) ->  | N28: =VLOOKUP(R28,'[14]SG-Comm-OA_H_Trench'!$A$1:$O$65536,11,FALSE) -> 0.001314222378 | O28: =VLOOKUP(R28,'[13]SG-Comm-OA_G_Trench'!$A$3:$O$280,11,FALSE) -> 0.001314222378 | P28: =VLOOKUP(R28,'[13]GW-Comm_IA_D'!$A$3:$O$280,11,FALSE) -> 2.383552923e-07 | R28: 75150
A29: X | B29: VOCs | C29: Carbon Tetrachloride | D29: Carbon tetrachloride | E29: 56-23-5 | F29: =VLOOKUP(R29,'[14]SG-Comm_IA_5ft'!$A$1:$O$65536,7,FALSE) -> 0.0002339069805 | G29: =VLOOKUP(R29,'[14]SG-Comm_IA_10ft'!$A$1:$O$65536,7,FALSE) -> 0.0001267464902 | H29: =VLOOKUP(R29,'[14]SG-Comm-OA_H_5ft'!$A$1:$O$65536,11,FALSE) -> 5.021778784e-06 | I29: =VLOOKUP(R29,'[13]SG-Comm-OA_H_Trench'!$A$3:$O$280,11,FALSE) ->  | J29: =VLOOKUP(R29,'[13]GW-Comm_IA_H'!$A$3:$O$280,11,FALSE) ->  | K29: =VLOOKUP(R29,'[13]GW-Comm_H-OA'!$A$3:$O$280,11,FALSE) ->  | L29: =VLOOKUP(R29,'[13]GW-Comm_H-OA_Trench'!$A$3:$O$280,11,FALSE) ->  | M29: =VLOOKUP(R29,'[13]GW-Comm_H-OA_Trench'!$A$3:$O$280,11,FALSE) ->  | N29: =VLOOKUP(R29,'[14]SG-Comm-OA_H_Trench'!$A$1:$O$65536,11,FALSE) -> 0.0009856741928 | O29: =VLOOKUP(R29,'[13]SG-Comm-OA_G_Trench'!$A$3:$O$280,11,FALSE) -> 0.0009856741928 | P29: =VLOOKUP(R29,'[13]GW-Comm_IA_D'!$A$3:$O$280,11,FALSE) -> 1.795751749e-07 | R29: 56235
B30: VOCs | C30: Chloro-1-propene 3 | D30: 3-Chloro-1-propene | E30: 107-05-1 | F30: =VLOOKUP(R30,'[14]SG-Comm_IA_5ft'!$A$1:$O$65536,7,FALSE) -> 0.0002687877348 | G30: =VLOOKUP(R30,'[14]SG-Comm_IA_10ft'!$A$1:$O$65536,7,FALSE) -> 0.0001488182537 | H30: =VLOOKUP(R30,'[14]SG-Comm-OA_H_5ft'!$A$1:$O$65536,11,FALSE) -> 6.052126757e-06 | I30: =VLOOKUP(R30,'[13]SG-Comm-OA_H_Trench'!$A$3:$O$280,11,FALSE) ->  | J30: =VLOOKUP(R30,'[13]GW-Comm_IA_H'!$A$3:$O$280,11,FALSE) ->  | K30: =VLOOKUP(R30,'[13]GW-Comm_H-OA'!$A$3:$O$280,11,FALSE) ->  | L30: =VLOOKUP(R30,'[13]GW-Comm_H-OA_Trench'!$A$3:$O$280,11,FALSE) ->  | M30: =VLOOKUP(R30,'[13]GW-Comm_H-OA_Trench'!$A$3:$O$280,11,FALSE) ->  | N30: =VLOOKUP(R30,'[14]SG-Comm-OA_H_Trench'!$A$1:$O$65536,11,FALSE) -> 0.001187910781 | O30: =VLOOKUP(R30,'[13]SG-Comm-OA_G_Trench'!$A$3:$O$280,11,FALSE) -> 0.001187910781 | P30: =VLOOKUP(R30,'[13]GW-Comm_IA_D'!$A$3:$O$280,11,FALSE) -> 2.214743463e-07 | R30: 107051
B31: VOCs | C31: Chlorobenzene | D31: Chlorobenzene | E31: 108-90-7 | F31: =VLOOKUP(R31,'[14]SG-Comm_IA_5ft'!$A$1:$O$65536,7,FALSE) -> 0.0002223587314 | G31: =VLOOKUP(R31,'[14]SG-Comm_IA_10ft'!$A$1:$O$65536,7,FALSE) -> 0.0001196448237 | H31: =VLOOKUP(R31,'[14]SG-Comm-OA_H_5ft'!$A$1:$O$65536,11,FALSE) -> 4.701451867e-06 | I31: =VLOOKUP(R31,'[13]SG-Comm-OA_H_Trench'!$A$3:$O$280,11,FALSE) ->  | J31: =VLOOKUP(R31,'[13]GW-Comm_IA_H'!$A$3:$O$280,11,FALSE) ->  | K31: =VLOOKUP(R31,'[13]GW-Comm_H-OA'!$A$3:$O$280,11,FALSE) ->  | L31: =VLOOKUP(R31,'[13]GW-Comm_H-OA_Trench'!$A$3:$O$280,11,FALSE) ->  | M31: =VLOOKUP(R31,'[13]GW-Comm_H-OA_Trench'!$A$3:$O$280,11,FALSE) ->  | N31: =VLOOKUP(R31,'[14]SG-Comm-OA_H_Trench'!$A$1:$O$65536,11,FALSE) -> 0.0009228004604 | O31: =VLOOKUP(R31,'[13]SG-Comm-OA_G_Trench'!$A$3:$O$280,11,FALSE) -> 0.0009228004604 | P31: =VLOOKUP(R31,'[13]GW-Comm_IA_D'!$A$3:$O$280,11,FALSE) -> 1.989352905e-07 | R31: 108907
A32: X | B32: VOCs | C32: Chloroethane | D32: Chloroethane | E32: 75-00-3 | F32: =VLOOKUP(R32,'[14]SG-Comm_IA_5ft'!$A$1:$O$65536,7,FALSE) -> 0.0002891832835 | G32: =VLOOKUP(R32,'[14]SG-Comm_IA_10ft'!$A$1:$O$65536,7,FALSE) -> 0.0001621751288 | H32: =VLOOKUP(R32,'[14]SG-Comm-OA_H_5ft'!$A$1:$O$65536,11,FALSE) -> 6.702533211e-06 | I32: =VLOOKUP(R32,'[13]SG-Comm-OA_H_Trench'!$A$3:$O$280,11,FALSE) ->  | J32: =VLOOKUP(R32,'[13]GW-Comm_IA_H'!$A$3:$O$280,11,FALSE) ->  | K32: =VLOOKUP(R32,'[13]GW-Comm_H-OA'!$A$3:$O$280,11,FALSE) ->  | L32: =VLOOKUP(R32,'[13]GW-Comm_H-OA_Trench'!$A$3:$O$280,11,FALSE) ->  | M32: =VLOOKUP(R32,'[13]GW-Comm_H-OA_Trench'!$A$3:$O$280,11,FALSE) ->  | N32: =VLOOKUP(R32,'[14]SG-Comm-OA_H_Trench'!$A$1:$O$65536,11,FALSE) -> 0.001315572489 | O32: =VLOOKUP(R32,'[13]SG-Comm-OA_G_Trench'!$A$3:$O$280,11,FALSE) -> 0.001315572489 | P32: =VLOOKUP(R32,'[13]GW-Comm_IA_D'!$A$3:$O$280,11,FALSE) -> 2.478654797e-07 | R32: 75003
A33: X | B33: VOCs | C33: Chloroform | D33: Chloroform | E33: 67-66-3 | F33: =VLOOKUP(R33,'[14]SG-Comm_IA_5ft'!$A$1:$O$65536,7,FALSE) -> 0.0002890233677 | G33: =VLOOKUP(R33,'[14]SG-Comm_IA_10ft'!$A$1:$O$65536,7,FALSE) -> 0.0001620690616 | H33: =VLOOKUP(R33,'[14]SG-Comm-OA_H_5ft'!$A$1:$O$65536,11,FALSE) -> 6.697285038e-06 | I33: =VLOOKUP(R33,'[13]SG-Comm-OA_H_Trench'!$A$3:$O$280,11,FALSE) ->  | J33: =VLOOKUP(R33,'[13]GW-Comm_IA_H'!$A$3:$O$280,11,FALSE) ->  | K33: =VLOOKUP(R33,'[13]GW-Comm_H-OA'!$A$3:$O$280,11,FALSE) ->  | L33: =VLOOKUP(R33,'[13]GW-Comm_H-OA_Trench'!$A$3:$O$280,11,FALSE) ->  | M33: =VLOOKUP(R33,'[13]GW-Comm_H-OA_Trench'!$A$3:$O$280,11,FALSE) ->  | N33: =VLOOKUP(R33,'[14]SG-Comm-OA_H_Trench'!$A$1:$O$65536,11,FALSE) -> 0.001314542378 | O33: =VLOOKUP(R33,'[13]SG-Comm-OA_G_Trench'!$A$3:$O$280,11,FALSE) -> 0.001314542378 | P33: =VLOOKUP(R33,'[13]GW-Comm_IA_D'!$A$3:$O$280,11,FALSE) -> 2.710908945e-07 | R33: 67663
B34: VOCs | C34: Chlorohexane, 1- | D34: 1-Chlorohexane | E34: 544-10-5 | F34: =VLOOKUP(R34,'[14]SG-Comm_IA_5ft'!$A$1:$O$65536,7,FALSE) -> 0.0004371828137 | G34: =VLOOKUP(R34,'[14]SG-Comm_IA_10ft'!$A$1:$O$65536,7,FALSE) -> 0.0002704829682 | H34: =VLOOKUP(R34,'[14]SG-Comm-OA_H_5ft'!$A$1:$O$65536,11,FALSE) -> 1.287599953e-05 | I34: =VLOOKUP(R34,'[13]SG-Comm-OA_H_Trench'!$A$3:$O$280,11,FALSE) ->  | J34: =VLOOKUP(R34,'[13]GW-Comm_IA_H'!$A$3:$O$280,11,FALSE) ->  | K34: =VLOOKUP(R34,'[13]GW-Comm_H-OA'!$A$3:$O$280,11,FALSE) ->  | L34: =VLOOKUP(R34,'[13]GW-Comm_H-OA_Trench'!$A$3:$O$280,11,FALSE) ->  | M34: =VLOOKUP(R34,'[13]GW-Comm_H-OA_Trench'!$A$3:$O$280,11,FALSE) ->  | N34: =VLOOKUP(R34,'[14]SG-Comm-OA_H_Trench'!$A$1:$O$65536,11,FALSE) -> 0.002527299785 | O34: =VLOOKUP(R34,'[13]SG-Comm-OA_G_Trench'!$A$3:$O$280,11,FALSE) -> 0.002527299785 | P34: =VLOOKUP(R34,'[13]GW-Comm_IA_D'!$A$3:$O$280,11,FALSE) -> 4.52771196e-07 | R34: 544105
B35: VOCs | C35: Chloromethane | D35: Chloromethane | E35: 74-87-3 | F35: =VLOOKUP(R35,'[14]SG-Comm_IA_5ft'!$A$1:$O$65536,7,FALSE) -> 0.0002984442583 | G35: =VLOOKUP(R35,'[14]SG-Comm_IA_10ft'!$A$1:$O$65536,7,FALSE) -> 0.0001683544503 | H35: =VLOOKUP(R35,'[14]SG-Comm-OA_H_5ft'!$A$1:$O$65536,11,FALSE) -> 7.010640558e-06 | I35: =VLOOKUP(R35,'[13]SG-Comm-OA_H_Trench'!$A$3:$O$280,11,FALSE) ->  | J35: =VLOOKUP(R35,'[13]GW-Comm_IA_H'!$A$3:$O$280,11,FALSE) ->  | K35: =VLOOKUP(R35,'[13]GW-Comm_H-OA'!$A$3:$O$280,11,FALSE) ->  | L35: =VLOOKUP(R35,'[13]GW-Comm_H-OA_Trench'!$A$3:$O$280,11,FALSE) ->  | M35: =VLOOKUP(R35,'[13]GW-Comm_H-OA_Trench'!$A$3:$O$280,11,FALSE) ->  | N35: =VLOOKUP(R35,'[14]SG-Comm-OA_H_Trench'!$A$1:$O$65536,11,FALSE) -> 0.001376047765 | O35: =VLOOKUP(R35,'[13]SG-Comm-OA_G_Trench'!$A$3:$O$280,11,FALSE) -> 0.001376047765 | P35: =VLOOKUP(R35,'[13]GW-Comm_IA_D'!$A$3:$O$280,11,FALSE) -> 2.481924143e-07 | R35: 74873
B36: VOCs | C36: Chlorotoluene 2 | D36: 2-Chlorotoluene | E36: 95-49-8 | F36: =VLOOKUP(R36,'[14]SG-Comm_IA_5ft'!$A$1:$O$65536,7,FALSE) -> 0.0002199731042 | G36: =VLOOKUP(R36,'[14]SG-Comm_IA_10ft'!$A$1:$O$65536,7,FALSE) -> 0.0001181901498 | H36: =VLOOKUP(R36,'[14]SG-Comm-OA_H_5ft'!$A$1:$O$65536,11,FALSE) -> 4.63648606e-06 | I36: =VLOOKUP(R36,'[13]SG-Comm-OA_H_Trench'!$A$3:$O$280,11,FALSE) ->  | J36: =VLOOKUP(R36,'[13]GW-Comm_IA_H'!$A$3:$O$280,11,FALSE) ->  | K36: =VLOOKUP(R36,'[13]GW-Comm_H-OA'!$A$3:$O$280,11,FALSE) ->  | L36: =VLOOKUP(R36,'[13]GW-Comm_H-OA_Trench'!$A$3:$O$280,11,FALSE) ->  | M36: =VLOOKUP(R36,'[13]GW-Comm_H-OA_Trench'!$A$3:$O$280,11,FALSE) ->  | N36: =VLOOKUP(R36,'[14]SG-Comm-OA_H_Trench'!$A$1:$O$65536,11,FALSE) -> 0.0009100489788 | O36: =VLOOKUP(R36,'[13]SG-Comm-OA_G_Trench'!$A$3:$O$280,11,FALSE) -> 0.0009100489788 | P36: =VLOOKUP(R36,'[13]GW-Comm_IA_D'!$A$3:$O$280,11,FALSE) -> 1.858676073e-07 | R36: 95498
B37: VOCs | C37: Chlorotoluene 4 | D37: 4-Chlorotoluene | E37: 106-43-4 | F37: =VLOOKUP(R37,'[14]SG-Comm_IA_5ft'!$A$1:$O$65536,7,FALSE) -> 0.0001969287493 | G37: =VLOOKUP(R37,'[14]SG-Comm_IA_10ft'!$A$1:$O$65536,7,FALSE) -> 0.000104351957 | H37: =VLOOKUP(R37,'[14]SG-Comm-OA_H_5ft'!$A$1:$O$65536,11,FALSE) -> 4.02921773e-06 | I37: =VLOOKUP(R37,'[13]SG-Comm-OA_H_Trench'!$A$3:$O$280,11,FALSE) ->  | J37: =VLOOKUP(R37,'[13]GW-Comm_IA_H'!$A$3:$O$280,11,FALSE) ->  | K37: =VLOOKUP(R37,'[13]GW-Comm_H-OA'!$A$3:$O$280,11,FALSE) ->  | L37: =VLOOKUP(R37,'[13]GW-Comm_H-OA_Trench'!$A$3:$O$280,11,FALSE) ->  | M37: =VLOOKUP(R37,'[13]GW-Comm_H-OA_Trench'!$A$3:$O$280,11,FALSE) ->  | N37: =VLOOKUP(R37,'[14]SG-Comm-OA_H_Trench'!$A$1:$O$65536,11,FALSE) -> 0.0007908544171 | O37: =VLOOKUP(R37,'[13]SG-Comm-OA_G_Trench'!$A$3:$O$280,11,FALSE) -> 0.0007908544171 | P37: =VLOOKUP(R37,'[13]GW-Comm_IA_D'!$A$3:$O$280,11,FALSE) -> 1.599642057e-07 | R37: 106434
A38: X | B38: VOCs | C38: Cumene | D38: Cumene | E38: 98-82-8 | F38: =VLOOKUP(R38,'[14]SG-Comm_IA_5ft'!$A$1:$O$65536,7,FALSE) -> 0.000226979394 | G38: =VLOOKUP(R38,'[14]SG-Comm_IA_10ft'!$A$1:$O$65536,7,FALSE) -> 0.000122474354 | H38: =VLOOKUP(R38,'[14]SG-Comm-OA_H_5ft'!$A$1:$O$65536,11,FALSE) -> 4.828447334e-06 | I38: =VLOOKUP(R38,'[13]SG-Comm-OA_H_Trench'!$A$3:$O$280,11,FALSE) ->  | J38: =VLOOKUP(R38,'[13]GW-Comm_IA_H'!$A$3:$O$280,11,FALSE) ->  | K38: =VLOOKUP(R38,'[13]GW-Comm_H-OA'!$A$3:$O$280,11,FALSE) ->  | L38: =VLOOKUP(R38,'[13]GW-Comm_H-OA_Trench'!$A$3:$O$280,11,FALSE) ->  | M38: =VLOOKUP(R38,'[13]GW-Comm_H-OA_Trench'!$A$3:$O$280,11,FALSE) ->  | N38: =VLOOKUP(R38,'[14]SG-Comm-OA_H_Trench'!$A$1:$O$65536,11,FALSE) -> 0.0009477271168 | O38: =VLOOKUP(R38,'[13]SG-Comm-OA_G_Trench'!$A$3:$O$280,11,FALSE) -> 0.0009477271168 | P38: =VLOOKUP(R38,'[13]GW-Comm_IA_D'!$A$3:$O$280,11,FALSE) -> 1.686457049e-07 | R38: 98828
B39: VOCs | C39: Cyclohexane | D39: Cyclohexane | E39: 110-82-7 | F39: =VLOOKUP(R39,'[14]SG-Comm_IA_5ft'!$A$1:$O$65536,7,FALSE) -> 0.0002384446036 | G39: =VLOOKUP(R39,'[14]SG-Comm_IA_10ft'!$A$1:$O$65536,7,FALSE) -> 0.0001295644262 | H39: =VLOOKUP(R39,'[14]SG-Comm-OA_H_5ft'!$A$1:$O$65536,11,FALSE) -> 5.150360143e-06 | I39: =VLOOKUP(R39,'[13]SG-Comm-OA_H_Trench'!$A$3:$O$280,11,FALSE) ->  | J39: =VLOOKUP(R39,'[13]GW-Comm_IA_H'!$A$3:$O$280,11,FALSE) ->  | K39: =VLOOKUP(R39,'[13]GW-Comm_H-OA'!$A$3:$O$280,11,FALSE) ->  | L39: =VLOOKUP(R39,'[13]GW-Comm_H-OA_Trench'!$A$3:$O$280,11,FALSE) ->  | M39: =VLOOKUP(R39,'[13]GW-Comm_H-OA_Trench'!$A$3:$O$280,11,FALSE) ->  | N39: =VLOOKUP(R39,'[14]SG-Comm-OA_H_Trench'!$A$1:$O$65536,11,FALSE) -> 0.001010912128 | O39: =VLOOKUP(R39,'[13]SG-Comm-OA_G_Trench'!$A$3:$O$280,11,FALSE) -> 0.001010912128 | P39: =VLOOKUP(R39,'[13]GW-Comm_IA_D'!$A$3:$O$280,11,FALSE) -> 1.802450918e-07 | R39: 110827
A40: X | B40: VOCs | C40: Cymene, p | D40: p-Cymene | E40: 99-87-6 | F40: =VLOOKUP(R40,'[14]SG-Comm_IA_5ft'!$A$1:$O$65536,7,FALSE) -> 0.0002269793128 | G40: =VLOOKUP(R40,'[14]SG-Comm_IA_10ft'!$A$1:$O$65536,7,FALSE) -> 0.0001224743042 | H40: =VLOOKUP(R40,'[14]SG-Comm-OA_H_5ft'!$A$1:$O$65536,11,FALSE) -> 4.828445091e-06 | I40: =VLOOKUP(R40,'[13]SG-Comm-OA_H_Trench'!$A$3:$O$280,11,FALSE) ->  | J40: =VLOOKUP(R40,'[13]GW-Comm_IA_H'!$A$3:$O$280,11,FALSE) ->  | K40: =VLOOKUP(R40,'[13]GW-Comm_H-OA'!$A$3:$O$280,11,FALSE) ->  | L40: =VLOOKUP(R40,'[13]GW-Comm_H-OA_Trench'!$A$3:$O$280,11,FALSE) ->  | M40: =VLOOKUP(R40,'[13]GW-Comm_H-OA_Trench'!$A$3:$O$280,11,FALSE) ->  | N40: =VLOOKUP(R40,'[14]SG-Comm-OA_H_Trench'!$A$1:$O$65536,11,FALSE) -> 0.0009477266766 | O40: =VLOOKUP(R40,'[13]SG-Comm-OA_G_Trench'!$A$3:$O$280,11,FALSE) -> 0.0009477266766 | P40: =VLOOKUP(R40,'[13]GW-Comm_IA_D'!$A$3:$O$280,11,FALSE) -> 1.68596686e-07 | R40: 99876
B41: VOCs | C41: Dibromo-3-chloropropane, 1,2- | D41: 1,2-Dibromo-3-chloropropane | E41: 96-12-8 | F41: =VLOOKUP(R41,'[14]SG-Comm_IA_5ft'!$A$1:$O$65536,7,FALSE) -> 0.0002393370949 | G41: =VLOOKUP(R41,'[14]SG-Comm_IA_10ft'!$A$1:$O$65536,7,FALSE) -> 0.000130120522 | H41: =VLOOKUP(R41,'[14]SG-Comm-OA_H_5ft'!$A$1:$O$65536,11,FALSE) -> 5.175834872e-06 | I41: =VLOOKUP(R41,'[13]SG-Comm-OA_H_Trench'!$A$3:$O$280,11,FALSE) ->  | J41: =VLOOKUP(R41,'[13]GW-Comm_IA_H'!$A$3:$O$280,11,FALSE) ->  | K41: =VLOOKUP(R41,'[13]GW-Comm_H-OA'!$A$3:$O$280,11,FALSE) ->  | L41: =VLOOKUP(R41,'[13]GW-Comm_H-OA_Trench'!$A$3:$O$280,11,FALSE) ->  | M41: =VLOOKUP(R41,'[13]GW-Comm_H-OA_Trench'!$A$3:$O$280,11,FALSE) ->  | N41: =VLOOKUP(R41,'[14]SG-Comm-OA_H_Trench'!$A$1:$O$65536,11,FALSE) -> 0.001015912305 | O41: =VLOOKUP(R41,'[13]SG-Comm-OA_G_Trench'!$A$3:$O$280,11,FALSE) -> 0.001015912305 | P41: =VLOOKUP(R41,'[13]GW-Comm_IA_D'!$A$3:$O$280,11,FALSE) -> 4.109933213e-07 | R41: 96128
B42: VOCs | C42: Dibromochloromethane | D42: Dibromochloromethane | E42: 124-48-1 | F42: =VLOOKUP(R42,'[14]SG-Comm_IA_5ft'!$A$1:$O$65536,7,FALSE) -> 7.192648958e-05 | G42: =VLOOKUP(R42,'[14]SG-Comm_IA_10ft'!$A$1:$O$65536,7,FALSE) -> 3.546526487e-05 | H42: =VLOOKUP(R42,'[14]SG-Comm-OA_H_5ft'!$A$1:$O$65536,11,FALSE) -> 1.269912988e-06 | I42: =VLOOKUP(R42,'[13]SG-Comm-OA_H_Trench'!$A$3:$O$280,11,FALSE) ->  | J42: =VLOOKUP(R42,'[13]GW-Comm_IA_H'!$A$3:$O$280,11,FALSE) ->  | K42: =VLOOKUP(R42,'[13]GW-Comm_H-OA'!$A$3:$O$280,11,FALSE) ->  | L42: =VLOOKUP(R42,'[13]GW-Comm_H-OA_Trench'!$A$3:$O$280,11,FALSE) ->  | M42: =VLOOKUP(R42,'[13]GW-Comm_H-OA_Trench'!$A$3:$O$280,11,FALSE) ->  | N42: =VLOOKUP(R42,'[14]SG-Comm-OA_H_Trench'!$A$1:$O$65536,11,FALSE) -> 0.0002492583829 | O42: =VLOOKUP(R42,'[13]SG-Comm-OA_G_Trench'!$A$3:$O$280,11,FALSE) -> 0.0002492583829 | P42: =VLOOKUP(R42,'[13]GW-Comm_IA_D'!$A$3:$O$280,11,FALSE) -> 1.066632083e-07 | R42: 124481
B43: VOCs | C43: Dibromoethane 1,2 | D43: 1,2-Dibromoethane | E43: 106-93-4 | F43: =VLOOKUP(R43,'[14]SG-Comm_IA_5ft'!$A$1:$O$65536,7,FALSE) -> 0.0002237045535 | G43: =VLOOKUP(R43,'[14]SG-Comm_IA_10ft'!$A$1:$O$65536,7,FALSE) -> 0.000120467319 | H43: =VLOOKUP(R43,'[14]SG-Comm-OA_H_5ft'!$A$1:$O$65536,11,FALSE) -> 4.738281431e-06 | I43: =VLOOKUP(R43,'[13]SG-Comm-OA_H_Trench'!$A$3:$O$280,11,FALSE) ->  | J43: =VLOOKUP(R43,'[13]GW-Comm_IA_H'!$A$3:$O$280,11,FALSE) ->  | K43: =VLOOKUP(R43,'[13]GW-Comm_H-OA'!$A$3:$O$280,11,FALSE) ->  | L43: =VLOOKUP(R43,'[13]GW-Comm_H-OA_Trench'!$A$3:$O$280,11,FALSE) ->  | M43: =VLOOKUP(R43,'[13]GW-Comm_H-OA_Trench'!$A$3:$O$280,11,FALSE) ->  | N43: =VLOOKUP(R43,'[14]SG-Comm-OA_H_Trench'!$A$1:$O$65536,11,FALSE) -> 0.0009300293633 | O43: =VLOOKUP(R43,'[13]SG-Comm-OA_G_Trench'!$A$3:$O$280,11,FALSE) -> 0.0009300293633 | P43: =VLOOKUP(R43,'[13]GW-Comm_IA_D'!$A$3:$O$280,11,FALSE) -> 3.593616468e-07 | R43: 106934
B44: VOCs | C44: Dibromomethane | D44: Dibromomethane | E44: 74-95-3 | F44: =VLOOKUP(R44,'[14]SG-Comm_IA_5ft'!$A$1:$O$65536,7,FALSE) -> 0.0002386683207 | G44: =VLOOKUP(R44,'[14]SG-Comm_IA_10ft'!$A$1:$O$65536,7,FALSE) -> 0.0001297037633 | H44: =VLOOKUP(R44,'[14]SG-Comm-OA_H_5ft'!$A$1:$O$65536,11,FALSE) -> 5.156740056e-06 | I44: =VLOOKUP(R44,'[13]SG-Comm-OA_H_Trench'!$A$3:$O$280,11,FALSE) ->  | J44: =VLOOKUP(R44,'[13]GW-Comm_IA_H'!$A$3:$O$280,11,FALSE) ->  | K44: =VLOOKUP(R44,'[13]GW-Comm_H-OA'!$A$3:$O$280,11,FALSE) ->  | L44: =VLOOKUP(R44,'[13]GW-Comm_H-OA_Trench'!$A$3:$O$280,11,FALSE) ->  | M44: =VLOOKUP(R44,'[13]GW-Comm_H-OA_Trench'!$A$3:$O$280,11,FALSE) ->  | N44: =VLOOKUP(R44,'[14]SG-Comm-OA_H_Trench'!$A$1:$O$65536,11,FALSE) -> 0.001012164377 | O44: =VLOOKUP(R44,'[13]SG-Comm-OA_G_Trench'!$A$3:$O$280,11,FALSE) -> 0.001012164377 | P44: =VLOOKUP(R44,'[13]GW-Comm_IA_D'!$A$3:$O$280,11,FALSE) -> 2.829850154e-07 | R44: 74953
B45: VOCs | C45: Dichlorobenzene 1,2 | D45: 1,2-Dichlorobenzene | E45: 95-50-1 | F45: =VLOOKUP(R45,'[14]SG-Comm_IA_5ft'!$A$1:$O$65536,7,FALSE) -> 0.0002128754829 | G45: =VLOOKUP(R45,'[14]SG-Comm_IA_10ft'!$A$1:$O$65536,7,FALSE) -> 0.0001138870171 | H45: =VLOOKUP(R45,'[14]SG-Comm-OA_H_5ft'!$A$1:$O$65536,11,FALSE) -> 4.44557985e-06 | I45: =VLOOKUP(R45,'[13]SG-Comm-OA_H_Trench'!$A$3:$O$280,11,FALSE) ->  | J45: =VLOOKUP(R45,'[13]GW-Comm_IA_H'!$A$3:$O$280,11,FALSE) ->  | K45: =VLOOKUP(R45,'[13]GW-Comm_H-OA'!$A$3:$O$280,11,FALSE) ->  | L45: =VLOOKUP(R45,'[13]GW-Comm_H-OA_Trench'!$A$3:$O$280,11,FALSE) ->  | M45: =VLOOKUP(R45,'[13]GW-Comm_H-OA_Trench'!$A$3:$O$280,11,FALSE) ->  | N45: =VLOOKUP(R45,'[14]SG-Comm-OA_H_Trench'!$A$1:$O$65536,11,FALSE) -> 0.0008725779288 | O45: =VLOOKUP(R45,'[13]SG-Comm-OA_G_Trench'!$A$3:$O$280,11,FALSE) -> 0.0008725779288 | P45: =VLOOKUP(R45,'[13]GW-Comm_IA_D'!$A$3:$O$280,11,FALSE) -> 2.162069981e-07 | R45: 95501
B46: VOCs | C46: Dichlorobenzene 1,3 | D46: 1,3-Dichlorobenzene | E46: 541-73-1 | F46: =VLOOKUP(R46,'[14]SG-Comm_IA_5ft'!$A$1:$O$65536,7,FALSE) -> 0.0002128724499 | G46: =VLOOKUP(R46,'[14]SG-Comm_IA_10ft'!$A$1:$O$65536,7,FALSE) -> 0.0001138851861 | H46: =VLOOKUP(R46,'[14]SG-Comm-OA_H_5ft'!$A$1:$O$65536,11,FALSE) -> 4.445499021e-06 | I46: =VLOOKUP(R46,'[13]SG-Comm-OA_H_Trench'!$A$3:$O$280,11,FALSE) ->  | J46: =VLOOKUP(R46,'[13]GW-Comm_IA_H'!$A$3:$O$280,11,FALSE) ->  | K46: =VLOOKUP(R46,'[13]GW-Comm_H-OA'!$A$3:$O$280,11,FALSE) ->  | L46: =VLOOKUP(R46,'[13]GW-Comm_H-OA_Trench'!$A$3:$O$280,11,FALSE) ->  | M46: =VLOOKUP(R46,'[13]GW-Comm_H-OA_Trench'!$A$3:$O$280,11,FALSE) ->  | N46: =VLOOKUP(R46,'[14]SG-Comm-OA_H_Trench'!$A$1:$O$65536,11,FALSE) -> 0.0008725620637 | O46: =VLOOKUP(R46,'[13]SG-Comm-OA_G_Trench'!$A$3:$O$280,11,FALSE) -> 0.0008725620637 | P46: =VLOOKUP(R46,'[13]GW-Comm_IA_D'!$A$3:$O$280,11,FALSE) -> 2.15014813e-07 | R46: 541731
A47: X | B47: VOCs | C47: Dichlorobenzene 1,4 | D47: 1,4-Dichlorobenzene | E47: 106-46-7 | F47: =VLOOKUP(R47,'[14]SG-Comm_IA_5ft'!$A$1:$O$65536,7,FALSE) -> 0.0002128454931 | G47: =VLOOKUP(R47,'[14]SG-Comm_IA_10ft'!$A$1:$O$65536,7,FALSE) -> 0.000113868913 | H47: =VLOOKUP(R47,'[14]SG-Comm-OA_H_5ft'!$A$1:$O$65536,11,FALSE) -> 4.444780662e-06 | I47: =VLOOKUP(R47,'[13]SG-Comm-OA_H_Trench'!$A$3:$O$280,11,FALSE) ->  | J47: =VLOOKUP(R47,'[13]GW-Comm_IA_H'!$A$3:$O$280,11,FALSE) ->  | K47: =VLOOKUP(R47,'[13]GW-Comm_H-OA'!$A$3:$O$280,11,FALSE) ->  | L47: =VLOOKUP(R47,'[13]GW-Comm_H-OA_Trench'!$A$3:$O$280,11,FALSE) ->  | M47: =VLOOKUP(R47,'[13]GW-Comm_H-OA_Trench'!$A$3:$O$280,11,FALSE) ->  | N47: =VLOOKUP(R47,'[14]SG-Comm-OA_H_Trench'!$A$1:$O$65536,11,FALSE) -> 0.0008724210643 | O47: =VLOOKUP(R47,'[13]SG-Comm-OA_G_Trench'!$A$3:$O$280,11,FALSE) -> 0.0008724210643 | P47: =VLOOKUP(R47,'[13]GW-Comm_IA_D'!$A$3:$O$280,11,FALSE) -> 2.039526675e-07 | R47: 106467
A48: X | B48: VOCs | C48: Dichlorodifluoromethane | D48: Dichlorodifluoromethane | E48: 75-71-8 | F48: =VLOOKUP(R48,'[14]SG-Comm_IA_5ft'!$A$1:$O$65536,7,FALSE) -> 0.0002384464177 | G48: =VLOOKUP(R48,'[14]SG-Comm_IA_10ft'!$A$1:$O$65536,7,FALSE) -> 0.0001295655558 | H48: =VLOOKUP(R48,'[14]SG-Comm-OA_H_5ft'!$A$1:$O$65536,11,FALSE) -> 5.15041186e-06 | I48: =VLOOKUP(R48,'[13]SG-Comm-OA_H_Trench'!$A$3:$O$280,11,FALSE) ->  | J48: =VLOOKUP(R48,'[13]GW-Comm_IA_H'!$A$3:$O$280,11,FALSE) ->  | K48: =VLOOKUP(R48,'[13]GW-Comm_H-OA'!$A$3:$O$280,11,FALSE) ->  | L48: =VLOOKUP(R48,'[13]GW-Comm_H-OA_Trench'!$A$3:$O$280,11,FALSE) ->  | M48: =VLOOKUP(R48,'[13]GW-Comm_H-OA_Trench'!$A$3:$O$280,11,FALSE) ->  | N48: =VLOOKUP(R48,'[14]SG-Comm-OA_H_Trench'!$A$1:$O$65536,11,FALSE) -> 0.001010922279 | O48: =VLOOKUP(R48,'[13]SG-Comm-OA_G_Trench'!$A$3:$O$280,11,FALSE) -> 0.001010922279 | P48: =VLOOKUP(R48,'[13]GW-Comm_IA_D'!$A$3:$O$280,11,FALSE) -> 1.813699947e-07 | R48: 75718
B49: VOCs | C49: Dichloroethane 1,1 | D49: 1,1-Dichloroethane | E49: 75-34-3 | F49: =VLOOKUP(R49,'[14]SG-Comm_IA_5ft'!$A$1:$O$65536,7,FALSE) -> 0.000225157806 | G49: =VLOOKUP(R49,'[14]SG-Comm_IA_10ft'!$A$1:$O$65536,7,FALSE) -> 0.0001213569808 | H49: =VLOOKUP(R49,'[14]SG-Comm-OA_H_5ft'!$A$1:$O$65536,11,FALSE) -> 4.778197642e-06 | I49: =VLOOKUP(R49,'[13]SG-Comm-OA_H_Trench'!$A$3:$O$280,11,FALSE) ->  | J49: =VLOOKUP(R49,'[13]GW-Comm_IA_H'!$A$3:$O$280,11,FALSE) ->  | K49: =VLOOKUP(R49,'[13]GW-Comm_H-OA'!$A$3:$O$280,11,FALSE) ->  | L49: =VLOOKUP(R49,'[13]GW-Comm_H-OA_Trench'!$A$3:$O$280,11,FALSE) ->  | M49: =VLOOKUP(R49,'[13]GW-Comm_H-OA_Trench'!$A$3:$O$280,11,FALSE) ->  | N49: =VLOOKUP(R49,'[14]SG-Comm-OA_H_Trench'!$A$1:$O$65536,11,FALSE) -> 0.0009378641128 | O49: =VLOOKUP(R49,'[13]SG-Comm-OA_G_Trench'!$A$3:$O$280,11,FALSE) -> 0.0009378641128 | P49: =VLOOKUP(R49,'[13]GW-Comm_IA_D'!$A$3:$O$280,11,FALSE) -> 1.92326913e-07 | R49: 75343
B50: VOCs | C50: Dichloroethane 1,2 | D50: 1,2-Dichloroethane | E50: 107-06-2 | F50: =VLOOKUP(R50,'[14]SG-Comm_IA_5ft'!$A$1:$O$65536,7,FALSE) -> 0.0002891853717 | G50: =VLOOKUP(R50,'[14]SG-Comm_IA_10ft'!$A$1:$O$65536,7,FALSE) -> 0.000162176514 | H50: =VLOOKUP(R50,'[14]SG-Comm-OA_H_5ft'!$A$1:$O$65536,11,FALSE) -> 6.702601756e-06 | I50: =VLOOKUP(R50,'[13]SG-Comm-OA_H_Trench'!$A$3:$O$280,11,FALSE) ->  | J50: =VLOOKUP(R50,'[13]GW-Comm_IA_H'!$A$3:$O$280,11,FALSE) ->  | K50: =VLOOKUP(R50,'[13]GW-Comm_H-OA'!$A$3:$O$280,11,FALSE) ->  | L50: =VLOOKUP(R50,'[13]GW-Comm_H-OA_Trench'!$A$3:$O$280,11,FALSE) ->  | M50: =VLOOKUP(R50,'[13]GW-Comm_H-OA_Trench'!$A$3:$O$280,11,FALSE) ->  | N50: =VLOOKUP(R50,'[14]SG-Comm-OA_H_Trench'!$A$1:$O$65536,11,FALSE) -> 0.001315585943 | O50: =VLOOKUP(R50,'[13]SG-Comm-OA_G_Trench'!$A$3:$O$280,11,FALSE) -> 0.001315585943 | P50: =VLOOKUP(R50,'[13]GW-Comm_IA_D'!$A$3:$O$280,11,FALSE) -> 3.535550664e-07 | R50: 107062
B51: VOCs | C51: Dichloroethene 1,1 | D51: 1,1-Dichloroethene | E51: 75-35-4 | F51: =VLOOKUP(R51,'[14]SG-Comm_IA_5ft'!$A$1:$O$65536,7,FALSE) -> 0.000260370252 | G51: =VLOOKUP(R51,'[14]SG-Comm_IA_10ft'!$A$1:$O$65536,7,FALSE) -> 0.000143404337 | H51: =VLOOKUP(R51,'[14]SG-Comm-OA_H_5ft'!$A$1:$O$65536,11,FALSE) -> 5.79438665e-06 | I51: =VLOOKUP(R51,'[13]SG-Comm-OA_H_Trench'!$A$3:$O$280,11,FALSE) ->  | J51: =VLOOKUP(R51,'[13]GW-Comm_IA_H'!$A$3:$O$280,11,FALSE) ->  | K51: =VLOOKUP(R51,'[13]GW-Comm_H-OA'!$A$3:$O$280,11,FALSE) ->  | L51: =VLOOKUP(R51,'[13]GW-Comm_H-OA_Trench'!$A$3:$O$280,11,FALSE) ->  | M51: =VLOOKUP(R51,'[13]GW-Comm_H-OA_Trench'!$A$3:$O$280,11,FALSE) ->  | N51: =VLOOKUP(R51,'[14]SG-Comm-OA_H_Trench'!$A$1:$O$65536,11,FALSE) -> 0.001137321581 | O51: =VLOOKUP(R51,'[13]SG-Comm-OA_G_Trench'!$A$3:$O$280,11,FALSE) -> 0.001137321581 | P51: =VLOOKUP(R51,'[13]GW-Comm_IA_D'!$A$3:$O$280,11,FALSE) -> 2.077682108e-07 | R51: 75354
B52: VOCs | C52: Dichloroethene 1,2 (total) | D52: 1,2-Dichloroethene | E52: 540-59-0 | F52: =VLOOKUP(R52,'[14]SG-Comm_IA_5ft'!$A$1:$O$65536,7,FALSE) -> 0.0002237539385 | G52: =VLOOKUP(R52,'[14]SG-Comm_IA_10ft'!$A$1:$O$65536,7,FALSE) -> 0.0001204975261 | H52: =VLOOKUP(R52,'[14]SG-Comm-OA_H_5ft'!$A$1:$O$65536,11,FALSE) -> 4.739635375e-06 | I52: =VLOOKUP(R52,'[13]SG-Comm-OA_H_Trench'!$A$3:$O$280,11,FALSE) ->  | J52: =VLOOKUP(R52,'[13]GW-Comm_IA_H'!$A$3:$O$280,11,FALSE) ->  | K52: =VLOOKUP(R52,'[13]GW-Comm_H-OA'!$A$3:$O$280,11,FALSE) ->  | L52: =VLOOKUP(R52,'[13]GW-Comm_H-OA_Trench'!$A$3:$O$280,11,FALSE) ->  | M52: =VLOOKUP(R52,'[13]GW-Comm_H-OA_Trench'!$A$3:$O$280,11,FALSE) ->  | N52: =VLOOKUP(R52,'[14]SG-Comm-OA_H_Trench'!$A$1:$O$65536,11,FALSE) -> 0.0009302951152 | O52: =VLOOKUP(R52,'[13]SG-Comm-OA_G_Trench'!$A$3:$O$280,11,FALSE) -> 0.0009302951152 | P52: =VLOOKUP(R52,'[13]GW-Comm_IA_D'!$A$3:$O$280,11,FALSE) -> 1.921917138e-07 | R52: 540590
B53: VOCs | C53: Dichloroethene 1,2 cis | D53: cis-1,2-Dichloroethene | E53: 156-59-2 | F53: =VLOOKUP(R53,'[14]SG-Comm_IA_5ft'!$A$1:$O$65536,7,FALSE) -> 0.0002237746312 | G53: =VLOOKUP(R53,'[14]SG-Comm_IA_10ft'!$A$1:$O$65536,7,FALSE) -> 0.0001205101836 | H53: =VLOOKUP(R53,'[14]SG-Comm-OA_H_5ft'!$A$1:$O$65536,11,FALSE) -> 4.74020274e-06 | I53: =VLOOKUP(R53,'[13]SG-Comm-OA_H_Trench'!$A$3:$O$280,11,FALSE) ->  | J53: =VLOOKUP(R53,'[13]GW-Comm_IA_H'!$A$3:$O$280,11,FALSE) ->  | K53: =VLOOKUP(R53,'[13]GW-Comm_H-OA'!$A$3:$O$280,11,FALSE) ->  | L53: =VLOOKUP(R53,'[13]GW-Comm_H-OA_Trench'!$A$3:$O$280,11,FALSE) ->  | M53: =VLOOKUP(R53,'[13]GW-Comm_H-OA_Trench'!$A$3:$O$280,11,FALSE) ->  | N53: =VLOOKUP(R53,'[14]SG-Comm-OA_H_Trench'!$A$1:$O$65536,11,FALSE) -> 0.0009304064775 | O53: =VLOOKUP(R53,'[13]SG-Comm-OA_G_Trench'!$A$3:$O$280,11,FALSE) -> 0.0009304064775 | P53: =VLOOKUP(R53,'[13]GW-Comm_IA_D'!$A$3:$O$280,11,FALSE) -> 2.024971488e-07 | R53: 156592
B54: VOCs | C54: Dichloroethene 1,2 trans | D54: trans-1,2-Dichloroethene | E54: 156-60-5 | F54: =VLOOKUP(R54,'[14]SG-Comm_IA_5ft'!$A$1:$O$65536,7,FALSE) -> 0.00021686508 | G54: =VLOOKUP(R54,'[14]SG-Comm_IA_10ft'!$A$1:$O$65536,7,FALSE) -> 0.0001163012774 | H54: =VLOOKUP(R54,'[14]SG-Comm-OA_H_5ft'!$A$1:$O$65536,11,FALSE) -> 4.552454039e-06 | I54: =VLOOKUP(R54,'[13]SG-Comm-OA_H_Trench'!$A$3:$O$280,11,FALSE) ->  | J54: =VLOOKUP(R54,'[13]GW-Comm_IA_H'!$A$3:$O$280,11,FALSE) ->  | K54: =VLOOKUP(R54,'[13]GW-Comm_H-OA'!$A$3:$O$280,11,FALSE) ->  | L54: =VLOOKUP(R54,'[13]GW-Comm_H-OA_Trench'!$A$3:$O$280,11,FALSE) ->  | M54: =VLOOKUP(R54,'[13]GW-Comm_H-OA_Trench'!$A$3:$O$280,11,FALSE) ->  | N54: =VLOOKUP(R54,'[14]SG-Comm-OA_H_Trench'!$A$1:$O$65536,11,FALSE) -> 0.0008935551829 | O54: =VLOOKUP(R54,'[13]SG-Comm-OA_G_Trench'!$A$3:$O$280,11,FALSE) -> 0.0008935551829 | P54: =VLOOKUP(R54,'[13]GW-Comm_IA_D'!$A$3:$O$280,11,FALSE) -> 1.763648374e-07 | R54: 156605
B55: VOCs | C55: Dichloropropane 1,2 | D55: 1,2-Dichloropropane | E55: 78-87-5 | F55: =VLOOKUP(R55,'[14]SG-Comm_IA_5ft'!$A$1:$O$65536,7,FALSE) -> 0.000234435503 | G55: =VLOOKUP(R55,'[14]SG-Comm_IA_10ft'!$A$1:$O$65536,7,FALSE) -> 0.000127073907 | H55: =VLOOKUP(R55,'[14]SG-Comm-OA_H_5ft'!$A$1:$O$65536,11,FALSE) -> 5.03667526e-06 | I55: =VLOOKUP(R55,'[13]SG-Comm-OA_H_Trench'!$A$3:$O$280,11,FALSE) ->  | J55: =VLOOKUP(R55,'[13]GW-Comm_IA_H'!$A$3:$O$280,11,FALSE) ->  | K55: =VLOOKUP(R55,'[13]GW-Comm_H-OA'!$A$3:$O$280,11,FALSE) ->  | L55: =VLOOKUP(R55,'[13]GW-Comm_H-OA_Trench'!$A$3:$O$280,11,FALSE) ->  | M55: =VLOOKUP(R55,'[13]GW-Comm_H-OA_Trench'!$A$3:$O$280,11,FALSE) ->  | N55: =VLOOKUP(R55,'[14]SG-Comm-OA_H_Trench'!$A$1:$O$65536,11,FALSE) -> 0.0009885980715 | O55: =VLOOKUP(R55,'[13]SG-Comm-OA_G_Trench'!$A$3:$O$280,11,FALSE) -> 0.0009885980715 | P55: =VLOOKUP(R55,'[13]GW-Comm_IA_D'!$A$3:$O$280,11,FALSE) -> 2.188082862e-07 | R55: 78875
B56: VOCs | C56: Dichloropropane 1,3 | D56: 1,3-Dichloropropane | E56: 142-28-9 | F56: =VLOOKUP(R56,'[14]SG-Comm_IA_5ft'!$A$1:$O$65536,7,FALSE) -> 0.0002344096576 | G56: =VLOOKUP(R56,'[14]SG-Comm_IA_10ft'!$A$1:$O$65536,7,FALSE) -> 0.000127057891 | H56: =VLOOKUP(R56,'[14]SG-Comm-OA_H_5ft'!$A$1:$O$65536,11,FALSE) -> 5.035946317e-06 | I56: =VLOOKUP(R56,'[13]SG-Comm-OA_H_Trench'!$A$3:$O$280,11,FALSE) ->  | J56: =VLOOKUP(R56,'[13]GW-Comm_IA_H'!$A$3:$O$280,11,FALSE) ->  | K56: =VLOOKUP(R56,'[13]GW-Comm_H-OA'!$A$3:$O$280,11,FALSE) ->  | L56: =VLOOKUP(R56,'[13]GW-Comm_H-OA_Trench'!$A$3:$O$280,11,FALSE) ->  | M56: =VLOOKUP(R56,'[13]GW-Comm_H-OA_Trench'!$A$3:$O$280,11,FALSE) ->  | N56: =VLOOKUP(R56,'[14]SG-Comm-OA_H_Trench'!$A$1:$O$65536,11,FALSE) -> 0.0009884549947 | O56: =VLOOKUP(R56,'[13]SG-Comm-OA_G_Trench'!$A$3:$O$280,11,FALSE) -> 0.0009884549947 | P56: =VLOOKUP(R56,'[13]GW-Comm_IA_D'!$A$3:$O$280,11,FALSE) -> 2.057660048e-07 | R56: 142289
B57: VOCs | C57: Dichloropropane 2,2- | D57: 2,2-Dichloropropane | E57: 594-20-7 | F57: =VLOOKUP(R57,'[14]SG-Comm_IA_5ft'!$A$1:$O$65536,7,FALSE) -> 0.0002343659968 | G57: =VLOOKUP(R57,'[14]SG-Comm_IA_10ft'!$A$1:$O$65536,7,FALSE) -> 0.0001270308362 | H57: =VLOOKUP(R57,'[14]SG-Comm-OA_H_5ft'!$A$1:$O$65536,11,FALSE) -> 5.03471502e-06 | I57: =VLOOKUP(R57,'[13]SG-Comm-OA_H_Trench'!$A$3:$O$280,11,FALSE) ->  | J57: =VLOOKUP(R57,'[13]GW-Comm_IA_H'!$A$3:$O$280,11,FALSE) ->  | K57: =VLOOKUP(R57,'[13]GW-Comm_H-OA'!$A$3:$O$280,11,FALSE) ->  | L57: =VLOOKUP(R57,'[13]GW-Comm_H-OA_Trench'!$A$3:$O$280,11,FALSE) ->  | M57: =VLOOKUP(R57,'[13]GW-Comm_H-OA_Trench'!$A$3:$O$280,11,FALSE) ->  | N57: =VLOOKUP(R57,'[14]SG-Comm-OA_H_Trench'!$A$1:$O$65536,11,FALSE) -> 0.0009882133157 | O57: =VLOOKUP(R57,'[13]SG-Comm-OA_G_Trench'!$A$3:$O$280,11,FALSE) -> 0.0009882133157 | P57: =VLOOKUP(R57,'[13]GW-Comm_IA_D'!$A$3:$O$280,11,FALSE) -> 1.813114217e-07 | R57: 594207
B58: VOCs | C58: Dichloropropene 1,1 | D58: 1,1-Dichloropropene | E58: 563-58-6 | F58: =VLOOKUP(R58,'[14]SG-Comm_IA_5ft'!$A$1:$O$65536,7,FALSE) -> 0.0001969685312 | G58: =VLOOKUP(R58,'[14]SG-Comm_IA_10ft'!$A$1:$O$65536,7,FALSE) -> 0.0001043755178 | H58: =VLOOKUP(R58,'[14]SG-Comm-OA_H_5ft'!$A$1:$O$65536,11,FALSE) -> 4.03023542e-06 | I58: =VLOOKUP(R58,'[13]SG-Comm-OA_H_Trench'!$A$3:$O$280,11,FALSE) ->  | J58: =VLOOKUP(R58,'[13]GW-Comm_IA_H'!$A$3:$O$280,11,FALSE) ->  | K58: =VLOOKUP(R58,'[13]GW-Comm_H-OA'!$A$3:$O$280,11,FALSE) ->  | L58: =VLOOKUP(R58,'[13]GW-Comm_H-OA_Trench'!$A$3:$O$280,11,FALSE) ->  | M58: =VLOOKUP(R58,'[13]GW-Comm_H-OA_Trench'!$A$3:$O$280,11,FALSE) ->  | N58: =VLOOKUP(R58,'[14]SG-Comm-OA_H_Trench'!$A$1:$O$65536,11,FALSE) -> 0.0007910541693 | O58: =VLOOKUP(R58,'[13]SG-Comm-OA_G_Trench'!$A$3:$O$280,11,FALSE) -> 0.0007910541693 | P58: =VLOOKUP(R58,'[13]GW-Comm_IA_D'!$A$3:$O$280,11,FALSE) -> 1.42746997e-07 | R58: 563586
B59: VOCs | C59: Dichloropropene 1,3 cis | D59: cis-1,3-Dichloropropene | E59: 10061-01-5 | F59: =VLOOKUP(R59,'[14]SG-Comm_IA_5ft'!$A$1:$O$65536,7,FALSE) -> 0.0001969809018 | G59: =VLOOKUP(R59,'[14]SG-Comm_IA_10ft'!$A$1:$O$65536,7,FALSE) -> 0.0001043828445 | H59: =VLOOKUP(R59,'[14]SG-Comm-OA_H_5ft'!$A$1:$O$65536,11,FALSE) -> 4.030551903e-06 | I59: =VLOOKUP(R59,'[13]SG-Comm-OA_H_Trench'!$A$3:$O$280,11,FALSE) ->  | J59: =VLOOKUP(R59,'[13]GW-Comm_IA_H'!$A$3:$O$280,11,FALSE) ->  | K59: =VLOOKUP(R59,'[13]GW-Comm_H-OA'!$A$3:$O$280,11,FALSE) ->  | L59: =VLOOKUP(R59,'[13]GW-Comm_H-OA_Trench'!$A$3:$O$280,11,FALSE) ->  | M59: =VLOOKUP(R59,'[13]GW-Comm_H-OA_Trench'!$A$3:$O$280,11,FALSE) ->  | N59: =VLOOKUP(R59,'[14]SG-Comm-OA_H_Trench'!$A$1:$O$65536,11,FALSE) -> 0.0007911162885 | O59: =VLOOKUP(R59,'[13]SG-Comm-OA_G_Trench'!$A$3:$O$280,11,FALSE) -> 0.0007911162885 | P59: =VLOOKUP(R59,'[13]GW-Comm_IA_D'!$A$3:$O$280,11,FALSE) -> 1.494246269e-07 | R59: 10061015
B60: VOCs | C60: Dichloropropene 1,3 trans | D60: trans-1,3-Dichloropropene | E60: 10061-02-6 | F60: =VLOOKUP(R60,'[14]SG-Comm_IA_5ft'!$A$1:$O$65536,7,FALSE) -> 0.0001969809018 | G60: =VLOOKUP(R60,'[14]SG-Comm_IA_10ft'!$A$1:$O$65536,7,FALSE) -> 0.0001043828445 | H60: =VLOOKUP(R60,'[14]SG-Comm-OA_H_5ft'!$A$1:$O$65536,11,FALSE) -> 4.030551903e-06 | I60: =VLOOKUP(R60,'[13]SG-Comm-OA_H_Trench'!$A$3:$O$280,11,FALSE) ->  | J60: =VLOOKUP(R60,'[13]GW-Comm_IA_H'!$A$3:$O$280,11,FALSE) ->  | K60: =VLOOKUP(R60,'[13]GW-Comm_H-OA'!$A$3:$O$280,11,FALSE) ->  | L60: =VLOOKUP(R60,'[13]GW-Comm_H-OA_Trench'!$A$3:$O$280,11,FALSE) ->  | M60: =VLOOKUP(R60,'[13]GW-Comm_H-OA_Trench'!$A$3:$O$280,11,FALSE) ->  | N60: =VLOOKUP(R60,'[14]SG-Comm-OA_H_Trench'!$A$1:$O$65536,11,FALSE) -> 0.0007911162885 | O60: =VLOOKUP(R60,'[13]SG-Comm-OA_G_Trench'!$A$3:$O$280,11,FALSE) -> 0.0007911162885 | P60: =VLOOKUP(R60,'[13]GW-Comm_IA_D'!$A$3:$O$280,11,FALSE) -> 1.494246269e-07 | R60: 10061026
B61: VOCs | C61: Dimethylpentane, 2,2- | D61: 2,2-Dimethylpentane | E61: 590-35-2 | F61: =VLOOKUP(R61,'[14]SG-Comm_IA_5ft'!$A$1:$O$65536,7,FALSE) -> 0.0002029584473 | G61: =VLOOKUP(R61,'[14]SG-Comm_IA_10ft'!$A$1:$O$65536,7,FALSE) -> 0.000107935869 | H61: =VLOOKUP(R61,'[14]SG-Comm-OA_H_5ft'!$A$1:$O$65536,11,FALSE) -> 4.184651145e-06 | I61: =VLOOKUP(R61,'[13]SG-Comm-OA_H_Trench'!$A$3:$O$280,11,FALSE) ->  | J61: =VLOOKUP(R61,'[13]GW-Comm_IA_H'!$A$3:$O$280,11,FALSE) ->  | K61: =VLOOKUP(R61,'[13]GW-Comm_H-OA'!$A$3:$O$280,11,FALSE) ->  | L61: =VLOOKUP(R61,'[13]GW-Comm_H-OA_Trench'!$A$3:$O$280,11,FALSE) ->  | M61: =VLOOKUP(R61,'[13]GW-Comm_H-OA_Trench'!$A$3:$O$280,11,FALSE) ->  | N61: =VLOOKUP(R61,'[14]SG-Comm-OA_H_Trench'!$A$1:$O$65536,11,FALSE) -> 0.0008213628709 | O61: =VLOOKUP(R61,'[13]SG-Comm-OA_G_Trench'!$A$3:$O$280,11,FALSE) -> 0.0008213628709 | P61: =VLOOKUP(R61,'[13]GW-Comm_IA_D'!$A$3:$O$280,11,FALSE) -> 1.460894161e-07 | R61: 590352
B62: VOCs | C62: DIMETHYLPENTANE, 2,3- | D62: 2,3-Dimethylpentane | E62: 565-59-3 | F62: =VLOOKUP(R62,'[14]SG-Comm_IA_5ft'!$A$1:$O$65536,7,FALSE) -> 0.0002029584847 | G62: =VLOOKUP(R62,'[14]SG-Comm_IA_10ft'!$A$1:$O$65536,7,FALSE) -> 0.0001079358913 | H62: =VLOOKUP(R62,'[14]SG-Comm-OA_H_5ft'!$A$1:$O$65536,11,FALSE) -> 4.184652116e-06 | I62: =VLOOKUP(R62,'[13]SG-Comm-OA_H_Trench'!$A$3:$O$280,11,FALSE) ->  | J62: =VLOOKUP(R62,'[13]GW-Comm_IA_H'!$A$3:$O$280,11,FALSE) ->  | K62: =VLOOKUP(R62,'[13]GW-Comm_H-OA'!$A$3:$O$280,11,FALSE) ->  | L62: =VLOOKUP(R62,'[13]GW-Comm_H-OA_Trench'!$A$3:$O$280,11,FALSE) ->  | M62: =VLOOKUP(R62,'[13]GW-Comm_H-OA_Trench'!$A$3:$O$280,11,FALSE) ->  | N62: =VLOOKUP(R62,'[14]SG-Comm-OA_H_Trench'!$A$1:$O$65536,11,FALSE) -> 0.0008213630616 | O62: =VLOOKUP(R62,'[13]SG-Comm-OA_G_Trench'!$A$3:$O$280,11,FALSE) -> 0.0008213630616 | P62: =VLOOKUP(R62,'[13]GW-Comm_IA_D'!$A$3:$O$280,11,FALSE) -> 1.46110658e-07 | R62: 565593
B63: VOCs | C63: DIMETHYLPENTANE, 2,4- | D63: 2,4-Dimethylpentane | E63: 108-08-7 | F63: =VLOOKUP(R63,'[14]SG-Comm_IA_5ft'!$A$1:$O$65536,7,FALSE) -> 0.0002029584773 | G63: =VLOOKUP(R63,'[14]SG-Comm_IA_10ft'!$A$1:$O$65536,7,FALSE) -> 0.0001079358869 | H63: =VLOOKUP(R63,'[14]SG-Comm-OA_H_5ft'!$A$1:$O$65536,11,FALSE) -> 4.184651923e-06 | I63: =VLOOKUP(R63,'[13]SG-Comm-OA_H_Trench'!$A$3:$O$280,11,FALSE) ->  | J63: =VLOOKUP(R63,'[13]GW-Comm_IA_H'!$A$3:$O$280,11,FALSE) ->  | K63: =VLOOKUP(R63,'[13]GW-Comm_H-OA'!$A$3:$O$280,11,FALSE) ->  | L63: =VLOOKUP(R63,'[13]GW-Comm_H-OA_Trench'!$A$3:$O$280,11,FALSE) ->  | M63: =VLOOKUP(R63,'[13]GW-Comm_H-OA_Trench'!$A$3:$O$280,11,FALSE) ->  | N63: =VLOOKUP(R63,'[14]SG-Comm-OA_H_Trench'!$A$1:$O$65536,11,FALSE) -> 0.0008213630238 | O63: =VLOOKUP(R63,'[13]SG-Comm-OA_G_Trench'!$A$3:$O$280,11,FALSE) -> 0.0008213630238 | P63: =VLOOKUP(R63,'[13]GW-Comm_IA_D'!$A$3:$O$280,11,FALSE) -> 1.461064421e-07 | R63: 108087
B64: VOCs | C64: Dimethylpentane, 3,3- | D64: 3,3-Dimethylpentane | E64: 562-49-2 | F64: =VLOOKUP(R64,'[14]SG-Comm_IA_5ft'!$A$1:$O$65536,7,FALSE) -> 0.0002029584798 | G64: =VLOOKUP(R64,'[14]SG-Comm_IA_10ft'!$A$1:$O$65536,7,FALSE) -> 0.0001079358884 | H64: =VLOOKUP(R64,'[14]SG-Comm-OA_H_5ft'!$A$1:$O$65536,11,FALSE) -> 4.184651987e-06 | I64: =VLOOKUP(R64,'[13]SG-Comm-OA_H_Trench'!$A$3:$O$280,11,FALSE) ->  | J64: =VLOOKUP(R64,'[13]GW-Comm_IA_H'!$A$3:$O$280,11,FALSE) ->  | K64: =VLOOKUP(R64,'[13]GW-Comm_H-OA'!$A$3:$O$280,11,FALSE) ->  | L64: =VLOOKUP(R64,'[13]GW-Comm_H-OA_Trench'!$A$3:$O$280,11,FALSE) ->  | M64: =VLOOKUP(R64,'[13]GW-Comm_H-OA_Trench'!$A$3:$O$280,11,FALSE) ->  | N64: =VLOOKUP(R64,'[14]SG-Comm-OA_H_Trench'!$A$1:$O$65536,11,FALSE) -> 0.0008213630363 | O64: =VLOOKUP(R64,'[13]SG-Comm-OA_G_Trench'!$A$3:$O$280,11,FALSE) -> 0.0008213630363 | P64: =VLOOKUP(R64,'[13]GW-Comm_IA_D'!$A$3:$O$280,11,FALSE) -> 1.461078412e-07 | R64: 562492
A65: X | B65: VOCs | C65: Dioxane 1,4 | D65: 1,4-Dioxane | E65: 123-91-1 | F65: =VLOOKUP(R65,'[14]SG-Comm_IA_5ft'!$A$1:$O$65536,7,FALSE) -> 0.0002882157611 | G65: =VLOOKUP(R65,'[14]SG-Comm_IA_10ft'!$A$1:$O$65536,7,FALSE) -> 0.0001615337284 | H65: =VLOOKUP(R65,'[14]SG-Comm-OA_H_5ft'!$A$1:$O$65536,11,FALSE) -> 6.670817587e-06 | I65: =VLOOKUP(R65,'[13]SG-Comm-OA_H_Trench'!$A$3:$O$280,11,FALSE) ->  | J65: =VLOOKUP(R65,'[13]GW-Comm_IA_H'!$A$3:$O$280,11,FALSE) ->  | K65: =VLOOKUP(R65,'[13]GW-Comm_H-OA'!$A$3:$O$280,11,FALSE) ->  | L65: =VLOOKUP(R65,'[13]GW-Comm_H-OA_Trench'!$A$3:$O$280,11,FALSE) ->  | M65: =VLOOKUP(R65,'[13]GW-Comm_H-OA_Trench'!$A$3:$O$280,11,FALSE) ->  | N65: =VLOOKUP(R65,'[14]SG-Comm-OA_H_Trench'!$A$1:$O$65536,11,FALSE) -> 0.00130934735 | O65: =VLOOKUP(R65,'[13]SG-Comm-OA_G_Trench'!$A$3:$O$280,11,FALSE) -> 0.00130934735 | P65: =VLOOKUP(R65,'[13]GW-Comm_IA_D'!$A$3:$O$280,11,FALSE) -> 7.282656664e-07 | R65: 123911
B66: VOCs | C66: DISULFIDE, DIMETHYL | D66: Dimethyl disulfide | E66: 624-92-0 | F66: =VLOOKUP(R66,'[14]SG-Comm_IA_5ft'!$A$1:$O$65536,7,FALSE) -> 0.0002385823991 | G66: =VLOOKUP(R66,'[14]SG-Comm_IA_10ft'!$A$1:$O$65536,7,FALSE) -> 0.0001296502444 | H66: =VLOOKUP(R66,'[14]SG-Comm-OA_H_5ft'!$A$1:$O$65536,11,FALSE) -> 5.154289311e-06 | I66: =VLOOKUP(R66,'[13]SG-Comm-OA_H_Trench'!$A$3:$O$280,11,FALSE) ->  | J66: =VLOOKUP(R66,'[13]GW-Comm_IA_H'!$A$3:$O$280,11,FALSE) ->  | K66: =VLOOKUP(R66,'[13]GW-Comm_H-OA'!$A$3:$O$280,11,FALSE) ->  | L66: =VLOOKUP(R66,'[13]GW-Comm_H-OA_Trench'!$A$3:$O$280,11,FALSE) ->  | M66: =VLOOKUP(R66,'[13]GW-Comm_H-OA_Trench'!$A$3:$O$280,11,FALSE) ->  | N66: =VLOOKUP(R66,'[14]SG-Comm-OA_H_Trench'!$A$1:$O$65536,11,FALSE) -> 0.001011683345 | O66: =VLOOKUP(R66,'[13]SG-Comm-OA_G_Trench'!$A$3:$O$280,11,FALSE) -> 0.001011683345 | P66: =VLOOKUP(R66,'[13]GW-Comm_IA_D'!$A$3:$O$280,11,FALSE) -> 2.505841762e-07 | R66: 624920
A67: X | B67: VOCs | C67: Ethanol | D67: Ethanol | E67: 64-17-5 | F67: =VLOOKUP(R67,'[14]SG-Comm_IA_5ft'!$A$1:$O$65536,7,FALSE) -> 0.0003600459854 | G67: =VLOOKUP(R67,'[14]SG-Comm_IA_10ft'!$A$1:$O$65536,7,FALSE) -> 0.0002113856481 | H67: =VLOOKUP(R67,'[14]SG-Comm-OA_H_5ft'!$A$1:$O$65536,11,FALSE) -> 9.292905081e-06 | I67: =VLOOKUP(R67,'[13]SG-Comm-OA_H_Trench'!$A$3:$O$280,11,FALSE) ->  | J67: =VLOOKUP(R67,'[13]GW-Comm_IA_H'!$A$3:$O$280,11,FALSE) ->  | K67: =VLOOKUP(R67,'[13]GW-Comm_H-OA'!$A$3:$O$280,11,FALSE) ->  | L67: =VLOOKUP(R67,'[13]GW-Comm_H-OA_Trench'!$A$3:$O$280,11,FALSE) ->  | M67: =VLOOKUP(R67,'[13]GW-Comm_H-OA_Trench'!$A$3:$O$280,11,FALSE) ->  | N67: =VLOOKUP(R67,'[14]SG-Comm-OA_H_Trench'!$A$1:$O$65536,11,FALSE) -> 0.001824010397 | O67: =VLOOKUP(R67,'[13]SG-Comm-OA_G_Trench'!$A$3:$O$280,11,FALSE) -> 0.001824010397 | P67: =VLOOKUP(R67,'[13]GW-Comm_IA_D'!$A$3:$O$280,11,FALSE) -> 1.01284811e-06 | R67: 64175
B68: VOCs | C68: ether Ethyl tert-butyl | D68: Ethyl tert-butyl ether | E68: 637-92-3 | F68: =VLOOKUP(R68,'[14]SG-Comm_IA_5ft'!$A$1:$O$65536,7,FALSE) -> 0.000203045919 | G68: =VLOOKUP(R68,'[14]SG-Comm_IA_10ft'!$A$1:$O$65536,7,FALSE) -> 0.0001079880509 | H68: =VLOOKUP(R68,'[14]SG-Comm-OA_H_5ft'!$A$1:$O$65536,11,FALSE) -> 4.186923654e-06 | I68: =VLOOKUP(R68,'[13]SG-Comm-OA_H_Trench'!$A$3:$O$280,11,FALSE) ->  | J68: =VLOOKUP(R68,'[13]GW-Comm_IA_H'!$A$3:$O$280,11,FALSE) ->  | K68: =VLOOKUP(R68,'[13]GW-Comm_H-OA'!$A$3:$O$280,11,FALSE) ->  | L68: =VLOOKUP(R68,'[13]GW-Comm_H-OA_Trench'!$A$3:$O$280,11,FALSE) ->  | M68: =VLOOKUP(R68,'[13]GW-Comm_H-OA_Trench'!$A$3:$O$280,11,FALSE) ->  | N68: =VLOOKUP(R68,'[14]SG-Comm-OA_H_Trench'!$A$1:$O$65536,11,FALSE) -> 0.0008218089188 | O68: =VLOOKUP(R68,'[13]SG-Comm-OA_G_Trench'!$A$3:$O$280,11,FALSE) -> 0.0008218089188 | P68: =VLOOKUP(R68,'[13]GW-Comm_IA_D'!$A$3:$O$280,11,FALSE) -> 1.890768787e-07 | R68: 637923
B69: VOCs | C69: Ethyl acetate | D69: Ethyl acetate | E69: 141-78-6 | F69: =VLOOKUP(R69,'[14]SG-Comm_IA_5ft'!$A$1:$O$65536,7,FALSE) -> 0.0002239694418 | G69: =VLOOKUP(R69,'[14]SG-Comm_IA_10ft'!$A$1:$O$65536,7,FALSE) -> 0.0001206293631 | H69: =VLOOKUP(R69,'[14]SG-Comm-OA_H_5ft'!$A$1:$O$65536,11,FALSE) -> 4.745545691e-06 | I69: =VLOOKUP(R69,'[13]SG-Comm-OA_H_Trench'!$A$3:$O$280,11,FALSE) ->  | J69: =VLOOKUP(R69,'[13]GW-Comm_IA_H'!$A$3:$O$280,11,FALSE) ->  | K69: =VLOOKUP(R69,'[13]GW-Comm_H-OA'!$A$3:$O$280,11,FALSE) ->  | L69: =VLOOKUP(R69,'[13]GW-Comm_H-OA_Trench'!$A$3:$O$280,11,FALSE) ->  | M69: =VLOOKUP(R69,'[13]GW-Comm_H-OA_Trench'!$A$3:$O$280,11,FALSE) ->  | N69: =VLOOKUP(R69,'[14]SG-Comm-OA_H_Trench'!$A$1:$O$65536,11,FALSE) -> 0.0009314551914 | O69: =VLOOKUP(R69,'[13]SG-Comm-OA_G_Trench'!$A$3:$O$280,11,FALSE) -> 0.0009314551914 | P69: =VLOOKUP(R69,'[13]GW-Comm_IA_D'!$A$3:$O$280,11,FALSE) -> 4.057717273e-07 | R69: 141786
A70: X | B70: VOCs | C70: Ethyl Benzene | D70: Ethyl benzene | E70: 100-41-4 | F70: =VLOOKUP(R70,'[14]SG-Comm_IA_5ft'!$A$1:$O$65536,7,FALSE) -> 0.0002270065586 | G70: =VLOOKUP(R70,'[14]SG-Comm_IA_10ft'!$A$1:$O$65536,7,FALSE) -> 0.0001224910357 | H70: =VLOOKUP(R70,'[14]SG-Comm-OA_H_5ft'!$A$1:$O$65536,11,FALSE) -> 4.829198518e-06 | I70: =VLOOKUP(R70,'[13]SG-Comm-OA_H_Trench'!$A$3:$O$280,11,FALSE) ->  | J70: =VLOOKUP(R70,'[13]GW-Comm_IA_H'!$A$3:$O$280,11,FALSE) ->  | K70: =VLOOKUP(R70,'[13]GW-Comm_H-OA'!$A$3:$O$280,11,FALSE) ->  | L70: =VLOOKUP(R70,'[13]GW-Comm_H-OA_Trench'!$A$3:$O$280,11,FALSE) ->  | M70: =VLOOKUP(R70,'[13]GW-Comm_H-OA_Trench'!$A$3:$O$280,11,FALSE) ->  | N70: =VLOOKUP(R70,'[14]SG-Comm-OA_H_Trench'!$A$1:$O$65536,11,FALSE) -> 0.0009478745592 | O70: =VLOOKUP(R70,'[13]SG-Comm-OA_G_Trench'!$A$3:$O$280,11,FALSE) -> 0.0009478745592 | P70: =VLOOKUP(R70,'[13]GW-Comm_IA_D'!$A$3:$O$280,11,FALSE) -> 1.843602321e-07 | R70: 100414
B71: VOCs | C71: Ethylpentane, 3 | D71: 3-Ethylpentane | E71: 617-78-7 | F71: =VLOOKUP(R71,'[14]SG-Comm_IA_5ft'!$A$1:$O$65536,7,FALSE) -> 0.000202958465 | G71: =VLOOKUP(R71,'[14]SG-Comm_IA_10ft'!$A$1:$O$65536,7,FALSE) -> 0.0001079358796 | H71: =VLOOKUP(R71,'[14]SG-Comm-OA_H_5ft'!$A$1:$O$65536,11,FALSE) -> 4.184651603e-06 | I71: =VLOOKUP(R71,'[13]SG-Comm-OA_H_Trench'!$A$3:$O$280,11,FALSE) ->  | J71: =VLOOKUP(R71,'[13]GW-Comm_IA_H'!$A$3:$O$280,11,FALSE) ->  | K71: =VLOOKUP(R71,'[13]GW-Comm_H-OA'!$A$3:$O$280,11,FALSE) ->  | L71: =VLOOKUP(R71,'[13]GW-Comm_H-OA_Trench'!$A$3:$O$280,11,FALSE) ->  | M71: =VLOOKUP(R71,'[13]GW-Comm_H-OA_Trench'!$A$3:$O$280,11,FALSE) ->  | N71: =VLOOKUP(R71,'[14]SG-Comm-OA_H_Trench'!$A$1:$O$65536,11,FALSE) -> 0.000821362961 | O71: =VLOOKUP(R71,'[13]SG-Comm-OA_G_Trench'!$A$3:$O$280,11,FALSE) -> 0.000821362961 | P71: =VLOOKUP(R71,'[13]GW-Comm_IA_D'!$A$3:$O$280,11,FALSE) -> 1.460994489e-07 | R71: 617787
A72: X | B72: VOCs | C72: Ethyltoluene, 4- | D72: 4-Ethyltoluene | E72: 622-96-8 | F72: =VLOOKUP(R72,'[14]SG-Comm_IA_5ft'!$A$1:$O$65536,7,FALSE) -> 0.0002269793128 | G72: =VLOOKUP(R72,'[14]SG-Comm_IA_10ft'!$A$1:$O$65536,7,FALSE) -> 0.0001224743042 | H72: =VLOOKUP(R72,'[14]SG-Comm-OA_H_5ft'!$A$1:$O$65536,11,FALSE) -> 4.828445091e-06 | I72: =VLOOKUP(R72,'[13]SG-Comm-OA_H_Trench'!$A$3:$O$280,11,FALSE) ->  | J72: =VLOOKUP(R72,'[13]GW-Comm_IA_H'!$A$3:$O$280,11,FALSE) ->  | K72: =VLOOKUP(R72,'[13]GW-Comm_H-OA'!$A$3:$O$280,11,FALSE) ->  | L72: =VLOOKUP(R72,'[13]GW-Comm_H-OA_Trench'!$A$3:$O$280,11,FALSE) ->  | M72: =VLOOKUP(R72,'[13]GW-Comm_H-OA_Trench'!$A$3:$O$280,11,FALSE) ->  | N72: =VLOOKUP(R72,'[14]SG-Comm-OA_H_Trench'!$A$1:$O$65536,11,FALSE) -> 0.0009477266766 | O72: =VLOOKUP(R72,'[13]SG-Comm-OA_G_Trench'!$A$3:$O$280,11,FALSE) -> 0.0009477266766 | P72: =VLOOKUP(R72,'[13]GW-Comm_IA_D'!$A$3:$O$280,11,FALSE) -> 1.68596686e-07 | R72: 622968
B73: VOCs | C73: Formaldehyde | D73: Formaldehyde | E73: 50-00-0 | F73: =VLOOKUP(R73,'[14]SG-Comm_IA_5ft'!$A$1:$O$65536,7,FALSE) -> 0.0007013857827 | G73: =VLOOKUP(R73,'[14]SG-Comm_IA_10ft'!$A$1:$O$65536,7,FALSE) -> 0.0005311073686 | H73: =VLOOKUP(R73,'[14]SG-Comm-OA_H_5ft'!$A$1:$O$65536,11,FALSE) -> 3.970935504e-05 | I73: =VLOOKUP(R73,'[13]SG-Comm-OA_H_Trench'!$A$3:$O$280,11,FALSE) ->  | J73: =VLOOKUP(R73,'[13]GW-Comm_IA_H'!$A$3:$O$280,11,FALSE) ->  | K73: =VLOOKUP(R73,'[13]GW-Comm_H-OA'!$A$3:$O$280,11,FALSE) ->  | L73: =VLOOKUP(R73,'[13]GW-Comm_H-OA_Trench'!$A$3:$O$280,11,FALSE) ->  | M73: =VLOOKUP(R73,'[13]GW-Comm_H-OA_Trench'!$A$3:$O$280,11,FALSE) ->  | N73: =VLOOKUP(R73,'[14]SG-Comm-OA_H_Trench'!$A$1:$O$65536,11,FALSE) -> 0.007794147883 | O73: =VLOOKUP(R73,'[13]SG-Comm-OA_G_Trench'!$A$3:$O$280,11,FALSE) -> 0.007794147883 | P73: =VLOOKUP(R73,'[13]GW-Comm_IA_D'!$A$3:$O$280,11,FALSE) -> 4.385829821e-06 | R73: 50000
A74: X | B74: VOCs | C74: Freon 114 | D74: Freon 114 | E74: 76-14-2 | F74: =VLOOKUP(R74,'[14]SG-Comm_IA_5ft'!$A$1:$O$65536,7,FALSE) -> 0.0002339000131 | G74: =VLOOKUP(R74,'[14]SG-Comm_IA_10ft'!$A$1:$O$65536,7,FALSE) -> 0.0001267421754 | H74: =VLOOKUP(R74,'[14]SG-Comm-OA_H_5ft'!$A$1:$O$65536,11,FALSE) -> 5.021582549e-06 | I74: =VLOOKUP(R74,'[13]SG-Comm-OA_H_Trench'!$A$3:$O$280,11,FALSE) ->  | J74: =VLOOKUP(R74,'[13]GW-Comm_IA_H'!$A$3:$O$280,11,FALSE) ->  | K74: =VLOOKUP(R74,'[13]GW-Comm_H-OA'!$A$3:$O$280,11,FALSE) ->  | L74: =VLOOKUP(R74,'[13]GW-Comm_H-OA_Trench'!$A$3:$O$280,11,FALSE) ->  | M74: =VLOOKUP(R74,'[13]GW-Comm_H-OA_Trench'!$A$3:$O$280,11,FALSE) ->  | N74: =VLOOKUP(R74,'[14]SG-Comm-OA_H_Trench'!$A$1:$O$65536,11,FALSE) -> 0.0009856356758 | O74: =VLOOKUP(R74,'[13]SG-Comm-OA_G_Trench'!$A$3:$O$280,11,FALSE) -> 0.0009856356758 | P74: =VLOOKUP(R74,'[13]GW-Comm_IA_D'!$A$3:$O$280,11,FALSE) -> 1.753329992e-07 | R74: 76142
A75: X | B75: VOCs | C75: Heptane n | D75: n-Heptane | E75: 142-82-5 | F75: =VLOOKUP(R75,'[14]SG-Comm_IA_5ft'!$A$1:$O$65536,7,FALSE) -> 0.0001944402766 | G75: =VLOOKUP(R75,'[14]SG-Comm_IA_10ft'!$A$1:$O$65536,7,FALSE) -> 0.0001028803821 | H75: =VLOOKUP(R75,'[14]SG-Comm-OA_H_5ft'!$A$1:$O$65536,11,FALSE) -> 3.96576212e-06 | I75: =VLOOKUP(R75,'[13]SG-Comm-OA_H_Trench'!$A$3:$O$280,11,FALSE) ->  | J75: =VLOOKUP(R75,'[13]GW-Comm_IA_H'!$A$3:$O$280,11,FALSE) ->  | K75: =VLOOKUP(R75,'[13]GW-Comm_H-OA'!$A$3:$O$280,11,FALSE) ->  | L75: =VLOOKUP(R75,'[13]GW-Comm_H-OA_Trench'!$A$3:$O$280,11,FALSE) ->  | M75: =VLOOKUP(R75,'[13]GW-Comm_H-OA_Trench'!$A$3:$O$280,11,FALSE) ->  | N75: =VLOOKUP(R75,'[14]SG-Comm-OA_H_Trench'!$A$1:$O$65536,11,FALSE) -> 0.000778399357 | O75: =VLOOKUP(R75,'[13]SG-Comm-OA_G_Trench'!$A$3:$O$280,11,FALSE) -> 0.000778399357 | P75: =VLOOKUP(R75,'[13]GW-Comm_IA_D'!$A$3:$O$280,11,FALSE) -> 1.384569959e-07 | R75: 142825
B76: VOCs | C76: Hexane n | D76: n-Hexane | E76: 110-54-3 | F76: =VLOOKUP(R76,'[14]SG-Comm_IA_5ft'!$A$1:$O$65536,7,FALSE) -> 0.0004371807377 | G76: =VLOOKUP(R76,'[14]SG-Comm_IA_10ft'!$A$1:$O$65536,7,FALSE) -> 0.0002704812922 | H76: =VLOOKUP(R76,'[14]SG-Comm-OA_H_5ft'!$A$1:$O$65536,11,FALSE) -> 1.287588949e-05 | I76: =VLOOKUP(R76,'[13]SG-Comm-OA_H_Trench'!$A$3:$O$280,11,FALSE) ->  | J76: =VLOOKUP(R76,'[13]GW-Comm_IA_H'!$A$3:$O$280,11,FALSE) ->  | K76: =VLOOKUP(R76,'[13]GW-Comm_H-OA'!$A$3:$O$280,11,FALSE) ->  | L76: =VLOOKUP(R76,'[13]GW-Comm_H-OA_Trench'!$A$3:$O$280,11,FALSE) ->  | M76: =VLOOKUP(R76,'[13]GW-Comm_H-OA_Trench'!$A$3:$O$280,11,FALSE) ->  | N76: =VLOOKUP(R76,'[14]SG-Comm-OA_H_Trench'!$A$1:$O$65536,11,FALSE) -> 0.002527278186 | O76: =VLOOKUP(R76,'[13]SG-Comm-OA_G_Trench'!$A$3:$O$280,11,FALSE) -> 0.002527278186 | P76: =VLOOKUP(R76,'[13]GW-Comm_IA_D'!$A$3:$O$280,11,FALSE) -> 4.503755302e-07 | R76: 110543
A77: X | B77: VOCs | C77: Hexanone 2 | D77: 2-Hexanone | E77: 591-78-6 | F77: =VLOOKUP(R77,'[14]SG-Comm_IA_5ft'!$A$1:$O$65536,7,FALSE) -> 0.0002167602993 | G77: =VLOOKUP(R77,'[14]SG-Comm_IA_10ft'!$A$1:$O$65536,7,FALSE) -> 0.0001162377217 | H77: =VLOOKUP(R77,'[14]SG-Comm-OA_H_5ft'!$A$1:$O$65536,11,FALSE) -> 4.549632937e-06 | I77: =VLOOKUP(R77,'[13]SG-Comm-OA_H_Trench'!$A$3:$O$280,11,FALSE) ->  | J77: =VLOOKUP(R77,'[13]GW-Comm_IA_H'!$A$3:$O$280,11,FALSE) ->  | K77: =VLOOKUP(R77,'[13]GW-Comm_H-OA'!$A$3:$O$280,11,FALSE) ->  | L77: =VLOOKUP(R77,'[13]GW-Comm_H-OA_Trench'!$A$3:$O$280,11,FALSE) ->  | M77: =VLOOKUP(R77,'[13]GW-Comm_H-OA_Trench'!$A$3:$O$280,11,FALSE) ->  | N77: =VLOOKUP(R77,'[14]SG-Comm-OA_H_Trench'!$A$1:$O$65536,11,FALSE) -> 0.0008930014575 | O77: =VLOOKUP(R77,'[13]SG-Comm-OA_G_Trench'!$A$3:$O$280,11,FALSE) -> 0.0008930014575 | P77: =VLOOKUP(R77,'[13]GW-Comm_IA_D'!$A$3:$O$280,11,FALSE) -> 4.114300535e-07 | R77: 591786
B78: VOCs | C78: Iodomethane | D78: Iodomethane | E78: 74-88-4 | F78: =VLOOKUP(R78,'[14]SG-Comm_IA_5ft'!$A$1:$O$65536,7,FALSE) -> 0.0002271145455 | G78: =VLOOKUP(R78,'[14]SG-Comm_IA_10ft'!$A$1:$O$65536,7,FALSE) -> 0.0001225573555 | H78: =VLOOKUP(R78,'[14]SG-Comm-OA_H_5ft'!$A$1:$O$65536,11,FALSE) -> 4.832185217e-06 | I78: =VLOOKUP(R78,'[13]SG-Comm-OA_H_Trench'!$A$3:$O$280,11,FALSE) ->  | J78: =VLOOKUP(R78,'[13]GW-Comm_IA_H'!$A$3:$O$280,11,FALSE) ->  | K78: =VLOOKUP(R78,'[13]GW-Comm_H-OA'!$A$3:$O$280,11,FALSE) ->  | L78: =VLOOKUP(R78,'[13]GW-Comm_H-OA_Trench'!$A$3:$O$280,11,FALSE) ->  | M78: =VLOOKUP(R78,'[13]GW-Comm_H-OA_Trench'!$A$3:$O$280,11,FALSE) ->  | N78: =VLOOKUP(R78,'[14]SG-Comm-OA_H_Trench'!$A$1:$O$65536,11,FALSE) -> 0.0009484607881 | O78: =VLOOKUP(R78,'[13]SG-Comm-OA_G_Trench'!$A$3:$O$280,11,FALSE) -> 0.0009484607881 | P78: =VLOOKUP(R78,'[13]GW-Comm_IA_D'!$A$3:$O$280,11,FALSE) -> 3.070717708e-07 | R78: 74884
B79: VOCs | C79: Methanol | D79: Methanol | E79: 67-56-1 | F79: =VLOOKUP(R79,'[14]SG-Comm_IA_5ft'!$A$1:$O$65536,7,FALSE) -> 0.0004185958403 | G79: =VLOOKUP(R79,'[14]SG-Comm_IA_10ft'!$A$1:$O$65536,7,FALSE) -> 0.000255668713 | H79: =VLOOKUP(R79,'[14]SG-Comm-OA_H_5ft'!$A$1:$O$65536,11,FALSE) -> 1.192318378e-05 | I79: =VLOOKUP(R79,'[13]SG-Comm-OA_H_Trench'!$A$3:$O$280,11,FALSE) ->  | J79: =VLOOKUP(R79,'[13]GW-Comm_IA_H'!$A$3:$O$280,11,FALSE) ->  | K79: =VLOOKUP(R79,'[13]GW-Comm_H-OA'!$A$3:$O$280,11,FALSE) ->  | L79: =VLOOKUP(R79,'[13]GW-Comm_H-OA_Trench'!$A$3:$O$280,11,FALSE) ->  | M79: =VLOOKUP(R79,'[13]GW-Comm_H-OA_Trench'!$A$3:$O$280,11,FALSE) ->  | N79: =VLOOKUP(R79,'[14]SG-Comm-OA_H_Trench'!$A$1:$O$65536,11,FALSE) -> 0.002340281214 | O79: =VLOOKUP(R79,'[13]SG-Comm-OA_G_Trench'!$A$3:$O$280,11,FALSE) -> 0.002340281214 | P79: =VLOOKUP(R79,'[13]GW-Comm_IA_D'!$A$3:$O$280,11,FALSE) -> 1.300176755e-06 | R79: 67561
B80: VOCs | C80: Methyl tert butyl ether | D80: Methyl tert-butyl ether | E80: 1634-04-4 | F80: =VLOOKUP(R80,'[14]SG-Comm_IA_5ft'!$A$1:$O$65536,7,FALSE) -> 0.0002388410516 | G80: =VLOOKUP(R80,'[14]SG-Comm_IA_10ft'!$A$1:$O$65536,7,FALSE) -> 0.0001298113709 | H80: =VLOOKUP(R80,'[14]SG-Comm-OA_H_5ft'!$A$1:$O$65536,11,FALSE) -> 5.161668578e-06 | I80: =VLOOKUP(R80,'[13]SG-Comm-OA_H_Trench'!$A$3:$O$280,11,FALSE) ->  | J80: =VLOOKUP(R80,'[13]GW-Comm_IA_H'!$A$3:$O$280,11,FALSE) ->  | K80: =VLOOKUP(R80,'[13]GW-Comm_H-OA'!$A$3:$O$280,11,FALSE) ->  | L80: =VLOOKUP(R80,'[13]GW-Comm_H-OA_Trench'!$A$3:$O$280,11,FALSE) ->  | M80: =VLOOKUP(R80,'[13]GW-Comm_H-OA_Trench'!$A$3:$O$280,11,FALSE) ->  | N80: =VLOOKUP(R80,'[14]SG-Comm-OA_H_Trench'!$A$1:$O$65536,11,FALSE) -> 0.001013131746 | O80: =VLOOKUP(R80,'[13]SG-Comm-OA_G_Trench'!$A$3:$O$280,11,FALSE) -> 0.001013131746 | P80: =VLOOKUP(R80,'[13]GW-Comm_IA_D'!$A$3:$O$280,11,FALSE) -> 3.318022702e-07 | R80: 1634044
A81: X | B81: VOCs | C81: Methyl-2-pentanone 4 | D81: 4-Methyl-2-pentanone | E81: 108-10-1 | F81: =VLOOKUP(R81,'[14]SG-Comm_IA_5ft'!$A$1:$O$65536,7,FALSE) -> 0.0002284936958 | G81: =VLOOKUP(R81,'[14]SG-Comm_IA_10ft'!$A$1:$O$65536,7,FALSE) -> 0.0001234051228 | H81: =VLOOKUP(R81,'[14]SG-Comm-OA_H_5ft'!$A$1:$O$65536,11,FALSE) -> 4.870404818e-06 | I81: =VLOOKUP(R81,'[13]SG-Comm-OA_H_Trench'!$A$3:$O$280,11,FALSE) ->  | J81: =VLOOKUP(R81,'[13]GW-Comm_IA_H'!$A$3:$O$280,11,FALSE) ->  | K81: =VLOOKUP(R81,'[13]GW-Comm_H-OA'!$A$3:$O$280,11,FALSE) ->  | L81: =VLOOKUP(R81,'[13]GW-Comm_H-OA_Trench'!$A$3:$O$280,11,FALSE) ->  | M81: =VLOOKUP(R81,'[13]GW-Comm_H-OA_Trench'!$A$3:$O$280,11,FALSE) ->  | N81: =VLOOKUP(R81,'[14]SG-Comm-OA_H_Trench'!$A$1:$O$65536,11,FALSE) -> 0.0009559625272 | O81: =VLOOKUP(R81,'[13]SG-Comm-OA_G_Trench'!$A$3:$O$280,11,FALSE) -> 0.0009559625272 | P81: =VLOOKUP(R81,'[13]GW-Comm_IA_D'!$A$3:$O$280,11,FALSE) -> 4.334210203e-07 | R81: 108101
A82: X | B82: VOCs | C82: Methylene Chloride | D82: Methylene Chloride | E82: 75-09-2 | F82: =VLOOKUP(R82,'[14]SG-Comm_IA_5ft'!$A$1:$O$65536,7,FALSE) -> 0.0002831389223 | G82: =VLOOKUP(R82,'[14]SG-Comm_IA_10ft'!$A$1:$O$65536,7,FALSE) -> 0.0001581809479 | H82: =VLOOKUP(R82,'[14]SG-Comm-OA_H_5ft'!$A$1:$O$65536,11,FALSE) -> 6.505833086e-06 | I82: =VLOOKUP(R82,'[13]SG-Comm-OA_H_Trench'!$A$3:$O$280,11,FALSE) ->  | J82: =VLOOKUP(R82,'[13]GW-Comm_IA_H'!$A$3:$O$280,11,FALSE) ->  | K82: =VLOOKUP(R82,'[13]GW-Comm_H-OA'!$A$3:$O$280,11,FALSE) ->  | L82: =VLOOKUP(R82,'[13]GW-Comm_H-OA_Trench'!$A$3:$O$280,11,FALSE) ->  | M82: =VLOOKUP(R82,'[13]GW-Comm_H-OA_Trench'!$A$3:$O$280,11,FALSE) ->  | N82: =VLOOKUP(R82,'[14]SG-Comm-OA_H_Trench'!$A$1:$O$65536,11,FALSE) -> 0.00127696421 | O82: =VLOOKUP(R82,'[13]SG-Comm-OA_G_Trench'!$A$3:$O$280,11,FALSE) -> 0.00127696421 | P82: =VLOOKUP(R82,'[13]GW-Comm_IA_D'!$A$3:$O$280,11,FALSE) -> 2.937615126e-07 | R82: 75092
B83: VOCs | C83: Methylhexane, 2 | D83: 2-Methylhexane | E83: 591-76-4 | F83: =VLOOKUP(R83,'[14]SG-Comm_IA_5ft'!$A$1:$O$65536,7,FALSE) -> 0.0002029584436 | G83: =VLOOKUP(R83,'[14]SG-Comm_IA_10ft'!$A$1:$O$65536,7,FALSE) -> 0.0001079358668 | H83: =VLOOKUP(R83,'[14]SG-Comm-OA_H_5ft'!$A$1:$O$65536,11,FALSE) -> 4.184651048e-06 | I83: =VLOOKUP(R83,'[13]SG-Comm-OA_H_Trench'!$A$3:$O$280,11,FALSE) ->  | J83: =VLOOKUP(R83,'[13]GW-Comm_IA_H'!$A$3:$O$280,11,FALSE) ->  | K83: =VLOOKUP(R83,'[13]GW-Comm_H-OA'!$A$3:$O$280,11,FALSE) ->  | L83: =VLOOKUP(R83,'[13]GW-Comm_H-OA_Trench'!$A$3:$O$280,11,FALSE) ->  | M83: =VLOOKUP(R83,'[13]GW-Comm_H-OA_Trench'!$A$3:$O$280,11,FALSE) ->  | N83: =VLOOKUP(R83,'[14]SG-Comm-OA_H_Trench'!$A$1:$O$65536,11,FALSE) -> 0.0008213628519 | O83: =VLOOKUP(R83,'[13]SG-Comm-OA_G_Trench'!$A$3:$O$280,11,FALSE) -> 0.0008213628519 | P83: =VLOOKUP(R83,'[13]GW-Comm_IA_D'!$A$3:$O$280,11,FALSE) -> 1.460873034e-07 | R83: 591764
B84: VOCs | C84: METHYLHEXANE, 3- | D84: 3-Methylhexane | E84: 589-34-4 | F84: =VLOOKUP(R84,'[14]SG-Comm_IA_5ft'!$A$1:$O$65536,7,FALSE) -> 0.0002029584893 | G84: =VLOOKUP(R84,'[14]SG-Comm_IA_10ft'!$A$1:$O$65536,7,FALSE) -> 0.000107935894 | H84: =VLOOKUP(R84,'[14]SG-Comm-OA_H_5ft'!$A$1:$O$65536,11,FALSE) -> 4.184652234e-06 | I84: =VLOOKUP(R84,'[13]SG-Comm-OA_H_Trench'!$A$3:$O$280,11,FALSE) ->  | J84: =VLOOKUP(R84,'[13]GW-Comm_IA_H'!$A$3:$O$280,11,FALSE) ->  | K84: =VLOOKUP(R84,'[13]GW-Comm_H-OA'!$A$3:$O$280,11,FALSE) ->  | L84: =VLOOKUP(R84,'[13]GW-Comm_H-OA_Trench'!$A$3:$O$280,11,FALSE) ->  | M84: =VLOOKUP(R84,'[13]GW-Comm_H-OA_Trench'!$A$3:$O$280,11,FALSE) ->  | N84: =VLOOKUP(R84,'[14]SG-Comm-OA_H_Trench'!$A$1:$O$65536,11,FALSE) -> 0.0008213630848 | O84: =VLOOKUP(R84,'[13]SG-Comm-OA_G_Trench'!$A$3:$O$280,11,FALSE) -> 0.0008213630848 | P84: =VLOOKUP(R84,'[13]GW-Comm_IA_D'!$A$3:$O$280,11,FALSE) -> 1.461132437e-07 | R84: 589344
A85: X | B85: VOCs | C85: Methylmethacrylate | D85: Methylmethacrylate | E85: 80-62-6 | F85: =VLOOKUP(R85,'[14]SG-Comm_IA_5ft'!$A$1:$O$65536,7,FALSE) -> 0.0002323025397 | G85: =VLOOKUP(R85,'[14]SG-Comm_IA_10ft'!$A$1:$O$65536,7,FALSE) -> 0.000125753842 | H85: =VLOOKUP(R85,'[14]SG-Comm-OA_H_5ft'!$A$1:$O$65536,11,FALSE) -> 4.976685753e-06 | I85: =VLOOKUP(R85,'[13]SG-Comm-OA_H_Trench'!$A$3:$O$280,11,FALSE) ->  | J85: =VLOOKUP(R85,'[13]GW-Comm_IA_H'!$A$3:$O$280,11,FALSE) ->  | K85: =VLOOKUP(R85,'[13]GW-Comm_H-OA'!$A$3:$O$280,11,FALSE) ->  | L85: =VLOOKUP(R85,'[13]GW-Comm_H-OA_Trench'!$A$3:$O$280,11,FALSE) ->  | M85: =VLOOKUP(R85,'[13]GW-Comm_H-OA_Trench'!$A$3:$O$280,11,FALSE) ->  | N85: =VLOOKUP(R85,'[14]SG-Comm-OA_H_Trench'!$A$1:$O$65536,11,FALSE) -> 0.0009768233376 | O85: =VLOOKUP(R85,'[13]SG-Comm-OA_G_Trench'!$A$3:$O$280,11,FALSE) -> 0.0009768233376 | P85: =VLOOKUP(R85,'[13]GW-Comm_IA_D'!$A$3:$O$280,11,FALSE) -> 3.738038719e-07 | R85: 80626
B86: VOCs | C86: Nitropropane,2 | D86: 2-Nitropropane | E86: 79-46-9 | F86: =VLOOKUP(R86,'[14]SG-Comm_IA_5ft'!$A$1:$O$65536,7,FALSE) -> 0.0002509311857 | G86: =VLOOKUP(R86,'[14]SG-Comm_IA_10ft'!$A$1:$O$65536,7,FALSE) -> 0.000137400283 | H86: =VLOOKUP(R86,'[14]SG-Comm-OA_H_5ft'!$A$1:$O$65536,11,FALSE) -> 5.512407555e-06 | I86: =VLOOKUP(R86,'[13]SG-Comm-OA_H_Trench'!$A$3:$O$280,11,FALSE) ->  | J86: =VLOOKUP(R86,'[13]GW-Comm_IA_H'!$A$3:$O$280,11,FALSE) ->  | K86: =VLOOKUP(R86,'[13]GW-Comm_H-OA'!$A$3:$O$280,11,FALSE) ->  | L86: =VLOOKUP(R86,'[13]GW-Comm_H-OA_Trench'!$A$3:$O$280,11,FALSE) ->  | M86: =VLOOKUP(R86,'[13]GW-Comm_H-OA_Trench'!$A$3:$O$280,11,FALSE) ->  | N86: =VLOOKUP(R86,'[14]SG-Comm-OA_H_Trench'!$A$1:$O$65536,11,FALSE) -> 0.001081974755 | O86: =VLOOKUP(R86,'[13]SG-Comm-OA_G_Trench'!$A$3:$O$280,11,FALSE) -> 0.001081974755 | P86: =VLOOKUP(R86,'[13]GW-Comm_IA_D'!$A$3:$O$280,11,FALSE) -> 4.757084299e-07 | R86: 79469
B87: VOCs | C87: Nonyl Aldehyde n- | D87: n-Nonyl aldehyde | E87: 124-19-6 | F87: =VLOOKUP(R87,'[14]SG-Comm_IA_5ft'!$A$1:$O$65536,7,FALSE) -> 0.0002271628844 | G87: =VLOOKUP(R87,'[14]SG-Comm_IA_10ft'!$A$1:$O$65536,7,FALSE) -> 0.0001225870455 | H87: =VLOOKUP(R87,'[14]SG-Comm-OA_H_5ft'!$A$1:$O$65536,11,FALSE) -> 4.833522449e-06 | I87: =VLOOKUP(R87,'[13]SG-Comm-OA_H_Trench'!$A$3:$O$280,11,FALSE) ->  | J87: =VLOOKUP(R87,'[13]GW-Comm_IA_H'!$A$3:$O$280,11,FALSE) ->  | K87: =VLOOKUP(R87,'[13]GW-Comm_H-OA'!$A$3:$O$280,11,FALSE) ->  | L87: =VLOOKUP(R87,'[13]GW-Comm_H-OA_Trench'!$A$3:$O$280,11,FALSE) ->  | M87: =VLOOKUP(R87,'[13]GW-Comm_H-OA_Trench'!$A$3:$O$280,11,FALSE) ->  | N87: =VLOOKUP(R87,'[14]SG-Comm-OA_H_Trench'!$A$1:$O$65536,11,FALSE) -> 0.0009487232599 | O87: =VLOOKUP(R87,'[13]SG-Comm-OA_G_Trench'!$A$3:$O$280,11,FALSE) -> 0.0009487232599 | P87: =VLOOKUP(R87,'[13]GW-Comm_IA_D'!$A$3:$O$280,11,FALSE) -> 2.538795585e-07 | R87: 124196
A88: X | B88: VOCs | C88: OCTANE | D88: n-Octane | E88: 111-65-9 | F88: =VLOOKUP(R88,'[14]SG-Comm_IA_5ft'!$A$1:$O$65536,7,FALSE) -> 0.0002173117401 | G88: =VLOOKUP(R88,'[14]SG-Comm_IA_10ft'!$A$1:$O$65536,7,FALSE) -> 0.0001165722941 | H88: =VLOOKUP(R88,'[14]SG-Comm-OA_H_5ft'!$A$1:$O$65536,11,FALSE) -> 4.564488515e-06 | I88: =VLOOKUP(R88,'[13]SG-Comm-OA_H_Trench'!$A$3:$O$280,11,FALSE) ->  | J88: =VLOOKUP(R88,'[13]GW-Comm_IA_H'!$A$3:$O$280,11,FALSE) ->  | K88: =VLOOKUP(R88,'[13]GW-Comm_H-OA'!$A$3:$O$280,11,FALSE) ->  | L88: =VLOOKUP(R88,'[13]GW-Comm_H-OA_Trench'!$A$3:$O$280,11,FALSE) ->  | M88: =VLOOKUP(R88,'[13]GW-Comm_H-OA_Trench'!$A$3:$O$280,11,FALSE) ->  | N88: =VLOOKUP(R88,'[14]SG-Comm-OA_H_Trench'!$A$1:$O$65536,11,FALSE) -> 0.0008959173087 | O88: =VLOOKUP(R88,'[13]SG-Comm-OA_G_Trench'!$A$3:$O$280,11,FALSE) -> 0.0008959173087 | P88: =VLOOKUP(R88,'[13]GW-Comm_IA_D'!$A$3:$O$280,11,FALSE) -> 1.593455839e-07 | R88: 111659
B89: VOCs | C89: PROPANE, 2,2'-OXYBIS- | D89: Diisopropyl ether | E89: 108-20-3 | F89: =VLOOKUP(R89,'[14]SG-Comm_IA_5ft'!$A$1:$O$65536,7,FALSE) -> 0.0002040599531 | G89: =VLOOKUP(R89,'[14]SG-Comm_IA_10ft'!$A$1:$O$65536,7,FALSE) -> 0.0001085933795 | H89: =VLOOKUP(R89,'[14]SG-Comm-OA_H_5ft'!$A$1:$O$65536,11,FALSE) -> 4.213305402e-06 | I89: =VLOOKUP(R89,'[13]SG-Comm-OA_H_Trench'!$A$3:$O$280,11,FALSE) ->  | J89: =VLOOKUP(R89,'[13]GW-Comm_IA_H'!$A$3:$O$280,11,FALSE) ->  | K89: =VLOOKUP(R89,'[13]GW-Comm_H-OA'!$A$3:$O$280,11,FALSE) ->  | L89: =VLOOKUP(R89,'[13]GW-Comm_H-OA_Trench'!$A$3:$O$280,11,FALSE) ->  | M89: =VLOOKUP(R89,'[13]GW-Comm_H-OA_Trench'!$A$3:$O$280,11,FALSE) ->  | N89: =VLOOKUP(R89,'[14]SG-Comm-OA_H_Trench'!$A$1:$O$65536,11,FALSE) -> 0.0008269871255 | O89: =VLOOKUP(R89,'[13]SG-Comm-OA_G_Trench'!$A$3:$O$280,11,FALSE) -> 0.0008269871255 | P89: =VLOOKUP(R89,'[13]GW-Comm_IA_D'!$A$3:$O$280,11,FALSE) -> 1.758470197e-07 | R89: 108203
A90: X | B90: VOCs | C90: Propylbenzene n | D90: n-Propylbenzene | E90: 103-65-1 | F90: =VLOOKUP(R90,'[14]SG-Comm_IA_5ft'!$A$1:$O$65536,7,FALSE) -> 0.000226996608 | G90: =VLOOKUP(R90,'[14]SG-Comm_IA_10ft'!$A$1:$O$65536,7,FALSE) -> 0.000122484925 | H90: =VLOOKUP(R90,'[14]SG-Comm-OA_H_5ft'!$A$1:$O$65536,11,FALSE) -> 4.828923348e-06 | I90: =VLOOKUP(R90,'[13]SG-Comm-OA_H_Trench'!$A$3:$O$280,11,FALSE) ->  | J90: =VLOOKUP(R90,'[13]GW-Comm_IA_H'!$A$3:$O$280,11,FALSE) ->  | K90: =VLOOKUP(R90,'[13]GW-Comm_H-OA'!$A$3:$O$280,11,FALSE) ->  | L90: =VLOOKUP(R90,'[13]GW-Comm_H-OA_Trench'!$A$3:$O$280,11,FALSE) ->  | M90: =VLOOKUP(R90,'[13]GW-Comm_H-OA_Trench'!$A$3:$O$280,11,FALSE) ->  | N90: =VLOOKUP(R90,'[14]SG-Comm-OA_H_Trench'!$A$1:$O$65536,11,FALSE) -> 0.0009478205488 | O90: =VLOOKUP(R90,'[13]SG-Comm-OA_G_Trench'!$A$3:$O$280,11,FALSE) -> 0.0009478205488 | P90: =VLOOKUP(R90,'[13]GW-Comm_IA_D'!$A$3:$O$280,11,FALSE) -> 1.787621086e-07 | R90: 103651
A91: X | B91: VOCs | C91: Styrene | D91: Styrene | E91: 100-42-5 | F91: =VLOOKUP(R91,'[14]SG-Comm_IA_5ft'!$A$1:$O$65536,7,FALSE) -> 0.0002176339623 | G91: =VLOOKUP(R91,'[14]SG-Comm_IA_10ft'!$A$1:$O$65536,7,FALSE) -> 0.0001167678972 | H91: =VLOOKUP(R91,'[14]SG-Comm-OA_H_5ft'!$A$1:$O$65536,11,FALSE) -> 4.573178938e-06 | I91: =VLOOKUP(R91,'[13]SG-Comm-OA_H_Trench'!$A$3:$O$280,11,FALSE) ->  | J91: =VLOOKUP(R91,'[13]GW-Comm_IA_H'!$A$3:$O$280,11,FALSE) ->  | K91: =VLOOKUP(R91,'[13]GW-Comm_H-OA'!$A$3:$O$280,11,FALSE) ->  | L91: =VLOOKUP(R91,'[13]GW-Comm_H-OA_Trench'!$A$3:$O$280,11,FALSE) ->  | M91: =VLOOKUP(R91,'[13]GW-Comm_H-OA_Trench'!$A$3:$O$280,11,FALSE) ->  | N91: =VLOOKUP(R91,'[14]SG-Comm-OA_H_Trench'!$A$1:$O$65536,11,FALSE) -> 0.0008976230638 | O91: =VLOOKUP(R91,'[13]SG-Comm-OA_G_Trench'!$A$3:$O$280,11,FALSE) -> 0.0008976230638 | P91: =VLOOKUP(R91,'[13]GW-Comm_IA_D'!$A$3:$O$280,11,FALSE) -> 2.02718212e-07 | R91: 100425
A92: X | B92: VOCs | C92: styrene, alpha-Methyl | D92: alpha-Methylstyrene | E92: 98-83-9 | F92: =VLOOKUP(R92,'[14]SG-Comm_IA_5ft'!$A$1:$O$65536,7,FALSE) -> 0.000218089004 | G92: =VLOOKUP(R92,'[14]SG-Comm_IA_10ft'!$A$1:$O$65536,7,FALSE) -> 0.0001170442578 | H92: =VLOOKUP(R92,'[14]SG-Comm-OA_H_5ft'!$A$1:$O$65536,11,FALSE) -> 4.585464e-06 | I92: =VLOOKUP(R92,'[13]SG-Comm-OA_H_Trench'!$A$3:$O$280,11,FALSE) ->  | J92: =VLOOKUP(R92,'[13]GW-Comm_IA_H'!$A$3:$O$280,11,FALSE) ->  | K92: =VLOOKUP(R92,'[13]GW-Comm_H-OA'!$A$3:$O$280,11,FALSE) ->  | L92: =VLOOKUP(R92,'[13]GW-Comm_H-OA_Trench'!$A$3:$O$280,11,FALSE) ->  | M92: =VLOOKUP(R92,'[13]GW-Comm_H-OA_Trench'!$A$3:$O$280,11,FALSE) ->  | N92: =VLOOKUP(R92,'[14]SG-Comm-OA_H_Trench'!$A$1:$O$65536,11,FALSE) -> 0.0009000343746 | O92: =VLOOKUP(R92,'[13]SG-Comm-OA_G_Trench'!$A$3:$O$280,11,FALSE) -> 0.0009000343746 | P92: =VLOOKUP(R92,'[13]GW-Comm_IA_D'!$A$3:$O$280,11,FALSE) -> 1.929278537e-07 | R92: 98839
A93: X | B93: VOCs | C93: tert Butyl alcohol | D93: tert Butyl alcohol | E93: 75-65-0 | F93: =VLOOKUP(R93,'[14]SG-Comm_IA_5ft'!$A$1:$O$65536,7,FALSE) -> 0.0002774058103 | G93: =VLOOKUP(R93,'[14]SG-Comm_IA_10ft'!$A$1:$O$65536,7,FALSE) -> 0.0001544204451 | H93: =VLOOKUP(R93,'[14]SG-Comm-OA_H_5ft'!$A$1:$O$65536,11,FALSE) -> 6.322372252e-06 | I93: =VLOOKUP(R93,'[13]SG-Comm-OA_H_Trench'!$A$3:$O$280,11,FALSE) ->  | J93: =VLOOKUP(R93,'[13]GW-Comm_IA_H'!$A$3:$O$280,11,FALSE) ->  | K93: =VLOOKUP(R93,'[13]GW-Comm_H-OA'!$A$3:$O$280,11,FALSE) ->  | L93: =VLOOKUP(R93,'[13]GW-Comm_H-OA_Trench'!$A$3:$O$280,11,FALSE) ->  | M93: =VLOOKUP(R93,'[13]GW-Comm_H-OA_Trench'!$A$3:$O$280,11,FALSE) ->  | N93: =VLOOKUP(R93,'[14]SG-Comm-OA_H_Trench'!$A$1:$O$65536,11,FALSE) -> 0.001240954537 | O93: =VLOOKUP(R93,'[13]SG-Comm-OA_G_Trench'!$A$3:$O$280,11,FALSE) -> 0.001240954537 | P93: =VLOOKUP(R93,'[13]GW-Comm_IA_D'!$A$3:$O$280,11,FALSE) -> 6.814633936e-07 | R93: 75650
B94: VOCs | C94: Tetrachloroethane 1,1,1,2 | D94: 1,1,1,2-Tetrachloroethane | E94: 630-20-6 | F94: =VLOOKUP(R94,'[14]SG-Comm_IA_5ft'!$A$1:$O$65536,7,FALSE) -> 0.0002182381005 | G94: =VLOOKUP(R94,'[14]SG-Comm_IA_10ft'!$A$1:$O$65536,7,FALSE) -> 0.0001171348417 | H94: =VLOOKUP(R94,'[14]SG-Comm-OA_H_5ft'!$A$1:$O$65536,11,FALSE) -> 4.589492433e-06 | I94: =VLOOKUP(R94,'[13]SG-Comm-OA_H_Trench'!$A$3:$O$280,11,FALSE) ->  | J94: =VLOOKUP(R94,'[13]GW-Comm_IA_H'!$A$3:$O$280,11,FALSE) ->  | K94: =VLOOKUP(R94,'[13]GW-Comm_H-OA'!$A$3:$O$280,11,FALSE) ->  | L94: =VLOOKUP(R94,'[13]GW-Comm_H-OA_Trench'!$A$3:$O$280,11,FALSE) ->  | M94: =VLOOKUP(R94,'[13]GW-Comm_H-OA_Trench'!$A$3:$O$280,11,FALSE) ->  | N94: =VLOOKUP(R94,'[14]SG-Comm-OA_H_Trench'!$A$1:$O$65536,11,FALSE) -> 0.0009008250749 | O94: =VLOOKUP(R94,'[13]SG-Comm-OA_G_Trench'!$A$3:$O$280,11,FALSE) -> 0.0009008250749 | P94: =VLOOKUP(R94,'[13]GW-Comm_IA_D'!$A$3:$O$280,11,FALSE) -> 3.475600127e-07 | R94: 630206
A95: X | B95: VOCs | C95: Tetrachloroethane 1,1,2,2 | D95: 1,1,2,2-Tetrachloroethane | E95: 79-34-5 | F95: =VLOOKUP(R95,'[14]SG-Comm_IA_5ft'!$A$1:$O$65536,7,FALSE) -> 0.0002182104381 | G95: =VLOOKUP(R95,'[14]SG-Comm_IA_10ft'!$A$1:$O$65536,7,FALSE) -> 0.0001171180341 | H95: =VLOOKUP(R95,'[14]SG-Comm-OA_H_5ft'!$A$1:$O$65536,11,FALSE) -> 4.588744906e-06 | I95: =VLOOKUP(R95,'[13]SG-Comm-OA_H_Trench'!$A$3:$O$280,11,FALSE) ->  | J95: =VLOOKUP(R95,'[13]GW-Comm_IA_H'!$A$3:$O$280,11,FALSE) ->  | K95: =VLOOKUP(R95,'[13]GW-Comm_H-OA'!$A$3:$O$280,11,FALSE) ->  | L95: =VLOOKUP(R95,'[13]GW-Comm_H-OA_Trench'!$A$3:$O$280,11,FALSE) ->  | M95: =VLOOKUP(R95,'[13]GW-Comm_H-OA_Trench'!$A$3:$O$280,11,FALSE) ->  | N95: =VLOOKUP(R95,'[14]SG-Comm-OA_H_Trench'!$A$1:$O$65536,11,FALSE) -> 0.0009006783504 | O95: =VLOOKUP(R95,'[13]SG-Comm-OA_G_Trench'!$A$3:$O$280,11,FALSE) -> 0.0009006783504 | P95: =VLOOKUP(R95,'[13]GW-Comm_IA_D'!$A$3:$O$280,11,FALSE) -> 3.439541613e-07 | R95: 79345
A96: X | B96: VOCs | C96: Tetrachloroethene | D96: Tetrachloroethene | E96: 127-18-4 | F96: =VLOOKUP(R96,'[14]SG-Comm_IA_5ft'!$A$1:$O$65536,7,FALSE) -> 0.0002199417822 | G96: =VLOOKUP(R96,'[14]SG-Comm_IA_10ft'!$A$1:$O$65536,7,FALSE) -> 0.0001181710786 | H96: =VLOOKUP(R96,'[14]SG-Comm-OA_H_5ft'!$A$1:$O$65536,11,FALSE) -> 4.63563579e-06 | I96: =VLOOKUP(R96,'[13]SG-Comm-OA_H_Trench'!$A$3:$O$280,11,FALSE) ->  | J96: =VLOOKUP(R96,'[13]GW-Comm_IA_H'!$A$3:$O$280,11,FALSE) ->  | K96: =VLOOKUP(R96,'[13]GW-Comm_H-OA'!$A$3:$O$280,11,FALSE) ->  | L96: =VLOOKUP(R96,'[13]GW-Comm_H-OA_Trench'!$A$3:$O$280,11,FALSE) ->  | M96: =VLOOKUP(R96,'[13]GW-Comm_H-OA_Trench'!$A$3:$O$280,11,FALSE) ->  | N96: =VLOOKUP(R96,'[14]SG-Comm-OA_H_Trench'!$A$1:$O$65536,11,FALSE) -> 0.0009098820881 | O96: =VLOOKUP(R96,'[13]SG-Comm-OA_G_Trench'!$A$3:$O$280,11,FALSE) -> 0.0009098820881 | P96: =VLOOKUP(R96,'[13]GW-Comm_IA_D'!$A$3:$O$280,11,FALSE) -> 1.68890551e-07 | R96: 127184
B97: VOCs | C97: Tetrahydrofuran | D97: Tetrahydrofuran | E97: 109-99-9 | F97: =VLOOKUP(R97,'[14]SG-Comm_IA_5ft'!$A$1:$O$65536,7,FALSE) -> 0.0002793511248 | G97: =VLOOKUP(R97,'[14]SG-Comm_IA_10ft'!$A$1:$O$65536,7,FALSE) -> 0.0001556933926 | H97: =VLOOKUP(R97,'[14]SG-Comm-OA_H_5ft'!$A$1:$O$65536,11,FALSE) -> 6.384288049e-06 | I97: =VLOOKUP(R97,'[13]SG-Comm-OA_H_Trench'!$A$3:$O$280,11,FALSE) ->  | J97: =VLOOKUP(R97,'[13]GW-Comm_IA_H'!$A$3:$O$280,11,FALSE) ->  | K97: =VLOOKUP(R97,'[13]GW-Comm_H-OA'!$A$3:$O$280,11,FALSE) ->  | L97: =VLOOKUP(R97,'[13]GW-Comm_H-OA_Trench'!$A$3:$O$280,11,FALSE) ->  | M97: =VLOOKUP(R97,'[13]GW-Comm_H-OA_Trench'!$A$3:$O$280,11,FALSE) ->  | N97: =VLOOKUP(R97,'[14]SG-Comm-OA_H_Trench'!$A$1:$O$65536,11,FALSE) -> 0.001253107363 | O97: =VLOOKUP(R97,'[13]SG-Comm-OA_G_Trench'!$A$3:$O$280,11,FALSE) -> 0.001253107363 | P97: =VLOOKUP(R97,'[13]GW-Comm_IA_D'!$A$3:$O$280,11,FALSE) -> 5.969494401e-07 | R97: 109999
A98: X | B98: VOCs | C98: Toluene | D98: Toluene | E98: 108-88-3 | F98: =VLOOKUP(R98,'[14]SG-Comm_IA_5ft'!$A$1:$O$65536,7,FALSE) -> 0.0002539547249 | G98: =VLOOKUP(R98,'[14]SG-Comm_IA_10ft'!$A$1:$O$65536,7,FALSE) -> 0.0001393158818 | H98: =VLOOKUP(R98,'[14]SG-Comm-OA_H_5ft'!$A$1:$O$65536,11,FALSE) -> 5.601937714e-06 | I98: =VLOOKUP(R98,'[13]SG-Comm-OA_H_Trench'!$A$3:$O$280,11,FALSE) ->  | J98: =VLOOKUP(R98,'[13]GW-Comm_IA_H'!$A$3:$O$280,11,FALSE) ->  | K98: =VLOOKUP(R98,'[13]GW-Comm_H-OA'!$A$3:$O$280,11,FALSE) ->  | L98: =VLOOKUP(R98,'[13]GW-Comm_H-OA_Trench'!$A$3:$O$280,11,FALSE) ->  | M98: =VLOOKUP(R98,'[13]GW-Comm_H-OA_Trench'!$A$3:$O$280,11,FALSE) ->  | N98: =VLOOKUP(R98,'[14]SG-Comm-OA_H_Trench'!$A$1:$O$65536,11,FALSE) -> 0.001099547724 | O98: =VLOOKUP(R98,'[13]SG-Comm-OA_G_Trench'!$A$3:$O$280,11,FALSE) -> 0.001099547724 | P98: =VLOOKUP(R98,'[13]GW-Comm_IA_D'!$A$3:$O$280,11,FALSE) -> 2.152038095e-07 | R98: 108883
B99: VOCs | C99: Trichlorobenzene 1,2,3 | D99: 1,2,3-Trichlorobenzene | E99: 87-61-6 | F99: =VLOOKUP(R99,'[14]SG-Comm_IA_5ft'!$A$1:$O$65536,7,FALSE) -> 0.0001344306598 | G99: =VLOOKUP(R99,'[14]SG-Comm_IA_10ft'!$A$1:$O$65536,7,FALSE) -> 6.867054513e-05 | H99: =VLOOKUP(R99,'[14]SG-Comm-OA_H_5ft'!$A$1:$O$65536,11,FALSE) -> 2.54811725e-06 | I99: =VLOOKUP(R99,'[13]SG-Comm-OA_H_Trench'!$A$3:$O$280,11,FALSE) ->  | J99: =VLOOKUP(R99,'[13]GW-Comm_IA_H'!$A$3:$O$280,11,FALSE) ->  | K99: =VLOOKUP(R99,'[13]GW-Comm_H-OA'!$A$3:$O$280,11,FALSE) ->  | L99: =VLOOKUP(R99,'[13]GW-Comm_H-OA_Trench'!$A$3:$O$280,11,FALSE) ->  | M99: =VLOOKUP(R99,'[13]GW-Comm_H-OA_Trench'!$A$3:$O$280,11,FALSE) ->  | N99: =VLOOKUP(R99,'[14]SG-Comm-OA_H_Trench'!$A$1:$O$65536,11,FALSE) -> 0.0005001441763 | O99: =VLOOKUP(R99,'[13]SG-Comm-OA_G_Trench'!$A$3:$O$280,11,FALSE) -> 0.0005001441763 | P99: =VLOOKUP(R99,'[13]GW-Comm_IA_D'!$A$3:$O$280,11,FALSE) -> 1.403405033e-07 | R99: 87616
A100: X | B100: VOCs | C100: Trichlorobenzene 1,2,4 | D100: 1,2,4-Trichlorobenzene | E100: 120-82-1 | F100: =VLOOKUP(R100,'[14]SG-Comm_IA_5ft'!$A$1:$O$65536,7,FALSE) -> 0.0001056271954 | G100: =VLOOKUP(R100,'[14]SG-Comm_IA_10ft'!$A$1:$O$65536,7,FALSE) -> 5.307660318e-05 | H100: =VLOOKUP(R100,'[14]SG-Comm-OA_H_5ft'!$A$1:$O$65536,11,FALSE) -> 1.93648617e-06 | I100: =VLOOKUP(R100,'[13]SG-Comm-OA_H_Trench'!$A$3:$O$280,11,FALSE) ->  | J100: =VLOOKUP(R100,'[13]GW-Comm_IA_H'!$A$3:$O$280,11,FALSE) ->  | K100: =VLOOKUP(R100,'[13]GW-Comm_H-OA'!$A$3:$O$280,11,FALSE) ->  | L100: =VLOOKUP(R100,'[13]GW-Comm_H-OA_Trench'!$A$3:$O$280,11,FALSE) ->  | M100: =VLOOKUP(R100,'[13]GW-Comm_H-OA_Trench'!$A$3:$O$280,11,FALSE) ->  | N100: =VLOOKUP(R100,'[14]SG-Comm-OA_H_Trench'!$A$1:$O$65536,11,FALSE) -> 0.0003800932945 | O100: =VLOOKUP(R100,'[13]SG-Comm-OA_G_Trench'!$A$3:$O$280,11,FALSE) -> 0.0003800932945 | P100: =VLOOKUP(R100,'[13]GW-Comm_IA_D'!$A$3:$O$280,11,FALSE) -> 1.310144321e-07 | R100: 120821
B101: VOCs | C101: Trichlorobenzene 1,3,5 | D101: 1,3,5-Trichlorobenzene | E101: 108-70-3 | F101: =VLOOKUP(R101,'[14]SG-Comm_IA_5ft'!$A$1:$O$65536,7,FALSE) -> 0.0002270441507 | G101: =VLOOKUP(R101,'[14]SG-Comm_IA_10ft'!$A$1:$O$65536,7,FALSE) -> 0.0001225141218 | H101: =VLOOKUP(R101,'[14]SG-Comm-OA_H_5ft'!$A$1:$O$65536,11,FALSE) -> 4.830238144e-06 | I101: =VLOOKUP(R101,'[13]SG-Comm-OA_H_Trench'!$A$3:$O$280,11,FALSE) ->  | J101: =VLOOKUP(R101,'[13]GW-Comm_IA_H'!$A$3:$O$280,11,FALSE) ->  | K101: =VLOOKUP(R101,'[13]GW-Comm_H-OA'!$A$3:$O$280,11,FALSE) ->  | L101: =VLOOKUP(R101,'[13]GW-Comm_H-OA_Trench'!$A$3:$O$280,11,FALSE) ->  | M101: =VLOOKUP(R101,'[13]GW-Comm_H-OA_Trench'!$A$3:$O$280,11,FALSE) ->  | N101: =VLOOKUP(R101,'[14]SG-Comm-OA_H_Trench'!$A$1:$O$65536,11,FALSE) -> 0.0009480786168 | O101: =VLOOKUP(R101,'[13]SG-Comm-OA_G_Trench'!$A$3:$O$280,11,FALSE) -> 0.0009480786168 | P101: =VLOOKUP(R101,'[13]GW-Comm_IA_D'!$A$3:$O$280,11,FALSE) -> 2.040177781e-07 | R101: 108703
B102: VOCs | C102: Trichloroethane 1,1,1 | D102: 1,1,1-Trichloroethane | E102: 71-55-6 | F102: =VLOOKUP(R102,'[14]SG-Comm_IA_5ft'!$A$1:$O$65536,7,FALSE) -> 0.0002339124106 | G102: =VLOOKUP(R102,'[14]SG-Comm_IA_10ft'!$A$1:$O$65536,7,FALSE) -> 0.0001267498531 | H102: =VLOOKUP(R102,'[14]SG-Comm-OA_H_5ft'!$A$1:$O$65536,11,FALSE) -> 5.021931727e-06 | I102: =VLOOKUP(R102,'[13]SG-Comm-OA_H_Trench'!$A$3:$O$280,11,FALSE) ->  | J102: =VLOOKUP(R102,'[13]GW-Comm_IA_H'!$A$3:$O$280,11,FALSE) ->  | K102: =VLOOKUP(R102,'[13]GW-Comm_H-OA'!$A$3:$O$280,11,FALSE) ->  | L102: =VLOOKUP(R102,'[13]GW-Comm_H-OA_Trench'!$A$3:$O$280,11,FALSE) ->  | M102: =VLOOKUP(R102,'[13]GW-Comm_H-OA_Trench'!$A$3:$O$280,11,FALSE) ->  | N102: =VLOOKUP(R102,'[14]SG-Comm-OA_H_Trench'!$A$1:$O$65536,11,FALSE) -> 0.0009857042124 | O102: =VLOOKUP(R102,'[13]SG-Comm-OA_G_Trench'!$A$3:$O$280,11,FALSE) -> 0.0009857042124 | P102: =VLOOKUP(R102,'[13]GW-Comm_IA_D'!$A$3:$O$280,11,FALSE) -> 1.828167634e-07 | R102: 71556
B103: VOCs | C103: Trichloroethane 1,1,2 | D103: 1,1,2-Trichloroethane | E103: 79-00-5 | F103: =VLOOKUP(R103,'[14]SG-Comm_IA_5ft'!$A$1:$O$65536,7,FALSE) -> 0.000234154345 | G103: =VLOOKUP(R103,'[14]SG-Comm_IA_10ft'!$A$1:$O$65536,7,FALSE) -> 0.0001268997049 | H103: =VLOOKUP(R103,'[14]SG-Comm-OA_H_5ft'!$A$1:$O$65536,11,FALSE) -> 5.028748171e-06 | I103: =VLOOKUP(R103,'[13]SG-Comm-OA_H_Trench'!$A$3:$O$280,11,FALSE) ->  | J103: =VLOOKUP(R103,'[13]GW-Comm_IA_H'!$A$3:$O$280,11,FALSE) ->  | K103: =VLOOKUP(R103,'[13]GW-Comm_H-OA'!$A$3:$O$280,11,FALSE) ->  | L103: =VLOOKUP(R103,'[13]GW-Comm_H-OA_Trench'!$A$3:$O$280,11,FALSE) ->  | M103: =VLOOKUP(R103,'[13]GW-Comm_H-OA_Trench'!$A$3:$O$280,11,FALSE) ->  | N103: =VLOOKUP(R103,'[14]SG-Comm-OA_H_Trench'!$A$1:$O$65536,11,FALSE) -> 0.0009870421434 | O103: =VLOOKUP(R103,'[13]SG-Comm-OA_G_Trench'!$A$3:$O$280,11,FALSE) -> 0.0009870421434 | P103: =VLOOKUP(R103,'[13]GW-Comm_IA_D'!$A$3:$O$280,11,FALSE) -> 2.865213601e-07 | R103: 79005
A104: X | B104: VOCs | C104: Trichloroethene | D104: Trichloroethene | E104: 79-01-6 | F104: =VLOOKUP(R104,'[14]SG-Comm_IA_5ft'!$A$1:$O$65536,7,FALSE) -> 0.0002362008908 | G104: =VLOOKUP(R104,'[14]SG-Comm_IA_10ft'!$A$1:$O$65536,7,FALSE) -> 0.0001281690896 | H104: =VLOOKUP(R104,'[14]SG-Comm-OA_H_5ft'!$A$1:$O$65536,11,FALSE) -> 5.086585611e-06 | I104: =VLOOKUP(R104,'[13]SG-Comm-OA_H_Trench'!$A$3:$O$280,11,FALSE) ->  | J104: =VLOOKUP(R104,'[13]GW-Comm_IA_H'!$A$3:$O$280,11,FALSE) ->  | K104: =VLOOKUP(R104,'[13]GW-Comm_H-OA'!$A$3:$O$280,11,FALSE) ->  | L104: =VLOOKUP(R104,'[13]GW-Comm_H-OA_Trench'!$A$3:$O$280,11,FALSE) ->  | M104: =VLOOKUP(R104,'[13]GW-Comm_H-OA_Trench'!$A$3:$O$280,11,FALSE) ->  | N104: =VLOOKUP(R104,'[14]SG-Comm-OA_H_Trench'!$A$1:$O$65536,11,FALSE) -> 0.0009983944697 | O104: =VLOOKUP(R104,'[13]SG-Comm-OA_G_Trench'!$A$3:$O$280,11,FALSE) -> 0.0009983944697 | P104: =VLOOKUP(R104,'[13]GW-Comm_IA_D'!$A$3:$O$280,11,FALSE) -> 1.907535525e-07 | R104: 79016
A105: X | B105: VOCs | C105: Trichlorofluoromethane | D105: Trichlorofluoromethane | E105: 75-69-4 | F105: =VLOOKUP(R105,'[14]SG-Comm_IA_5ft'!$A$1:$O$65536,7,FALSE) -> 0.0002539258112 | G105: =VLOOKUP(R105,'[14]SG-Comm_IA_10ft'!$A$1:$O$65536,7,FALSE) -> 0.0001392975292 | H105: =VLOOKUP(R105,'[14]SG-Comm-OA_H_5ft'!$A$1:$O$65536,11,FALSE) -> 5.601078034e-06 | I105: =VLOOKUP(R105,'[13]SG-Comm-OA_H_Trench'!$A$3:$O$280,11,FALSE) ->  | J105: =VLOOKUP(R105,'[13]GW-Comm_IA_H'!$A$3:$O$280,11,FALSE) ->  | K105: =VLOOKUP(R105,'[13]GW-Comm_H-OA'!$A$3:$O$280,11,FALSE) ->  | L105: =VLOOKUP(R105,'[13]GW-Comm_H-OA_Trench'!$A$3:$O$280,11,FALSE) ->  | M105: =VLOOKUP(R105,'[13]GW-Comm_H-OA_Trench'!$A$3:$O$280,11,FALSE) ->  | N105: =VLOOKUP(R105,'[14]SG-Comm-OA_H_Trench'!$A$1:$O$65536,11,FALSE) -> 0.001099378987 | O105: =VLOOKUP(R105,'[13]SG-Comm-OA_G_Trench'!$A$3:$O$280,11,FALSE) -> 0.001099378987 | P105: =VLOOKUP(R105,'[13]GW-Comm_IA_D'!$A$3:$O$280,11,FALSE) -> 1.973512505e-07 | R105: 75694
B106: VOCs | C106: Trichloropropane 1,2,3 | D106: 1,2,3-Trichloropropane | E106: 96-18-4 | F106: =VLOOKUP(R106,'[14]SG-Comm_IA_5ft'!$A$1:$O$65536,7,FALSE) -> 0.0002175587717 | G106: =VLOOKUP(R106,'[14]SG-Comm_IA_10ft'!$A$1:$O$65536,7,FALSE) -> 0.0001167222464 | H106: =VLOOKUP(R106,'[14]SG-Comm-OA_H_5ft'!$A$1:$O$65536,11,FALSE) -> 4.571150374e-06 | I106: =VLOOKUP(R106,'[13]SG-Comm-OA_H_Trench'!$A$3:$O$280,11,FALSE) ->  | J106: =VLOOKUP(R106,'[13]GW-Comm_IA_H'!$A$3:$O$280,11,FALSE) ->  | K106: =VLOOKUP(R106,'[13]GW-Comm_H-OA'!$A$3:$O$280,11,FALSE) ->  | L106: =VLOOKUP(R106,'[13]GW-Comm_H-OA_Trench'!$A$3:$O$280,11,FALSE) ->  | M106: =VLOOKUP(R106,'[13]GW-Comm_H-OA_Trench'!$A$3:$O$280,11,FALSE) ->  | N106: =VLOOKUP(R106,'[14]SG-Comm-OA_H_Trench'!$A$1:$O$65536,11,FALSE) -> 0.0008972248976 | O106: =VLOOKUP(R106,'[13]SG-Comm-OA_G_Trench'!$A$3:$O$280,11,FALSE) -> 0.0008972248976 | P106: =VLOOKUP(R106,'[13]GW-Comm_IA_D'!$A$3:$O$280,11,FALSE) -> 1.643984781e-07 | R106: 96184
A107: X | B107: VOCs | C107: trifluoroethane 1,1,2-Trichloro-1,2,2- | D107: 1,1,2-Trichloro-1,2,2-trifluoroethane | E107: 76-13-1 | F107: =VLOOKUP(R107,'[14]SG-Comm_IA_5ft'!$A$1:$O$65536,7,FALSE) -> 0.0001015990003 | G107: =VLOOKUP(R107,'[14]SG-Comm_IA_10ft'!$A$1:$O$65536,7,FALSE) -> 5.093624241e-05 | H107: =VLOOKUP(R107,'[14]SG-Comm-OA_H_5ft'!$A$1:$O$65536,11,FALSE) -> 1.854132026e-06 | I107: =VLOOKUP(R107,'[13]SG-Comm-OA_H_Trench'!$A$3:$O$280,11,FALSE) ->  | J107: =VLOOKUP(R107,'[13]GW-Comm_IA_H'!$A$3:$O$280,11,FALSE) ->  | K107: =VLOOKUP(R107,'[13]GW-Comm_H-OA'!$A$3:$O$280,11,FALSE) ->  | L107: =VLOOKUP(R107,'[13]GW-Comm_H-OA_Trench'!$A$3:$O$280,11,FALSE) ->  | M107: =VLOOKUP(R107,'[13]GW-Comm_H-OA_Trench'!$A$3:$O$280,11,FALSE) ->  | N107: =VLOOKUP(R107,'[14]SG-Comm-OA_H_Trench'!$A$1:$O$65536,11,FALSE) -> 0.0003639288322 | O107: =VLOOKUP(R107,'[13]SG-Comm-OA_G_Trench'!$A$3:$O$280,11,FALSE) -> 0.0003639288322 | P107: =VLOOKUP(R107,'[13]GW-Comm_IA_D'!$A$3:$O$280,11,FALSE) -> 6.494001965e-08 | R107: 76131
A108: X | B108: VOCs | C108: Trimethylbenzene 1,2,4 | D108: 1,2,4-Trimethylbenzene | E108: 95-63-6 | F108: =VLOOKUP(R108,'[14]SG-Comm_IA_5ft'!$A$1:$O$65536,7,FALSE) -> 0.0002270161633 | G108: =VLOOKUP(R108,'[14]SG-Comm_IA_10ft'!$A$1:$O$65536,7,FALSE) -> 0.0001224969341 | H108: =VLOOKUP(R108,'[14]SG-Comm-OA_H_5ft'!$A$1:$O$65536,11,FALSE) -> 4.829464131e-06 | I108: =VLOOKUP(R108,'[13]SG-Comm-OA_H_Trench'!$A$3:$O$280,11,FALSE) ->  | J108: =VLOOKUP(R108,'[13]GW-Comm_IA_H'!$A$3:$O$280,11,FALSE) ->  | K108: =VLOOKUP(R108,'[13]GW-Comm_H-OA'!$A$3:$O$280,11,FALSE) ->  | L108: =VLOOKUP(R108,'[13]GW-Comm_H-OA_Trench'!$A$3:$O$280,11,FALSE) ->  | M108: =VLOOKUP(R108,'[13]GW-Comm_H-OA_Trench'!$A$3:$O$280,11,FALSE) ->  | N108: =VLOOKUP(R108,'[14]SG-Comm-OA_H_Trench'!$A$1:$O$65536,11,FALSE) -> 0.0009479266936 | O108: =VLOOKUP(R108,'[13]SG-Comm-OA_G_Trench'!$A$3:$O$280,11,FALSE) -> 0.0009479266936 | P108: =VLOOKUP(R108,'[13]GW-Comm_IA_D'!$A$3:$O$280,11,FALSE) -> 1.896001932e-07 | R108: 95636
A109: X | B109: VOCs | C109: Trimethylbenzene 1,3,5 | D109: 1,3,5-Trimethylbenzene | E109: 108-67-8 | F109: =VLOOKUP(R109,'[14]SG-Comm_IA_5ft'!$A$1:$O$65536,7,FALSE) -> 0.0002270065083 | G109: =VLOOKUP(R109,'[14]SG-Comm_IA_10ft'!$A$1:$O$65536,7,FALSE) -> 0.0001224910048 | H109: =VLOOKUP(R109,'[14]SG-Comm-OA_H_5ft'!$A$1:$O$65536,11,FALSE) -> 4.829197127e-06 | I109: =VLOOKUP(R109,'[13]SG-Comm-OA_H_Trench'!$A$3:$O$280,11,FALSE) ->  | J109: =VLOOKUP(R109,'[13]GW-Comm_IA_H'!$A$3:$O$280,11,FALSE) ->  | K109: =VLOOKUP(R109,'[13]GW-Comm_H-OA'!$A$3:$O$280,11,FALSE) ->  | L109: =VLOOKUP(R109,'[13]GW-Comm_H-OA_Trench'!$A$3:$O$280,11,FALSE) ->  | M109: =VLOOKUP(R109,'[13]GW-Comm_H-OA_Trench'!$A$3:$O$280,11,FALSE) ->  | N109: =VLOOKUP(R109,'[14]SG-Comm-OA_H_Trench'!$A$1:$O$65536,11,FALSE) -> 0.0009478742862 | O109: =VLOOKUP(R109,'[13]SG-Comm-OA_G_Trench'!$A$3:$O$280,11,FALSE) -> 0.0009478742862 | P109: =VLOOKUP(R109,'[13]GW-Comm_IA_D'!$A$3:$O$280,11,FALSE) -> 1.843323677e-07 | R109: 108678
B110: VOCs | C110: TRIMETHYLBUTANE, 2,2,3- | D110: 2,2,3-Trimethylbutane | E110: 464-06-2 | F110: =VLOOKUP(R110,'[14]SG-Comm_IA_5ft'!$A$1:$O$65536,7,FALSE) -> 0.000202958465 | G110: =VLOOKUP(R110,'[14]SG-Comm_IA_10ft'!$A$1:$O$65536,7,FALSE) -> 0.0001079358796 | H110: =VLOOKUP(R110,'[14]SG-Comm-OA_H_5ft'!$A$1:$O$65536,11,FALSE) -> 4.184651603e-06 | I110: =VLOOKUP(R110,'[13]SG-Comm-OA_H_Trench'!$A$3:$O$280,11,FALSE) ->  | J110: =VLOOKUP(R110,'[13]GW-Comm_IA_H'!$A$3:$O$280,11,FALSE) ->  | K110: =VLOOKUP(R110,'[13]GW-Comm_H-OA'!$A$3:$O$280,11,FALSE) ->  | L110: =VLOOKUP(R110,'[13]GW-Comm_H-OA_Trench'!$A$3:$O$280,11,FALSE) ->  | M110: =VLOOKUP(R110,'[13]GW-Comm_H-OA_Trench'!$A$3:$O$280,11,FALSE) ->  | N110: =VLOOKUP(R110,'[14]SG-Comm-OA_H_Trench'!$A$1:$O$65536,11,FALSE) -> 0.000821362961 | O110: =VLOOKUP(R110,'[13]SG-Comm-OA_G_Trench'!$A$3:$O$280,11,FALSE) -> 0.000821362961 | P110: =VLOOKUP(R110,'[13]GW-Comm_IA_D'!$A$3:$O$280,11,FALSE) -> 1.460994489e-07 | R110: 464062
A111: X | B111: VOCs | C111: Vinyl Acetate | D111: Vinyl acetate | E111: 108-05-4 | F111: =VLOOKUP(R111,'[14]SG-Comm_IA_5ft'!$A$1:$O$65536,7,FALSE) -> 0.0002500044302 | G111: =VLOOKUP(R111,'[14]SG-Comm_IA_10ft'!$A$1:$O$65536,7,FALSE) -> 0.0001368145571 | H111: =VLOOKUP(R111,'[14]SG-Comm-OA_H_5ft'!$A$1:$O$65536,11,FALSE) -> 5.485113075e-06 | I111: =VLOOKUP(R111,'[13]SG-Comm-OA_H_Trench'!$A$3:$O$280,11,FALSE) ->  | J111: =VLOOKUP(R111,'[13]GW-Comm_IA_H'!$A$3:$O$280,11,FALSE) ->  | K111: =VLOOKUP(R111,'[13]GW-Comm_H-OA'!$A$3:$O$280,11,FALSE) ->  | L111: =VLOOKUP(R111,'[13]GW-Comm_H-OA_Trench'!$A$3:$O$280,11,FALSE) ->  | M111: =VLOOKUP(R111,'[13]GW-Comm_H-OA_Trench'!$A$3:$O$280,11,FALSE) ->  | N111: =VLOOKUP(R111,'[14]SG-Comm-OA_H_Trench'!$A$1:$O$65536,11,FALSE) -> 0.001076617397 | O111: =VLOOKUP(R111,'[13]SG-Comm-OA_G_Trench'!$A$3:$O$280,11,FALSE) -> 0.001076617397 | P111: =VLOOKUP(R111,'[13]GW-Comm_IA_D'!$A$3:$O$280,11,FALSE) -> 3.592916654e-07 | R111: 108054
B112: VOCs | C112: Vinyl Chloride | D112: Vinyl chloride | E112: 75-01-4 | F112: =VLOOKUP(R112,'[14]SG-Comm_IA_5ft'!$A$1:$O$65536,7,FALSE) -> 0.0002928708163 | G112: =VLOOKUP(R112,'[14]SG-Comm_IA_10ft'!$A$1:$O$65536,7,FALSE) -> 0.0001646269193 | H112: =VLOOKUP(R112,'[14]SG-Comm-OA_H_5ft'!$A$1:$O$65536,11,FALSE) -> 6.824225781e-06 | I112: =VLOOKUP(R112,'[13]SG-Comm-OA_H_Trench'!$A$3:$O$280,11,FALSE) ->  | J112: =VLOOKUP(R112,'[13]GW-Comm_IA_H'!$A$3:$O$280,11,FALSE) ->  | K112: =VLOOKUP(R112,'[13]GW-Comm_H-OA'!$A$3:$O$280,11,FALSE) ->  | L112: =VLOOKUP(R112,'[13]GW-Comm_H-OA_Trench'!$A$3:$O$280,11,FALSE) ->  | M112: =VLOOKUP(R112,'[13]GW-Comm_H-OA_Trench'!$A$3:$O$280,11,FALSE) ->  | N112: =VLOOKUP(R112,'[14]SG-Comm-OA_H_Trench'!$A$1:$O$65536,11,FALSE) -> 0.001339458293 | O112: =VLOOKUP(R112,'[13]SG-Comm-OA_G_Trench'!$A$3:$O$280,11,FALSE) -> 0.001339458293 | P112: =VLOOKUP(R112,'[13]GW-Comm_IA_D'!$A$3:$O$280,11,FALSE) -> 2.387940092e-07 | R112: 75014
A113: X | B113: VOCs | C113: Xylene ortho | D113: o-Xylene | E113: 95-47-6 | F113: =VLOOKUP(R113,'[14]SG-Comm_IA_5ft'!$A$1:$O$65536,7,FALSE) -> 0.000253973041 | G113: =VLOOKUP(R113,'[14]SG-Comm_IA_10ft'!$A$1:$O$65536,7,FALSE) -> 0.000139327508 | H113: =VLOOKUP(R113,'[14]SG-Comm-OA_H_5ft'!$A$1:$O$65536,11,FALSE) -> 5.60248233e-06 | I113: =VLOOKUP(R113,'[13]SG-Comm-OA_H_Trench'!$A$3:$O$280,11,FALSE) ->  | J113: =VLOOKUP(R113,'[13]GW-Comm_IA_H'!$A$3:$O$280,11,FALSE) ->  | K113: =VLOOKUP(R113,'[13]GW-Comm_H-OA'!$A$3:$O$280,11,FALSE) ->  | L113: =VLOOKUP(R113,'[13]GW-Comm_H-OA_Trench'!$A$3:$O$280,11,FALSE) ->  | M113: =VLOOKUP(R113,'[13]GW-Comm_H-OA_Trench'!$A$3:$O$280,11,FALSE) ->  | N113: =VLOOKUP(R113,'[14]SG-Comm-OA_H_Trench'!$A$1:$O$65536,11,FALSE) -> 0.001099654622 | O113: =VLOOKUP(R113,'[13]SG-Comm-OA_G_Trench'!$A$3:$O$280,11,FALSE) -> 0.001099654622 | P113: =VLOOKUP(R113,'[13]GW-Comm_IA_D'!$A$3:$O$280,11,FALSE) -> 2.257576502e-07 | R113: 95476
A114: X | B114: VOCs | C114: Xylene, m,p | D114: m,p-Xylene | E114: 79601-23-1 | F114: =VLOOKUP(R114,'[14]SG-Comm_IA_5ft'!$A$1:$O$65536,7,FALSE) -> 0.000231395947 | G114: =VLOOKUP(R114,'[14]SG-Comm_IA_10ft'!$A$1:$O$65536,7,FALSE) -> 0.0001251938029 | H114: =VLOOKUP(R114,'[14]SG-Comm-OA_H_5ft'!$A$1:$O$65536,11,FALSE) -> 4.951290866e-06 | I114: =VLOOKUP(R114,'[13]SG-Comm-OA_H_Trench'!$A$3:$O$280,11,FALSE) ->  | J114: =VLOOKUP(R114,'[13]GW-Comm_IA_H'!$A$3:$O$280,11,FALSE) ->  | K114: =VLOOKUP(R114,'[13]GW-Comm_H-OA'!$A$3:$O$280,11,FALSE) ->  | L114: =VLOOKUP(R114,'[13]GW-Comm_H-OA_Trench'!$A$3:$O$280,11,FALSE) ->  | M114: =VLOOKUP(R114,'[13]GW-Comm_H-OA_Trench'!$A$3:$O$280,11,FALSE) ->  | N114: =VLOOKUP(R114,'[14]SG-Comm-OA_H_Trench'!$A$1:$O$65536,11,FALSE) -> 0.0009718388319 | O114: =VLOOKUP(R114,'[13]SG-Comm-OA_G_Trench'!$A$3:$O$280,11,FALSE) ->  | P114: =VLOOKUP(R114,'[13]GW-Comm_IA_D'!$A$3:$O$280,11,FALSE) -> 1.840084401e-07 | R114: 79601231
B115: VOCs | C115: Xylenes (total) | D115: Xylenes (total) | E115: 1330-20-7 | F115: =VLOOKUP(R115,'[14]SG-Comm_IA_5ft'!$A$1:$O$65536,7,FALSE) -> 0.0002151868277 | G115: =VLOOKUP(R115,'[14]SG-Comm_IA_10ft'!$A$1:$O$65536,7,FALSE) -> 0.0001152842839 | H115: =VLOOKUP(R115,'[14]SG-Comm-OA_H_5ft'!$A$1:$O$65536,11,FALSE) -> 4.507361469e-06 | I115: =VLOOKUP(R115,'[13]SG-Comm-OA_H_Trench'!$A$3:$O$280,11,FALSE) ->  | J115: =VLOOKUP(R115,'[13]GW-Comm_IA_H'!$A$3:$O$280,11,FALSE) ->  | K115: =VLOOKUP(R115,'[13]GW-Comm_H-OA'!$A$3:$O$280,11,FALSE) ->  | L115: =VLOOKUP(R115,'[13]GW-Comm_H-OA_Trench'!$A$3:$O$280,11,FALSE) ->  | M115: =VLOOKUP(R115,'[13]GW-Comm_H-OA_Trench'!$A$3:$O$280,11,FALSE) ->  | N115: =VLOOKUP(R115,'[14]SG-Comm-OA_H_Trench'!$A$1:$O$65536,11,FALSE) -> 0.0008847044182 | O115: =VLOOKUP(R115,'[13]SG-Comm-OA_G_Trench'!$A$3:$O$280,11,FALSE) -> 0.0008847044182 | P115: =VLOOKUP(R115,'[13]GW-Comm_IA_D'!$A$3:$O$280,11,FALSE) -> 1.742482038e-07 | R115: 1330207
B116: SVOCs | C116: Acenaphthene | D116: Acenaphthene | E116: 83-32-9 | F116: =VLOOKUP(R116,'[14]SG-Comm_IA_5ft'!$A$1:$O$65536,7,FALSE) -> 0.0001439905898 | G116: =VLOOKUP(R116,'[14]SG-Comm_IA_10ft'!$A$1:$O$65536,7,FALSE) -> 7.396118596e-05 | H116: =VLOOKUP(R116,'[14]SG-Comm-OA_H_5ft'!$A$1:$O$65536,11,FALSE) -> 2.76039157e-06 | I116: =VLOOKUP(R116,'[13]SG-Comm-OA_H_Trench'!$A$3:$O$280,11,FALSE) ->  | J116: =VLOOKUP(R116,'[13]GW-Comm_IA_H'!$A$3:$O$280,11,FALSE) ->  | K116: =VLOOKUP(R116,'[13]GW-Comm_H-OA'!$A$3:$O$280,11,FALSE) ->  | L116: =VLOOKUP(R116,'[13]GW-Comm_H-OA_Trench'!$A$3:$O$280,11,FALSE) ->  | M116: =VLOOKUP(R116,'[13]GW-Comm_H-OA_Trench'!$A$3:$O$280,11,FALSE) ->  | N116: =VLOOKUP(R116,'[14]SG-Comm-OA_H_Trench'!$A$1:$O$65536,11,FALSE) -> 0.0005418093568 | O116: =VLOOKUP(R116,'[13]SG-Comm-OA_G_Trench'!$A$3:$O$280,11,FALSE) -> 0.0005418093568 | P116: =VLOOKUP(R116,'[13]GW-Comm_IA_D'!$A$3:$O$280,11,FALSE) -> 2.721698041e-07 | R116: 83329
B117: SVOCs | C117: Acenaphthylene | D117: Acenaphthylene | E117: 208-96-8 | F117: =VLOOKUP(R117,'[14]SG-Comm_IA_5ft'!$A$1:$O$65536,7,FALSE) -> 0.0001431982088 | G117: =VLOOKUP(R117,'[14]SG-Comm_IA_10ft'!$A$1:$O$65536,7,FALSE) -> 7.352044242e-05 | H117: =VLOOKUP(R117,'[14]SG-Comm-OA_H_5ft'!$A$1:$O$65536,11,FALSE) -> 2.742613577e-06 | I117: =VLOOKUP(R117,'[13]SG-Comm-OA_H_Trench'!$A$3:$O$280,11,FALSE) ->  | J117: =VLOOKUP(R117,'[13]GW-Comm_IA_H'!$A$3:$O$280,11,FALSE) ->  | K117: =VLOOKUP(R117,'[13]GW-Comm_H-OA'!$A$3:$O$280,11,FALSE) ->  | L117: =VLOOKUP(R117,'[13]GW-Comm_H-OA_Trench'!$A$3:$O$280,11,FALSE) ->  | M117: =VLOOKUP(R117,'[13]GW-Comm_H-OA_Trench'!$A$3:$O$280,11,FALSE) ->  | N117: =VLOOKUP(R117,'[14]SG-Comm-OA_H_Trench'!$A$1:$O$65536,11,FALSE) -> 0.0005383198943 | O117: =VLOOKUP(R117,'[13]SG-Comm-OA_G_Trench'!$A$3:$O$280,11,FALSE) -> 0.0005383198943 | P117: =VLOOKUP(R117,'[13]GW-Comm_IA_D'!$A$3:$O$280,11,FALSE) -> 2.564148554e-07 | R117: 208968
B118: SVOCs | C118: Acetophenone | D118: Acetophenone | E118: 98-86-2 | F118: =VLOOKUP(R118,'[14]SG-Comm_IA_5ft'!$A$1:$O$65536,7,FALSE) -> 0.0002189800612 | G118: =VLOOKUP(R118,'[14]SG-Comm_IA_10ft'!$A$1:$O$65536,7,FALSE) -> 0.0001175858646 | H118: =VLOOKUP(R118,'[14]SG-Comm-OA_H_5ft'!$A$1:$O$65536,11,FALSE) -> 4.609562797e-06 | I118: =VLOOKUP(R118,'[13]SG-Comm-OA_H_Trench'!$A$3:$O$280,11,FALSE) ->  | J118: =VLOOKUP(R118,'[13]GW-Comm_IA_H'!$A$3:$O$280,11,FALSE) ->  | K118: =VLOOKUP(R118,'[13]GW-Comm_H-OA'!$A$3:$O$280,11,FALSE) ->  | L118: =VLOOKUP(R118,'[13]GW-Comm_H-OA_Trench'!$A$3:$O$280,11,FALSE) ->  | M118: =VLOOKUP(R118,'[13]GW-Comm_H-OA_Trench'!$A$3:$O$280,11,FALSE) ->  | N118: =VLOOKUP(R118,'[14]SG-Comm-OA_H_Trench'!$A$1:$O$65536,11,FALSE) -> 0.0009047644839 | O118: =VLOOKUP(R118,'[13]SG-Comm-OA_G_Trench'!$A$3:$O$280,11,FALSE) -> 0.0009047644839 | P118: =VLOOKUP(R118,'[13]GW-Comm_IA_D'!$A$3:$O$280,11,FALSE) -> 5.034754005e-07 | R118: 98862
B119: SVOCs | C119: Anthracene | D119: Anthracene | E119: 120-12-7 | F119: =VLOOKUP(R119,'[14]SG-Comm_IA_5ft'!$A$1:$O$65536,7,FALSE) -> 0.0001155595736 | G119: =VLOOKUP(R119,'[14]SG-Comm_IA_10ft'!$A$1:$O$65536,7,FALSE) -> 5.839609501e-05 | H119: =VLOOKUP(R119,'[14]SG-Comm-OA_H_5ft'!$A$1:$O$65536,11,FALSE) -> 2.142812804e-06 | I119: =VLOOKUP(R119,'[13]SG-Comm-OA_H_Trench'!$A$3:$O$280,11,FALSE) ->  | J119: =VLOOKUP(R119,'[13]GW-Comm_IA_H'!$A$3:$O$280,11,FALSE) ->  | K119: =VLOOKUP(R119,'[13]GW-Comm_H-OA'!$A$3:$O$280,11,FALSE) ->  | L119: =VLOOKUP(R119,'[13]GW-Comm_H-OA_Trench'!$A$3:$O$280,11,FALSE) ->  | M119: =VLOOKUP(R119,'[13]GW-Comm_H-OA_Trench'!$A$3:$O$280,11,FALSE) ->  | N119: =VLOOKUP(R119,'[14]SG-Comm-OA_H_Trench'!$A$1:$O$65536,11,FALSE) -> 0.0004205910637 | O119: =VLOOKUP(R119,'[13]SG-Comm-OA_G_Trench'!$A$3:$O$280,11,FALSE) -> 0.0004205910637 | P119: =VLOOKUP(R119,'[13]GW-Comm_IA_D'!$A$3:$O$280,11,FALSE) -> 2.186370833e-07 | R119: 120127
B120: SVOCs | C120: Azobenzene | D120: Azobenzene | E120: 103-33-3 | F120: =VLOOKUP(R120,'[14]SG-Comm_IA_5ft'!$A$1:$O$65536,7,FALSE) -> 0.0001294014999 | G120: =VLOOKUP(R120,'[14]SG-Comm_IA_10ft'!$A$1:$O$65536,7,FALSE) -> 6.59106319e-05 | H120: =VLOOKUP(R120,'[14]SG-Comm-OA_H_5ft'!$A$1:$O$65536,11,FALSE) -> 2.438353491e-06 | I120: =VLOOKUP(R120,'[13]SG-Comm-OA_H_Trench'!$A$3:$O$280,11,FALSE) ->  | J120: =VLOOKUP(R120,'[13]GW-Comm_IA_H'!$A$3:$O$280,11,FALSE) ->  | K120: =VLOOKUP(R120,'[13]GW-Comm_H-OA'!$A$3:$O$280,11,FALSE) ->  | L120: =VLOOKUP(R120,'[13]GW-Comm_H-OA_Trench'!$A$3:$O$280,11,FALSE) ->  | M120: =VLOOKUP(R120,'[13]GW-Comm_H-OA_Trench'!$A$3:$O$280,11,FALSE) ->  | N120: =VLOOKUP(R120,'[14]SG-Comm-OA_H_Trench'!$A$1:$O$65536,11,FALSE) -> 0.0004785997576 | O120: =VLOOKUP(R120,'[13]SG-Comm-OA_G_Trench'!$A$3:$O$280,11,FALSE) -> 0.0004785997576 | P120: =VLOOKUP(R120,'[13]GW-Comm_IA_D'!$A$3:$O$280,11,FALSE) -> 2.641317398e-07 | R120: 103333
B121: SVOCs | C121: Benzo(a)anthracene | D121: Benzo(a)anthracene | E121: 56-55-3 | F121: =VLOOKUP(R121,'[14]SG-Comm_IA_5ft'!$A$1:$O$65536,7,FALSE) -> 0.0001062883039 | G121: =VLOOKUP(R121,'[14]SG-Comm_IA_10ft'!$A$1:$O$65536,7,FALSE) -> 5.342881333e-05 | H121: =VLOOKUP(R121,'[14]SG-Comm-OA_H_5ft'!$A$1:$O$65536,11,FALSE) -> 1.950074379e-06 | I121: =VLOOKUP(R121,'[13]SG-Comm-OA_H_Trench'!$A$3:$O$280,11,FALSE) ->  | J121: =VLOOKUP(R121,'[13]GW-Comm_IA_H'!$A$3:$O$280,11,FALSE) ->  | K121: =VLOOKUP(R121,'[13]GW-Comm_H-OA'!$A$3:$O$280,11,FALSE) ->  | L121: =VLOOKUP(R121,'[13]GW-Comm_H-OA_Trench'!$A$3:$O$280,11,FALSE) ->  | M121: =VLOOKUP(R121,'[13]GW-Comm_H-OA_Trench'!$A$3:$O$280,11,FALSE) ->  | N121: =VLOOKUP(R121,'[14]SG-Comm-OA_H_Trench'!$A$1:$O$65536,11,FALSE) -> 0.0003827603868 | O121: =VLOOKUP(R121,'[13]SG-Comm-OA_G_Trench'!$A$3:$O$280,11,FALSE) -> 0.0003827603868 | P121: =VLOOKUP(R121,'[13]GW-Comm_IA_D'!$A$3:$O$280,11,FALSE) -> 2.124642527e-07 | R121: 56553
B122: SVOCs | C122: Benzo(a)pyrene | D122: Benzo(a)pyrene | E122: 50-32-8 | F122: =VLOOKUP(R122,'[14]SG-Comm_IA_5ft'!$A$1:$O$65536,7,FALSE) ->  | G122: =VLOOKUP(R122,'[14]SG-Comm_IA_10ft'!$A$1:$O$65536,7,FALSE) ->  | H122: =VLOOKUP(R122,'[14]SG-Comm-OA_H_5ft'!$A$1:$O$65536,11,FALSE) ->  | I122: =VLOOKUP(R122,'[13]SG-Comm-OA_H_Trench'!$A$3:$O$280,11,FALSE) ->  | J122: =VLOOKUP(R122,'[13]GW-Comm_IA_H'!$A$3:$O$280,11,FALSE) ->  | K122: =VLOOKUP(R122,'[13]GW-Comm_H-OA'!$A$3:$O$280,11,FALSE) ->  | L122: =VLOOKUP(R122,'[13]GW-Comm_H-OA_Trench'!$A$3:$O$280,11,FALSE) ->  | M122: =VLOOKUP(R122,'[13]GW-Comm_H-OA_Trench'!$A$3:$O$280,11,FALSE) ->  | N122: =VLOOKUP(R122,'[14]SG-Comm-OA_H_Trench'!$A$1:$O$65536,11,FALSE) ->  | O122: =VLOOKUP(R122,'[13]SG-Comm-OA_G_Trench'!$A$3:$O$280,11,FALSE) ->  | P122: =VLOOKUP(R122,'[13]GW-Comm_IA_D'!$A$3:$O$280,11,FALSE) ->  | R122: 50328
B123: SVOCs | C123: Benzo(g,h,i)perylene | D123: Benzo(g,h,i)perylene | E123: 191-24-2 | F123: =VLOOKUP(R123,'[14]SG-Comm_IA_5ft'!$A$1:$O$65536,7,FALSE) ->  | G123: =VLOOKUP(R123,'[14]SG-Comm_IA_10ft'!$A$1:$O$65536,7,FALSE) ->  | H123: =VLOOKUP(R123,'[14]SG-Comm-OA_H_5ft'!$A$1:$O$65536,11,FALSE) ->  | I123: =VLOOKUP(R123,'[13]SG-Comm-OA_H_Trench'!$A$3:$O$280,11,FALSE) ->  | J123: =VLOOKUP(R123,'[13]GW-Comm_IA_H'!$A$3:$O$280,11,FALSE) ->  | K123: =VLOOKUP(R123,'[13]GW-Comm_H-OA'!$A$3:$O$280,11,FALSE) ->  | L123: =VLOOKUP(R123,'[13]GW-Comm_H-OA_Trench'!$A$3:$O$280,11,FALSE) ->  | M123: =VLOOKUP(R123,'[13]GW-Comm_H-OA_Trench'!$A$3:$O$280,11,FALSE) ->  | N123: =VLOOKUP(R123,'[14]SG-Comm-OA_H_Trench'!$A$1:$O$65536,11,FALSE) ->  | O123: =VLOOKUP(R123,'[13]SG-Comm-OA_G_Trench'!$A$3:$O$280,11,FALSE) ->  | P123: =VLOOKUP(R123,'[13]GW-Comm_IA_D'!$A$3:$O$280,11,FALSE) ->  | R123: 191242
B124: SVOCs | C124: Benzo(k)fluoranthene | D124: Benzo(k)fluoranthene | E124: 207-08-9 | F124: =VLOOKUP(R124,'[14]SG-Comm_IA_5ft'!$A$1:$O$65536,7,FALSE) ->  | G124: =VLOOKUP(R124,'[14]SG-Comm_IA_10ft'!$A$1:$O$65536,7,FALSE) ->  | H124: =VLOOKUP(R124,'[14]SG-Comm-OA_H_5ft'!$A$1:$O$65536,11,FALSE) ->  | I124: =VLOOKUP(R124,'[13]SG-Comm-OA_H_Trench'!$A$3:$O$280,11,FALSE) ->  | J124: =VLOOKUP(R124,'[13]GW-Comm_IA_H'!$A$3:$O$280,11,FALSE) ->  | K124: =VLOOKUP(R124,'[13]GW-Comm_H-OA'!$A$3:$O$280,11,FALSE) ->  | L124: =VLOOKUP(R124,'[13]GW-Comm_H-OA_Trench'!$A$3:$O$280,11,FALSE) ->  | M124: =VLOOKUP(R124,'[13]GW-Comm_H-OA_Trench'!$A$3:$O$280,11,FALSE) ->  | N124: =VLOOKUP(R124,'[14]SG-Comm-OA_H_Trench'!$A$1:$O$65536,11,FALSE) ->  | O124: =VLOOKUP(R124,'[13]SG-Comm-OA_G_Trench'!$A$3:$O$280,11,FALSE) ->  | P124: =VLOOKUP(R124,'[13]GW-Comm_IA_D'!$A$3:$O$280,11,FALSE) ->  | R124: 207089
B125: SVOCs | C125: Bis(2-chloroethyl)ether | D125: bis(2-Chloroethyl) ether | E125: 111-44-4 | F125: =VLOOKUP(R125,'[14]SG-Comm_IA_5ft'!$A$1:$O$65536,7,FALSE) -> 0.0002270327833 | G125: =VLOOKUP(R125,'[14]SG-Comm_IA_10ft'!$A$1:$O$65536,7,FALSE) -> 0.0001225071407 | H125: =VLOOKUP(R125,'[14]SG-Comm-OA_H_5ft'!$A$1:$O$65536,11,FALSE) -> 4.829923762e-06 | I125: =VLOOKUP(R125,'[13]SG-Comm-OA_H_Trench'!$A$3:$O$280,11,FALSE) ->  | J125: =VLOOKUP(R125,'[13]GW-Comm_IA_H'!$A$3:$O$280,11,FALSE) ->  | K125: =VLOOKUP(R125,'[13]GW-Comm_H-OA'!$A$3:$O$280,11,FALSE) ->  | L125: =VLOOKUP(R125,'[13]GW-Comm_H-OA_Trench'!$A$3:$O$280,11,FALSE) ->  | M125: =VLOOKUP(R125,'[13]GW-Comm_H-OA_Trench'!$A$3:$O$280,11,FALSE) ->  | N125: =VLOOKUP(R125,'[14]SG-Comm-OA_H_Trench'!$A$1:$O$65536,11,FALSE) -> 0.0009480169101 | O125: =VLOOKUP(R125,'[13]SG-Comm-OA_G_Trench'!$A$3:$O$280,11,FALSE) -> 0.0009480169101 | P125: =VLOOKUP(R125,'[13]GW-Comm_IA_D'!$A$3:$O$280,11,FALSE) -> 5.195261403e-07 | R125: 111444
B126: SVOCs | C126: Bis(2-Ethylhexyl)phthalate | D126: bis(2-Ethylhexyl)phthalate | E126: 117-81-7 | F126: =VLOOKUP(R126,'[14]SG-Comm_IA_5ft'!$A$1:$O$65536,7,FALSE) ->  | G126: =VLOOKUP(R126,'[14]SG-Comm_IA_10ft'!$A$1:$O$65536,7,FALSE) ->  | H126: =VLOOKUP(R126,'[14]SG-Comm-OA_H_5ft'!$A$1:$O$65536,11,FALSE) ->  | I126: =VLOOKUP(R126,'[13]SG-Comm-OA_H_Trench'!$A$3:$O$280,11,FALSE) ->  | J126: =VLOOKUP(R126,'[13]GW-Comm_IA_H'!$A$3:$O$280,11,FALSE) ->  | K126: =VLOOKUP(R126,'[13]GW-Comm_H-OA'!$A$3:$O$280,11,FALSE) ->  | L126: =VLOOKUP(R126,'[13]GW-Comm_H-OA_Trench'!$A$3:$O$280,11,FALSE) ->  | M126: =VLOOKUP(R126,'[13]GW-Comm_H-OA_Trench'!$A$3:$O$280,11,FALSE) ->  | N126: =VLOOKUP(R126,'[14]SG-Comm-OA_H_Trench'!$A$1:$O$65536,11,FALSE) ->  | O126: =VLOOKUP(R126,'[13]SG-Comm-OA_G_Trench'!$A$3:$O$280,11,FALSE) ->  | P126: =VLOOKUP(R126,'[13]GW-Comm_IA_D'!$A$3:$O$280,11,FALSE) ->  | R126: 117817
B127: SVOCs | C127: Bromophenyl-phenylether 4 | D127: 4-Bromophenyl-phenyl ether | E127: 101-55-3 | F127: =VLOOKUP(R127,'[14]SG-Comm_IA_5ft'!$A$1:$O$65536,7,FALSE) -> 0.0002412932228 | G127: =VLOOKUP(R127,'[14]SG-Comm_IA_10ft'!$A$1:$O$65536,7,FALSE) -> 0.0001313414821 | H127: =VLOOKUP(R127,'[14]SG-Comm-OA_H_5ft'!$A$1:$O$65536,11,FALSE) -> 5.231883589e-06 | I127: =VLOOKUP(R127,'[13]SG-Comm-OA_H_Trench'!$A$3:$O$280,11,FALSE) ->  | J127: =VLOOKUP(R127,'[13]GW-Comm_IA_H'!$A$3:$O$280,11,FALSE) ->  | K127: =VLOOKUP(R127,'[13]GW-Comm_H-OA'!$A$3:$O$280,11,FALSE) ->  | L127: =VLOOKUP(R127,'[13]GW-Comm_H-OA_Trench'!$A$3:$O$280,11,FALSE) ->  | M127: =VLOOKUP(R127,'[13]GW-Comm_H-OA_Trench'!$A$3:$O$280,11,FALSE) ->  | N127: =VLOOKUP(R127,'[14]SG-Comm-OA_H_Trench'!$A$1:$O$65536,11,FALSE) -> 0.001026913541 | O127: =VLOOKUP(R127,'[13]SG-Comm-OA_G_Trench'!$A$3:$O$280,11,FALSE) -> 0.001026913541 | P127: =VLOOKUP(R127,'[13]GW-Comm_IA_D'!$A$3:$O$280,11,FALSE) -> 5.073469293e-07 | R127: 101553
B128: SVOCs | C128: Chloronaphthalene 2 | D128: 2-Chloronaphthalene | E128: 91-58-7 | F128: =VLOOKUP(R128,'[14]SG-Comm_IA_5ft'!$A$1:$O$65536,7,FALSE) -> 0.0001205151085 | G128: =VLOOKUP(R128,'[14]SG-Comm_IA_10ft'!$A$1:$O$65536,7,FALSE) -> 6.107270908e-05 | H128: =VLOOKUP(R128,'[14]SG-Comm-OA_H_5ft'!$A$1:$O$65536,11,FALSE) -> 2.247529982e-06 | I128: =VLOOKUP(R128,'[13]SG-Comm-OA_H_Trench'!$A$3:$O$280,11,FALSE) ->  | J128: =VLOOKUP(R128,'[13]GW-Comm_IA_H'!$A$3:$O$280,11,FALSE) ->  | K128: =VLOOKUP(R128,'[13]GW-Comm_H-OA'!$A$3:$O$280,11,FALSE) ->  | L128: =VLOOKUP(R128,'[13]GW-Comm_H-OA_Trench'!$A$3:$O$280,11,FALSE) ->  | M128: =VLOOKUP(R128,'[13]GW-Comm_H-OA_Trench'!$A$3:$O$280,11,FALSE) ->  | N128: =VLOOKUP(R128,'[14]SG-Comm-OA_H_Trench'!$A$1:$O$65536,11,FALSE) -> 0.0004411449401 | O128: =VLOOKUP(R128,'[13]SG-Comm-OA_G_Trench'!$A$3:$O$280,11,FALSE) -> 0.0004411449401 | P128: =VLOOKUP(R128,'[13]GW-Comm_IA_D'!$A$3:$O$280,11,FALSE) -> 1.867185717e-07 | R128: 91587
B129: SVOCs | C129: Chlorophenol 2 | D129: 2-Chlorophenol | E129: 95-57-8 | F129: =VLOOKUP(R129,'[14]SG-Comm_IA_5ft'!$A$1:$O$65536,7,FALSE) -> 0.0006567028239 | G129: =VLOOKUP(R129,'[14]SG-Comm_IA_10ft'!$A$1:$O$65536,7,FALSE) -> 0.0004795748645 | H129: =VLOOKUP(R129,'[14]SG-Comm-OA_H_5ft'!$A$1:$O$65536,11,FALSE) -> 3.227389056e-05 | I129: =VLOOKUP(R129,'[13]SG-Comm-OA_H_Trench'!$A$3:$O$280,11,FALSE) ->  | J129: =VLOOKUP(R129,'[13]GW-Comm_IA_H'!$A$3:$O$280,11,FALSE) ->  | K129: =VLOOKUP(R129,'[13]GW-Comm_H-OA'!$A$3:$O$280,11,FALSE) ->  | L129: =VLOOKUP(R129,'[13]GW-Comm_H-OA_Trench'!$A$3:$O$280,11,FALSE) ->  | M129: =VLOOKUP(R129,'[13]GW-Comm_H-OA_Trench'!$A$3:$O$280,11,FALSE) ->  | N129: =VLOOKUP(R129,'[14]SG-Comm-OA_H_Trench'!$A$1:$O$65536,11,FALSE) -> 0.006334715723 | O129: =VLOOKUP(R129,'[13]SG-Comm-OA_G_Trench'!$A$3:$O$280,11,FALSE) -> 0.006334715723 | P129: =VLOOKUP(R129,'[13]GW-Comm_IA_D'!$A$3:$O$280,11,FALSE) -> 1.495467076e-06 | R129: 95578
B130: SVOCs | C130: Chlorophenyl-phenyl ether 4 | D130: 4-Chlorophenyl-phenyl ether | E130: 7005-72-3 | F130: =VLOOKUP(R130,'[14]SG-Comm_IA_5ft'!$A$1:$O$65536,7,FALSE) -> 0.000107568468 | G130: =VLOOKUP(R130,'[14]SG-Comm_IA_10ft'!$A$1:$O$65536,7,FALSE) -> 5.411158039e-05 | H130: =VLOOKUP(R130,'[14]SG-Comm-OA_H_5ft'!$A$1:$O$65536,11,FALSE) -> 1.976444742e-06 | I130: =VLOOKUP(R130,'[13]SG-Comm-OA_H_Trench'!$A$3:$O$280,11,FALSE) ->  | J130: =VLOOKUP(R130,'[13]GW-Comm_IA_H'!$A$3:$O$280,11,FALSE) ->  | K130: =VLOOKUP(R130,'[13]GW-Comm_H-OA'!$A$3:$O$280,11,FALSE) ->  | L130: =VLOOKUP(R130,'[13]GW-Comm_H-OA_Trench'!$A$3:$O$280,11,FALSE) ->  | M130: =VLOOKUP(R130,'[13]GW-Comm_H-OA_Trench'!$A$3:$O$280,11,FALSE) ->  | N130: =VLOOKUP(R130,'[14]SG-Comm-OA_H_Trench'!$A$1:$O$65536,11,FALSE) -> 0.0003879363588 | O130: =VLOOKUP(R130,'[13]SG-Comm-OA_G_Trench'!$A$3:$O$280,11,FALSE) -> 0.0003879363588 | P130: =VLOOKUP(R130,'[13]GW-Comm_IA_D'!$A$3:$O$280,11,FALSE) -> 1.991751796e-07 | R130: 7005723
B131: SVOCs | C131: Dibenzofuran | D131: Dibenzofuran | E131: 132-64-9 | F131: =VLOOKUP(R131,'[14]SG-Comm_IA_5ft'!$A$1:$O$65536,7,FALSE) -> 0.0005997844836 | G131: =VLOOKUP(R131,'[14]SG-Comm_IA_10ft'!$A$1:$O$65536,7,FALSE) -> 0.0004185361834 | H131: =VLOOKUP(R131,'[14]SG-Comm-OA_H_5ft'!$A$1:$O$65536,11,FALSE) -> 2.514012533e-05 | I131: =VLOOKUP(R131,'[13]SG-Comm-OA_H_Trench'!$A$3:$O$280,11,FALSE) ->  | J131: =VLOOKUP(R131,'[13]GW-Comm_IA_H'!$A$3:$O$280,11,FALSE) ->  | K131: =VLOOKUP(R131,'[13]GW-Comm_H-OA'!$A$3:$O$280,11,FALSE) ->  | L131: =VLOOKUP(R131,'[13]GW-Comm_H-OA_Trench'!$A$3:$O$280,11,FALSE) ->  | M131: =VLOOKUP(R131,'[13]GW-Comm_H-OA_Trench'!$A$3:$O$280,11,FALSE) ->  | N131: =VLOOKUP(R131,'[14]SG-Comm-OA_H_Trench'!$A$1:$O$65536,11,FALSE) -> 0.004934501063 | O131: =VLOOKUP(R131,'[13]SG-Comm-OA_G_Trench'!$A$3:$O$280,11,FALSE) -> 0.004934501063 | P131: =VLOOKUP(R131,'[13]GW-Comm_IA_D'!$A$3:$O$280,11,FALSE) -> 2.778197396e-06 | R131: 132649
B132: SVOCs | C132: Fluorene | D132: Fluorene | E132: 86-73-7 | F132: =VLOOKUP(R132,'[14]SG-Comm_IA_5ft'!$A$1:$O$65536,7,FALSE) -> 0.0001965173409 | G132: =VLOOKUP(R132,'[14]SG-Comm_IA_10ft'!$A$1:$O$65536,7,FALSE) -> 0.0001041083661 | H132: =VLOOKUP(R132,'[14]SG-Comm-OA_H_5ft'!$A$1:$O$65536,11,FALSE) -> 4.018699213e-06 | I132: =VLOOKUP(R132,'[13]SG-Comm-OA_H_Trench'!$A$3:$O$280,11,FALSE) ->  | J132: =VLOOKUP(R132,'[13]GW-Comm_IA_H'!$A$3:$O$280,11,FALSE) ->  | K132: =VLOOKUP(R132,'[13]GW-Comm_H-OA'!$A$3:$O$280,11,FALSE) ->  | L132: =VLOOKUP(R132,'[13]GW-Comm_H-OA_Trench'!$A$3:$O$280,11,FALSE) ->  | M132: =VLOOKUP(R132,'[13]GW-Comm_H-OA_Trench'!$A$3:$O$280,11,FALSE) ->  | N132: =VLOOKUP(R132,'[14]SG-Comm-OA_H_Trench'!$A$1:$O$65536,11,FALSE) -> 0.0007887898438 | O132: =VLOOKUP(R132,'[13]SG-Comm-OA_G_Trench'!$A$3:$O$280,11,FALSE) -> 0.0007887898438 | P132: =VLOOKUP(R132,'[13]GW-Comm_IA_D'!$A$3:$O$280,11,FALSE) -> 4.091508361e-07 | R132: 86737
B133: SVOCs | C133: Hexachlorobenzene | D133: Hexachlorobenzene | E133: 118-74-1 | F133: =VLOOKUP(R133,'[14]SG-Comm_IA_5ft'!$A$1:$O$65536,7,FALSE) -> 0.0001024239362 | G133: =VLOOKUP(R133,'[14]SG-Comm_IA_10ft'!$A$1:$O$65536,7,FALSE) -> 5.137377392e-05 | H133: =VLOOKUP(R133,'[14]SG-Comm-OA_H_5ft'!$A$1:$O$65536,11,FALSE) -> 1.870936078e-06 | I133: =VLOOKUP(R133,'[13]SG-Comm-OA_H_Trench'!$A$3:$O$280,11,FALSE) ->  | J133: =VLOOKUP(R133,'[13]GW-Comm_IA_H'!$A$3:$O$280,11,FALSE) ->  | K133: =VLOOKUP(R133,'[13]GW-Comm_H-OA'!$A$3:$O$280,11,FALSE) ->  | L133: =VLOOKUP(R133,'[13]GW-Comm_H-OA_Trench'!$A$3:$O$280,11,FALSE) ->  | M133: =VLOOKUP(R133,'[13]GW-Comm_H-OA_Trench'!$A$3:$O$280,11,FALSE) ->  | N133: =VLOOKUP(R133,'[14]SG-Comm-OA_H_Trench'!$A$1:$O$65536,11,FALSE) -> 0.0003672271297 | O133: =VLOOKUP(R133,'[13]SG-Comm-OA_G_Trench'!$A$3:$O$280,11,FALSE) -> 0.0003672271297 | P133: =VLOOKUP(R133,'[13]GW-Comm_IA_D'!$A$3:$O$280,11,FALSE) -> 1.308811304e-07 | R133: 118741
B134: SVOCs | C134: Hexachlorobutadiene | D134: Hexachlorobutadiene | E134: 87-68-3 | F134: =VLOOKUP(R134,'[14]SG-Comm_IA_5ft'!$A$1:$O$65536,7,FALSE) -> 9.507706594e-05 | G134: =VLOOKUP(R134,'[14]SG-Comm_IA_10ft'!$A$1:$O$65536,7,FALSE) -> 4.749143414e-05 | H134: =VLOOKUP(R134,'[14]SG-Comm-OA_H_5ft'!$A$1:$O$65536,11,FALSE) -> 1.722377567e-06 | I134: =VLOOKUP(R134,'[13]SG-Comm-OA_H_Trench'!$A$3:$O$280,11,FALSE) ->  | J134: =VLOOKUP(R134,'[13]GW-Comm_IA_H'!$A$3:$O$280,11,FALSE) ->  | K134: =VLOOKUP(R134,'[13]GW-Comm_H-OA'!$A$3:$O$280,11,FALSE) ->  | L134: =VLOOKUP(R134,'[13]GW-Comm_H-OA_Trench'!$A$3:$O$280,11,FALSE) ->  | M134: =VLOOKUP(R134,'[13]GW-Comm_H-OA_Trench'!$A$3:$O$280,11,FALSE) ->  | N134: =VLOOKUP(R134,'[14]SG-Comm-OA_H_Trench'!$A$1:$O$65536,11,FALSE) -> 0.0003380680813 | O134: =VLOOKUP(R134,'[13]SG-Comm-OA_G_Trench'!$A$3:$O$280,11,FALSE) -> 0.0003380680813 | P134: =VLOOKUP(R134,'[13]GW-Comm_IA_D'!$A$3:$O$280,11,FALSE) -> 7.179475389e-08 | R134: 87683
